Workbook

Sheet LDC Info
Z3: 1 | AA3: Alectra Utilities Corporation-Brampton Rate Zone
Z4: 2 | AA4: Alectra Utilities Corporation-Enersource Rate Zone
Z5: 3 | AA5: Alectra Utilities Corporation-Horizon Utilities Rate Zone
Z6: 4 | AA6: Alectra Utilities Corporation-PowerStream Rate Zone
Z7: 5 | AA7: Alectra Utilities Corporation-Guelph Rate Zone
Z8: 6 | AA8: Algoma Power Inc.
Z9: 7 | AA9: Atikokan Hydro Inc.
Z10: 8 | AA10: Bluewater Power Distribution Corporation
Z11: 9 | AA11: Burlington Hydro Inc.
Z12: 10 | AA12: Canadian Niagara Power Inc.
Z13: 11 | AA13: Centre Wellington Hydro Ltd.
D14: Utility Name | E14: Festival Hydro Inc. | Z14: 12 | AA14: Chapleau Public Utilities Corporation
Z15: 13 | AA15: Cooperative Hydro Embrun Inc.
D16: Assigned EB Number | E16: EB-2024-0023 | Z16: 14 | AA16: E.L.K. Energy Inc.
Z17: 15 | AA17: Elexicon Energy Inc.-Whitby Rate Zone
D18: Name of Contact and Title | E18: Alyson Conrad, Chief Financial Officer | Z18: 16 | AA18: Elexicon Energy Inc.-Veridian Rate Zone
Z19: 17 | AA19: Enova Power Corp.-Kitchener-Wilmot Hydro Rate Zone
D20: Phone Number | E20: 519-271-4700 ext. 221 | Z20: 18 | AA20: Enova Power Corp.-Waterloo North Rate Zone
Z21: 19 | AA21: Entegrus Powerlines Inc.-For Entegrus-Main Rate Zone
D22: Email Address | E22: aconrad@festivalhydro.com | Z22: 20 | AA22: Entegrus Powerlines Inc.-For Former St. Thomas Energy Rate Zone
Z23: 21 | AA23: ENWIN Utilities Ltd.
D24: Test Year | E24: 2025 | Z24: 22 | AA24: EPCOR Electricity Distribution Ontario Inc.
Z25: 23 | AA25: ERTH Power Corporation - ERTH Power Main Rate Zone
D26: Bridge Year | E26: =IF(ISBLANK(E24), "", E24-1) -> 2024 | Z26: 24 | AA26: ERTH POWER CORPORATION – GODERICH RATE ZONE
Z27: 25 | AA27: Essex Powerlines Corporation
D28: Last Rebasing Year | E28: 2015 | Z28: 26 | AA28: Festival Hydro Inc.
Z29: 27 | AA29: Fort Frances Power Corporation
A30: Identify the accounting standard used for the test year | Z30: 28 | AA30: GrandBridge Energy Inc.-Brantford Power Rate Zone
E31: MIFRS | Z31: 29 | AA31: GrandBridge Energy Inc.-Energy+ Rate Zone
Z32: 30 | AA32: Greater Sudbury Hydro Inc.
A33: ="Did "& E14 &" update its depreciation and capitalization policies?" -> Did Festival Hydro Inc. update its depreciation and capitalization policies? | Z33: 31 | AA33: Grimsby Power Incorporated
E34: Yes | Z34: 32 | AA34: Halton Hills Hydro Inc.
Z35: 33 | AA35: Hearst Power Distribution Co. Ltd.
A36: If "yes" to cell E34, were the changes in policies reflected in a prior rebasing application? | Z36: 34 | AA36: Hydro 2000 Inc.
E37: Yes | Z37: 35 | AA37: Hydro Hawkesbury Inc.
Z38: 36 | AA38: Hydro One Networks Inc.
A39: ="When did "&E14&" update its actual depreciation and capitalization policies?" -> When did Festival Hydro Inc. update its actual depreciation and capitalization policies? | Z39: 37 | AA39: Hydro One Networks Inc.-Former Orillia Power Distribution Corporation Service Area
E40: 2001-01-01 | F40: 2013 | Z40: 38 | AA40: Hydro One Networks Inc.-Former Peterborough Distribution Inc. Service Area
Z41: 39 | AA41: Hydro One Networks Inc.-Former Haldimand County Hydro Inc. Service Area
A42: Identify the year the applicant adopted IFRS for financial reporting purposes | Z42: 40 | AA42: Hydro One Networks Inc.-Former Norfolk Power Distribution Inc. Service Area
E43: 2014 | Z43: 41 | AA43: Hydro One Networks Inc.-Former Woodstock Hydro Services Inc. Service Area
Z44: 42 | AA44: Hydro One Remote Communites Inc.
Z45: 43 | AA45: Hydro Ottawa Limited
A46: ="Is " & E14 & " applying for cost recovery for the test and/or future year(s) for Green Energy initiatives?" -> Is Festival Hydro Inc. applying for cost recovery for the test and/or future year(s) for Green Energy initiatives? | Z46: 44 | AA46: InnPower Corporation
E47: No | Z47: 45 | AA47: Kingston Hydro Corporation
Z48: 46 | AA48: Lakefront Utilities Inc.
A49: ="Is " & E14 & " an embedded distributor?" -> Is Festival Hydro Inc. an embedded distributor? | E49: Partial | Z49: 47 | AA49: Lakeland Power Distribution Ltd.
Z50: 48 | AA50: London Hydro Inc.
Z51: 49 | AA51: Milton Hydro Distribution Inc.
B52: Notes | Z52: 50 | AA52: Newmarket-Tay Power Distribution Ltd.-For Former Midland Power Utility Rate Zone
Z53: 51 | AA53: Newmarket-Tay Power Distribution Ltd.-For Newmarket-Tay Power Main Rate Zone
C54: Pale green cells represent input cells. | Z54: 52 | AA54: Niagara Peninsula Energy Inc.
Z55: 53 | AA55: Niagara-on-the-Lake Hydro Inc.
C56: Pale blue cells represent drop-down lists. The applicant should select the appropriate item from the drop-down list. | Z56: 54 | AA56: North Bay Hydro Distribution Limited
Z57: 55 | AA57: Northern Ontario Wires Inc.
C58: White cells contain fixed values, automatically generated values or formulae. | N58: =IF(LEN($G58)>1, (SUMPRODUCT(--($C$81:$C$1003=$C58),--($A$81:$A$1003=$D58), --($B$81:$B$1003=$B58&"_TOTAL"), $L$1:$L$889)), "") ->  | O58: =IF(LEN($G58)>1, (SUMPRODUCT(--($C$81:$C$1003=$C58),--($A$81:$A$1003=$D58), --($B$81:$B$1003=$B58&"_TOTAL"), $M$1:$M$889)), "") ->  | Z58: 56 | AA58: Oakville Hydro Electricity Distribution Inc.
Z59: 57 | AA59: Orangeville Hydro Limited
Z60: 58 | AA60: Oshawa PUC Networks Inc.
Z61: 59 | AA61: Ottawa River Power Corporation
Z62: 60 | AA62: PUC Distribution Inc.
Z63: 61 | AA63: Renfrew Hydro Inc.
Z64: 62 | AA64: Rideau St. Lawrence Distribution Inc.
Z65: 63 | AA65: Sioux Lookout Hydro Inc.
Z66: 64 | AA66: Synergy North Corporation-Kenora Rate Zone
Z67: 65 | AA67: Synergy North Corporation-Thunder Bay Rate Zone
Z68: 66 | AA68: Tillsonburg Hydro Inc.
Z69: 67 | AA69: Toronto Hydro-Electric System Limited
Z70: 68 | AA70: Wasaga Distribution Inc.
Z71: 69 | AA71: Welland Hydro-Electric System Corp.
Z72: 70 | AA72: Wellington North Power Inc.
Z73: 71 | AA73: Westario Power Inc.
Z74: 72
Z75: 73

Sheet Index
A15: 1 | B15: LDC Information Sheet | E15: 20 | F15: App.2-G: Service Reliability Indicators
A16: 2 | B16: Index | E16: 21 | F16: App.2-H: Other Operating Revenue (TO BE UPDATED AT THE DRAFT RATE ORDER STAGE)
A17: 3 | B17: Cost of Service Application Flowchart - CONTACT OEB STAFF IF TAB REQUIRED | E17: 22 | F17: App.2-I: Load Forecast CDM Adjustment Workform
A18: 4 | B18: List of Key References - CONTACT OEB STAFF IF TAB REQUIRED | E18: 23 | F18: App.2-IA: Load Forecast Data Instructions
A19: 5 | B19: App.2-A: List of Requested Approvals - CONTACT OEB STAFF IF TAB REQUIRED | E19: 24 | F19: App.2-IB: Actual and Forecast Load and Customer Data
A20: 6 | B20: App.2-AA: Capital Projects Table | E20: 25 | F20: App.2-JA: OM&A Summary Analysis (TO BE UPDATED AT THE DRAFT RATE ORDER STAGE)
A21: 7 | B21: App.2-AB: Capital Expenditures (TO BE UPDATED AT THE DRAFT RATE ORDER STAGE) | E21: 26 | F21: App.2-JB: Recoverable OM&A Cost Driver Table
A22: 8 | B22: App. 2-AC: Customer Engagement Worksheet | E22: 27 | F22: App.2-JC: OM&A Programs Table
A23: 9 | B23: App.2-B: General Accounting Instructions Relating to MIFRS Transition - CONTACT OEB STAFF IF TAB REQUIRED | E23: 28 | F23: App.2-JD: OM&A Programs Table
A24: 10 | B24: App.2-BA: Fixed Asset Continuity Schedule (TO BE UPDATED AT THE DRAFT RATE ORDER STAGE) | E24: 29 | F24: App.2-L: Recoverable OM&A Cost per Customer and per FTE
A25: 11 | B25: Appendix 2-BB: Service Life Comparison | E25: 30 | F25: App.2-M: Regulatory Costs Schedule (TO BE UPDATED AT THE DRAFT RATE ORDER STAGE)
A26: 12 | B26: App.2-C_DepExp: Depreciation and Amortization Expense | E26: 31 | F26: App.2-N: Shared Services and Corporate Cost Allocation
A27: 13 | B27: App.2-D: Overhead Expenses | E27: 32 | F27: App.2-OA: Capital Structure and Cost of Capital
A28: 14 | B28: App.2-EA: Account 1575 PP&E Deferral Account (2015 IFRS Adopters) - CONTACT OEB STAFF IF TAB REQUIRED | E28: 33 | F28: App.2-OB: Debt Instruments
A29: 15 | B29: App.2-EB: Account 1576 - Accounting Changes Under CGAAP (2012 Changes) - CONTACT OEB STAFF IF TAB REQUIRED | E29: 34 | F29: App.2-Q: Cost of Serving Embedded Distributor(s)
A30: 16 | B30: App.2-EC: Account 1576 - Accounting Changes Under CGAAP (2013 Changes) - CONTACT OEB STAFF IF TAB REQUIRED | E30: 35 | F30: App.2-R: Loss Factors
A31: 17 | B31: App.2-FA: Renewable Generation Connection Investment Summary (TO BE UPDATED AT THE DRAFT RATE ORDER STAGE) | E31: 36 | F31: App.2-S: Stranded Meter Treatment- CONTACT OEB STAFF IF TAB REQUIRED
A32: 18 | B32: App.2-FB: Calculation of Renewable Generation Connection Direct Benefits/Provincial Amount: Renewable Enabling Improvement Investments (TO BE UPDATED AT THE DRAFT RATE ORDER STAGE) | E32: 37 | F32: App.2-Y: Transition to MIFRS Summary Impact - CONTACT OEB STAFF IF TAB REQUIRED
A33: 19 | B33: App.2-FC: Calculation of Renewable Generation Connection Direct Benefits/Provincial Amount: Renewable Expansion Investments (TO BE UPDATED AT THE DRAFT RATE ORDER STAGE) | E33: 38 | F33: App.2-YA: One-Time Incremental IFRS Transition Costs - CONTACT OEB STAFF IF TAB REQUIRED
E34: 39 | F34: App.2-ZA: Commodity Expense
E35: 40 | F35: App.2-ZB: Cost of Power
A42: Notes: | B42: Appendices for the Tariff of Rates and Charges at Current and Proposed Rates, and for the Bill Impacts are now in a separate spreadsheet model. These appendices were formerly 2-Z and 2-W. The dates on each tab must be filled in and updated if evidence in the tab is updated.

Sheet COS Flowchart (hidden)
B4: Cost of Service Rate Application Schematic
B6: The Cost of Service Rate Application Schematic is a flowchart that is included as a guide for the components of an application. The schematic demonstrates how demand and costs interrelate to derive the revenue requirement and how the revenue requirement is allocated between classes and through fixed/variable splits to derive rates that will be compensatory for the annual revenue requirement, based on the the forecasted demand. There is no form to be filled out; therefore, this Schedule is not required to be filed.

Sheet List of Key References (hidden)
A1: Cost of Service Applications – Key References
A3: The references listed below are key to interpreting these Filing Requirements.
A5: Report of the Board on Transition to International Financial Reporting Standards (EB-2008-0408) - July 28, 2009, outlined in section 2.3.5 below
A7: Addendum to Report of the Board EB-2008-0408 - Implementing International Financial Reporting Standards in an Incentive Rate Mechanism Environment - June 13, 2011
A9: The OEB’s Accounting Procedures Handbook (APH) and Uniform System of Accounts (USoA), any subsequent updates and Frequently Asked Questions
A11: Report of the Board on Electricity Distributors' Deferral and Variance Account Review Initiative (EDDVAR) - July 31, 2009
A13: Asset Depreciation Study for Use by Electricity Distributors (EB-2010-0178), (the Kinectrics Report), July 8, 2010
A15: Board letter of June 25, 2013, providing accounting policy changes for Accounts 1575 and 1576 effective in the 2014 cost of service rate application and subsequent rate years;
A17: Report of the Board - Performance Measurement for Electricity Distributors: A Scorecard Approach - March 5, 2014
A19: Report of the Board: Rate Setting Parameters and Benchmarking under the Renewed Regulatory Framework for Ontario's Electricity Distributors - corrected December 4, 2013
A21: Report of the Ontario Energy Board on Regulatory Treatment of Pension and Other Post-employment Benefits (OPEBs) Costs (EB-2015-0040), September 14, 2017
A23: Accounting Guidance related to Accounts 1588 RSVA Power, and 1589 RSVA Global Adjustment
A25: Capital Funding Options:
A26: Report of the Board: New Policy Options for the Funding of Capital Investments: The Advanced Capital Module (EB-2014-0219), September 18, 2014
A28: Report of the OEB: New Policy Options for the Funding of Capital Investments: Supplemental Report – January 22, 2016
A30: Cost of Capital:
A32: Report of the Board on the Cost of Capital for Ontario's Regulated Utilities - December 11, 2009 and any subsequent updates.
A34: OEB Staff Report on the Review of the Cost of Capital of Ontario’s Regulated Utilities (EB-2009-0084) and OEB Covering letter, January 14, 2016
A36: Green Energy:
A37: Framework for Determining the Direct Benefits Accruing to Customers of a Distributor under Ontario Regulation 330/09 (EB-2009-0349); Report of the Board June 18, 2010 (Revised and Re-issued March 28, 2013)
A39: Miscellaneous Rates and Charges:
A40: Report of the Ontario Energy Board on Wireline Pole Attachment Charges, March 22, 2018
A42: Accounting Guidance for Wireline Pole Attachment Charges and EB-2021-0302, Decision and Order, Wireline Pole Attachment Charge, December 16, 2021
A44: Regulatory Framework:
A45: Report of the Board: Renewed Regulatory Framework for Electricity Distributors: A Performance-Based Approach - October 18, 2012
A47: Handbook for Utility Rate Applications (the Rate Handbook), October 13, 2016
A49: Retail Transmission Rates:
A50: Guideline (G-2008-0001) on Retail Transmission Service Rates - October 22, 2008 (Revision 3.0 June 22, 2011 and any subsequent updates)
A53: Working Capital:
A54: Allowance for Working Capital for Electricity Distribution Rate Applications, June 3, 2015
A57: CDM Guidelines:
A58: Conservation and Demand Management Guidelines for Electricity Distributors, December 20, 2021

Sheet App.2-A_Requested_Approvals
G1: File Number: | H1: =EBNUMBER -> EB-2024-0023
G2: Exhibit: | H2: 1
G3: Tab:
G4: Schedule:
G5: Page: | H5: 26-28
G7: Date: | H7: 2024-04-26
B9: Appendix 2-A
B10: List of Requested Approvals
B12: The distributor must fill out the following sheet with the complete list of specific approvals requested and relevant section(s) of the legislation must be provided. All approvals, including accounting orders (deferral and variance accounts) new rate classes, revised specific service charges or retail service charges which the applicant is seeking, must be separately identified, as well being clearly documented in the appropriate sections of the application.
B14: Additional requests may be added by copying and pasting blank input rows, as needed.
B16: If additional requests arise, or requested approvals are removed, during the processing of the application, the distributor should update this list.
B18: =CONCATENATE('LDC Info'!E14," is seeking the following approvals in this application:") -> Festival Hydro Inc. is seeking the following approvals in this application:
B20: 1 | F20: Approval of the 2025 Test Year rate base as proposed with FHI's average net book value of fixed assets and working capital allowance as set out in Exhibit 2 - Rate Base.
B22: 2 | F22: Approval of the Distribution System Plan as outlined in Attachment 2-2 in Exhibit 2.
B24: 3 | F24: Approval of the 2025 Test Year revenue requirement as proposed in Exhibit 6 - Calculation of Revenue Deficiency or Sufficiency as follows:
B26: 3 | D26: a | F26: Approval of the capital structure, cost of capital parameters, and deemed return on equity and debt proposed in Exhibit 5 - Cost of Capital and Capital Structure.
B28: 3 | D28: b | F28: Approval of Test Year Operations, Maintenance and Administration expenses proposed in Exhibit 4 - Operating Expenses.
B30: 3 | D30: c | F30: Approval of Test Year property taxes and payments in lieu of taxes (PILs) proposed in Exhibit 6 - Revenue Requirement and Revenue Deficiency / Sufficiency
B32: 3 | D32: d | F32: Approval of the 2025 Test Year Service Revenue Requirement of $17,248,582 as proposed in Exhibit 6 - Calculation of Revenue Deficiency or Sufficiency.
B34: 3 | D34: e | F34: Approval of the 2025 Revenue Offsets of $1,291,332 as proposed in Exhibit 6 – Revenue Requirement and Revenue Deficiency / Sufficiency.
B36: 3 | D36: f | F36: Approval of the 2025 Test Year Base Revenue Requirement of $15,957,250 as proposed in Exhibit 6 - Calculation of Revenue Deficiency or Sufficiency.
B38: 4 | F38: Approval of Cost Allocation as filed in Exhibit 7 - Cost Allocation.
B40: 5 | F40: Approval of 2025 distribution rates and charges, effective January 1, 2025, as proposed in Attachment 8-5- 2025 Proposed Tariff of Rates and Charges found in Exhibit 8 - Rate Design.
B42: 6 | F42: Approval of updated Retail Transmission Service Rates (“RTSRs”), as identified in Exhibit 8 - Rate Design.
B44: 7 | F44: Approval of the Low Voltage rates as described in Exhibit 8.
B46: 8 | F46: Approval to continue to charge Wholesale Market (including CBR) and Rural Rate Protection Charges as directed by the Board.
B48: 9 | F48: Approval of revised total loss factor as described in Exhibit 8.
B50: 10 | F50: Approvals for disposition of Group 1 DVA accounts over one year as of December 31, 2023, of $(148,930) (including Account 1589), and associated class specific rate riders as set out in Exhibit 9 - Deferral and Variance Accounts.
B52: 11 | F52: Approvals for the disposition of Group 2 DVA accounts of $(420,349) over one year, as of December 31, 2023 with certain adjustments for forecasted amounts as of December 31, 2024 as set out in Exhibit 9 - Deferral and Variance Accounts.
B54: 12 | F54: Approval to continue the Specific Service Charges and Transformer Allowance.
B56: 13 | F56: Approval to rename ‘Income Tax Letter’ in Specific Service Charges to ‘Bill Copy Charge’ as described in Exhibit 8.
B58: 14 | F58: Approval to change ‘Service Call – Customer Owned Equipment’ and ‘Service Call – After Regular Hours’ from $30 and $165 respectively to be listed as Time and Materials as described in Exhibit 8.
B60: 15 | F60: Approval to use gross load billing for Retail Transmission Rates – Network and Connection charges for customers who have load displacement generation as detailed in Exhibit 8.
B62: 16 | F62: Approval to discontinue the use of Retail Cost Variance Accounts (RCVAs) 1518 and 1548.
B64: 17 | F64: Approval to continue to use Account 1592 – PILS and Tax Variance –Accelerated CCA for PILs impacts the phase out of the Accelerated CCA credit as described in Exhibit 9.
B66: 18 | F66: Other items or amounts that may be requested by FHI during this proceeding, and as may be granted by the OEB.

Sheet App.2-AA_Capital Projects
L1: File Number: | M1: =EBNUMBER -> EB-2024-0023
L2: Exhibit: | M2: 2
L3: Tab:
L4: Schedule: | M4: Table 2-42
L5: Page: | M5: 57
L7: Date: | M7: 2024-04-26
L8: Net Capital/Gross Capital | M8: Net Capital
A9: Appendix 2-AA
A10: Capital Projects Table
A13: Projects | B13: =C13-1 -> 2015 | C13: 2016 | D13: 2017 | E13: 2018 | F13: 2019 | G13: 2020 | H13: 2021 | I13: 2022 | J13: =BridgeYear - 1 -> 2023 | K13: =BridgeYear & CHAR(10) & "Bridge Year" -> 2024 Bridge Year | L13: =TestYear & CHAR(10) & "Test Year" -> 2025 Test Year | M13: =TestYear +1 -> 2026 | N13: =TestYear +2 -> 2027 | O13: =TestYear +3 -> 2028 | P13: =TestYear +4 -> 2029
A14: Reporting Basis | B14: MIFRS | C14: MIFRS | D14: MIFRS | E14: MIFRS | F14: MIFRS | G14: MIFRS | H14: MIFRS | I14: MIFRS | J14: MIFRS | K14: MIFRS | L14: MIFRS | M14: MIFRS | N14: MIFRS | O14: MIFRS | P14: MIFRS
A15: System Access
A16: Subdivisions | B16: 377706.89 | C16: 229754.2851 | D16: 118893.6288 | E16: 550809.2813 | F16: 89052.28538 | G16: 455635.0384 | H16: 232455.6058 | I16: 222963.277 | J16: 379021.4863 | K16: 369616.0647 | L16: 406900 | M16: 312000 | N16: 334750 | O16: 337800 | P16: 351000
A17: New Services | B17: 231002.75 | C17: 248663.6549 | D17: 471579.9247 | E17: 419148.3187 | F17: 453933.3746 | G17: 335760.4916 | H17: 478141.2842 | I17: 410285 | J17: 371153.9237 | K17: 300295.3498 | L17: 375000 | M17: 378750 | N17: 371250 | O17: 382500 | P17: 386330
A18: Metering | B18: 70979.76 | C18: 104045.49 | D18: 104360.16 | E18: 230483.99 | F18: 492664.6 | G18: 207218.64 | H18: 96888.98 | I18: 362299.13 | J18: 314013.14 | K18: 200000 | L18: 112000 | M18: 122595 | N18: 127499 | O18: 132599 | P18: 184762
A19: AMI 2.0 | B19: 0 | C19: 0 | D19: 0 | E19: 0 | F19: 0 | G19: 0 | H19: 0 | I19: 0 | J19: 96466 | K19: 200000 | L19: 1316337 | M19: 1540000 | N19: 1585000 | O19: 1631350 | P19: 701830
A20: Other Recoverable Work | B20: 33027.61 | C20: 0 | D20: 38660.24 | E20: 177542.3 | F20: 164262.41 | G20: 87660.8 | H20: 283622.2 | I20: 17441.6 | J20: 25635.95 | K20: 142000 | L20: 189000 | M20: 110000 | N20: 113000 | O20: 117000 | P20: 120000
A21: System Access Gross Expenditures | B21: =SUM(B16:B20) -> 712717.01 | C21: =SUM(C16:C20) -> 582463.43 | D21: =SUM(D16:D20) -> 733493.9534 | E21: =SUM(E16:E20) -> 1377983.89 | F21: =SUM(F16:F20) -> 1199912.67 | G21: =SUM(G16:G20) -> 1086274.97 | H21: 1091108.07 | I21: 1012989.007 | J21: 1186290.5 | K21: 1211911.415 | L21: 2399237 | M21: =SUM(M16:M20) -> 2463345 | N21: 2531499 | O21: 2601249 | P21: 1743922
A22: System Access Capital Contributions | B22: 333945 | C22: 206585 | D22: 371810 | E22: 585308 | F22: 443731 | G22: 465828 | H22: 481457 | I22: 343410 | J22: 446781 | K22: 219113 | L22: 327188 | M22: 331500 | N22: 338130 | O22: 344893 | P22: 351790
A23: Sub-Total | B23: =B21-B22 -> 378772.01 | C23: =C21-C22 -> 375878.43 | D23: =D21-D22 -> 361683.9534 | E23: 792675.89 | F23: 756181.67 | G23: 620446.97 | H23: 609651.07 | I23: 669579.007 | J23: 739509.5 | K23: 992798.4146 | L23: 2072049 | M23: 2131845 | N23: 2193369 | O23: 2256356 | P23: 1392132
A24: System Renewal
A25: Animal Mitigation | B25: 89260.3 | C25: 39935.11 | D25: 14565.06 | E25: 3141.87 | F25: 80355.55 | G25: 30343.48 | H25: 65810.52 | I25: 81196.9 | J25: 65100.99 | K25: 85000 | L25: 75000 | M25: 75000 | N25: 75000 | O25: 75000 | P25: 75000
A26: UG Renewal | B26: 379235.0249 | C26: 280540.9632 | D26: 360584.6157 | E26: 426275.95 | F26: 422449.0739 | G26: 364501.1395 | H26: 441142.1333 | I26: 708273.9272 | J26: 541749.9999 | K26: 808898.1992 | L26: 1188450 | M26: 1231500 | N26: 1534000 | O26: 1602500 | P26: 1614000
A27: OH Renewal | B27: 627854.3499 | C27: 571314.1546 | D27: 813336.008 | E27: 654018.58 | F27: 623619.5445 | G27: 326703.3676 | H27: 443454.8776 | I27: 673464.6356 | J27: 873796.0765 | K27: 636999.2552 | L27: 847750 | M27: 1081663 | N27: 1059122.223 | O27: 1055028.816 | P27: 1109580.103
A28: Switchgear Replacement | B28: 170280.08 | C28: 153073.32 | D28: 136108.97 | E28: 172641.93 | F28: 361225 | G28: 224129.41 | H28: 297366.79 | I28: 112103.63 | J28: 41929.66 | K28: 205800 | L28: 244200 | M28: 244200 | N28: 0 | O28: 0 | P28: 0
A29: System Re-establishment | B29: 0 | C29: 0 | D29: 0 | E29: 0 | F29: 0 | G29: 0 | H29: 0 | I29: 0 | J29: 0 | K29: 0 | L29: 122000 | M29: 90000 | N29: 111000 | O29: 113000 | P29: 115000
A30: TS Renewal | B30: 0 | C30: 0 | D30: 0 | E30: 5300 | F30: 35855.13 | G30: 72696.86 | H30: 137500.88 | I30: 86263.4 | J30: 212042.5 | K30: 150000 | L30: 274600 | M30: 272600 | N30: 278632 | O30: 289497 | P30: 298397
A31: Small Replacements | B31: 296538.8952 | C31: 386386.4922 | D31: 272112.8028 | E31: 247255.12 | F31: 222157.0316 | G31: 381714.1028 | H31: 505532.569 | I31: 324642.9771 | J31: 379065.2578 | K31: 349163.631 | L31: 348965 | M31: 355944.3 | N31: 363063.186 | O31: 370324.4497 | P31: 377730.9387
A32: DS Renewal | B32: 0 | C32: 0 | D32: 0 | E32: 0 | F32: 17481 | G32: 227076 | H32: 1886.65 | I32: 0 | J32: 0 | K32: 0 | L32: 0 | M32: 0 | N32: 0 | O32: 0 | P32: 0
A33: Misc/Other | B33: 142342 | C33: -4053 | D33: 47427 | E33: 56832.93 | F33: 5260 | G33: 0 | H33: 134657.08 | I33: 235831.77 | J33: 0 | K33: 0 | L33: 0 | M33: 0 | N33: 0 | O33: 0 | P33: 0
A34: System Renewal Gross Expenditures | B34: =SUM(B25:B33) -> 1705510.65 | C34: =SUM(C25:C33) -> 1427197.04 | D34: =SUM(D25:D33) -> 1644134.457 | E34: =SUM(E25:E33) -> 1565466.38 | F34: =SUM(F25:F33) -> 1768402.33 | G34: =SUM(G25:G33) -> 1627164.36 | H34: 2027351.5 | I34: 2221777.24 | J34: 2113684.484 | K34: 2235861.085 | L34: 3100965 | M34: =SUM(M25:M33) -> 3350907.3 | N34: 3420817.409 | O34: 3505350.265 | P34: 3589708.042
A35: System Renewal Capital Contributions | B35: 0 | C35: 0 | D35: 0 | E35: 0 | F35: 0 | G35: 0 | H35: 0 | I35: 0 | J35: 0 | K35: 0 | L35: 0 | M35: 0 | N35: 0 | O35: 0 | P35: 0
A36: Sub-Total | B36: =B34-B35 -> 1705510.65 | C36: =C34-C35 -> 1427197.04 | D36: =D34-D35 -> 1644134.457 | E36: 1565466.38 | F36: 1768402.33 | G36: 1627164.36 | H36: 2027351.5 | I36: 2221777.24 | J36: 2113684.484 | K36: 2235861.085 | L36: 3100965 | M36: 3350907.3 | N36: 3420817.409 | O36: 3505350.265 | P36: 3589708.042
A37: System Service
A38: Voltage Conversion | B38: 0 | C38: 0 | D38: 0 | E38: 0 | F38: 0 | G38: 0 | H38: 0 | I38: 0 | J38: 0 | K38: 0 | L38: 217000 | M38: 223510 | N38: 227980 | O38: 234820 | P38: 239816
A39: Distribution Automation | B39: 167466 | C39: 38212.93 | D39: 29384.67 | E39: 37782.35 | F39: 27143.59 | G39: 50900.13 | H39: 5689.27 | I39: 33846.4 | J39: 110159.04 | K39: 76500 | L39: 141500 | M39: 149984 | N39: 155966.72 | O39: 162205.3888 | P39: 168693.6044
A40: Misc/Other | B40: 70200 | C40: 0 | D40: 0 | E40: 0 | F40: 2589 | G40: 0 | H40: 0 | I40: 0 | J40: 0 | K40: 0 | L40: 0 | M40: 0 | N40: 0 | O40: 0 | P40: 0
A43: System Service Gross Expenditures | B43: =SUM(B38:B42) -> 237666 | C43: =SUM(C38:C42) -> 38212.93 | D43: =SUM(D38:D42) -> 29384.67 | E43: =SUM(E38:E42) -> 37782.35 | F43: =SUM(F38:F42) -> 29732.59 | G43: =SUM(G38:G42) -> 50900.13 | H43: 5689.27 | I43: 33846.4 | J43: 110159.04 | K43: 76500 | L43: 358500 | M43: 373494 | N43: 383946.72 | O43: 397025.3888 | P43: 408509.6044
A44: System Service Capital Contributions
A45: Sub-Total | B45: =B43-B44 -> 237666 | C45: =C43-C44 -> 38212.93 | D45: =D43-D44 -> 29384.67 | E45: =E43-E44 -> 37782.35 | F45: =F43-F44 -> 29732.59 | G45: =G43-G44 -> 50900.13 | H45: =H43-H44 -> 5689.27 | I45: =I43-I44 -> 33846.4 | J45: =J43-J44 -> 110159.04 | K45: =K43-K44 -> 76500 | L45: =L43-L44 -> 358500 | M45: =M43-M44 -> 373494 | N45: =N43-N44 -> 383946.72 | O45: =O43-O44 -> 397025.3888 | P45: =P43-P44 -> 408509.6044
A46: General Plant
A47: Fleet | B47: 40679.58 | C47: 30426 | D47: 7389.79 | E47: 334227.19 | F47: 56424.85 | G47: 0 | H47: 16510.88 | I47: 68634.92 | J47: 92935.07 | K47: 450000 | L47: 125000 | M47: 575000 | N47: 220000 | O47: 477543.6 | P47: 598230
A48: Tools | B48: 15433.63 | C48: 22343.92 | D48: 29482.01 | E48: 35756.66 | F48: 29367.06 | G48: 26793.18 | H48: 26796.32 | I48: 28199.79 | J48: 36453.15 | K48: 45000 | L48: 46200 | M48: 47436 | N48: 48709.08 | O48: 50020.3524 | P48: 51370.96297
A49: Building&Equipment | B49: 232892.93 | C49: 153022.99 | D49: 136177.74 | E49: 193351.57 | F49: 225096.85 | G49: 156731.23 | H49: 491839.95 | I49: 365903.56 | J49: 1060506.03 | K49: 2165000 | L49: 505000 | M49: 315000 | N49: 535000 | O49: 270000 | P49: 440000
A50: IT Hardware | B50: 306328 | C50: 115873 | D50: 93309 | E50: 94549 | F50: 75790 | G50: 60193 | H50: 275020 | I50: 176461 | J50: 290629 | K50: 193069 | L50: 296636 | M50: 288892 | N50: 366656.8 | O50: 381323.2 | P50: 396576.128
A51: IT Software | B51: 58144 | C51: 233363 | D51: 282383 | E51: 178912 | F51: 226526 | G51: 216420 | H51: 66063 | I51: 267546 | J51: 446552 | K51: 464598 | L51: 30000 | M51: 72223 | N51: 91664.2 | O51: 95330.8 | P51: 99144.032
A52: ERP | B52: 0 | C52: 0 | D52: 0 | E52: 0 | F52: 0 | G52: 0 | H52: 0 | I52: 0 | J52: 0 | K52: 875000 | L52: 875000 | M52: 0 | N52: 0 | O52: 0 | P52: 0
A53: General Plant Gross Expenditures | B53: =SUM(B47:B52) -> 653478.14 | C53: =SUM(C47:C52) -> 555028.91 | D53: =SUM(D47:D52) -> 548741.54 | E53: =SUM(E47:E52) -> 836796.42 | F53: =SUM(F47:F52) -> 613204.76 | G53: =SUM(G47:G52) -> 460137.41 | H53: 876230.15 | I53: 906745.27 | J53: 1927075.25 | K53: 4192667 | L53: 1877836 | M53: 1298551 | N53: 1262030.08 | O53: 1274217.952 | P53: 1585321.123
A54: General Plant Capital Contributions
A55: Sub-Total | B55: =B53-B54 -> 653478.14 | C55: =C53-C54 -> 555028.91 | D55: =D53-D54 -> 548741.54 | E55: =E53-E54 -> 836796.42 | F55: =F53-F54 -> 613204.76 | G55: =G53-G54 -> 460137.41 | H55: =H53-H54 -> 876230.15 | I55: =I53-I54 -> 906745.27 | J55: =J53-J54 -> 1927075.25 | K55: =K53-K54 -> 4192667 | L55: =L53-L54 -> 1877836 | M55: =M53-M54 -> 1298551 | N55: =N53-N54 -> 1262030.08 | O55: =O53-O54 -> 1274217.952 | P55: =P53-P54 -> 1585321.123
A56: Miscellaneous
A57: Total | B57: =SUMPRODUCT(--($A15:$A56="Sub-Total"), B$15:B$56)+B56 -> 2975426.8 | C57: =SUMPRODUCT(--($A15:$A56="Sub-Total"), C$15:C$56)+C56 -> 2396317.31 | D57: =SUMPRODUCT(--($A15:$A56="Sub-Total"), D$15:D$56)+D56 -> 2583944.62 | E57: =SUMPRODUCT(--($A15:$A56="Sub-Total"), E$15:E$56)+E56 -> 3232721.04 | F57: =SUMPRODUCT(--($A15:$A56="Sub-Total"), F$15:F$56)+F56 -> 3167521.35 | G57: =SUMPRODUCT(--($A15:$A56="Sub-Total"), G$15:G$56)+G56 -> 2758648.87 | H57: 3518921.99 | I57: 3831947.917 | J57: 4890428.274 | K57: 7497826.5 | L57: 7409350 | M57: =SUMPRODUCT(--($A15:$A56="Sub-Total"), M$15:M$56)+M56 -> 7154797.3 | N57: 7260163.209 | O57: 7432949.607 | P57: 6975670.769
A58: Less Renewable Generation Facility Assets and Other Non-Rate-Regulated Utility Assets (input as negative)
A59: Total | B59: =B57+B58 -> 2975426.8 | C59: =C57+C58 -> 2396317.31 | D59: =D57+D58 -> 2583944.62 | E59: =E57+E58 -> 3232721.04 | F59: =F57+F58 -> 3167521.35 | G59: =G57+G58 -> 2758648.87 | H59: 3518921.99 | I59: 3831947.917 | J59: 4890428.274 | K59: 7497826.5 | L59: 7409350 | M59: =M57+M58 -> 7154797.3 | N59: 7260163.209 | O59: 7432949.607 | P59: 6975670.769
A61: Notes:
A63: 1 Please provide a breakdown of the major components of each capital project undertaken in each year. Please ensure that all projects below the materiality threshold are included in the miscellaneous line. Add more projects as required.
A64: 2 The applicant should group projects appropriately and avoid presentations that result in classification of significant components of the capital budget in the miscellaneous category.

Sheet App.2-AB_Capital Expenditures
AH1: File Number: | AJ1: =EBNUMBER -> EB-2024-0023
AH2: Exhibit: | AJ2: 2
AH3: Tab:
AH4: Schedule: | AJ4: Table2-41
A5: TO BE UPDATED AT THE DRAFT RATE ORDER STAGE | AH5: Page: | AJ5: 56
AH7: Date: | AJ7: 2024-04-26
AF8: Capital Expnditures = In Service Additions | AJ8: No
A9: Appendix 2-AB
A10: Table 2 - Capital Expenditure Summary from Chapter 5 Consolidated Distribution System Plan Filing Requirements
A11: First year of Forecast Period:
A12: =TestYear -> 2025
A13: CATEGORY | B13: Historical Period (previous plan1 & actual) | AF13: Forecast Period (planned)
B14: =E14-1 -> 2015 | E14: =H14-1 -> 2016 | H14: =K14-1 -> 2017 | K14: =N14-1 -> 2018 | N14: =Q14-1 -> 2019 | Q14: =T14-1 -> 2020 | T14: =W14-1 -> 2021 | W14: =Z14-1 -> 2022 | Z14: =AC14-1 -> 2023 | AC14: =AF14-1 -> 2024 | AF14: =A12 -> 2025 | AG14: =AF14+1 -> 2026 | AH14: =AG14+1 -> 2027 | AI14: =AH14+1 -> 2028 | AJ14: =AI14+1 -> 2029
B15: Plan | C15: Actual | D15: Var | E15: Plan | F15: Actual | G15: Var | H15: Plan | I15: Actual | J15: Var | K15: Plan | L15: Actual | M15: Var | N15: Plan | O15: Actual | P15: Var | Q15: Plan | R15: Actual | S15: Var | T15: Plan | U15: Actual | V15: Var | W15: Plan | X15: Actual | Y15: Var | Z15: Plan | AA15: Actual | AB15: Var | AC15: Plan | AD15: Actual2 | AE15: Var
B16: $ '000 | D16: % | E16: $ '000 | G16: % | H16: $ '000 | J16: % | K16: $ '000 | M16: % | N16: $ '000 | P16: % | Q16: $ '000 | S16: % | T16: $ '000 | V16: % | W16: $ '000 | Y16: % | Z16: $ '000 | AB16: % | AC16: $ '000 | AE16: % | AF16: $ '000
A17: System Access | B17: 321.5 | C17: 712.7 | D17: =IF(ISERROR((C17-B17)/B17),"--",(C17-B17)/B17) -> 1.216796267 | E17: 328 | F17: 582.5 | G17: =IF(ISERROR((F17-E17)/E17),"--",(F17-E17)/E17) -> 0.7759146341 | H17: 334.5 | I17: 733.49 | J17: =IF(ISERROR((I17-H17)/H17),"--",(I17-H17)/H17) -> 1.192795217 | K17: 341 | L17: 1378 | M17: =IF(ISERROR((L17-K17)/K17),"--",(L17-K17)/K17) -> 3.041055718 | N17: 347.5 | O17: 1199.9 | P17: =IF(ISERROR((O17-N17)/N17),"--",(O17-N17)/N17) -> 2.45294964 | Q17: 720.5 | R17: 1086.3 | S17: =IF(ISERROR((R17-Q17)/Q17),"--",(R17-Q17)/Q17) -> 0.507702984 | T17: 712.2 | U17: 1091.1 | V17: =IF(ISERROR((U17-T17)/T17),"--",(U17-T17)/T17) -> 0.5320134794 | W17: 863.1 | X17: 1013 | Y17: =IF(ISERROR((X17-W17)/W17),"--",(X17-W17)/W17) -> 0.1736762832 | Z17: 805 | AA17: 1186.3 | AB17: =IF(ISERROR((AA17-Z17)/Z17),"--",(AA17-Z17)/Z17) -> 0.4736645963 | AC17: 1211.9 | AD17: 1211.9 | AE17: =IF(ISERROR((AD17-AC17)/AC17),"--",(AD17-AC17)/AC17) -> 0 | AF17: 2399 | AG17: 2463 | AH17: 2531 | AI17: 2601 | AJ17: 1743
A18: System Renewal | B18: 1490 | C18: 1705.58 | D18: =IF(ISERROR((C18-B18)/B18),"--",(C18-B18)/B18) -> 0.1446845638 | E18: 1513 | F18: 1427.2 | G18: =IF(ISERROR((F18-E18)/E18),"--",(F18-E18)/E18) -> -0.05670852611 | H18: 1539 | I18: 1644.13 | J18: =IF(ISERROR((I18-H18)/H18),"--",(I18-H18)/H18) -> 0.06831059129 | K18: 1565 | L18: 1565.47 | M18: =IF(ISERROR((L18-K18)/K18),"--",(L18-K18)/K18) -> 0.0003003194888 | N18: 1592 | O18: 1768.4 | P18: =IF(ISERROR((O18-N18)/N18),"--",(O18-N18)/N18) -> 0.1108040201 | Q18: 1934.95 | R18: 1627.16 | S18: =IF(ISERROR((R18-Q18)/Q18),"--",(R18-Q18)/Q18) -> -0.1590687098 | T18: 1865.97 | U18: 2027.35 | V18: =IF(ISERROR((U18-T18)/T18),"--",(U18-T18)/T18) -> 0.08648584918 | W18: 2043.71 | X18: 2221.78 | Y18: =IF(ISERROR((X18-W18)/W18),"--",(X18-W18)/W18) -> 0.0871307573 | Z18: 2469.3 | AA18: 2113.7 | AB18: =IF(ISERROR((AA18-Z18)/Z18),"--",(AA18-Z18)/Z18) -> -0.1440084234 | AC18: 2235.86 | AD18: 2235.86 | AE18: =IF(ISERROR((AD18-AC18)/AC18),"--",(AD18-AC18)/AC18) -> 0 | AF18: 3101 | AG18: 3351 | AH18: 3421 | AI18: 3505 | AJ18: 3590
A19: System Service | B19: 310 | C19: 237.66 | D19: -0.2333548387 | E19: 314 | F19: 38.21 | G19: -0.8783121019 | H19: 316 | I19: 29.39 | J19: -0.9069936709 | K19: 318 | L19: 37.78 | M19: -0.8811949686 | N19: 320 | O19: 29.73 | P19: -0.90709375 | Q19: 55 | R19: 50.9 | S19: -0.07454545455 | T19: 55 | U19: 5.69 | V19: -0.8965454545 | W19: 55 | X19: 33.85 | Y19: -0.3845454545 | Z19: 75 | AA19: 110.2 | AB19: 0.4693333333 | AC19: 76.5 | AD19: 76.5 | AE19: 0 | AF19: 359 | AG19: 374 | AH19: 384 | AI19: 397 | AJ19: 409
A20: General Plant | B20: 500 | C20: 653.48 | D20: 0.30696 | E20: 427 | F20: 555.03 | G20: 0.2998360656 | H20: 826 | I20: 548.74 | J20: -0.3356658596 | K20: 445 | L20: 836.8 | M20: 0.8804494382 | N20: 415 | O20: 613.21 | P20: 0.4776144578 | Q20: 972.6 | R20: 460.14 | S20: -0.5268969772 | T20: 1039.72 | U20: 876.23 | V20: -0.1572442581 | W20: 968.99 | X20: 906.75 | Y20: -0.06423182902 | Z20: 1664.82 | AA20: 1927.1 | AB20: 0.1575425572 | AC20: 4192.67 | AD20: 4192.67 | AE20: 0 | AF20: 1878 | AG20: 1299 | AH20: 1262 | AI20: 1274 | AJ20: 1585
A21: TOTAL EXPENDITURE | B21: =SUM(B17:B20) -> 2621.5 | C21: =SUM(C17:C20) -> 3309.42 | D21: 0.2624146481 | E21: =SUM(E17:E20) -> 2582 | F21: =SUM(F17:F20) -> 2602.94 | G21: 0.008109992254 | H21: =SUM(H17:H20) -> 3015.5 | I21: =SUM(I17:I20) -> 2955.75 | J21: -0.01981429282 | K21: =SUM(K17:K20) -> 2669 | L21: =SUM(L17:L20) -> 3818.05 | M21: 0.4305170476 | N21: =SUM(N17:N20) -> 2674.5 | O21: =SUM(O17:O20) -> 3611.24 | P21: 0.3502486446 | Q21: =SUM(Q17:Q20) -> 3683.05 | R21: =SUM(R17:R20) -> 3224.5 | S21: -0.1245027898 | T21: 3672.89 | U21: 4000.37 | V21: 0.08916139607 | W21: 3930.8 | X21: 4175.38 | Y21: 0.06222143075 | Z21: 5014.12 | AA21: 5337.3 | AB21: 0.06445398195 | AC21: 7716.93 | AD21: 7716.93 | AE21: 0 | AF21: 7737 | AG21: 7487 | AH21: 7598 | AI21: 7777 | AJ21: =SUM(AJ17:AJ20) -> 7327
A22: Capital Contributions | B22: 120 | C22: 333.95 | D22: 1.782916667 | E22: 120 | F22: 206.59 | G22: 0.7215833333 | H22: 120 | I22: 371.81 | J22: 2.098416667 | K22: 120 | L22: 585.31 | M22: 3.877583333 | N22: 120 | O22: 443.73 | P22: 2.69775 | Q22: 200 | R22: 465.54 | S22: 1.3277 | T22: 200 | U22: 481.46 | V22: 1.4073 | W22: 200 | X22: 343.41 | Y22: 0.71705 | Z22: 400 | AA22: 446.78 | AB22: 0.11695 | AC22: 219.11 | AD22: 219.11 | AE22: 0 | AF22: 327.2 | AG22: 332 | AH22: 338 | AI22: 345 | AJ22: 352
A23: NET CAPITAL EXPENDITURES | B23: 2501.5 | C23: 2975.49 | D23: 0.1894823106 | E23: 2462 | F23: 2396.31 | G23: -0.02668155971 | H23: 2895.5 | I23: 2583.95 | J23: -0.1075979969 | K23: 2549 | L23: 3232.72 | M23: 0.2682306787 | N23: 2554.5 | O23: 3167.52 | P23: 0.239976512 | Q23: 3483.05 | R23: 2758.64 | S23: -0.2079815105 | T23: 3472.89 | U23: 3518.92 | V23: 0.01325409097 | W23: 3730.83 | X23: 3831.96 | Y23: 0.02710656878 | Z23: 4614.12 | AA23: 4871.33 | AB23: 0.05574410722 | AC23: 7516.92 | AD23: 7516.92 | AE23: 0 | AF23: 7409.8 | AG23: 7156 | AH23: 7260 | AI23: 7432 | AJ23: 6974
A24: System O&M | B24: 2104.1 | C24: 2155.61 | D24: 0.02448077563 | E24: 2084.96 | F24: =IFERROR((VLOOKUP('LDC Info'!$E$14 & " Total",'2.1.7 - System OM (2-AB)'!$A:$L,F26,FALSE))/1000,) -> 2133.07047 | G24: 0.02307500863 | H24: 2123.98 | I24: =IFERROR((VLOOKUP('LDC Info'!$E$14 & " Total",'2.1.7 - System OM (2-AB)'!$A:$L,I26,FALSE))/1000,) -> 2268.78521 | J24: 0.06817635288 | K24: 2171.02 | L24: =IFERROR((VLOOKUP('LDC Info'!$E$14 & " Total",'2.1.7 - System OM (2-AB)'!$A:$L,L26,FALSE))/1000,) -> 2602.00496 | M24: 0.1985172684 | N24: 2590.89 | O24: =IFERROR((VLOOKUP('LDC Info'!$E$14 & " Total",'2.1.7 - System OM (2-AB)'!$A:$L,O26,FALSE))/1000,) -> 2407.61129 | P24: -0.07073967247 | Q24: 2677.96 | R24: 2600.67 | S24: -0.02886152146 | T24: 2642.285 | U24: 2444.502 | V24: -0.07485301548 | W24: 2844.869 | X24: =IFERROR((VLOOKUP('LDC Info'!$E$14 & " Total",'2.1.7 - System OM (2-AB)'!$A:$N,X26,FALSE))/1000,) -> 2903.54288 | Y24: 0.02062445758 | Z24: 3086.7 | AA24: 3049.137 | AB24: -0.01216930703 | AC24: 3352 | AD24: 3352 | AE24: 0 | AF24: 3515 | AG24: 3620 | AH24: 3729 | AI24: 3841 | AJ24: 3956
C26: =IF(B14=2013,5,IF(B14=2014,6,IF(B14=2015,7,IF(B14=2016,8,IF(B14=2017,9,IF(B14=2018,10,IF(B14=2019,11,IF(B14=2020,12,IF(B14=2021,13,IF(B14=2022,14,IF(B14=2023,15))))))))))) -> 7 | F26: =IF(E14=2013,5,IF(E14=2014,6,IF(E14=2015,7,IF(E14=2016,8,IF(E14=2017,9,IF(E14=2018,10,IF(E14=2019,11,IF(E14=2020,12,IF(E14=2021,13,IF(E14=2022,14,IF(E14=2023,15))))))))))) -> 8 | I26: =IF(H14=2013,5,IF(H14=2014,6,IF(H14=2015,7,IF(H14=2016,8,IF(H14=2017,9,IF(H14=2018,10,IF(H14=2019,11,IF(H14=2020,12,IF(H14=2021,13,IF(H14=2022,14,IF(H14=2023,15))))))))))) -> 9 | L26: =IF(K14=2013,5,IF(K14=2014,6,IF(K14=2015,7,IF(K14=2016,8,IF(K14=2017,9,IF(K14=2018,10,IF(K14=2019,11,IF(K14=2020,12,IF(K14=2021,13,IF(K14=2022,14,IF(K14=2023,15))))))))))) -> 10 | O26: =IF(N14=2013,5,IF(N14=2014,6,IF(N14=2015,7,IF(N14=2016,8,IF(N14=2017,9,IF(N14=2018,10,IF(N14=2019,11,IF(N14=2020,12,IF(N14=2021,13,IF(N14=2022,14,IF(N14=2023,15))))))))))) -> 11 | R26: =IF(Q14=2013,5,IF(Q14=2014,6,IF(Q14=2015,7,IF(Q14=2016,8,IF(Q14=2017,9,IF(Q14=2018,10,IF(Q14=2019,11,IF(Q14=2020,12,IF(Q14=2021,13,IF(Q14=2022,14,IF(Q14=2023,15))))))))))) -> 12 | U26: =IF(T14=2013,5,IF(T14=2014,6,IF(T14=2015,7,IF(T14=2016,8,IF(T14=2017,9,IF(T14=2018,10,IF(T14=2019,11,IF(T14=2020,12,IF(T14=2021,13,IF(T14=2022,14,IF(T14=2023,15))))))))))) -> 13 | X26: =IF(W14=2013,5,IF(W14=2014,6,IF(W14=2015,7,IF(W14=2016,8,IF(W14=2017,9,IF(W14=2018,10,IF(W14=2019,11,IF(W14=2020,12,IF(W14=2021,13,IF(W14=2022,14,IF(W14=2023,15))))))))))) -> 14
X27: =IF(W15=2013,5,IF(W15=2014,6,IF(W15=2015,7,IF(W15=2016,8,IF(W15=2017,9,IF(W15=2018,10,IF(W15=2019,11,IF(W15=2020,12,IF(W15=2021,13,IF(W15=2022,14,IF(W15=2023,15))))))))))) -> FALSE | AA27: =IF(Z15=2013,5,IF(Z15=2014,6,IF(Z15=2015,7,IF(Z15=2016,8,IF(Z15=2017,9,IF(Z15=2018,10,IF(Z15=2019,11,IF(Z15=2020,12,IF(Z15=2021,13,IF(Z15=2022,14,IF(Z15=2023,15))))))))))) -> FALSE
A28: Notes to the Table:
A29: 1. Historical “previous plan” data is not required unless a plan has previously been filed. However, use the last OEB-approved, at least on a Total (Capital) Expenditure basis for the last cost of service rebasing year, and the applicant should include their planned budget in each subsequent historical year up to and including the Bridge Year.
A30: 2. Indicate the number of months of 'actual' data included in the last year of the Historical Period (normally a 'bridge' year):
A32: 3. System O&M contains the following accounts: 5005, 5010, 5012, 5014, 5015, 5016, 5017, 5020, 5025, 5030, 5035, 5040, 5045, 5050, 5055, 5060, 5065, 5070, 5075, 5085, 5090, 5095, 5096, 5105, 5110, 5112, 5114, 5120, 5125, 5130, 5135, 5145, 5150, 5155, 5160, 5165, 5170, 5172, 5175, 5178, 5195
A35: Explanatory Notes on Variances (complete only if applicable)
A36: Notes on shifts in forecast vs. historical budgets by category
A39: Notes on year over year Plan vs. Actual variances for Total Expenditures
A42: Notes on Plan vs. Actual variance trends for individual expenditure categories

Sheet 2.1.7 - System OM (2-AB) (hidden)
A1: Company Name (Merged or Current) | B1: Company Name | C1: Account Number | D1: Account Description | E1: 2013 | F1: 2014 | G1: 2015 | H1: 2016 | I1: 2017 | J1: 2018 | K1: 2019 | L1: 2020 | M1: 2021 | N1: 2022
A2: Alectra Utilities Corporation Total | E2: 97570295.53 | F2: 101496871.2 | G2: 104411832 | H2: 107952313 | I2: 89629193.15 | J2: 95478329.67 | K2: 117288658.9 | L2: 110899324.1 | M2: 113159863.2 | N2: 126851458.7
A3: Algoma Power Inc. Total | E3: 5775463.08 | F3: 5690960.61 | G3: 6296428.09 | H3: 6361486.58 | I3: 6715383.01 | J3: 6711639.9 | K3: 6624444.88 | L3: 7077818.21 | M3: 7170804.51 | N3: 7387637.2
A4: Atikokan Hydro Inc. Total | E4: 366451.33 | F4: 312495.42 | G4: 435572.93 | H4: 492459.13 | I4: 544224.56 | J4: 506484.62 | K4: 495431.71 | L4: 516780.61 | M4: 506605.67 | N4: 541245.45
A5: Bluewater Power Distribution Corporation Total | E5: 3696814 | F5: 3717730 | G5: 3971687 | H5: 3997115.24 | I5: 4113437.7 | J5: 4620985 | K5: 4151739 | L5: 4137002 | M5: 4602848 | N5: 5108735
A6: Burlington Hydro Inc. Total | E6: 8902472.75 | F6: 8729582.93 | G6: 9021616.72 | H6: 9336893.35 | I6: 9060748.82 | J6: 9395430.23 | K6: 9532931.43 | L6: 10303885.61 | M6: 10657793.4 | N6: 10407244.15
A7: Canadian Niagara Power Inc. Total | E7: 3472965.59 | F7: 3620493.3 | G7: 3615555.81 | H7: 3595819.84 | I7: 3927407.43 | J7: 3966534.67 | K7: 3979884.47 | L7: 4215659.17 | M7: 4234789.62 | N7: 4248891.74
A8: Centre Wellington Hydro Ltd. Total | E8: 591288.295 | F8: 576794.08 | G8: 633071.19 | H8: 666954.78 | I8: 746061.06 | J8: 771841.02 | K8: 850992.88 | L8: 776992.56 | M8: 689192.8 | N8: 888271.92
A9: Chapleau Public Utilities Corporation Total | E9: 220412.01 | F9: 223210.54 | G9: 208239.31 | H9: 236332.09 | I9: 237909.06 | J9: 169802 | K9: 181339.38 | L9: 212012.46 | M9: 160937.82 | N9: 239904.6
A10: Cooperative Hydro Embrun Inc. Total | E10: 56969.14 | F10: 73505.84 | G10: 66014.49 | H10: 80431.59 | I10: 80388.7 | J10: 89782.19 | K10: 82775.02 | L10: 111374.44 | M10: 96506.93 | N10: 103683.44
A11: Cornwall Street Railway Light and Power Company Limited Total | L11: 0 | M11: 0 | N11: 0
A12: E.L.K. Energy Inc. Total | E12: 725312.83 | F12: 806466.17 | G12: 1202296.02 | H12: 931334.11 | I12: 910677.57 | J12: 969521.92 | K12: 1085808.67 | L12: 863699.02 | M12: 982862.58 | N12: 1344616.79
A13: ENWIN Utilities Ltd. Total | E13: 3994760.8 | F13: 4164019.26 | G13: 4114704.375 | H13: 4474411.25 | I13: 9757094.91 | J13: 9686100.4 | K13: 9605275.14 | L13: 11400256.41 | M13: 10902294.38 | N13: 11385731.06
A14: EPCOR Electricity Distribution Ontario Inc. Total | E14: 2053457.35 | F14: 2169112.56 | G14: 2388712.47 | H14: 2482131.14 | I14: 2189893.99 | J14: 2310043.22 | K14: 2258487.07 | L14: 2785865.35 | M14: 2452353.39 | N14: 2514240.22
A15: ERTH Power Corporation Total | E15: 1234927.8 | F15: 1163108.11 | G15: 979158.17 | H15: 812005.58 | I15: 1697315.55 | J15: 1947733.37 | K15: 2275237.48 | L15: 2624743 | M15: 2529702.1 | N15: 2890167.05
A16: Elexicon Energy Inc. Total | E16: 13252810.68 | F16: 13800626.87 | G16: 14465052.63 | H16: 14985526.24 | I16: 15025340.34 | J16: 15969678.61 | K16: 12110521.81 | L16: 14261716.02 | M16: 15202792.91 | N16: 16012426.11
A17: Enova Power Corp. Total | E17: 17891755.59 | F17: 18208878 | G17: 17150643.89 | H17: 16860952.84 | I17: 18182929.39 | J17: 19795696.74 | K17: 19478292.81 | L17: 18963211.53 | M17: 18991558.67 | N17: 19771242.63
A18: Entegrus Powerlines Inc. Total | E18: 3573060.97 | F18: 3746558.81 | G18: 4194533.34 | H18: 4157748.93 | I18: 3630462.78 | J18: 4040132.68 | K18: 4340665.98 | L18: 3963185.54 | M18: 4627954.94 | N18: 5287289.59
A19: Essex Powerlines Corporation Total | E19: 2263874.76 | F19: 2573945.51 | G19: 2768874.17 | H19: 2489996.053 | I19: 2297987.43 | J19: 2500110.42 | K19: 2636905.6 | L19: 2647175.83 | M19: 2711018.34 | N19: 3010202.26
A20: Festival Hydro Inc. Total | E20: 2028047.33 | F20: 2151888.49 | G20: 2195604.55 | H20: 2133070.47 | I20: 2268785.21 | J20: 2602004.96 | K20: 2407611.29 | L20: 2569301.05 | M20: 2444502.4 | N20: 2903542.88
A21: Fort Frances Power Corporation Total | E21: 421113.83 | F21: 502550.76 | G21: 724619.32 | H21: 822112.82 | I21: 742097.25 | J21: 704339.32 | K21: 765050.08 | L21: 712923.88 | M21: 631356.19 | N21: 725008.12
A22: GrandBridge Energy Inc. Total | E22: 9290679.77 | F22: 9095197.21 | G22: 8753132.01 | H22: 9106427.83 | I22: 8834712.88 | J22: 9406889.28 | K22: 9765455.59 | L22: 10264179.19 | M22: 11079705.51 | N22: 11539101.62
A23: Greater Sudbury Hydro Inc. Total | E23: 7871323.78 | F23: 7251196.42 | G23: 8005776.26 | H23: 8116436.99 | I23: 8598531.58 | J23: 7912948.17 | K23: 8121039.35 | L23: 8340432.53 | M23: 7969217.71 | N23: 7852835.47
A24: Grimsby Power Incorporated Total | E24: 1042506.12 | F24: 1030993.27 | G24: 1154762.71 | H24: 1447522.47 | I24: 1298393.45 | J24: 1501500.12 | K24: 1471853.74 | L24: 1583698.16 | M24: 1563702.15 | N24: 1576578.7
A25: Halton Hills Hydro Inc. Total | E25: 1543014 | F25: 1406841 | G25: 1742209.79 | H25: 1904895.51 | I25: 1705773 | J25: 1635677.89 | K25: 1569890.45 | L25: 1656917.78 | M25: 1841187.14 | N25: 2001528.53
A26: Hearst Power Distribution Company Limited Total | E26: 473027.42 | F26: 469167.86 | G26: 597852.82 | H26: 411467.06 | I26: 438157.26 | J26: 482949.79 | K26: 474760 | L26: 446038.28 | M26: 474711.77 | N26: 490758.74
A27: Hydro 2000 Inc. Total | E27: 24135.81 | F27: 13917.88 | G27: 47279.3 | H27: 42454.07 | I27: 79107.33 | J27: 44938.36 | K27: 41542.71 | L27: 59793.98 | M27: 42435.08 | N27: 71457.52
A28: Hydro Hawkesbury Inc. Total | E28: 302571.24 | F28: 232855.01 | G28: 235939.54 | H28: 236870.72 | I28: 321677.44 | J28: 260393.57 | K28: 176254.78 | L28: 280643.81 | M28: 344286.56 | N28: 339487.61
A29: Hydro One Networks Inc. Total | E29: 367973011.7 | F29: 385393076.2 | G29: 322237850.6 | H29: 347125851.5 | I29: 317508746 | J29: 333665382.2 | K29: 361610301.8 | L29: 336646566 | M29: 363427393.3 | N29: 417963019.6
A30: Hydro One Remote Communities Inc. Total | E30: 1462853.08 | F30: 1878283.1 | G30: 2413779.2 | H30: 1990434.89 | I30: 1626460.34 | J30: 1757441.68 | K30: 2077279.8 | L30: 3075534.47 | M30: 2589570.69 | N30: 2406827.11
A31: Hydro Ottawa Limited Total | E31: 25218976.28 | F31: 27308186.58 | G31: 26859658.68 | H31: 28055171.53 | I31: 29071625.6 | J31: 30002532.18 | K31: 28556152.02 | L31: 31765228.94 | M31: 28892169.27 | N31: 40181754.22
A32: InnPower Corporation Total | E32: 1787149.81 | F32: 1814455.44 | G32: 1805094.2 | H32: 2083333.27 | I32: 2216885.66 | J32: 2049829.52 | K32: 1966463.89 | L32: 1866971.04 | M32: 2597993.66 | N32: 2318367.4
A33: Kingston Hydro Corporation Total | E33: 3888079 | F33: 3051336 | G33: 3249478 | H33: 3614994 | I33: 3364657 | J33: 3912288 | K33: 3468929.68 | L33: 3508107.9 | M33: 3466607.05 | N33: 3974464.04
A34: Lakefront Utilities Inc. Total | E34: 897562.02 | F34: 815731.64 | G34: 683339.98 | H34: 821235.03 | I34: 835476.57 | J34: 990592.35 | K34: 985681.15 | L34: 1057286.62 | M34: 916187.64 | N34: 766627.69
A35: Lakeland Power Distribution Ltd. Total | E35: 1096357.34 | F35: 1688882.15 | G35: 1655886.65 | H35: 1632510.16 | I35: 1671419.55 | J35: 1878921.36 | K35: 1710654.52 | L35: 2131993.03 | M35: 2043484.39 | N35: 2438217.32
A36: London Hydro Inc. Total | E36: 15326455.93 | F36: 15425858.55 | G36: 16722869.7 | H36: 17075155.84 | I36: 17979761.27 | J36: 19229587.7 | K36: 19145421.16 | L36: 19705430.82 | M36: 20914189.45 | N36: 21792249.7
A37: Milton Hydro Distribution Inc. Total | E37: 3550969 | F37: 3001625 | G37: 3710175 | H37: 3797345 | I37: 3334905 | J37: 3772972 | K37: 3973401 | L37: 3880811 | M37: 4748025 | N37: 4541786
A38: Newmarket-Tay Power Distribution Ltd. Total | E38: 3510166.95 | F38: 3938538.44 | G38: 3660833.8 | H38: 4049399 | I38: 3947547.82 | J38: 3719744.78 | K38: 4485338.62 | L38: 4070082.21 | M38: 3559418.75 | N38: 4193992.33
A39: Niagara Peninsula Energy Inc. Total | E39: 6280725.45 | F39: 6720234.13 | G39: 6656262.7 | H39: 6614440.13 | I39: 7392390.41 | J39: 7047399.38 | K39: 7712291.37 | L39: 7766246.26 | M39: 6862153.99 | N39: 7861976.69
A40: Niagara-on-the-Lake Hydro Inc. Total | E40: 982932.11 | F40: 903658.46 | G40: 1000117.9 | H40: 1130568.07 | I40: 1088603.86 | J40: 1095545.67 | K40: 1144745.57 | L40: 1127523.96 | M40: 1241207.61 | N40: 1254966.35
A41: North Bay Hydro Distribution Limited Total | E41: 2748230.43 | F41: 2809669.9 | G41: 2922673.11 | H41: 3147022 | I41: 2955866.34 | J41: 2939040.45 | K41: 3475994.41 | L41: 3582564.801 | M41: 3634113.32 | N41: 3576311.37
A42: Northern Ontario Wires Inc. Total | E42: 1144527.64 | F42: 1144807.25 | G42: 1035203.95 | H42: 1118643.06 | I42: 1229818.44 | J42: 1379185.34 | K42: 1415941.43 | L42: 1491667.33 | M42: 1466355.17 | N42: 1622259
A43: Oakville Hydro Electricity Distribution Inc. Total | E43: 10454323.58 | F43: 9570865.64 | G43: 9822840.23 | H43: 9249370.27 | I43: 9317939.57 | J43: 9504885.77 | K43: 8686684 | L43: 9486293.94 | M43: 10172363.01 | N43: 10859201.97
A44: Orangeville Hydro Limited Total | E44: 1023020.03 | F44: 919266.47 | G44: 961518.22 | H44: 907298.71 | I44: 989431.14 | J44: 754877.76 | K44: 958990.97 | L44: 807988.36 | M44: 1077959.65 | N44: 1164461.89
A45: Oshawa PUC Networks Inc. Total | E45: 2233111.72 | F45: 2471148 | G45: 2796639.57 | H45: 3017329.08 | I45: 2724865.49 | J45: 3154342 | K45: 3014863 | L45: 2224458.96 | M45: 2287264.8 | N45: 2474831.79
A46: Ottawa River Power Corporation Total | E46: 1436420.42 | F46: 1296794.46 | G46: 1207295.13 | H46: 1243809.8 | I46: 1257805.47 | J46: 984635.65 | K46: 1158894.5 | L46: 1286976.37 | M46: 1299126.26 | N46: 1453993.52
A47: PUC Distribution Inc. Total | E47: 5948286.69 | F47: 5734787.1 | G47: 5936642.52 | H47: 5927489.83 | I47: 5865377.85 | J47: 5961063.64 | K47: 6291431.78 | L47: 6421329.41 | M47: 6393699.43 | N47: 5935986.92
A48: Parry Sound Power Corporation Total | E48: 436000.06
A49: Renfrew Hydro Inc. Total | E49: 418497.32 | F49: 462926.31 | G49: 482537.48 | H49: 453475.02 | I49: 393487.87 | J49: 466864.74 | K49: 422555.38 | L49: 453049.14 | M49: 443480.4 | N49: 426741.21
A50: Rideau St. Lawrence Distribution Inc. Total | E50: 615417.74 | F50: 579818.08 | G50: 682766.81 | H50: 677541.35 | I50: 814158.61 | J50: 752902.12 | K50: 805811.44 | L50: 741972.73 | M50: 780086.68 | N50: 782200.53
A51: Sioux Lookout Hydro Inc. Total | E51: 750205.98 | F51: 772525.51 | G51: 686231.39 | H51: 769028.69 | I51: 747312.05 | J51: 703013.16 | K51: 720400.13 | L51: 730095.43 | M51: 723961.76 | N51: 705858.42
A52: Synergy North Corporation Total | E52: 7411515.09 | F52: 7982893.28 | G52: 8310795.59 | H52: 9094943.55 | I52: 8788122.38 | J52: 9145985.71 | K52: 8883652.64 | L52: 8319679.67 | M52: 8389750.7 | N52: 11362518.39
A53: Tillsonburg Hydro Inc. Total | E53: 1358136.97 | F53: 1018714.56 | G53: 789105.99 | H53: 677226.09 | I53: 682686.75 | J53: 958038.81 | K53: 854900.77 | L53: 858668.33 | M53: 735121.49 | N53: 736540.3
A54: Toronto Hydro-Electric System Limited Total | E54: 126359838.5 | F54: 112536365 | G54: 115678008.8 | H54: 119959240 | I54: 119309588.1 | J54: 131699815.2 | K54: 112023971.9 | L54: 117104150.9 | M54: 117495650.4 | N54: 124054430.5
A55: Wasaga Distribution Inc. Total | E55: 776445 | F55: 776677.85 | G55: 774936 | H55: 830351.39 | I55: 842686.77 | J55: 889170.51 | K55: 893726.47 | L55: 766222.38 | M55: 802376.46 | N55: 880618.41
A56: Welland Hydro-Electric System Corp. Total | E56: 2886152.46 | F56: 2926723.52 | G56: 3154558 | H56: 3276681.16 | I56: 3378582.84 | J56: 3397712.74 | K56: 3600836.72 | L56: 3520178.91 | M56: 3661692.08 | N56: 3767200.86
A57: Wellington North Power Inc. Total | E57: 587973.76 | F57: 567949.1 | G57: 612203.41 | H57: 661117 | I57: 666581.56 | J57: 637798.22 | K57: 621325.46 | L57: 623748.56 | M57: 660199.5 | N57: 708315.62
A58: Westario Power Inc. Total | E58: 2150390 | F58: 1853021 | G58: 1662955 | H58: 2111080 | I58: 2299662 | J58: 1949372.05 | K58: 2135074.04 | L58: 2255004.2 | M58: 2055544.79 | N58: 2653740.09

Sheet Hidden_CAPEX (hidden)
A1: Utility Name | B1: EB Number | C1: Test Year | D1: Bridge Year | E1: Last Rebasing Year | F1: Category | G1: Year | H1: Plan | I1: Actual
A2: ='LDC Info'!$E$14 -> Festival Hydro Inc. | B2: =EBNUMBER -> EB-2024-0023 | C2: =TestYear -> 2025 | D2: =BridgeYear -> 2024 | E2: =RebaseYear -> 2015 | F2: System Access | G2: ='App.2-AB_Capital Expenditures'!E14 -> 2016 | H2: ='App.2-AB_Capital Expenditures'!E17 -> 328 | I2: ='App.2-AB_Capital Expenditures'!F17 -> 582.5
A3: ='LDC Info'!$E$14 -> Festival Hydro Inc. | B3: EB-2024-0023 | C3: 2025 | D3: 2024 | E3: 2015 | F3: System Renewal | G3: ='App.2-AB_Capital Expenditures'!E14 -> 2016 | H3: ='App.2-AB_Capital Expenditures'!E18 -> 1513 | I3: ='App.2-AB_Capital Expenditures'!F18 -> 1427.2
A4: ='LDC Info'!$E$14 -> Festival Hydro Inc. | B4: EB-2024-0023 | C4: 2025 | D4: 2024 | E4: 2015 | F4: System Service | G4: ='App.2-AB_Capital Expenditures'!E14 -> 2016 | H4: ='App.2-AB_Capital Expenditures'!E19 -> 314 | I4: ='App.2-AB_Capital Expenditures'!F19 -> 38.21
A5: ='LDC Info'!$E$14 -> Festival Hydro Inc. | B5: EB-2024-0023 | C5: 2025 | D5: 2024 | E5: 2015 | F5: General Plant | G5: ='App.2-AB_Capital Expenditures'!E14 -> 2016 | H5: ='App.2-AB_Capital Expenditures'!E20 -> 427 | I5: ='App.2-AB_Capital Expenditures'!F20 -> 555.03
A6: ='LDC Info'!$E$14 -> Festival Hydro Inc. | B6: EB-2024-0023 | C6: 2025 | D6: 2024 | E6: 2015 | F6: Total Expenditure | G6: ='App.2-AB_Capital Expenditures'!E14 -> 2016 | H6: ='App.2-AB_Capital Expenditures'!E21 -> 2582 | I6: ='App.2-AB_Capital Expenditures'!F21 -> 2602.94
A7: ='LDC Info'!$E$14 -> Festival Hydro Inc. | B7: EB-2024-0023 | C7: 2025 | D7: 2024 | E7: 2015 | F7: Capital Contributions | G7: ='App.2-AB_Capital Expenditures'!E14 -> 2016 | H7: ='App.2-AB_Capital Expenditures'!E22 -> 120 | I7: ='App.2-AB_Capital Expenditures'!F22 -> 206.59
A8: ='LDC Info'!$E$14 -> Festival Hydro Inc. | B8: EB-2024-0023 | C8: 2025 | D8: 2024 | E8: 2015 | F8: Net Capital Expenditures | G8: ='App.2-AB_Capital Expenditures'!E14 -> 2016 | H8: ='App.2-AB_Capital Expenditures'!E23 -> 2462 | I8: ='App.2-AB_Capital Expenditures'!F23 -> 2396.31
A9: ='LDC Info'!$E$14 -> Festival Hydro Inc. | B9: EB-2024-0023 | C9: 2025 | D9: 2024 | E9: 2015 | F9: System O&M | G9: ='App.2-AB_Capital Expenditures'!E14 -> 2016 | H9: ='App.2-AB_Capital Expenditures'!E24 -> 2084.96 | I9: ='App.2-AB_Capital Expenditures'!F24 -> 2133.07047
A10: ='LDC Info'!$E$14 -> Festival Hydro Inc. | B10: EB-2024-0023 | C10: 2025 | D10: 2024 | E10: 2015 | F10: System Access | G10: ='App.2-AB_Capital Expenditures'!H14 -> 2017 | H10: ='App.2-AB_Capital Expenditures'!H17 -> 334.5 | I10: ='App.2-AB_Capital Expenditures'!I17 -> 733.49
A11: ='LDC Info'!$E$14 -> Festival Hydro Inc. | B11: EB-2024-0023 | C11: 2025 | D11: 2024 | E11: 2015 | F11: System Renewal | G11: ='App.2-AB_Capital Expenditures'!H14 -> 2017 | H11: ='App.2-AB_Capital Expenditures'!H18 -> 1539 | I11: ='App.2-AB_Capital Expenditures'!I18 -> 1644.13
A12: ='LDC Info'!$E$14 -> Festival Hydro Inc. | B12: EB-2024-0023 | C12: 2025 | D12: 2024 | E12: 2015 | F12: System Service | G12: ='App.2-AB_Capital Expenditures'!H14 -> 2017 | H12: ='App.2-AB_Capital Expenditures'!H19 -> 316 | I12: ='App.2-AB_Capital Expenditures'!I19 -> 29.39
A13: ='LDC Info'!$E$14 -> Festival Hydro Inc. | B13: EB-2024-0023 | C13: 2025 | D13: 2024 | E13: 2015 | F13: General Plant | G13: ='App.2-AB_Capital Expenditures'!H14 -> 2017 | H13: ='App.2-AB_Capital Expenditures'!H20 -> 826 | I13: ='App.2-AB_Capital Expenditures'!I20 -> 548.74
A14: ='LDC Info'!$E$14 -> Festival Hydro Inc. | B14: EB-2024-0023 | C14: 2025 | D14: 2024 | E14: 2015 | F14: Total Expenditure | G14: ='App.2-AB_Capital Expenditures'!H14 -> 2017 | H14: ='App.2-AB_Capital Expenditures'!H21 -> 3015.5 | I14: ='App.2-AB_Capital Expenditures'!I21 -> 2955.75
A15: ='LDC Info'!$E$14 -> Festival Hydro Inc. | B15: EB-2024-0023 | C15: 2025 | D15: 2024 | E15: 2015 | F15: Capital Contributions | G15: ='App.2-AB_Capital Expenditures'!H14 -> 2017 | H15: ='App.2-AB_Capital Expenditures'!H22 -> 120 | I15: ='App.2-AB_Capital Expenditures'!I22 -> 371.81
A16: ='LDC Info'!$E$14 -> Festival Hydro Inc. | B16: EB-2024-0023 | C16: 2025 | D16: 2024 | E16: 2015 | F16: Net Capital Expenditures | G16: ='App.2-AB_Capital Expenditures'!H14 -> 2017 | H16: ='App.2-AB_Capital Expenditures'!H23 -> 2895.5 | I16: ='App.2-AB_Capital Expenditures'!I23 -> 2583.95
A17: ='LDC Info'!$E$14 -> Festival Hydro Inc. | B17: EB-2024-0023 | C17: 2025 | D17: 2024 | E17: 2015 | F17: System O&M | G17: ='App.2-AB_Capital Expenditures'!H14 -> 2017 | H17: ='App.2-AB_Capital Expenditures'!H24 -> 2123.98 | I17: ='App.2-AB_Capital Expenditures'!I24 -> 2268.78521
A18: ='LDC Info'!$E$14 -> Festival Hydro Inc. | B18: EB-2024-0023 | C18: 2025 | D18: 2024 | E18: 2015 | F18: System Access | G18: ='App.2-AB_Capital Expenditures'!K14 -> 2018 | H18: ='App.2-AB_Capital Expenditures'!K17 -> 341 | I18: ='App.2-AB_Capital Expenditures'!L17 -> 1378
A19: ='LDC Info'!$E$14 -> Festival Hydro Inc. | B19: EB-2024-0023 | C19: 2025 | D19: 2024 | E19: 2015 | F19: System Renewal | G19: ='App.2-AB_Capital Expenditures'!K14 -> 2018 | H19: ='App.2-AB_Capital Expenditures'!K18 -> 1565 | I19: ='App.2-AB_Capital Expenditures'!L18 -> 1565.47
A20: ='LDC Info'!$E$14 -> Festival Hydro Inc. | B20: EB-2024-0023 | C20: 2025 | D20: 2024 | E20: 2015 | F20: System Service | G20: ='App.2-AB_Capital Expenditures'!K14 -> 2018 | H20: ='App.2-AB_Capital Expenditures'!K19 -> 318 | I20: ='App.2-AB_Capital Expenditures'!L19 -> 37.78
A21: ='LDC Info'!$E$14 -> Festival Hydro Inc. | B21: EB-2024-0023 | C21: 2025 | D21: 2024 | E21: 2015 | F21: General Plant | G21: ='App.2-AB_Capital Expenditures'!K14 -> 2018 | H21: ='App.2-AB_Capital Expenditures'!K20 -> 445 | I21: ='App.2-AB_Capital Expenditures'!L20 -> 836.8
A22: ='LDC Info'!$E$14 -> Festival Hydro Inc. | B22: EB-2024-0023 | C22: 2025 | D22: 2024 | E22: 2015 | F22: Total Expenditure | G22: ='App.2-AB_Capital Expenditures'!K14 -> 2018 | H22: ='App.2-AB_Capital Expenditures'!K21 -> 2669 | I22: ='App.2-AB_Capital Expenditures'!L21 -> 3818.05
A23: ='LDC Info'!$E$14 -> Festival Hydro Inc. | B23: EB-2024-0023 | C23: 2025 | D23: 2024 | E23: 2015 | F23: Capital Contributions | G23: ='App.2-AB_Capital Expenditures'!K14 -> 2018 | H23: ='App.2-AB_Capital Expenditures'!K22 -> 120 | I23: ='App.2-AB_Capital Expenditures'!L22 -> 585.31
A24: ='LDC Info'!$E$14 -> Festival Hydro Inc. | B24: EB-2024-0023 | C24: 2025 | D24: 2024 | E24: 2015 | F24: Net Capital Expenditures | G24: ='App.2-AB_Capital Expenditures'!K14 -> 2018 | H24: ='App.2-AB_Capital Expenditures'!K23 -> 2549 | I24: ='App.2-AB_Capital Expenditures'!L23 -> 3232.72
A25: ='LDC Info'!$E$14 -> Festival Hydro Inc. | B25: EB-2024-0023 | C25: 2025 | D25: 2024 | E25: 2015 | F25: System O&M | G25: ='App.2-AB_Capital Expenditures'!K14 -> 2018 | H25: ='App.2-AB_Capital Expenditures'!K24 -> 2171.02 | I25: ='App.2-AB_Capital Expenditures'!L24 -> 2602.00496
A26: ='LDC Info'!$E$14 -> Festival Hydro Inc. | B26: EB-2024-0023 | C26: 2025 | D26: 2024 | E26: 2015 | F26: System Access | G26: ='App.2-AB_Capital Expenditures'!N14 -> 2019 | H26: ='App.2-AB_Capital Expenditures'!N17 -> 347.5 | I26: ='App.2-AB_Capital Expenditures'!O17 -> 1199.9
A27: ='LDC Info'!$E$14 -> Festival Hydro Inc. | B27: EB-2024-0023 | C27: 2025 | D27: 2024 | E27: 2015 | F27: System Renewal | G27: ='App.2-AB_Capital Expenditures'!N14 -> 2019 | H27: ='App.2-AB_Capital Expenditures'!N18 -> 1592 | I27: ='App.2-AB_Capital Expenditures'!O18 -> 1768.4
A28: ='LDC Info'!$E$14 -> Festival Hydro Inc. | B28: EB-2024-0023 | C28: 2025 | D28: 2024 | E28: 2015 | F28: System Service | G28: ='App.2-AB_Capital Expenditures'!N14 -> 2019 | H28: ='App.2-AB_Capital Expenditures'!N19 -> 320 | I28: ='App.2-AB_Capital Expenditures'!O19 -> 29.73
A29: ='LDC Info'!$E$14 -> Festival Hydro Inc. | B29: EB-2024-0023 | C29: 2025 | D29: 2024 | E29: 2015 | F29: General Plant | G29: ='App.2-AB_Capital Expenditures'!N14 -> 2019 | H29: ='App.2-AB_Capital Expenditures'!N20 -> 415 | I29: ='App.2-AB_Capital Expenditures'!O20 -> 613.21
A30: ='LDC Info'!$E$14 -> Festival Hydro Inc. | B30: EB-2024-0023 | C30: 2025 | D30: 2024 | E30: 2015 | F30: Total Expenditure | G30: ='App.2-AB_Capital Expenditures'!N14 -> 2019 | H30: ='App.2-AB_Capital Expenditures'!N21 -> 2674.5 | I30: ='App.2-AB_Capital Expenditures'!O21 -> 3611.24
A31: ='LDC Info'!$E$14 -> Festival Hydro Inc. | B31: EB-2024-0023 | C31: 2025 | D31: 2024 | E31: 2015 | F31: Capital Contributions | G31: ='App.2-AB_Capital Expenditures'!N14 -> 2019 | H31: ='App.2-AB_Capital Expenditures'!N22 -> 120 | I31: ='App.2-AB_Capital Expenditures'!O22 -> 443.73
A32: ='LDC Info'!$E$14 -> Festival Hydro Inc. | B32: EB-2024-0023 | C32: 2025 | D32: 2024 | E32: 2015 | F32: Net Capital Expenditures | G32: ='App.2-AB_Capital Expenditures'!N14 -> 2019 | H32: ='App.2-AB_Capital Expenditures'!N23 -> 2554.5 | I32: ='App.2-AB_Capital Expenditures'!O23 -> 3167.52
A33: ='LDC Info'!$E$14 -> Festival Hydro Inc. | B33: EB-2024-0023 | C33: 2025 | D33: 2024 | E33: 2015 | F33: System O&M | G33: ='App.2-AB_Capital Expenditures'!N14 -> 2019 | H33: ='App.2-AB_Capital Expenditures'!N24 -> 2590.89 | I33: ='App.2-AB_Capital Expenditures'!O24 -> 2407.61129
A34: ='LDC Info'!$E$14 -> Festival Hydro Inc. | B34: =EBNUMBER -> EB-2024-0023 | C34: =TestYear -> 2025 | D34: =BridgeYear -> 2024 | E34: =RebaseYear -> 2015 | F34: System Access | G34: ='App.2-AB_Capital Expenditures'!Q14 -> 2020 | H34: ='App.2-AB_Capital Expenditures'!Q17 -> 720.5 | I34: ='App.2-AB_Capital Expenditures'!R17 -> 1086.3
A35: ='LDC Info'!$E$14 -> Festival Hydro Inc. | B35: EB-2024-0023 | C35: 2025 | D35: 2024 | E35: 2015 | F35: System Renewal | G35: ='App.2-AB_Capital Expenditures'!Q14 -> 2020 | H35: ='App.2-AB_Capital Expenditures'!Q18 -> 1934.95 | I35: ='App.2-AB_Capital Expenditures'!R18 -> 1627.16
A36: ='LDC Info'!$E$14 -> Festival Hydro Inc. | B36: EB-2024-0023 | C36: 2025 | D36: 2024 | E36: 2015 | F36: System Service | G36: ='App.2-AB_Capital Expenditures'!Q14 -> 2020 | H36: ='App.2-AB_Capital Expenditures'!Q19 -> 55 | I36: ='App.2-AB_Capital Expenditures'!R19 -> 50.9
A37: ='LDC Info'!$E$14 -> Festival Hydro Inc. | B37: EB-2024-0023 | C37: 2025 | D37: 2024 | E37: 2015 | F37: General Plant | G37: ='App.2-AB_Capital Expenditures'!Q14 -> 2020 | H37: ='App.2-AB_Capital Expenditures'!Q20 -> 972.6 | I37: ='App.2-AB_Capital Expenditures'!R20 -> 460.14
A38: ='LDC Info'!$E$14 -> Festival Hydro Inc. | B38: EB-2024-0023 | C38: 2025 | D38: 2024 | E38: 2015 | F38: Total Expenditure | G38: ='App.2-AB_Capital Expenditures'!Q14 -> 2020 | H38: ='App.2-AB_Capital Expenditures'!Q21 -> 3683.05 | I38: ='App.2-AB_Capital Expenditures'!R21 -> 3224.5
A39: ='LDC Info'!$E$14 -> Festival Hydro Inc. | B39: EB-2024-0023 | C39: 2025 | D39: 2024 | E39: 2015 | F39: Capital Contributions | G39: ='App.2-AB_Capital Expenditures'!Q14 -> 2020 | H39: ='App.2-AB_Capital Expenditures'!Q22 -> 200 | I39: ='App.2-AB_Capital Expenditures'!R22 -> 465.54
A40: ='LDC Info'!$E$14 -> Festival Hydro Inc. | B40: EB-2024-0023 | C40: 2025 | D40: 2024 | E40: 2015 | F40: Net Capital Expenditures | G40: ='App.2-AB_Capital Expenditures'!Q14 -> 2020 | H40: ='App.2-AB_Capital Expenditures'!Q23 -> 3483.05 | I40: ='App.2-AB_Capital Expenditures'!R23 -> 2758.64
A41: ='LDC Info'!$E$14 -> Festival Hydro Inc. | B41: EB-2024-0023 | C41: 2025 | D41: 2024 | E41: 2015 | F41: System O&M | G41: ='App.2-AB_Capital Expenditures'!Q14 -> 2020 | H41: ='App.2-AB_Capital Expenditures'!Q24 -> 2677.96 | I41: ='App.2-AB_Capital Expenditures'!R24 -> 2600.67
A42: ='LDC Info'!$E$14 -> Festival Hydro Inc. | B42: EB-2024-0023 | C42: 2025 | D42: 2024 | E42: 2015 | F42: System Access | G42: ='App.2-AB_Capital Expenditures'!T14 -> 2021 | H42: ='App.2-AB_Capital Expenditures'!T17 -> 712.2 | I42: ='App.2-AB_Capital Expenditures'!U17 -> 1091.1
A43: ='LDC Info'!$E$14 -> Festival Hydro Inc. | B43: EB-2024-0023 | C43: 2025 | D43: 2024 | E43: 2015 | F43: System Renewal | G43: ='App.2-AB_Capital Expenditures'!T14 -> 2021 | H43: ='App.2-AB_Capital Expenditures'!T18 -> 1865.97 | I43: ='App.2-AB_Capital Expenditures'!U18 -> 2027.35
A44: ='LDC Info'!$E$14 -> Festival Hydro Inc. | B44: EB-2024-0023 | C44: 2025 | D44: 2024 | E44: 2015 | F44: System Service | G44: ='App.2-AB_Capital Expenditures'!T14 -> 2021 | H44: ='App.2-AB_Capital Expenditures'!T19 -> 55 | I44: ='App.2-AB_Capital Expenditures'!U19 -> 5.69
A45: ='LDC Info'!$E$14 -> Festival Hydro Inc. | B45: EB-2024-0023 | C45: 2025 | D45: 2024 | E45: 2015 | F45: General Plant | G45: ='App.2-AB_Capital Expenditures'!T14 -> 2021 | H45: ='App.2-AB_Capital Expenditures'!T20 -> 1039.72 | I45: ='App.2-AB_Capital Expenditures'!U20 -> 876.23
A46: ='LDC Info'!$E$14 -> Festival Hydro Inc. | B46: EB-2024-0023 | C46: 2025 | D46: 2024 | E46: 2015 | F46: Total Expenditure | G46: ='App.2-AB_Capital Expenditures'!T14 -> 2021 | H46: ='App.2-AB_Capital Expenditures'!T21 -> 3672.89 | I46: ='App.2-AB_Capital Expenditures'!U21 -> 4000.37
A47: ='LDC Info'!$E$14 -> Festival Hydro Inc. | B47: EB-2024-0023 | C47: 2025 | D47: 2024 | E47: 2015 | F47: Capital Contributions | G47: ='App.2-AB_Capital Expenditures'!T14 -> 2021 | H47: ='App.2-AB_Capital Expenditures'!T22 -> 200 | I47: ='App.2-AB_Capital Expenditures'!U22 -> 481.46
A48: ='LDC Info'!$E$14 -> Festival Hydro Inc. | B48: EB-2024-0023 | C48: 2025 | D48: 2024 | E48: 2015 | F48: Net Capital Expenditures | G48: ='App.2-AB_Capital Expenditures'!T14 -> 2021 | H48: ='App.2-AB_Capital Expenditures'!T23 -> 3472.89 | I48: ='App.2-AB_Capital Expenditures'!U23 -> 3518.92
A49: ='LDC Info'!$E$14 -> Festival Hydro Inc. | B49: EB-2024-0023 | C49: 2025 | D49: 2024 | E49: 2015 | F49: System O&M | G49: ='App.2-AB_Capital Expenditures'!T14 -> 2021 | H49: ='App.2-AB_Capital Expenditures'!T24 -> 2642.285 | I49: ='App.2-AB_Capital Expenditures'!U24 -> 2444.502
A50: ='LDC Info'!$E$14 -> Festival Hydro Inc. | B50: EB-2024-0023 | C50: 2025 | D50: 2024 | E50: 2015 | F50: System Access | G50: ='App.2-AB_Capital Expenditures'!W14 -> 2022 | H50: ='App.2-AB_Capital Expenditures'!W17 -> 863.1 | I50: ='App.2-AB_Capital Expenditures'!X17 -> 1013
A51: ='LDC Info'!$E$14 -> Festival Hydro Inc. | B51: EB-2024-0023 | C51: 2025 | D51: 2024 | E51: 2015 | F51: System Renewal | G51: ='App.2-AB_Capital Expenditures'!W14 -> 2022 | H51: ='App.2-AB_Capital Expenditures'!W18 -> 2043.71 | I51: ='App.2-AB_Capital Expenditures'!X18 -> 2221.78
A52: ='LDC Info'!$E$14 -> Festival Hydro Inc. | B52: EB-2024-0023 | C52: 2025 | D52: 2024 | E52: 2015 | F52: System Service | G52: ='App.2-AB_Capital Expenditures'!W14 -> 2022 | H52: ='App.2-AB_Capital Expenditures'!W19 -> 55 | I52: ='App.2-AB_Capital Expenditures'!X19 -> 33.85
A53: ='LDC Info'!$E$14 -> Festival Hydro Inc. | B53: EB-2024-0023 | C53: 2025 | D53: 2024 | E53: 2015 | F53: General Plant | G53: ='App.2-AB_Capital Expenditures'!W14 -> 2022 | H53: ='App.2-AB_Capital Expenditures'!W20 -> 968.99 | I53: ='App.2-AB_Capital Expenditures'!X20 -> 906.75
A54: ='LDC Info'!$E$14 -> Festival Hydro Inc. | B54: EB-2024-0023 | C54: 2025 | D54: 2024 | E54: 2015 | F54: Total Expenditure | G54: ='App.2-AB_Capital Expenditures'!W14 -> 2022 | H54: ='App.2-AB_Capital Expenditures'!W21 -> 3930.8 | I54: ='App.2-AB_Capital Expenditures'!X21 -> 4175.38
A55: ='LDC Info'!$E$14 -> Festival Hydro Inc. | B55: EB-2024-0023 | C55: 2025 | D55: 2024 | E55: 2015 | F55: Capital Contributions | G55: ='App.2-AB_Capital Expenditures'!W14 -> 2022 | H55: ='App.2-AB_Capital Expenditures'!W22 -> 200 | I55: ='App.2-AB_Capital Expenditures'!X22 -> 343.41
A56: ='LDC Info'!$E$14 -> Festival Hydro Inc. | B56: EB-2024-0023 | C56: 2025 | D56: 2024 | E56: 2015 | F56: Net Capital Expenditures | G56: ='App.2-AB_Capital Expenditures'!W14 -> 2022 | H56: ='App.2-AB_Capital Expenditures'!W23 -> 3730.83 | I56: ='App.2-AB_Capital Expenditures'!X23 -> 3831.96
A57: ='LDC Info'!$E$14 -> Festival Hydro Inc. | B57: EB-2024-0023 | C57: 2025 | D57: 2024 | E57: 2015 | F57: System O&M | G57: ='App.2-AB_Capital Expenditures'!W14 -> 2022 | H57: ='App.2-AB_Capital Expenditures'!W24 -> 2844.869 | I57: ='App.2-AB_Capital Expenditures'!X24 -> 2903.54288
A58: ='LDC Info'!$E$14 -> Festival Hydro Inc. | B58: EB-2024-0023 | C58: 2025 | D58: 2024 | E58: 2015 | F58: System Access | G58: ='App.2-AB_Capital Expenditures'!Z14 -> 2023 | H58: ='App.2-AB_Capital Expenditures'!Z17 -> 805 | I58: ='App.2-AB_Capital Expenditures'!AA17 -> 1186.3
A59: ='LDC Info'!$E$14 -> Festival Hydro Inc. | B59: EB-2024-0023 | C59: 2025 | D59: 2024 | E59: 2015 | F59: System Renewal | G59: ='App.2-AB_Capital Expenditures'!Z14 -> 2023 | H59: ='App.2-AB_Capital Expenditures'!Z18 -> 2469.3 | I59: ='App.2-AB_Capital Expenditures'!AA18 -> 2113.7
A60: ='LDC Info'!$E$14 -> Festival Hydro Inc. | B60: EB-2024-0023 | C60: 2025 | D60: 2024 | E60: 2015 | F60: System Service | G60: ='App.2-AB_Capital Expenditures'!Z14 -> 2023 | H60: ='App.2-AB_Capital Expenditures'!Z19 -> 75 | I60: ='App.2-AB_Capital Expenditures'!AA19 -> 110.2
A61: ='LDC Info'!$E$14 -> Festival Hydro Inc. | B61: EB-2024-0023 | C61: 2025 | D61: 2024 | E61: 2015 | F61: General Plant | G61: ='App.2-AB_Capital Expenditures'!Z14 -> 2023 | H61: ='App.2-AB_Capital Expenditures'!Z20 -> 1664.82 | I61: ='App.2-AB_Capital Expenditures'!AA20 -> 1927.1
A62: ='LDC Info'!$E$14 -> Festival Hydro Inc. | B62: EB-2024-0023 | C62: 2025 | D62: 2024 | E62: 2015 | F62: Total Expenditure | G62: ='App.2-AB_Capital Expenditures'!Z14 -> 2023 | H62: ='App.2-AB_Capital Expenditures'!Z21 -> 5014.12 | I62: ='App.2-AB_Capital Expenditures'!AA21 -> 5337.3
A63: ='LDC Info'!$E$14 -> Festival Hydro Inc. | B63: EB-2024-0023 | C63: 2025 | D63: 2024 | E63: 2015 | F63: Capital Contributions | G63: ='App.2-AB_Capital Expenditures'!Z14 -> 2023 | H63: ='App.2-AB_Capital Expenditures'!Z22 -> 400 | I63: ='App.2-AB_Capital Expenditures'!AA22 -> 446.78
A64: ='LDC Info'!$E$14 -> Festival Hydro Inc. | B64: EB-2024-0023 | C64: 2025 | D64: 2024 | E64: 2015 | F64: Net Capital Expenditures | G64: ='App.2-AB_Capital Expenditures'!Z14 -> 2023 | H64: ='App.2-AB_Capital Expenditures'!Z23 -> 4614.12 | I64: ='App.2-AB_Capital Expenditures'!AA23 -> 4871.33
A65: ='LDC Info'!$E$14 -> Festival Hydro Inc. | B65: EB-2024-0023 | C65: 2025 | D65: 2024 | E65: 2015 | F65: System O&M | G65: ='App.2-AB_Capital Expenditures'!Z14 -> 2023 | H65: ='App.2-AB_Capital Expenditures'!Z24 -> 3086.7 | I65: ='App.2-AB_Capital Expenditures'!AA24 -> 3049.137
A66: ='LDC Info'!$E$14 -> Festival Hydro Inc. | B66: =EBNUMBER -> EB-2024-0023 | C66: =TestYear -> 2025 | D66: =BridgeYear -> 2024 | E66: =RebaseYear -> 2015 | F66: System Access | G66: ='App.2-AB_Capital Expenditures'!AC14 -> 2024 | H66: ='App.2-AB_Capital Expenditures'!AC17 -> 1211.9 | I66: ='App.2-AB_Capital Expenditures'!AD17 -> 1211.9
A67: ='LDC Info'!$E$14 -> Festival Hydro Inc. | B67: EB-2024-0023 | C67: 2025 | D67: 2024 | E67: 2015 | F67: System Renewal | G67: ='App.2-AB_Capital Expenditures'!AC14 -> 2024 | H67: ='App.2-AB_Capital Expenditures'!AC18 -> 2235.86 | I67: ='App.2-AB_Capital Expenditures'!AD18 -> 2235.86
A68: ='LDC Info'!$E$14 -> Festival Hydro Inc. | B68: EB-2024-0023 | C68: 2025 | D68: 2024 | E68: 2015 | F68: System Service | G68: ='App.2-AB_Capital Expenditures'!AC14 -> 2024 | H68: ='App.2-AB_Capital Expenditures'!AC19 -> 76.5 | I68: ='App.2-AB_Capital Expenditures'!AD19 -> 76.5
A69: ='LDC Info'!$E$14 -> Festival Hydro Inc. | B69: EB-2024-0023 | C69: 2025 | D69: 2024 | E69: 2015 | F69: General Plant | G69: ='App.2-AB_Capital Expenditures'!AC14 -> 2024 | H69: ='App.2-AB_Capital Expenditures'!AC20 -> 4192.67 | I69: ='App.2-AB_Capital Expenditures'!AD20 -> 4192.67
A70: ='LDC Info'!$E$14 -> Festival Hydro Inc. | B70: EB-2024-0023 | C70: 2025 | D70: 2024 | E70: 2015 | F70: Total Expenditure | G70: ='App.2-AB_Capital Expenditures'!AC14 -> 2024 | H70: ='App.2-AB_Capital Expenditures'!AC21 -> 7716.93 | I70: ='App.2-AB_Capital Expenditures'!AD21 -> 7716.93
A71: ='LDC Info'!$E$14 -> Festival Hydro Inc. | B71: EB-2024-0023 | C71: 2025 | D71: 2024 | E71: 2015 | F71: Capital Contributions | G71: ='App.2-AB_Capital Expenditures'!AC14 -> 2024 | H71: ='App.2-AB_Capital Expenditures'!AC22 -> 219.11 | I71: ='App.2-AB_Capital Expenditures'!AD22 -> 219.11
A72: ='LDC Info'!$E$14 -> Festival Hydro Inc. | B72: EB-2024-0023 | C72: 2025 | D72: 2024 | E72: 2015 | F72: Net Capital Expenditures | G72: ='App.2-AB_Capital Expenditures'!AC14 -> 2024 | H72: ='App.2-AB_Capital Expenditures'!AC23 -> 7516.92 | I72: ='App.2-AB_Capital Expenditures'!AD23 -> 7516.92
A73: ='LDC Info'!$E$14 -> Festival Hydro Inc. | B73: EB-2024-0023 | C73: 2025 | D73: 2024 | E73: 2015 | F73: System O&M | G73: ='App.2-AB_Capital Expenditures'!AC14 -> 2024 | H73: ='App.2-AB_Capital Expenditures'!AC24 -> 3352 | I73: ='App.2-AB_Capital Expenditures'!AD24 -> 3352
A74: ='LDC Info'!$E$14 -> Festival Hydro Inc. | B74: EB-2024-0023 | C74: 2025 | D74: 2024 | E74: 2015 | F74: System Access | G74: ='App.2-AB_Capital Expenditures'!AF14 -> 2025 | H74: ='App.2-AB_Capital Expenditures'!AF17 -> 2399
A75: ='LDC Info'!$E$14 -> Festival Hydro Inc. | B75: EB-2024-0023 | C75: 2025 | D75: 2024 | E75: 2015 | F75: System Renewal | G75: ='App.2-AB_Capital Expenditures'!AF14 -> 2025 | H75: ='App.2-AB_Capital Expenditures'!AF18 -> 3101
A76: ='LDC Info'!$E$14 -> Festival Hydro Inc. | B76: EB-2024-0023 | C76: 2025 | D76: 2024 | E76: 2015 | F76: System Service | G76: ='App.2-AB_Capital Expenditures'!AF14 -> 2025 | H76: ='App.2-AB_Capital Expenditures'!AF19 -> 359
A77: ='LDC Info'!$E$14 -> Festival Hydro Inc. | B77: EB-2024-0023 | C77: 2025 | D77: 2024 | E77: 2015 | F77: General Plant | G77: ='App.2-AB_Capital Expenditures'!AF14 -> 2025 | H77: ='App.2-AB_Capital Expenditures'!AF20 -> 1878
A78: ='LDC Info'!$E$14 -> Festival Hydro Inc. | B78: EB-2024-0023 | C78: 2025 | D78: 2024 | E78: 2015 | F78: Total Expenditure | G78: ='App.2-AB_Capital Expenditures'!AF14 -> 2025 | H78: ='App.2-AB_Capital Expenditures'!AF21 -> 7737
A79: ='LDC Info'!$E$14 -> Festival Hydro Inc. | B79: EB-2024-0023 | C79: 2025 | D79: 2024 | E79: 2015 | F79: Capital Contributions | G79: ='App.2-AB_Capital Expenditures'!AF14 -> 2025 | H79: ='App.2-AB_Capital Expenditures'!AF22 -> 327.2
A80: ='LDC Info'!$E$14 -> Festival Hydro Inc. | B80: EB-2024-0023 | C80: 2025 | D80: 2024 | E80: 2015 | F80: Net Capital Expenditures | G80: ='App.2-AB_Capital Expenditures'!AF14 -> 2025 | H80: ='App.2-AB_Capital Expenditures'!AF23 -> 7409.8
A81: ='LDC Info'!$E$14 -> Festival Hydro Inc. | B81: EB-2024-0023 | C81: 2025 | D81: 2024 | E81: 2015 | F81: System O&M | G81: ='App.2-AB_Capital Expenditures'!AF14 -> 2025 | H81: ='App.2-AB_Capital Expenditures'!AF24 -> 3515
A82: ='LDC Info'!$E$14 -> Festival Hydro Inc. | B82: EB-2024-0023 | C82: 2025 | D82: 2024 | E82: 2015 | F82: System Access | G82: ='App.2-AB_Capital Expenditures'!AG14 -> 2026 | H82: ='App.2-AB_Capital Expenditures'!AG17 -> 2463
A83: ='LDC Info'!$E$14 -> Festival Hydro Inc. | B83: EB-2024-0023 | C83: 2025 | D83: 2024 | E83: 2015 | F83: System Renewal | G83: ='App.2-AB_Capital Expenditures'!AG14 -> 2026 | H83: ='App.2-AB_Capital Expenditures'!AG18 -> 3351
A84: ='LDC Info'!$E$14 -> Festival Hydro Inc. | B84: EB-2024-0023 | C84: 2025 | D84: 2024 | E84: 2015 | F84: System Service | G84: ='App.2-AB_Capital Expenditures'!AG14 -> 2026 | H84: ='App.2-AB_Capital Expenditures'!AG19 -> 374
A85: ='LDC Info'!$E$14 -> Festival Hydro Inc. | B85: EB-2024-0023 | C85: 2025 | D85: 2024 | E85: 2015 | F85: General Plant | G85: ='App.2-AB_Capital Expenditures'!AG14 -> 2026 | H85: ='App.2-AB_Capital Expenditures'!AG20 -> 1299
A86: ='LDC Info'!$E$14 -> Festival Hydro Inc. | B86: EB-2024-0023 | C86: 2025 | D86: 2024 | E86: 2015 | F86: Total Expenditure | G86: ='App.2-AB_Capital Expenditures'!AG14 -> 2026 | H86: ='App.2-AB_Capital Expenditures'!AG21 -> 7487
A87: ='LDC Info'!$E$14 -> Festival Hydro Inc. | B87: EB-2024-0023 | C87: 2025 | D87: 2024 | E87: 2015 | F87: Capital Contributions | G87: ='App.2-AB_Capital Expenditures'!AG14 -> 2026 | H87: ='App.2-AB_Capital Expenditures'!AG22 -> 332
A88: ='LDC Info'!$E$14 -> Festival Hydro Inc. | B88: EB-2024-0023 | C88: 2025 | D88: 2024 | E88: 2015 | F88: Net Capital Expenditures | G88: ='App.2-AB_Capital Expenditures'!AG14 -> 2026 | H88: ='App.2-AB_Capital Expenditures'!AG23 -> 7156
A89: ='LDC Info'!$E$14 -> Festival Hydro Inc. | B89: EB-2024-0023 | C89: 2025 | D89: 2024 | E89: 2015 | F89: System O&M | G89: ='App.2-AB_Capital Expenditures'!AG14 -> 2026 | H89: ='App.2-AB_Capital Expenditures'!AG24 -> 3620
A90: ='LDC Info'!$E$14 -> Festival Hydro Inc. | B90: EB-2024-0023 | C90: 2025 | D90: 2024 | E90: 2015 | F90: System Access | G90: ='App.2-AB_Capital Expenditures'!AH14 -> 2027 | H90: ='App.2-AB_Capital Expenditures'!AH17 -> 2531
A91: ='LDC Info'!$E$14 -> Festival Hydro Inc. | B91: EB-2024-0023 | C91: 2025 | D91: 2024 | E91: 2015 | F91: System Renewal | G91: ='App.2-AB_Capital Expenditures'!AH14 -> 2027 | H91: ='App.2-AB_Capital Expenditures'!AH18 -> 3421
A92: ='LDC Info'!$E$14 -> Festival Hydro Inc. | B92: EB-2024-0023 | C92: 2025 | D92: 2024 | E92: 2015 | F92: System Service | G92: ='App.2-AB_Capital Expenditures'!AH14 -> 2027 | H92: ='App.2-AB_Capital Expenditures'!AH19 -> 384
A93: ='LDC Info'!$E$14 -> Festival Hydro Inc. | B93: EB-2024-0023 | C93: 2025 | D93: 2024 | E93: 2015 | F93: General Plant | G93: ='App.2-AB_Capital Expenditures'!AH14 -> 2027 | H93: ='App.2-AB_Capital Expenditures'!AH20 -> 1262
A94: ='LDC Info'!$E$14 -> Festival Hydro Inc. | B94: EB-2024-0023 | C94: 2025 | D94: 2024 | E94: 2015 | F94: Total Expenditure | G94: ='App.2-AB_Capital Expenditures'!AH14 -> 2027 | H94: ='App.2-AB_Capital Expenditures'!AH21 -> 7598
A95: ='LDC Info'!$E$14 -> Festival Hydro Inc. | B95: EB-2024-0023 | C95: 2025 | D95: 2024 | E95: 2015 | F95: Capital Contributions | G95: ='App.2-AB_Capital Expenditures'!AH14 -> 2027 | H95: ='App.2-AB_Capital Expenditures'!AH22 -> 338
A96: ='LDC Info'!$E$14 -> Festival Hydro Inc. | B96: EB-2024-0023 | C96: 2025 | D96: 2024 | E96: 2015 | F96: Net Capital Expenditures | G96: ='App.2-AB_Capital Expenditures'!AH14 -> 2027 | H96: ='App.2-AB_Capital Expenditures'!AH23 -> 7260
A97: ='LDC Info'!$E$14 -> Festival Hydro Inc. | B97: EB-2024-0023 | C97: 2025 | D97: 2024 | E97: 2015 | F97: System O&M | G97: ='App.2-AB_Capital Expenditures'!AH14 -> 2027 | H97: ='App.2-AB_Capital Expenditures'!AH24 -> 3729
A98: ='LDC Info'!$E$14 -> Festival Hydro Inc. | B98: =EBNUMBER -> EB-2024-0023 | C98: =TestYear -> 2025 | D98: =BridgeYear -> 2024 | E98: =RebaseYear -> 2015 | F98: System Access | G98: ='App.2-AB_Capital Expenditures'!AI14 -> 2028 | H98: ='App.2-AB_Capital Expenditures'!AI17 -> 2601
A99: ='LDC Info'!$E$14 -> Festival Hydro Inc. | B99: EB-2024-0023 | C99: 2025 | D99: 2024 | E99: 2015 | F99: System Renewal | G99: ='App.2-AB_Capital Expenditures'!AI14 -> 2028 | H99: ='App.2-AB_Capital Expenditures'!AI18 -> 3505
A100: ='LDC Info'!$E$14 -> Festival Hydro Inc. | B100: EB-2024-0023 | C100: 2025 | D100: 2024 | E100: 2015 | F100: System Service | G100: ='App.2-AB_Capital Expenditures'!AI14 -> 2028 | H100: ='App.2-AB_Capital Expenditures'!AI19 -> 397
A101: ='LDC Info'!$E$14 -> Festival Hydro Inc. | B101: EB-2024-0023 | C101: 2025 | D101: 2024 | E101: 2015 | F101: General Plant | G101: ='App.2-AB_Capital Expenditures'!AI14 -> 2028 | H101: ='App.2-AB_Capital Expenditures'!AI20 -> 1274
A102: ='LDC Info'!$E$14 -> Festival Hydro Inc. | B102: EB-2024-0023 | C102: 2025 | D102: 2024 | E102: 2015 | F102: Total Expenditure | G102: ='App.2-AB_Capital Expenditures'!AI14 -> 2028 | H102: ='App.2-AB_Capital Expenditures'!AI21 -> 7777
A103: ='LDC Info'!$E$14 -> Festival Hydro Inc. | B103: EB-2024-0023 | C103: 2025 | D103: 2024 | E103: 2015 | F103: Capital Contributions | G103: ='App.2-AB_Capital Expenditures'!AI14 -> 2028 | H103: ='App.2-AB_Capital Expenditures'!AI22 -> 345
A104: ='LDC Info'!$E$14 -> Festival Hydro Inc. | B104: EB-2024-0023 | C104: 2025 | D104: 2024 | E104: 2015 | F104: Net Capital Expenditures | G104: ='App.2-AB_Capital Expenditures'!AI14 -> 2028 | H104: ='App.2-AB_Capital Expenditures'!AI23 -> 7432
A105: ='LDC Info'!$E$14 -> Festival Hydro Inc. | B105: EB-2024-0023 | C105: 2025 | D105: 2024 | E105: 2015 | F105: System O&M | G105: ='App.2-AB_Capital Expenditures'!AI14 -> 2028 | H105: ='App.2-AB_Capital Expenditures'!AI24 -> 3841
A106: ='LDC Info'!$E$14 -> Festival Hydro Inc. | B106: EB-2024-0023 | C106: 2025 | D106: 2024 | E106: 2015 | F106: System Access | G106: ='App.2-AB_Capital Expenditures'!AJ14 -> 2029 | H106: ='App.2-AB_Capital Expenditures'!AJ17 -> 1743
A107: ='LDC Info'!$E$14 -> Festival Hydro Inc. | B107: EB-2024-0023 | C107: 2025 | D107: 2024 | E107: 2015 | F107: System Renewal | G107: ='App.2-AB_Capital Expenditures'!AJ14 -> 2029 | H107: ='App.2-AB_Capital Expenditures'!AJ18 -> 3590
A108: ='LDC Info'!$E$14 -> Festival Hydro Inc. | B108: EB-2024-0023 | C108: 2025 | D108: 2024 | E108: 2015 | F108: System Service | G108: ='App.2-AB_Capital Expenditures'!AJ14 -> 2029 | H108: ='App.2-AB_Capital Expenditures'!AJ19 -> 409
A109: ='LDC Info'!$E$14 -> Festival Hydro Inc. | B109: EB-2024-0023 | C109: 2025 | D109: 2024 | E109: 2015 | F109: General Plant | G109: ='App.2-AB_Capital Expenditures'!AJ14 -> 2029 | H109: ='App.2-AB_Capital Expenditures'!AJ20 -> 1585
A110: ='LDC Info'!$E$14 -> Festival Hydro Inc. | B110: EB-2024-0023 | C110: 2025 | D110: 2024 | E110: 2015 | F110: Total Expenditure | G110: ='App.2-AB_Capital Expenditures'!AJ14 -> 2029 | H110: ='App.2-AB_Capital Expenditures'!AJ21 -> 7327
A111: ='LDC Info'!$E$14 -> Festival Hydro Inc. | B111: EB-2024-0023 | C111: 2025 | D111: 2024 | E111: 2015 | F111: Capital Contributions | G111: ='App.2-AB_Capital Expenditures'!AJ14 -> 2029 | H111: ='App.2-AB_Capital Expenditures'!AJ22 -> 352
A112: ='LDC Info'!$E$14 -> Festival Hydro Inc. | B112: EB-2024-0023 | C112: 2025 | D112: 2024 | E112: 2015 | F112: Net Capital Expenditures | G112: ='App.2-AB_Capital Expenditures'!AJ14 -> 2029 | H112: ='App.2-AB_Capital Expenditures'!AJ23 -> 6974
A113: ='LDC Info'!$E$14 -> Festival Hydro Inc. | B113: EB-2024-0023 | C113: 2025 | D113: 2024 | E113: 2015 | F113: System O&M | G113: ='App.2-AB_Capital Expenditures'!AJ14 -> 2029 | H113: ='App.2-AB_Capital Expenditures'!AJ24 -> 3956

Sheet App.2-AC_Customer Engagement
B1: File Number: | C1: =EBNUMBER -> EB-2024-0023
A2: Completing Appendix 2-AC is optional | B2: Exhibit:
B3: Tab:
B4: Schedule:
B5: Page:
B7: Date:
A9: Appendix 2-AC
A10: Ongoing Customer Engagement Activities Summary
A12: Provide a list of customer engagement activities | B12: Provide a list of customer needs and preferences identified through each engagement activity | C12: Actions taken to respond to identified needs and preferences. If no action was taken, explain why.
A34: Application Specific Customer Engagement Activities Summary
A36: Provide a list of customer engagement activities | B36: Provide a list of customer needs and preferences identified through each engagement activity | C36: Actions taken to respond to identified needs and preferences. If no action was taken, explain why.
A58: Note: Use "ALT-ENTER" to go to the next line within a cell

Sheet App.2-B_Acctg Instructions (hidden)
A1: General Instructions to MIFRS Appendices
A2: Types of Schedules to File
A4: The purpose of this tab is to provide general instructions. The specific instructions to each appendix are listed in footnotes of each appendix.
A6: The typical applicant is expected to have made capitalization and depreciation policy changes under CGAAP as permitted by the OEB on January 1, 2012 or mandated by the OEB by January 1, 2013, and adopted IFRS for reporting purposes on January 1, 2015 (transition date January 1, 2014). Most distributors filing for 2021 rates have rebased with these accounting changes reflected in a prior rebasing application. If that is the case, information relating to pre-accounting policy changes is not generally required. Most distributors may have rebased under MIFRS. If that is the case, information related to the accounting standard used prior to IFRS is not generally required. The information to be provided by applicants will depend on when the accounting policy changes were made and when they last rebased. In general, applicants should provide the following information in the appendices:
E9: Reflecting Accounting Policy Changes in Current Application | G9: Reflected Accounting Policy Changes in Prior Application3 | H9: Rebased under MIFRS in Prior Application3
E10: Accounting Policy Changes in 2012 and Adopted IFRS in 2015 | F10: Accounting Policy Changes in 2013 and Adopted IFRS in 2015 | G10: Adopted IFRS in 2015 | H10: IFRS Since 2015
B11: 2021 | C11: Test | E11: MIFRS | F11: MIFRS | G11: MIFRS | H11: MIFRS
A12: Information to be filed in 2019 CoS Application | B12: 2020 | C12: Bridge | E12: MIFRS | F12: MIFRS | G12: MIFRS | H12: MIFRS
B13: 2019 | C13: Bridge | E13: MIFRS | F13: MIFRS | G13: MIFRS | H13: MIFRS
B14: 2018 | C14: Bridge | E14: MIFRS | F14: MIFRS | G14: MIFRS | H14: MIFRS
B15: 2017 | C15: Historical | E15: MIFRS | F15: MIFRS | G15: MIFRS | H15: MIFRS
B16: 2016 | C16: Historical | E16: MIFRS | F16: MIFRS | G16: MIFRS | H16: MIFRS
B17: 2015 | C17: Historical | E17: MIFRS and Revised CGAAP1 | F17: MIFRS and Revised CGAAP1 | G17: MIFRS and Revised CGAAP1 | H17: N/A
B18: 2014 | C18: Historical | E18: Revised CGAAP | F18: CGAAP and Revised CGAAP2 | G18: N/A | H18: N/A
B19: 2013 | C19: Historical | E19: CGAAP and Revised CGAAP2 | F19: N/A | G19: N/A | H19: N/A
A21: 1) For the transition year (2014), the applicant may file two appendices, one under Revised CGAAP and one under MIFRS, depending on the materiality of impacts. See the specific instructions under each appendix below for further details.
A22: 2) For applicants that are reflecting accounting policy changes for the first time in a rebasing application, the applicant must file two appendices in the year that the applicant implemented changes to its capitalization and depreciation policies (2012 or 2013), one before and one after the policy changes.
A23: 3) Applicants should provide CGAAP and Revised CGAAP schedules (i.e. as indicated in the first two columns of the above table) to support balances in Account 1576 if the account has yet to be disposed of.
A26: Appendix 2-BA - Fixed Asset Schedule
A28: Applicants are to provide Appendix 2-BA in accordance with the years and corresponding accounting standards noted in the above table to provide a year over year continuity in fixed assets.
A29: If this is the first application where the applicant is rebasing under MIFRS, the applicant should file two appendices, one under Revised CGAAP and one under MIFRS for the transition year (2014), if the change between Revised CGAAP and MIFRS is material. If the change from the accounting standards is not material, the applicant may choose to only provide one appendix under MIFRS. However, the applicant must also indicate the fixed asset net book value balance under Revised CGAAP, the total dollar value of the change and explain why it is not material.
A33: The applicant must establish the continuity of historical cost for gross assets and accumulated depreciation by asset class by ensuring that the opening balance in the year agrees to the closing balance in the prior year.
A36: Appendix 2-Cx - Depreciation and Amortization
A38: Applicants are to provide Appendix 2-C in accordance with the years and corresponding accounting standards listed in the above table.
A39: Appendix 2-C is to be used under all of the scenarios presented in the table above. In the appendix, the applicant will need to indicate which scenario applies. The appendix is to be duplicated for each year and for each accounting standard required as per the above table.
A40: Depreciation accounting policy changes were mandated by the OEB by January 1, 2013. In general, no further changes to an applicant's depreciation policy (i.e. assets' service lives) are expected after the OEB mandated changes by January 1, 2013, unless a change is determined to be necessary in accordance with the depreciation review required under IFRS. If the applicant has made any changes to its depreciation policy subsequent to the OEB mandated changes, for the year of the change, applicants must quantify the change in depreciation. If there are significant changes to multiple asset classes, the applicant must complete Appendix 2-C before and after the change. Applicants must also explain the nature of the change, the reason for the change, quantify the impact of the change.
A42: Appendix 2-E - Account 1575, IFRS-CGAAP Transitional PP&E Amounts (2-EA), Account 1576, Accounting Changes Under CGAAP (2-EB, 2-EC) CONTACT OEB STAFF IF TAB REQUIRED
A44: 1) For an applicant that has a balance in Account 1576 to dispose:
A45: · | B45: If an applicant changed capitalization and depreciation policies effective January 1, 2012, the applicant must complete Appendix 2-EB
A46: · | B46: If an applicant changed capitalization and depreciation policies effective January 1, 2013, the applicant must complete Appendix 2-EC
A48: 2) For an applicant that has a balance in Account 1575 to dispose:
A49: · | B49: The applicant must complete 2-EA
A50: If the applicant did not make any further PP&E accounting policy changes beyond the capitalization and depreciation policy changes as mandated by the OEB by January 1, 2013 (i.e. no further changes made on transition to IFRS), the applicant must indicate this and does not need to complete Appendix 2-EA.
A54: Appendix 2-Y - Summary of Impacts to Revenue Requirement from Transition to MIFRS CONTACT OEB STAFF IF TAB REQUIRED
A56: Applicants must complete Appendix 2-Y if this is the first rebasing application under MIFRS. An applicant must provide a summary of the dollar impacts of MIFRS to each component of the revenue requirement (e.g. rate base, operating costs, etc.), including the overall impact on the proposed revenue requirement. Accordingly, the applicant must identify financial differences and resulting revenue requirement impacts arising from the adoption of MIFRS as compared to CGAAP. If the applicant is reflecting the changes in capitalization and depreciation policies for the first time in a rebasing application as well, then a comparison between MIFRS and CGAAP before the change in accounting policies should be completed. If the applicant changed capitalization and depreciation policies and reflected these changes in a prior rebasing application, then a comparison between MIFRS and CGAAP after the change in accounting policies should be completed.

Sheet App.2-BA_Fixed Asset Cont
M1: File Number: | N1: =EBNUMBER -> EB-2024-0023
M2: Exhibit: | N2: 2
M3: Tab:
M4: Schedule: | N4: Table 2-14 to 2-24
M5: Page: | N5: 16-26
M7: Date: | N7: 2024-04-26
A9: Appendix 2-BA
A10: Fixed Asset Continuity Schedule 1
A12: Notes:
A14: 1 | B14: Tables in the format outlined above covering all fixed asset accounts should be submitted for the Test Year, Bridge Year and all relevant historical years. At a minimum , the applicant must provide data for the earlier of: 1) all historical years back to its last rebasing; or 2) at least three years of historical actuals, in addition to Bridge Year and Test Year forecasts. If this is the first application where the applicant is rebasing under MIFRS, contact OEB staff for further guidance on the appropriate fixed asset continuity schedules to complete (i.e. applicable years and accounting standard for each schedule).
A17: 2 | B17: The "CCA Class" for fixed assets should generally agree with the CCA Class used for tax purposes in Tax Returns. Fixed Assets sub-components may be used where the underlying asset components are classified under multiple CCA Classes for tax purposes. If an applicant uses any different classes from those shown in the table, an explanation should be provided. (also see note 3).
A20: 3 | B20: The table may need to be customized for a utility's asset categories or for any new asset accounts announced or authorized by the OEB.
A22: 4 | B22: The additions in column (E) must not include construction work in progress (CWIP).
A24: 5 | B24: Effective on the date of IFRS adoption, customer contributions will no longer be recorded in Account 1995 Contributions & Grants, but will be recorded in Account 2440, Deferred Revenues. Amortization of deferred revenue will be removed from the depreciation expense shown on this fixed asset continuity schedule as it should be included as income in Appendix 2-H Other Revenues.
A26: 6 | B26: The applicant must ensure that all asset disposals have been clearly identified in the Chapter 2 Appendices for all historic, bridge and test years. Where a distributor for general financial reporting purposes under IFRS has accounted for the amount of gain or loss on the retirement of assets in a pool of like assets as a charge or credit to income, for reporting and rate application filings, the distributor shall reclassify such gains and losses as depreciation expense, and disclose the amount separately.
A30: 7 | B30: This account includes the amount recorded under finance leases for plant leased from others and used by the utility in its utility operations.
A32: 8 | B32: The applicant must establish the continuity of historical cost for gross assets and accumulated depreciation by asset class by ensuring that the opening balance in the year agrees to the closing balance in the prior year.
E42: Accounting Standard | F42: MIFRS
E43: Year | F43: =RebaseYear -> 2015 | H43: =IF(F43=2014,4,IF(F43=2015,5,IF(F43=2016,6,IF(F43=2017,7,IF(F43=2018,8,IF(F43=2019,9,IF(F43=2020,10))))))) -> 5
D45: Cost | K45: Accumulated Depreciation
A46: CCA Class 2 | B46: OEB Account 3 | C46: Description 3 | D46: Opening Balance 8 | E46: Additions 4 | F46: Disposals 6 | G46: Closing Balance | H46: RRR DATA | J46: Opening Balance 8 | K46: Additions | L46: Disposals 6 | M46: Closing Balance | N46: Net Book Value
B47: 1609 | C47: Capital Contributions Paid | D47: 2360056.17 | E47: 70200 | F47: -1463321 | G47: =D47+E47+F47 -> 966935.17 | H47: =IFERROR(VLOOKUP(R47,'2.1.7 All Accounts'!$D:$M,$H$43,FALSE),0) -> 966935 | J47: -61926.08 | K47: -54473.78571 | L47: 14746.14 | M47: =J47+K47+L47 -> -101653.7257 | N47: =G47+M47 -> 865281.4443 | R47: ='LDC Info'!$E$14 & B47 -> Festival Hydro Inc.1609
A48: 12 | B48: 1611 | C48: Computer Software (Formally known as Account 1925) | D48: 370401 | E48: 306327.82 | F48: 0 | G48: =D48+E48+F48 -> 676728.82 | H48: =IFERROR(VLOOKUP(R48,'2.1.7 All Accounts'!$D:$M,$H$43,FALSE),0) -> 676728.29 | J48: -87364.4337 | K48: -120292.9327 | L48: 0 | M48: =J48+K48+L48 -> -207657.3664 | N48: =G48+M48 -> 469071.4536 | R48: ='LDC Info'!$E$14 & B48 -> Festival Hydro Inc.1611
A49: CEC | B49: 1612 | C49: Land Rights (Formally known as Account 1906) | D49: 0 | E49: 0 | F49: 0 | G49: =D49+E49+F49 -> 0 | H49: =IFERROR(VLOOKUP(R49,'2.1.7 All Accounts'!$D:$M,$H$43,FALSE),0) -> 0 | J49: 0 | K49: 0 | L49: 0 | M49: =J49+K49+L49 -> 0 | N49: =G49+M49 -> 0 | R49: ='LDC Info'!$E$14 & B49 -> Festival Hydro Inc.1612
A50: N/A | B50: 1805 | C50: Land | D50: 1252202 | E50: 0 | F50: 0 | G50: =D50+E50+F50 -> 1252202 | H50: =IFERROR(VLOOKUP(R50,'2.1.7 All Accounts'!$D:$M,$H$43,FALSE),0) -> 1252201.65 | J50: 0 | K50: 0 | L50: 0 | M50: =J50+K50+L50 -> 0 | N50: =G50+M50 -> 1252202 | R50: ='LDC Info'!$E$14 & B50 -> Festival Hydro Inc.1805
A51: 47 | B51: 1808 | C51: Buildings | D51: 494571.15 | E51: 0 | F51: 0 | G51: =D51+E51+F51 -> 494571.15 | H51: =IFERROR(VLOOKUP(R51,'2.1.7 All Accounts'!$D:$M,$H$43,FALSE),0) -> 494571.15 | J51: -41811.57116 | K51: -39422.71884 | M51: =J51+K51+L51 -> -81234.29 | N51: =G51+M51 -> 413336.86 | R51: ='LDC Info'!$E$14 & B51 -> Festival Hydro Inc.1808
A52: 13 | B52: 1810 | C52: Leasehold Improvements | D52: 0 | E52: 0 | F52: 0 | G52: 0 | H52: =IFERROR(VLOOKUP(R52,'2.1.7 All Accounts'!$D:$M,$H$43,FALSE),0) -> 0 | J52: 0 | K52: 0 | L52: 0 | M52: 0 | N52: 0 | R52: ='LDC Info'!$E$14 & B52 -> Festival Hydro Inc.1810
A53: 47 | B53: 1815 | C53: Transformer Station Equipment >50 kV | D53: 13935158 | E53: 0 | F53: 0 | G53: 13935158 | H53: =IFERROR(VLOOKUP(R53,'2.1.7 All Accounts'!$D:$M,$H$43,FALSE),0) -> 13935157.83 | J53: -346867.39 | K53: -320191.5443 | M53: -667058.9343 | N53: 13268099.07 | R53: ='LDC Info'!$E$14 & B53 -> Festival Hydro Inc.1815
A54: 47 | B54: 1820 | C54: Distribution Station Equipment <50 kV | D54: 254798 | E54: 0 | F54: 0 | G54: 254798 | H54: =IFERROR(VLOOKUP(R54,'2.1.7 All Accounts'!$D:$M,$H$43,FALSE),0) -> 254797.43 | J54: -27834.87719 | K54: -27834.59719 | M54: -55669.47437 | N54: 199128.5256 | R54: ='LDC Info'!$E$14 & B54 -> Festival Hydro Inc.1820
A55: 47 | B55: 1825 | C55: Storage Battery Equipment | D55: 0 | E55: 0 | F55: 0 | G55: 0 | H55: =IFERROR(VLOOKUP(R55,'2.1.7 All Accounts'!$D:$M,$H$43,FALSE),0) -> 0 | J55: 0 | K55: 0 | L55: 0 | M55: 0 | N55: 0 | R55: ='LDC Info'!$E$14 & B55 -> Festival Hydro Inc.1825
A56: 47 | B56: 1830 | C56: Poles, Towers & Fixtures | D56: 10264040 | E56: 581837.22 | F56: 0 | G56: 10845877.22 | H56: =IFERROR(VLOOKUP(R56,'2.1.7 All Accounts'!$D:$M,$H$43,FALSE),0) -> 10845876.76 | J56: -248505.1567 | K56: -254717.8633 | L56: 0 | M56: -503223.02 | N56: 10342654.2 | R56: ='LDC Info'!$E$14 & B56 -> Festival Hydro Inc.1830
A57: 47 | B57: 1835 | C57: Overhead Conductors & Devices | D57: 6437700.01 | E57: 347558.46 | F57: 0 | G57: 6785258.47 | H57: =IFERROR(VLOOKUP(R57,'2.1.7 All Accounts'!$D:$M,$H$43,FALSE),0) -> 6785258.05 | J57: -131891.9618 | K57: -137222.1682 | L57: 0 | M57: -269114.13 | N57: 6516144.34 | R57: ='LDC Info'!$E$14 & B57 -> Festival Hydro Inc.1835
A58: 47 | B58: 1840 | C58: Underground Conduit | D58: 3886852 | E58: 387923.6 | F58: 0 | G58: 4274775.6 | H58: =IFERROR(VLOOKUP(R58,'2.1.7 All Accounts'!$D:$M,$H$43,FALSE),0) -> 4274775.24 | J58: -93364.08688 | K58: -98861.28523 | L58: 0 | M58: -192225.3721 | N58: 4082550.228 | R58: ='LDC Info'!$E$14 & B58 -> Festival Hydro Inc.1840
A59: 47 | B59: 1845 | C59: Underground Conductors & Devices | D59: 6112549.35 | E59: 490818.4 | F59: 0 | G59: 6603367.75 | H59: =IFERROR(VLOOKUP(R59,'2.1.7 All Accounts'!$D:$M,$H$43,FALSE),0) -> 6603367.33 | J59: -211507.2446 | K59: -216003.8901 | L59: 0 | M59: -427511.1347 | N59: 6175856.615 | R59: ='LDC Info'!$E$14 & B59 -> Festival Hydro Inc.1845
A60: 47 | B60: 1850 | C60: Line Transformers | D60: 5681103 | E60: 407839.85 | F60: 0 | G60: 6088942.85 | H60: =IFERROR(VLOOKUP(R60,'2.1.7 All Accounts'!$D:$M,$H$43,FALSE),0) -> 6088944.09 | J60: -187657.2381 | K60: -191868.7319 | L60: 0 | M60: -379525.97 | N60: 5709416.88 | R60: ='LDC Info'!$E$14 & B60 -> Festival Hydro Inc.1850
A61: 47 | B61: 1855 | C61: Services (Overhead & Underground) | D61: 2072988.22 | E61: 193101.9 | F61: 0 | G61: 2266090.12 | H61: =IFERROR(VLOOKUP(R61,'2.1.7 All Accounts'!$D:$M,$H$43,FALSE),0) -> 2266091.87 | J61: -67299.72713 | K61: -71110.86287 | L61: 0 | M61: -138410.59 | N61: 2127679.53 | R61: ='LDC Info'!$E$14 & B61 -> Festival Hydro Inc.1855
A62: 47 | B62: 1860 | C62: Meters | D62: 962972.78 | E62: 26554.55 | F62: -4001.47 | G62: 985525.86 | H62: =IFERROR(VLOOKUP(R62,'2.1.7 All Accounts'!$D:$M,$H$43,FALSE),0) -> 3769559.58 | J62: -115804.4634 | K62: -68593.2649 | L62: 0 | M62: -184397.7283 | N62: 801128.1317 | R62: ='LDC Info'!$E$14 & B62 -> Festival Hydro Inc.1860
A63: 47 | B63: 1860 | C63: Meters (Smart Meters) | D63: 2738785.44 | E63: 47979.15 | F63: -2729.92 | G63: 2784034.67 | H63: =IFERROR(VLOOKUP(R63,'2.1.7 All Accounts'!$D:$M,$H$43,FALSE),0) -> 3769559.58 | J63: -408192.8649 | K63: -414318.7369 | L63: 0 | M63: -822511.6017 | N63: 1961523.068 | R63: ='LDC Info'!$E$14 & B63 -> Festival Hydro Inc.1860
A64: N/A | B64: 1905 | C64: Land | D64: 0 | E64: 0 | F64: 0 | G64: 0 | H64: =IFERROR(VLOOKUP(R64,'2.1.7 All Accounts'!$D:$M,$H$43,FALSE),0) -> 0 | J64: 0 | K64: 0 | L64: 0 | M64: 0 | N64: 0 | R64: ='LDC Info'!$E$14 & B64 -> Festival Hydro Inc.1905
A65: 47 | B65: 1908 | C65: Buildings & Fixtures | D65: 465827 | E65: 141388.93 | F65: 0 | G65: 607215.93 | H65: =IFERROR(VLOOKUP(R65,'2.1.7 All Accounts'!$D:$M,$H$43,FALSE),0) -> 607215.82 | J65: -35924.89253 | K65: -34330.01597 | L65: 0 | M65: -70254.9085 | N65: 536961.0215 | R65: ='LDC Info'!$E$14 & B65 -> Festival Hydro Inc.1908
A66: 13 | B66: 1910 | C66: Leasehold Improvements | D66: 0 | E66: 0 | F66: 0 | G66: 0 | H66: =IFERROR(VLOOKUP(R66,'2.1.7 All Accounts'!$D:$M,$H$43,FALSE),0) -> 0 | J66: 0 | K66: 0 | L66: 0 | M66: 0 | N66: 0 | R66: ='LDC Info'!$E$14 & B66 -> Festival Hydro Inc.1910
A67: 8 | B67: 1915 | C67: Office Furniture & Equipment (10 years) | D67: 85910.35 | E67: 91504 | F67: 0 | G67: 177414.35 | H67: =IFERROR(VLOOKUP(R67,'2.1.7 All Accounts'!$D:$M,$H$43,FALSE),0) -> 177414.04 | J67: -8324.060833 | K67: -15271.26333 | L67: 0 | M67: -23595.32417 | N67: 153819.0258 | R67: ='LDC Info'!$E$14 & B67 -> Festival Hydro Inc.1915
A68: 8 | B68: 1915 | C68: Office Furniture & Equipment (5 years) | D68: 0 | E68: 0 | F68: 0 | G68: 0 | H68: =IFERROR(VLOOKUP(R68,'2.1.7 All Accounts'!$D:$M,$H$43,FALSE),0) -> 177414.04 | J68: 0 | K68: 0 | L68: 0 | M68: 0 | N68: 0 | R68: ='LDC Info'!$E$14 & B68 -> Festival Hydro Inc.1915
A69: 10 | B69: 1920 | C69: Computer Equipment - Hardware | D69: 0 | E69: 0 | F69: 0 | G69: 0 | H69: =IFERROR(VLOOKUP(R69,'2.1.7 All Accounts'!$D:$M,$H$43,FALSE),0) -> 413077.89 | J69: 0 | K69: 0 | L69: 0 | M69: 0 | N69: 0 | R69: ='LDC Info'!$E$14 & B69 -> Festival Hydro Inc.1920
A70: 45 | B70: 1920 | C70: Computer Equip.-Hardware(Post Mar. 22/04) | D70: 0 | E70: 0 | F70: 0 | G70: 0 | H70: =IFERROR(VLOOKUP(R70,'2.1.7 All Accounts'!$D:$M,$H$43,FALSE),0) -> 413077.89 | J70: 0 | K70: 0 | L70: 0 | M70: 0 | N70: 0 | R70: ='LDC Info'!$E$14 & B70 -> Festival Hydro Inc.1920
A71: 50 | B71: 1920 | C71: Computer Equip.-Hardware(Post Mar. 19/07) | D71: 354933.01 | E71: 58144.42 | F71: 0 | G71: 413077.43 | H71: =IFERROR(VLOOKUP(R71,'2.1.7 All Accounts'!$D:$M,$H$43,FALSE),0) -> 413077.89 | J71: -80751.77814 | K71: -93390.32914 | L71: 0 | M71: -174142.1073 | N71: 238935.3227 | R71: ='LDC Info'!$E$14 & B71 -> Festival Hydro Inc.1920
A72: 10 | B72: 1930 | C72: Transportation Equipment | D72: 944582.06 | E72: 40679.58 | F72: -27740.38 | G72: 957521.26 | H72: =IFERROR(VLOOKUP(R72,'2.1.7 All Accounts'!$D:$M,$H$43,FALSE),0) -> 957521.53 | J72: -115888.7835 | K72: -118545.4802 | L72: 27740.38 | M72: -206693.8837 | N72: 750827.3763 | R72: ='LDC Info'!$E$14 & B72 -> Festival Hydro Inc.1930
A73: 8 | B73: 1935 | C73: Stores Equipment | D73: 0 | E73: 0 | F73: 0 | G73: 0 | H73: =IFERROR(VLOOKUP(R73,'2.1.7 All Accounts'!$D:$M,$H$43,FALSE),0) -> 0 | J73: 0 | K73: 0 | L73: 0 | M73: 0 | N73: 0 | R73: ='LDC Info'!$E$14 & B73 -> Festival Hydro Inc.1935
A74: 8 | B74: 1940 | C74: Tools, Shop & Garage Equipment | D74: 159916.18 | E74: 15433.63 | F74: 0 | G74: 175349.81 | H74: =IFERROR(VLOOKUP(R74,'2.1.7 All Accounts'!$D:$M,$H$43,FALSE),0) -> 175351.16 | J74: -29669.02702 | K74: -27868.34298 | L74: 0 | M74: -57537.37 | N74: 117812.44 | R74: ='LDC Info'!$E$14 & B74 -> Festival Hydro Inc.1940
A75: 8 | B75: 1945 | C75: Measurement & Testing Equipment | D75: 9659 | E75: 0 | F75: 0 | G75: 9659 | H75: =IFERROR(VLOOKUP(R75,'2.1.7 All Accounts'!$D:$M,$H$43,FALSE),0) -> 9658.62 | J75: -3219.655 | K75: -3219.665 | M75: -6439.32 | N75: 3219.68 | R75: ='LDC Info'!$E$14 & B75 -> Festival Hydro Inc.1945
A76: 8 | B76: 1950 | C76: Power Operated Equipment | D76: 0 | E76: 0 | F76: 0 | G76: 0 | H76: =IFERROR(VLOOKUP(R76,'2.1.7 All Accounts'!$D:$M,$H$43,FALSE),0) -> 0 | J76: 0 | K76: 0 | L76: 0 | M76: 0 | N76: 0 | R76: ='LDC Info'!$E$14 & B76 -> Festival Hydro Inc.1950
A77: 8 | B77: 1955 | C77: Communications Equipment | D77: 367 | E77: 3500.85 | F77: 0 | G77: 3867.85 | H77: =IFERROR(VLOOKUP(R77,'2.1.7 All Accounts'!$D:$M,$H$43,FALSE),0) -> 3868.09 | J77: -294.575 | K77: -211.55 | L77: 26682 | M77: 26175.875 | N77: 30043.725 | R77: ='LDC Info'!$E$14 & B77 -> Festival Hydro Inc.1955
A78: 8 | B78: 1955 | C78: Communication Equipment (Smart Meters) | D78: 0 | E78: 0 | F78: 0 | G78: 0 | H78: =IFERROR(VLOOKUP(R78,'2.1.7 All Accounts'!$D:$M,$H$43,FALSE),0) -> 3868.09 | J78: 0 | K78: 0 | L78: 0 | M78: 0 | N78: 0 | R78: ='LDC Info'!$E$14 & B78 -> Festival Hydro Inc.1955
A79: 8 | B79: 1960 | C79: Miscellaneous Equipment | D79: 6315.2 | E79: 0 | F79: 0 | G79: 6315.2 | H79: =IFERROR(VLOOKUP(R79,'2.1.7 All Accounts'!$D:$M,$H$43,FALSE),0) -> 6315.2 | J79: -943.144 | K79: -1101.824 | M79: -2044.968 | N79: 4270.232 | R79: ='LDC Info'!$E$14 & B79 -> Festival Hydro Inc.1960
A80: 47 | B80: 1970 | C80: Load Management Controls Customer Premises | D80: 43749.12 | E80: 0 | F80: 0 | G80: 43749.12 | H80: =IFERROR(VLOOKUP(R80,'2.1.7 All Accounts'!$D:$M,$H$43,FALSE),0) -> 43749.12 | J80: -24697.80417 | K80: -14808.33917 | L80: 0 | M80: -39506.14333 | N80: 4242.976667 | R80: ='LDC Info'!$E$14 & B80 -> Festival Hydro Inc.1970
A81: 47 | B81: 1975 | C81: Load Management Controls Utility Premises | D81: 0 | E81: 0 | F81: 0 | G81: 0 | H81: =IFERROR(VLOOKUP(R81,'2.1.7 All Accounts'!$D:$M,$H$43,FALSE),0) -> 0 | J81: 0 | K81: 0 | L81: 0 | M81: 0 | N81: 0 | R81: ='LDC Info'!$E$14 & B81 -> Festival Hydro Inc.1975
A82: 47 | B82: 1980 | C82: System Supervisor Equipment | D82: 177377.01 | E82: 98648.92 | F82: 0 | G82: 276025.93 | H82: =IFERROR(VLOOKUP(R82,'2.1.7 All Accounts'!$D:$M,$H$43,FALSE),0) -> 276025.82 | J82: -12237.79792 | K82: -17613.19325 | L82: 0 | M82: -29850.99117 | N82: 246174.9388 | R82: ='LDC Info'!$E$14 & B82 -> Festival Hydro Inc.1980
A83: 47 | B83: 1985 | C83: Miscellaneous Fixed Assets | D83: 0 | E83: 0 | F83: 0 | G83: 0 | H83: =IFERROR(VLOOKUP(R83,'2.1.7 All Accounts'!$D:$M,$H$43,FALSE),0) -> 0 | J83: 0 | K83: 0 | L83: 0 | M83: 0 | N83: 0 | R83: ='LDC Info'!$E$14 & B83 -> Festival Hydro Inc.1985
A84: 47 | B84: 1990 | C84: Other Tangible Property | D84: 0 | E84: 0 | F84: 0 | G84: 0 | H84: =IFERROR(VLOOKUP(R84,'2.1.7 All Accounts'!$D:$M,$H$43,FALSE),0) -> 0 | J84: 0 | K84: 0 | L84: 0 | M84: 0 | N84: 0 | R84: ='LDC Info'!$E$14 & B84 -> Festival Hydro Inc.1990
A85: 47 | B85: 1995 | C85: Contributions & Grants | D85: -3499577.84 | E85: 0 | F85: 0 | G85: -3499577.84 | H85: =IFERROR(VLOOKUP(R85,'2.1.7 All Accounts'!$D:$M,$H$43,FALSE),0) -> -3499577.84 | J85: 99366.62837 | K85: 99366.62555 | L85: 0 | M85: 198733.2539 | N85: -3300844.586 | R85: ='LDC Info'!$E$14 & B85 -> Festival Hydro Inc.1995
A86: 47 | B86: 2440 | C86: Deferred Revenue5 | D86: 0 | E86: -333945 | F86: 0 | G86: -333945 | H86: =IFERROR(VLOOKUP(R86,'2.1.7 All Accounts'!$D:$M,$H$43,FALSE),0) -> -328053.5 | J86: 0 | K86: 5891.5 | L86: 0 | M86: 5891.5 | N86: -328053.5 | R86: ='LDC Info'!$E$14 & B86 -> Festival Hydro Inc.2440
B87: 2005 | C87: Property Under Finance Lease7 | D87: 0 | E87: 0 | F87: 0 | G87: 0 | H87: =IFERROR(VLOOKUP(R87,'2.1.7 All Accounts'!$D:$M,$H$43,FALSE),0) -> 0 | J87: 0 | K87: 0 | L87: 0 | M87: 0 | N87: 0 | R87: ='LDC Info'!$E$14 & B87 -> Festival Hydro Inc.2005
C88: Sub-Total | D88: =SUM(D47:D87) -> 55573235.21 | E88: =SUM(E47:E87) -> 2975496.28 | F88: =SUM(F47:F87) -> -1497792.77 | G88: =SUM(G47:G87) -> 57050938.72 | H88: =SUM(H47:H87) -> 61833827.71 | J88: =SUM(J47:J87) -> -2242611.985 | K88: =SUM(K47:K87) -> -2236014.26 | L88: =SUM(L47:L87) -> 69168.52 | M88: =SUM(M47:M87) -> -4409457.725 | N88: =SUM(N47:N87) -> 52641481
C89: Less Socialized Renewable Energy Generation Investments (input as negative) | G89: =D89+E89+F89 -> 0 | M89: =J89+K89+L89 -> 0 | N89: =G89+M89 -> 0
C90: Less Other Non Rate-Regulated Utility Assets (input as negative) | G90: =D90+E90+F90 -> 0 | M90: =J90+K90+L90 -> 0 | N90: =G90+M90 -> 0
C91: Total PP&E for Rate Base Purposes | D91: =SUM(D88:D90) -> 55573235.21 | E91: =SUM(E88:E90) -> 2975496.28 | F91: =SUM(F88:F90) -> -1497792.77 | G91: =SUM(G88:G90) -> 57050938.72 | J91: =SUM(J88:J90) -> -2242611.985 | K91: =SUM(K88:K90) -> -2236014.26 | L91: =SUM(L88:L90) -> 69168.52 | M91: =SUM(M88:M90) -> -4409457.725 | N91: =SUM(N88:N90) -> 52641481
C92: Construction Work In Progress | G92: =D92+E92+F92 -> 0 | H92: =IFERROR(VLOOKUP(R92,'2.1.7 All Accounts'!$D:$M,$H$43,FALSE),0) -> 0 | M92: =J92+K92+L92 -> 0 | N92: =G92+M92 -> 0
C93: Total PP&E | D93: =SUM(D91:D92) -> 55573235.21 | E93: =SUM(E91:E92) -> 2975496.28 | F93: -1497792.77 | G93: 57050938.72 | H93: 0 | I93: 0 | J93: -2242611.985 | K93: -2236014.26 | L93: 69168.52 | M93: -4409457.725 | N93: 52641481
C94: Depreciation Expense adj. from gain or loss on the retirement of assets (pool of like assets), if applicable6
C95: Total | K95: =K93+K94 -> -2236014.26
J97: Less: Fully Allocated Depreciation
A98: 10 | C98: Transportation | J98: Transportation | L98: =K72 -> -118545.4802
A99: 8 | C99: Stores Equipment | J99: Stores Equipment | L99: =K73 -> 0
A100: 8 | C100: Tools, Shop & Garage Equipment | J100: Tools, Shop & Garage Equipment | L100: =K74 -> -27868.34298
A101: 8 | C101: Communications Equipment | J101: Communications Equipment | L101: =K77 -> -211.55
A102: 47 | C102: Deferred Revenue | J102: Deferred Revenue | L102: =K86 -> 5891.5
J103: Net Depreciation | L103: =K95-L98-L99-L100-L101-L102 -> -2095280.386
E107: Accounting Standard | F107: MIFRS
E108: Year | F108: =RebaseYear+1 -> 2016 | H108: =IF(F108=2014,4,IF(F108=2015,5,IF(F108=2016,6,IF(F108=2017,7,IF(F108=2018,8,IF(F108=2019,9,IF(F108=2020,10))))))) -> 6
D110: Cost | K110: Accumulated Depreciation
A111: CCA Class 2 | B111: OEB Account 3 | C111: Description 3 | D111: Opening Balance 8 | E111: Additions 4 | F111: Disposals 6 | G111: Closing Balance | H111: RRR DATA | J111: Opening Balance 8 | K111: Additions | L111: Disposals 6 | M111: Closing Balance | N111: Net Book Value
B112: 1609 | C112: Capital Contributions Paid | D112: =G47 -> 966935.17 | E112: 0 | F112: 0 | G112: =D112+E112+F112 -> 966935.17 | H112: =IFERROR(VLOOKUP(R112,'2.1.7 All Accounts'!$D:$M,$H$108,FALSE),0) -> 966935 | J112: =M47 -> -101653.7257 | K112: -54473.00571 | L112: 0 | M112: =J112+K112+L112 -> -156126.7314 | N112: =G112+M112 -> 810808.4386 | R112: ='LDC Info'!$E$14 & B112 -> Festival Hydro Inc.1609
A113: 12 | B113: 1611 | C113: Computer Software (Formally known as Account 1925) | D113: 676728.82 | E113: 232428.62 | F113: -70110.32 | G113: =D113+E113+F113 -> 839047.12 | H113: =IFERROR(VLOOKUP(R113,'2.1.7 All Accounts'!$D:$M,$H$108,FALSE),0) -> 839047.12 | J113: -207657.3664 | K113: -153732.4561 | L113: 70110.32 | M113: =J113+K113+L113 -> -291279.5025 | N113: =G113+M113 -> 547767.6175 | R113: ='LDC Info'!$E$14 & B113 -> Festival Hydro Inc.1611
A114: CEC | B114: 1612 | C114: Land Rights (Formally known as Account 1906) | D114: 0 | E114: 0 | F114: 0 | G114: =D114+E114+F114 -> 0 | H114: =IFERROR(VLOOKUP(R114,'2.1.7 All Accounts'!$D:$M,$H$108,FALSE),0) -> 0 | J114: 0 | K114: 0 | L114: 0 | M114: =J114+K114+L114 -> 0 | N114: =G114+M114 -> 0 | R114: ='LDC Info'!$E$14 & B114 -> Festival Hydro Inc.1612
A115: N/A | B115: 1805 | C115: Land | D115: 1252202 | E115: 0 | F115: 0 | G115: =D115+E115+F115 -> 1252202 | H115: =IFERROR(VLOOKUP(R115,'2.1.7 All Accounts'!$D:$M,$H$108,FALSE),0) -> 1252201.65 | J115: 0 | K115: 0 | L115: 0 | M115: =J115+K115+L115 -> 0 | N115: =G115+M115 -> 1252202 | R115: ='LDC Info'!$E$14 & B115 -> Festival Hydro Inc.1805
A116: 47 | B116: 1808 | C116: Buildings | D116: 494571.15 | E116: 0 | F116: -49354.76 | G116: =D116+E116+F116 -> 445216.39 | H116: =IFERROR(VLOOKUP(R116,'2.1.7 All Accounts'!$D:$M,$H$108,FALSE),0) -> 445216.39 | J116: -81234.29 | K116: -14746.76579 | L116: 49356.18579 | M116: =J116+K116+L116 -> -46624.87 | N116: =G116+M116 -> 398591.52 | R116: ='LDC Info'!$E$14 & B116 -> Festival Hydro Inc.1808
A117: 13 | B117: 1810 | C117: Leasehold Improvements | D117: 0 | E117: 0 | F117: 0 | G117: 0 | H117: =IFERROR(VLOOKUP(R117,'2.1.7 All Accounts'!$D:$M,$H$108,FALSE),0) -> 0 | J117: 0 | K117: 0 | L117: 0 | M117: 0 | N117: 0 | R117: ='LDC Info'!$E$14 & B117 -> Festival Hydro Inc.1810
A118: 47 | B118: 1815 | C118: Transformer Station Equipment >50 kV | D118: 13935158 | E118: 0 | F118: 0 | G118: 13935158 | H118: =IFERROR(VLOOKUP(R118,'2.1.7 All Accounts'!$D:$M,$H$108,FALSE),0) -> 13935157.83 | J118: -667058.9343 | K118: -320188.2843 | L118: 26692 | M118: -960555.2187 | N118: 12974602.78 | R118: ='LDC Info'!$E$14 & B118 -> Festival Hydro Inc.1815
A119: 47 | B119: 1820 | C119: Distribution Station Equipment <50 kV | D119: 254798 | E119: 0 | F119: -28924 | G119: 225874 | H119: =IFERROR(VLOOKUP(R119,'2.1.7 All Accounts'!$D:$M,$H$108,FALSE),0) -> 225874.29 | J119: -55669.47437 | K119: -13373.30719 | L119: 28923.14 | M119: -40119.64156 | N119: 185754.3584 | R119: ='LDC Info'!$E$14 & B119 -> Festival Hydro Inc.1820
A120: 47 | B120: 1825 | C120: Storage Battery Equipment | D120: 0 | E120: 0 | F120: 0 | G120: 0 | H120: =IFERROR(VLOOKUP(R120,'2.1.7 All Accounts'!$D:$M,$H$108,FALSE),0) -> 0 | J120: 0 | K120: 0 | L120: 0 | M120: 0 | N120: 0 | R120: ='LDC Info'!$E$14 & B120 -> Festival Hydro Inc.1825
A121: 47 | B121: 1830 | C121: Poles, Towers & Fixtures | D121: 10845877.22 | E121: 411940.02 | F121: 0 | G121: 11257817.24 | H121: =IFERROR(VLOOKUP(R121,'2.1.7 All Accounts'!$D:$M,$H$108,FALSE),0) -> 11257817.24 | J121: -503223.02 | K121: -264194.42 | L121: 0 | M121: -767417.44 | N121: 10490399.8 | R121: ='LDC Info'!$E$14 & B121 -> Festival Hydro Inc.1830
A122: 47 | B122: 1835 | C122: Overhead Conductors & Devices | D122: 6785258.47 | E122: 280766.5 | F122: 0 | G122: 7066024.97 | H122: =IFERROR(VLOOKUP(R122,'2.1.7 All Accounts'!$D:$M,$H$108,FALSE),0) -> 7066024.55 | J122: -269114.13 | K122: -142890.6607 | L122: 0 | M122: -412004.7907 | N122: 6654020.179 | R122: ='LDC Info'!$E$14 & B122 -> Festival Hydro Inc.1835
A123: 47 | B123: 1840 | C123: Underground Conduit | D123: 4274775.6 | E123: 126385.27 | F123: 0 | G123: 4401160.87 | H123: =IFERROR(VLOOKUP(R123,'2.1.7 All Accounts'!$D:$M,$H$108,FALSE),0) -> 4401160.51 | J123: -192225.3721 | K123: -103792.9465 | L123: 0 | M123: -296018.3186 | N123: 4105142.551 | R123: ='LDC Info'!$E$14 & B123 -> Festival Hydro Inc.1840
A124: 47 | B124: 1845 | C124: Underground Conductors & Devices | D124: 6603367.75 | E124: 460748.52 | F124: 0 | G124: 7064116.27 | H124: =IFERROR(VLOOKUP(R124,'2.1.7 All Accounts'!$D:$M,$H$108,FALSE),0) -> 7064116.27 | J124: -427511.1347 | K124: -229187.9508 | L124: 0 | M124: -656699.0855 | N124: 6407417.184 | R124: ='LDC Info'!$E$14 & B124 -> Festival Hydro Inc.1845
A125: 47 | B125: 1850 | C125: Line Transformers | D125: 6088942.85 | E125: 309191.87 | F125: 0 | G125: 6398134.72 | H125: =IFERROR(VLOOKUP(R125,'2.1.7 All Accounts'!$D:$M,$H$108,FALSE),0) -> 6398134.72 | J125: -379525.97 | K125: -200831.6 | M125: -580357.57 | N125: 5817777.15 | R125: ='LDC Info'!$E$14 & B125 -> Festival Hydro Inc.1850
A126: 47 | B126: 1855 | C126: Services (Overhead & Underground) | D126: 2266090.12 | E126: 315975.29 | F126: 0 | G126: 2582065.41 | H126: =IFERROR(VLOOKUP(R126,'2.1.7 All Accounts'!$D:$M,$H$108,FALSE),0) -> 2582065.41 | J126: -138410.59 | K126: -77170.62 | M126: -215581.21 | N126: 2366484.2 | R126: ='LDC Info'!$E$14 & B126 -> Festival Hydro Inc.1855
A127: 47 | B127: 1860 | C127: Meters | D127: 985525.86 | E127: 25019.01 | F127: 0 | G127: 1010544.87 | H127: =IFERROR(VLOOKUP(R127,'2.1.7 All Accounts'!$D:$M,$H$108,FALSE),0) -> 3867444.53 | J127: -184397.7283 | K127: -69753.64831 | L127: 0 | M127: -254151.3766 | N127: 756393.4934 | R127: ='LDC Info'!$E$14 & B127 -> Festival Hydro Inc.1860
A128: 47 | B128: 1860 | C128: Meters (Smart Meters) | D128: 2784034.67 | E128: 79633.99 | F128: -6769 | G128: 2856899.66 | H128: =IFERROR(VLOOKUP(R128,'2.1.7 All Accounts'!$D:$M,$H$108,FALSE),0) -> 3867444.53 | J128: -822511.6017 | K128: -420224.45 | L128: 3555.42 | M128: -1239180.632 | N128: 1617719.028 | R128: ='LDC Info'!$E$14 & B128 -> Festival Hydro Inc.1860
A129: N/A | B129: 1905 | C129: Land | D129: 0 | E129: 0 | F129: 0 | G129: 0 | H129: =IFERROR(VLOOKUP(R129,'2.1.7 All Accounts'!$D:$M,$H$108,FALSE),0) -> 0 | J129: 0 | K129: 0 | L129: 0 | M129: 0 | N129: 0 | R129: ='LDC Info'!$E$14 & B129 -> Festival Hydro Inc.1905
A130: 47 | B130: 1908 | C130: Buildings & Fixtures | D130: 607215.93 | E130: 146537.99 | F130: -10247.14 | G130: 743506.78 | H130: =IFERROR(VLOOKUP(R130,'2.1.7 All Accounts'!$D:$M,$H$108,FALSE),0) -> 743506.78 | J130: -70254.9085 | K130: -41099.40214 | L130: 10247.14 | M130: -101107.1706 | N130: 642399.6094 | R130: ='LDC Info'!$E$14 & B130 -> Festival Hydro Inc.1908
A131: 13 | B131: 1910 | C131: Leasehold Improvements | D131: 0 | E131: 0 | F131: 0 | G131: 0 | H131: =IFERROR(VLOOKUP(R131,'2.1.7 All Accounts'!$D:$M,$H$108,FALSE),0) -> 0 | J131: 0 | K131: 0 | L131: 0 | M131: 0 | N131: 0 | R131: ='LDC Info'!$E$14 & B131 -> Festival Hydro Inc.1910
A132: 8 | B132: 1915 | C132: Office Furniture & Equipment (10 years) | D132: 177414.35 | E132: 6485 | F132: -554.22 | G132: 183345.13 | H132: =IFERROR(VLOOKUP(R132,'2.1.7 All Accounts'!$D:$M,$H$108,FALSE),0) -> 183344.82 | J132: -23595.32417 | K132: -20003.01333 | L132: 554.22 | M132: -43044.1175 | N132: 140301.0125 | R132: ='LDC Info'!$E$14 & B132 -> Festival Hydro Inc.1915
A133: 8 | B133: 1915 | C133: Office Furniture & Equipment (5 years) | D133: 0 | E133: 0 | F133: 0 | G133: 0 | H133: =IFERROR(VLOOKUP(R133,'2.1.7 All Accounts'!$D:$M,$H$108,FALSE),0) -> 183344.82 | J133: 0 | K133: 0 | L133: 0 | M133: 0 | N133: 0 | R133: ='LDC Info'!$E$14 & B133 -> Festival Hydro Inc.1915
A134: 10 | B134: 1920 | C134: Computer Equipment - Hardware | D134: 0 | E134: 0 | F134: 0 | G134: 0 | H134: =IFERROR(VLOOKUP(R134,'2.1.7 All Accounts'!$D:$M,$H$108,FALSE),0) -> 478656.83 | J134: 0 | K134: 0 | L134: 0 | M134: 0 | N134: 0 | R134: ='LDC Info'!$E$14 & B134 -> Festival Hydro Inc.1920
A135: 45 | B135: 1920 | C135: Computer Equip.-Hardware(Post Mar. 22/04) | D135: 0 | E135: 0 | F135: 0 | G135: 0 | H135: =IFERROR(VLOOKUP(R135,'2.1.7 All Accounts'!$D:$M,$H$108,FALSE),0) -> 478656.83 | J135: 0 | K135: 0 | L135: 0 | M135: 0 | N135: 0 | R135: ='LDC Info'!$E$14 & B135 -> Festival Hydro Inc.1920
A136: 50 | B136: 1920 | C136: Computer Equip.-Hardware(Post Mar. 19/07) | D136: 413077.43 | E136: 116807.37 | F136: -51227.43 | G136: 478657.37 | H136: =IFERROR(VLOOKUP(R136,'2.1.7 All Accounts'!$D:$M,$H$108,FALSE),0) -> 478656.83 | J136: -174142.1073 | K136: -99960.82271 | L136: 51227.43 | M136: -222875.5 | N136: 255781.87 | R136: ='LDC Info'!$E$14 & B136 -> Festival Hydro Inc.1920
A137: 10 | B137: 1930 | C137: Transportation Equipment | D137: 957521.26 | E137: 30425.94 | F137: 0 | G137: 987947.2 | H137: =IFERROR(VLOOKUP(R137,'2.1.7 All Accounts'!$D:$M,$H$108,FALSE),0) -> 987947.47 | J137: -206693.8837 | K137: -121851.15 | L137: 1538.18 | M137: -327006.8537 | N137: 660940.3463 | R137: ='LDC Info'!$E$14 & B137 -> Festival Hydro Inc.1930
A138: 8 | B138: 1935 | C138: Stores Equipment | D138: 0 | E138: 0 | F138: 0 | G138: 0 | H138: =IFERROR(VLOOKUP(R138,'2.1.7 All Accounts'!$D:$M,$H$108,FALSE),0) -> 0 | J138: 0 | K138: 0 | L138: 0 | M138: 0 | N138: 0 | R138: ='LDC Info'!$E$14 & B138 -> Festival Hydro Inc.1935
A139: 8 | B139: 1940 | C139: Tools, Shop & Garage Equipment | D139: 175349.81 | E139: 22343.92 | F139: -41155.72 | G139: 156538.01 | H139: =IFERROR(VLOOKUP(R139,'2.1.7 All Accounts'!$D:$M,$H$108,FALSE),0) -> 156538.01 | J139: -57537.37 | K139: -27376.81619 | L139: 41155.72 | M139: -43758.46619 | N139: 112779.5438 | R139: ='LDC Info'!$E$14 & B139 -> Festival Hydro Inc.1940
A140: 8 | B140: 1945 | C140: Measurement & Testing Equipment | D140: 9659 | E140: 0 | F140: -9659 | G140: 0 | H140: =IFERROR(VLOOKUP(R140,'2.1.7 All Accounts'!$D:$M,$H$108,FALSE),0) -> 0 | J140: -6439.32 | K140: -3219.655 | L140: 9658.97 | M140: -0.005000000001 | N140: -0.005000000001 | R140: ='LDC Info'!$E$14 & B140 -> Festival Hydro Inc.1945
A141: 8 | B141: 1950 | C141: Power Operated Equipment | D141: 0 | E141: 0 | F141: 0 | G141: 0 | H141: =IFERROR(VLOOKUP(R141,'2.1.7 All Accounts'!$D:$M,$H$108,FALSE),0) -> 0 | J141: 0 | K141: 0 | L141: 0 | M141: 0 | N141: 0 | R141: ='LDC Info'!$E$14 & B141 -> Festival Hydro Inc.1950
A142: 8 | B142: 1955 | C142: Communications Equipment | D142: 3867.85 | F142: -366.98 | G142: 3500.87 | H142: =IFERROR(VLOOKUP(R142,'2.1.7 All Accounts'!$D:$M,$H$108,FALSE),0) -> 3501.11 | J142: 26175.875 | K142: -386.29 | L142: -26325.02 | M142: -535.435 | N142: 2965.435 | R142: ='LDC Info'!$E$14 & B142 -> Festival Hydro Inc.1955
A143: 8 | B143: 1955 | C143: Communication Equipment (Smart Meters) | D143: 0 | E143: 0 | F143: 0 | G143: 0 | H143: =IFERROR(VLOOKUP(R143,'2.1.7 All Accounts'!$D:$M,$H$108,FALSE),0) -> 3501.11 | J143: 0 | K143: 0 | L143: 0 | M143: 0 | N143: 0 | R143: ='LDC Info'!$E$14 & B143 -> Festival Hydro Inc.1955
A144: 8 | B144: 1960 | C144: Miscellaneous Equipment | D144: 6315.2 | E144: 0 | F144: 0 | G144: 6315.2 | H144: =IFERROR(VLOOKUP(R144,'2.1.7 All Accounts'!$D:$M,$H$108,FALSE),0) -> 6315.2 | J144: -2044.968 | K144: -1102.044 | L144: 0 | M144: -3147.012 | N144: 3168.188 | R144: ='LDC Info'!$E$14 & B144 -> Festival Hydro Inc.1960
A145: 47 | B145: 1970 | C145: Load Management Controls Customer Premises | D145: 43749.12 | E145: 0 | F145: -43749.12 | G145: 0 | H145: =IFERROR(VLOOKUP(R145,'2.1.7 All Accounts'!$D:$M,$H$108,FALSE),0) -> 0 | J145: -39506.14333 | K145: -4243.4725 | L145: 43749.36 | M145: -0.2558333333 | N145: -0.2558333333 | R145: ='LDC Info'!$E$14 & B145 -> Festival Hydro Inc.1970
A146: 47 | B146: 1975 | C146: Load Management Controls Utility Premises | D146: 0 | E146: 0 | F146: 0 | G146: 0 | H146: =IFERROR(VLOOKUP(R146,'2.1.7 All Accounts'!$D:$M,$H$108,FALSE),0) -> 0 | J146: 0 | K146: 0 | L146: 0 | M146: 0 | N146: 0 | R146: ='LDC Info'!$E$14 & B146 -> Festival Hydro Inc.1975
A147: 47 | B147: 1980 | C147: System Supervisor Equipment | D147: 276025.93 | E147: 38212.93 | F147: 0 | G147: 314238.86 | H147: =IFERROR(VLOOKUP(R147,'2.1.7 All Accounts'!$D:$M,$H$108,FALSE),0) -> 314238.75 | J147: -29850.99117 | K147: -22175.14492 | L147: 0 | M147: -52026.13608 | N147: 262212.7239 | R147: ='LDC Info'!$E$14 & B147 -> Festival Hydro Inc.1980
A148: 47 | B148: 1985 | C148: Miscellaneous Fixed Assets | D148: 0 | E148: 0 | F148: 0 | G148: 0 | H148: =IFERROR(VLOOKUP(R148,'2.1.7 All Accounts'!$D:$M,$H$108,FALSE),0) -> 0 | J148: 0 | K148: 0 | L148: 0 | M148: 0 | N148: 0 | R148: ='LDC Info'!$E$14 & B148 -> Festival Hydro Inc.1985
A149: 47 | B149: 1990 | C149: Other Tangible Property | D149: 0 | E149: 0 | F149: 0 | G149: 0 | H149: =IFERROR(VLOOKUP(R149,'2.1.7 All Accounts'!$D:$M,$H$108,FALSE),0) -> 0 | J149: 0 | K149: 0 | L149: 0 | M149: 0 | N149: 0 | R149: ='LDC Info'!$E$14 & B149 -> Festival Hydro Inc.1990
A150: 47 | B150: 1995 | C150: Contributions & Grants | D150: -3499577.84 | E150: 0 | F150: 0 | G150: -3499577.84 | H150: =IFERROR(VLOOKUP(R150,'2.1.7 All Accounts'!$D:$M,$H$108,FALSE),0) -> -3499577.84 | J150: 198733.2539 | K150: 99366.62555 | L150: 0 | M150: 298099.8795 | N150: -3201477.961 | R150: ='LDC Info'!$E$14 & B150 -> Festival Hydro Inc.1995
A151: 47 | B151: 2440 | C151: Deferred Revenue5 | D151: -333945 | E151: -206584.89 | F151: 0 | G151: -540529.89 | H151: =IFERROR(VLOOKUP(R151,'2.1.7 All Accounts'!$D:$M,$H$108,FALSE),0) -> -523847.2 | J151: 5891.5 | K151: 10791.19 | L151: 0 | M151: 16682.69 | N151: -523847.2 | R151: ='LDC Info'!$E$14 & B151 -> Festival Hydro Inc.2440
B152: 2005 | C152: Property Under Finance Lease7 | D152: 0 | E152: 0 | F152: 0 | G152: 0 | H152: =IFERROR(VLOOKUP(R152,'2.1.7 All Accounts'!$D:$M,$H$108,FALSE),0) -> 0 | J152: 0 | K152: 0 | L152: 0 | M152: 0 | N152: 0 | R152: ='LDC Info'!$E$14 & B152 -> Festival Hydro Inc.2005
C153: Sub-Total | D153: =SUM(D112:D152) -> 57050938.72 | E153: =SUM(E112:E152) -> 2396317.35 | F153: =SUM(F112:F152) -> -312117.69 | G153: =SUM(G112:G152) -> 59135138.38 | H153: =SUM(H112:H152) -> 64163423.56 | J153: =SUM(J112:J152) -> -4409457.725 | K153: =SUM(K112:K152) -> -2295820.111 | L153: =SUM(L112:L152) -> 310443.0658 | M153: =SUM(M112:M152) -> -6394834.77 | N153: =SUM(N112:N152) -> 52740303.61
C154: Less Socialized Renewable Energy Generation Investments (input as negative) | D154: =G89 -> 0 | G154: =D154+E154+F154 -> 0 | J154: =M89 -> 0 | M154: =J154+K154+L154 -> 0 | N154: =G154+M154 -> 0
C155: Less Other Non Rate-Regulated Utility Assets (input as negative) | D155: =G90 -> 0 | G155: =D155+E155+F155 -> 0 | J155: =M90 -> 0 | M155: =J155+K155+L155 -> 0 | N155: =G155+M155 -> 0
C156: Total PP&E for Rate Base Purposes | D156: =SUM(D153:D155) -> 57050938.72 | E156: =SUM(E153:E155) -> 2396317.35 | F156: =SUM(F153:F155) -> -312117.69 | G156: =SUM(G153:G155) -> 59135138.38 | J156: =SUM(J153:J155) -> -4409457.725 | K156: =SUM(K153:K155) -> -2295820.111 | L156: =SUM(L153:L155) -> 310443.0658 | M156: =SUM(M153:M155) -> -6394834.77 | N156: =SUM(N153:N155) -> 52740303.61
C157: Construction Work In Progress | G157: =D157+E157+F157 -> 0 | H157: =IFERROR(VLOOKUP(R157,'2.1.7 All Accounts'!$D:$M,$H$43,FALSE),0) -> 0 | M157: =J157+K157+L157 -> 0 | N157: =G157+M157 -> 0
C158: Total PP&E | D158: =SUM(D156:D157) -> 57050938.72 | E158: =SUM(E156:E157) -> 2396317.35 | F158: =SUM(F156:F157) -> -312117.69 | G158: =SUM(G156:G157) -> 59135138.38 | H158: =SUM(H156:H157) -> 0 | I158: =SUM(I156:I157) -> 0 | J158: =SUM(J156:J157) -> -4409457.725 | K158: =SUM(K156:K157) -> -2295820.111 | L158: =SUM(L156:L157) -> 310443.0658 | M158: =SUM(M156:M157) -> -6394834.77 | N158: =SUM(N156:N157) -> 52740303.61
C159: Depreciation Expense adj. from gain or loss on the retirement of assets (pool of like assets), if applicable6
C160: Total | K160: =K158+K159 -> -2295820.111
J162: Less: Fully Allocated Depreciation
A163: 10 | C163: Transportation | J163: Transportation | L163: =K137 -> -121851.15
A164: 8 | C164: Stores Equipment | J164: Stores Equipment | L164: =K138 -> 0
A165: 8 | C165: Tools, Shop & Garage Equipment | J165: Tools, Shop & Garage Equipment | L165: =K139 -> -27376.81619
A166: 8 | C166: Communications Equipment | J166: Communications Equipment | L166: =K142 -> -386.29
A167: 47 | C167: Deferred Revenue | J167: Deferred Revenue | L167: =K151 -> 10791.19
J168: Net Depreciation | L168: =K160-L163-L164-L165-L166-L167 -> -2156997.045
E170: Accounting Standard | F170: MIFRS
E171: Year | F171: =RebaseYear+2 -> 2017 | H171: =IF(F171=2014,4,IF(F171=2015,5,IF(F171=2016,6,IF(F171=2017,7,IF(F171=2018,8,IF(F171=2019,9,IF(F171=2020,10))))))) -> 7
D173: Cost | K173: Accumulated Depreciation
A174: CCA Class 2 | B174: OEB Account 3 | C174: Description 3 | D174: Opening Balance 8 | E174: Additions 4 | F174: Disposals 6 | G174: Closing Balance | H174: RRR DATA | J174: Opening Balance 8 | K174: Additions | L174: Disposals 6 | M174: Closing Balance | N174: Net Book Value
B175: 1609 | C175: Capital Contributions Paid | D175: =G112 -> 966935.17 | E175: 0 | F175: 0 | G175: =D175+E175+F175 -> 966935.17 | H175: =IFERROR(VLOOKUP(R175,'2.1.7 All Accounts'!$D:$M,$H$171,FALSE),0) -> 966935 | J175: =M112 -> -156126.7314 | K175: -54473.00571 | L175: 0 | M175: =J175+K175+L175 -> -210599.7371 | N175: =G175+M175 -> 756335.4329 | R175: ='LDC Info'!$E$14 & B175 -> Festival Hydro Inc.1609
A176: 12 | B176: 1611 | C176: Computer Software (Formally known as Account 1925) | D176: 839047.12 | E176: 282383.14 | F176: -34096.94944 | G176: =D176+E176+F176 -> 1087333.311 | H176: =IFERROR(VLOOKUP(R176,'2.1.7 All Accounts'!$D:$M,$H$171,FALSE),0) -> 1087333.31 | J176: -291279.5025 | K176: -195941.4488 | L176: 34096.94944 | M176: =J176+K176+L176 -> -453124.0019 | N176: =G176+M176 -> 634209.3087 | R176: ='LDC Info'!$E$14 & B176 -> Festival Hydro Inc.1611
A177: CEC | B177: 1612 | C177: Land Rights (Formally known as Account 1906) | D177: 0 | E177: 0 | F177: 0 | G177: =D177+E177+F177 -> 0 | H177: =IFERROR(VLOOKUP(R177,'2.1.7 All Accounts'!$D:$M,$H$171,FALSE),0) -> 0 | J177: 0 | K177: 0 | L177: 0 | M177: =J177+K177+L177 -> 0 | N177: =G177+M177 -> 0 | R177: ='LDC Info'!$E$14 & B177 -> Festival Hydro Inc.1612
A178: N/A | B178: 1805 | C178: Land | D178: 1252202 | E178: 0 | F178: 0 | G178: =D178+E178+F178 -> 1252202 | H178: =IFERROR(VLOOKUP(R178,'2.1.7 All Accounts'!$D:$M,$H$171,FALSE),0) -> 1252201.65 | J178: 0 | K178: 0 | L178: 0 | M178: =J178+K178+L178 -> 0 | N178: =G178+M178 -> 1252202 | R178: ='LDC Info'!$E$14 & B178 -> Festival Hydro Inc.1805
A179: 47 | B179: 1808 | C179: Buildings | D179: 445216.39 | E179: 0 | F179: -5036.92 | G179: =D179+E179+F179 -> 440179.47 | H179: =IFERROR(VLOOKUP(R179,'2.1.7 All Accounts'!$D:$M,$H$171,FALSE),0) -> 440179.47 | J179: -46624.87 | K179: -14745.34129 | L179: 5036.92 | M179: =J179+K179+L179 -> -56333.29129 | N179: =G179+M179 -> 383846.1787 | R179: ='LDC Info'!$E$14 & B179 -> Festival Hydro Inc.1808
A180: 13 | B180: 1810 | C180: Leasehold Improvements | D180: 0 | E180: 0 | F180: 0 | G180: 0 | H180: =IFERROR(VLOOKUP(R180,'2.1.7 All Accounts'!$D:$M,$H$171,FALSE),0) -> 0 | J180: 0 | K180: 0 | L180: 0 | M180: 0 | N180: 0 | R180: ='LDC Info'!$E$14 & B180 -> Festival Hydro Inc.1810
A181: 47 | B181: 1815 | C181: Transformer Station Equipment >50 kV | D181: 13935158 | E181: 0 | F181: 0 | G181: 13935158 | H181: =IFERROR(VLOOKUP(R181,'2.1.7 All Accounts'!$D:$M,$H$171,FALSE),0) -> 13935157.83 | J181: -960555.2187 | K181: -320188.2843 | L181: 0 | M181: -1280743.503 | N181: 12654414.5 | R181: ='LDC Info'!$E$14 & B181 -> Festival Hydro Inc.1815
A182: 47 | B182: 1820 | C182: Distribution Station Equipment <50 kV | D182: 225874 | E182: 34695 | F182: 0 | G182: 260569 | H182: =IFERROR(VLOOKUP(R182,'2.1.7 All Accounts'!$D:$M,$H$171,FALSE),0) -> 260569.21 | J182: -40119.64156 | K182: -13806.99369 | L182: 0 | M182: -53926.63525 | N182: 206642.3648 | R182: ='LDC Info'!$E$14 & B182 -> Festival Hydro Inc.1820
A183: 47 | B183: 1825 | C183: Storage Battery Equipment | D183: 0 | E183: 0 | F183: 0 | G183: 0 | H183: =IFERROR(VLOOKUP(R183,'2.1.7 All Accounts'!$D:$M,$H$171,FALSE),0) -> 0 | J183: 0 | K183: 0 | L183: 0 | M183: 0 | N183: 0 | R183: ='LDC Info'!$E$14 & B183 -> Festival Hydro Inc.1825
A184: 47 | B184: 1830 | C184: Poles, Towers & Fixtures | D184: 11257817.24 | E184: 461590.19 | F184: 0 | G184: 11719407.43 | H184: =IFERROR(VLOOKUP(R184,'2.1.7 All Accounts'!$D:$M,$H$171,FALSE),0) -> 11719407.43 | J184: -767417.44 | K184: -272465.0053 | L184: 0 | M184: -1039882.445 | N184: 10679524.98 | R184: ='LDC Info'!$E$14 & B184 -> Festival Hydro Inc.1830
A185: 47 | B185: 1835 | C185: Overhead Conductors & Devices | D185: 7066024.97 | E185: 365637.33 | F185: 0 | G185: 7431662.3 | H185: =IFERROR(VLOOKUP(R185,'2.1.7 All Accounts'!$D:$M,$H$171,FALSE),0) -> 7431662.3 | J185: -412004.7907 | K185: -148681.7883 | L185: 0 | M185: -560686.5791 | N185: 6870975.721 | R185: ='LDC Info'!$E$14 & B185 -> Festival Hydro Inc.1835
A186: 47 | B186: 1840 | C186: Underground Conduit | D186: 4401160.87 | E186: 108219.09 | F186: 0 | G186: 4509379.96 | H186: =IFERROR(VLOOKUP(R186,'2.1.7 All Accounts'!$D:$M,$H$171,FALSE),0) -> 4509379.6 | J186: -296018.3186 | K186: -106031.7146 | L186: 0 | M186: -402050.0332 | N186: 4107329.927 | R186: ='LDC Info'!$E$14 & B186 -> Festival Hydro Inc.1840
A187: 47 | B187: 1845 | C187: Underground Conductors & Devices | D187: 7064116.27 | E187: 431329.89 | F187: 0 | G187: 7495446.16 | H187: =IFERROR(VLOOKUP(R187,'2.1.7 All Accounts'!$D:$M,$H$171,FALSE),0) -> 7495446.16 | J187: -656699.0855 | K187: -241549.9606 | L187: 0 | M187: -898249.0461 | N187: 6597197.114 | R187: ='LDC Info'!$E$14 & B187 -> Festival Hydro Inc.1845
A188: 47 | B188: 1850 | C188: Line Transformers | D188: 6398134.72 | E188: 519430.26 | F188: 0 | G188: 6917564.98 | H188: =IFERROR(VLOOKUP(R188,'2.1.7 All Accounts'!$D:$M,$H$171,FALSE),0) -> 6917564.98 | J188: -580357.57 | K188: -211189.3671 | L188: 0 | M188: -791546.9371 | N188: 6126018.043 | R188: ='LDC Info'!$E$14 & B188 -> Festival Hydro Inc.1850
A189: 47 | B189: 1855 | C189: Services (Overhead & Underground) | D189: 2582065.41 | E189: 336699.45 | F189: 0 | G189: 2918764.86 | H189: =IFERROR(VLOOKUP(R189,'2.1.7 All Accounts'!$D:$M,$H$171,FALSE),0) -> 2918764.86 | J189: -215581.21 | K189: -84656.49725 | L189: 0 | M189: -300237.7073 | N189: 2618527.153 | R189: ='LDC Info'!$E$14 & B189 -> Festival Hydro Inc.1855
A190: 47 | B190: 1860 | C190: Meters | D190: 1010544.87 | E190: 79835.44 | F190: 0 | G190: 1090380.31 | H190: =IFERROR(VLOOKUP(R190,'2.1.7 All Accounts'!$D:$M,$H$171,FALSE),0) -> 3975268.6 | J190: -254151.3766 | K190: -72757.83593 | L190: 0 | M190: -326909.2125 | N190: 763471.0975 | R190: ='LDC Info'!$E$14 & B190 -> Festival Hydro Inc.1860
A191: 47 | B191: 1860 | C191: Meters (Smart Meters) | D191: 2856899.66 | E191: 27988.63 | F191: 0 | G191: 2884888.29 | H191: =IFERROR(VLOOKUP(R191,'2.1.7 All Accounts'!$D:$M,$H$171,FALSE),0) -> 3975268.6 | J191: -1239180.632 | K191: -425267.1289 | L191: 0 | M191: -1664447.761 | N191: 1220440.529 | R191: ='LDC Info'!$E$14 & B191 -> Festival Hydro Inc.1860
A192: N/A | B192: 1905 | C192: Land | D192: 0 | E192: 0 | F192: 0 | G192: 0 | H192: =IFERROR(VLOOKUP(R192,'2.1.7 All Accounts'!$D:$M,$H$171,FALSE),0) -> 0 | J192: 0 | K192: 0 | L192: 0 | M192: 0 | N192: 0 | R192: ='LDC Info'!$E$14 & B192 -> Festival Hydro Inc.1905
A193: 47 | B193: 1908 | C193: Buildings & Fixtures | D193: 743506.78 | E193: 126216.05 | F193: -11442 | G193: 858280.83 | H193: =IFERROR(VLOOKUP(R193,'2.1.7 All Accounts'!$D:$M,$H$171,FALSE),0) -> 858280.83 | J193: -101107.1706 | K193: -47532.41531 | L193: 11442 | M193: -137197.5859 | N193: 721083.2441 | R193: ='LDC Info'!$E$14 & B193 -> Festival Hydro Inc.1908
A194: 13 | B194: 1910 | C194: Leasehold Improvements | D194: 0 | E194: 0 | F194: 0 | G194: 0 | H194: =IFERROR(VLOOKUP(R194,'2.1.7 All Accounts'!$D:$M,$H$171,FALSE),0) -> 0 | J194: 0 | K194: 0 | L194: 0 | M194: 0 | N194: 0 | R194: ='LDC Info'!$E$14 & B194 -> Festival Hydro Inc.1910
A195: 8 | B195: 1915 | C195: Office Furniture & Equipment (10 years) | D195: 183345.13 | E195: 9961.69 | F195: 0 | G195: 193306.82 | H195: =IFERROR(VLOOKUP(R195,'2.1.7 All Accounts'!$D:$M,$H$171,FALSE),0) -> 193306.51 | J195: -43044.1175 | K195: -20825.34783 | L195: 0 | M195: -63869.46533 | N195: 129437.3547 | R195: ='LDC Info'!$E$14 & B195 -> Festival Hydro Inc.1915
A196: 8 | B196: 1915 | C196: Office Furniture & Equipment (5 years) | D196: 0 | E196: 0 | F196: 0 | G196: 0 | H196: =IFERROR(VLOOKUP(R196,'2.1.7 All Accounts'!$D:$M,$H$171,FALSE),0) -> 193306.51 | J196: 0 | K196: 0 | L196: 0 | M196: 0 | N196: 0 | R196: ='LDC Info'!$E$14 & B196 -> Festival Hydro Inc.1915
A197: 10 | B197: 1920 | C197: Computer Equipment - Hardware | D197: 0 | E197: 0 | F197: 0 | G197: 0 | H197: =IFERROR(VLOOKUP(R197,'2.1.7 All Accounts'!$D:$M,$H$171,FALSE),0) -> 543167.48 | J197: 0 | K197: 0 | L197: 0 | M197: 0 | N197: 0 | R197: ='LDC Info'!$E$14 & B197 -> Festival Hydro Inc.1920
A198: 45 | B198: 1920 | C198: Computer Equip.-Hardware(Post Mar. 22/04) | D198: 0 | E198: 0 | F198: 0 | G198: 0 | H198: =IFERROR(VLOOKUP(R198,'2.1.7 All Accounts'!$D:$M,$H$171,FALSE),0) -> 543167.48 | J198: 0 | K198: 0 | L198: 0 | M198: 0 | N198: 0 | R198: ='LDC Info'!$E$14 & B198 -> Festival Hydro Inc.1920
A199: 50 | B199: 1920 | C199: Computer Equip.-Hardware(Post Mar. 19/07) | D199: 478657.37 | E199: 93309.125 | F199: -28799.015 | G199: 543167.48 | H199: =IFERROR(VLOOKUP(R199,'2.1.7 All Accounts'!$D:$M,$H$171,FALSE),0) -> 543167.48 | J199: -222875.5 | K199: -107631.704 | L199: 28799.015 | M199: -301708.189 | N199: 241459.291 | R199: ='LDC Info'!$E$14 & B199 -> Festival Hydro Inc.1920
A200: 10 | B200: 1930 | C200: Transportation Equipment | D200: 987947.2 | E200: 7389.79 | F200: 0 | G200: 995336.99 | H200: =IFERROR(VLOOKUP(R200,'2.1.7 All Accounts'!$D:$M,$H$171,FALSE),0) -> 995337.26 | J200: -327006.8537 | K200: -121024.0487 | L200: 0 | M200: -448030.9024 | N200: 547306.0876 | R200: ='LDC Info'!$E$14 & B200 -> Festival Hydro Inc.1930
A201: 8 | B201: 1935 | C201: Stores Equipment | D201: 0 | E201: 0 | F201: 0 | G201: 0 | H201: =IFERROR(VLOOKUP(R201,'2.1.7 All Accounts'!$D:$M,$H$171,FALSE),0) -> 0 | J201: 0 | K201: 0 | L201: 0 | M201: 0 | N201: 0 | R201: ='LDC Info'!$E$14 & B201 -> Festival Hydro Inc.1935
A202: 8 | B202: 1940 | C202: Tools, Shop & Garage Equipment | D202: 156538.01 | E202: 29482.01 | F202: -22196.688 | G202: 163823.332 | H202: =IFERROR(VLOOKUP(R202,'2.1.7 All Accounts'!$D:$M,$H$171,FALSE),0) -> 163823.33 | J202: -43758.46619 | K202: -26552.39269 | L202: 22196.688 | M202: -48114.17088 | N202: 115709.1611 | R202: ='LDC Info'!$E$14 & B202 -> Festival Hydro Inc.1940
A203: 8 | B203: 1945 | C203: Measurement & Testing Equipment | D203: 0 | E203: 0 | F203: 0 | G203: 0 | H203: =IFERROR(VLOOKUP(R203,'2.1.7 All Accounts'!$D:$M,$H$171,FALSE),0) -> 0 | J203: -0.005000000001 | K203: 0 | L203: 0 | M203: -0.005000000001 | N203: -0.005000000001 | R203: ='LDC Info'!$E$14 & B203 -> Festival Hydro Inc.1945
A204: 8 | B204: 1950 | C204: Power Operated Equipment | D204: 0 | E204: 0 | F204: 0 | G204: 0 | H204: =IFERROR(VLOOKUP(R204,'2.1.7 All Accounts'!$D:$M,$H$171,FALSE),0) -> 0 | J204: 0 | K204: 0 | L204: 0 | M204: 0 | N204: 0 | R204: ='LDC Info'!$E$14 & B204 -> Festival Hydro Inc.1950
A205: 8 | B205: 1955 | C205: Communications Equipment | D205: 3500.87 | E205: 0 | F205: 0 | G205: 3500.87 | H205: =IFERROR(VLOOKUP(R205,'2.1.7 All Accounts'!$D:$M,$H$171,FALSE),0) -> 3501.11 | J205: -535.435 | K205: -350.09 | L205: 0 | M205: -885.525 | N205: 2615.345 | R205: ='LDC Info'!$E$14 & B205 -> Festival Hydro Inc.1955
A206: 8 | B206: 1955 | C206: Communication Equipment (Smart Meters) | D206: 0 | E206: 0 | F206: 0 | G206: 0 | H206: =IFERROR(VLOOKUP(R206,'2.1.7 All Accounts'!$D:$M,$H$171,FALSE),0) -> 3501.11 | J206: 0 | K206: 0 | L206: 0 | M206: 0 | N206: 0 | R206: ='LDC Info'!$E$14 & B206 -> Festival Hydro Inc.1955
A207: 8 | B207: 1960 | C207: Miscellaneous Equipment | D207: 6315.2 | E207: 0 | F207: -3136.976 | G207: 3178.224 | H207: =IFERROR(VLOOKUP(R207,'2.1.7 All Accounts'!$D:$M,$H$171,FALSE),0) -> 3178.22 | J207: -3147.012 | K207: -1102.044 | L207: 3136.976 | M207: -1112.08 | N207: 2066.144 | R207: ='LDC Info'!$E$14 & B207 -> Festival Hydro Inc.1960
A208: 47 | B208: 1970 | C208: Load Management Controls Customer Premises | D208: 0 | E208: 0 | F208: 0 | G208: 0 | H208: =IFERROR(VLOOKUP(R208,'2.1.7 All Accounts'!$D:$M,$H$171,FALSE),0) -> 0 | J208: -0.2558333333 | K208: 0 | L208: 0 | M208: -0.2558333333 | N208: -0.2558333333 | R208: ='LDC Info'!$E$14 & B208 -> Festival Hydro Inc.1970
A209: 47 | B209: 1975 | C209: Load Management Controls Utility Premises | D209: 0 | E209: 0 | F209: 0 | G209: 0 | H209: =IFERROR(VLOOKUP(R209,'2.1.7 All Accounts'!$D:$M,$H$171,FALSE),0) -> 0 | J209: 0 | K209: 0 | L209: 0 | M209: 0 | N209: 0 | R209: ='LDC Info'!$E$14 & B209 -> Festival Hydro Inc.1975
A210: 47 | B210: 1980 | C210: System Supervisor Equipment | D210: 314238.86 | E210: 41587.8 | F210: 0 | G210: 355826.66 | H210: =IFERROR(VLOOKUP(R210,'2.1.7 All Accounts'!$D:$M,$H$171,FALSE),0) -> 355826.55 | J210: -52026.13608 | K210: -24829.34425 | L210: 0 | M210: -76855.48033 | N210: 278971.1797 | R210: ='LDC Info'!$E$14 & B210 -> Festival Hydro Inc.1980
A211: 47 | B211: 1985 | C211: Miscellaneous Fixed Assets | D211: 0 | E211: 0 | F211: 0 | G211: 0 | H211: =IFERROR(VLOOKUP(R211,'2.1.7 All Accounts'!$D:$M,$H$171,FALSE),0) -> 0 | J211: 0 | K211: 0 | L211: 0 | M211: 0 | N211: 0 | R211: ='LDC Info'!$E$14 & B211 -> Festival Hydro Inc.1985
A212: 47 | B212: 1990 | C212: Other Tangible Property | D212: 0 | E212: 0 | F212: 0 | G212: 0 | H212: =IFERROR(VLOOKUP(R212,'2.1.7 All Accounts'!$D:$M,$H$171,FALSE),0) -> 0 | J212: 0 | K212: 0 | L212: 0 | M212: 0 | N212: 0 | R212: ='LDC Info'!$E$14 & B212 -> Festival Hydro Inc.1990
A213: 47 | B213: 1995 | C213: Contributions & Grants | D213: -3499577.84 | E213: 0 | F213: 0 | G213: -3499577.84 | H213: =IFERROR(VLOOKUP(R213,'2.1.7 All Accounts'!$D:$M,$H$171,FALSE),0) -> -3499577.84 | J213: 298099.8795 | K213: 99366.62555 | L213: 0 | M213: 397466.505 | N213: -3102111.335 | R213: ='LDC Info'!$E$14 & B213 -> Festival Hydro Inc.1995
A214: 47 | B214: 2440 | C214: Deferred Revenue5 | D214: -540529.89 | E214: -371809.51 | F214: 0 | G214: -912339.4 | H214: =IFERROR(VLOOKUP(R214,'2.1.7 All Accounts'!$D:$M,$H$171,FALSE),0) -> -883418.15 | J214: 16682.69 | K214: 12238.56 | L214: 0 | M214: 28921.25 | N214: -883418.15 | R214: ='LDC Info'!$E$14 & B214 -> Festival Hydro Inc.2440
B215: 2005 | C215: Property Under Finance Lease7 | D215: 0 | E215: 0 | F215: 0 | G215: 0 | H215: =IFERROR(VLOOKUP(R215,'2.1.7 All Accounts'!$D:$M,$H$171,FALSE),0) -> 0 | J215: 0 | K215: 0 | L215: 0 | M215: 0 | N215: 0 | R215: ='LDC Info'!$E$14 & B215 -> Festival Hydro Inc.2005
C216: Sub-Total | D216: =SUM(D175:D215) -> 59135138.38 | E216: =SUM(E175:E215) -> 2583945.375 | F216: =SUM(F175:F215) -> -104708.5484 | G216: =SUM(G175:G215) -> 61614375.21 | H216: =SUM(H175:H215) -> 66901706.88 | J216: =SUM(J175:J215) -> -6394834.77 | K216: =SUM(K175:K215) -> -2399996.573 | L216: =SUM(L175:L215) -> 104708.5484 | M216: =SUM(M175:M215) -> -8690122.794 | N216: =SUM(N175:N215) -> 52924252.41
C217: Less Socialized Renewable Energy Generation Investments (input as negative) | G217: =D217+E217+F217 -> 0 | M217: =J217+K217+L217 -> 0 | N217: =G217+M217 -> 0
C218: Less Other Non Rate-Regulated Utility Assets (input as negative) | G218: =D218+E218+F218 -> 0 | M218: =J218+K218+L218 -> 0 | N218: =G218+M218 -> 0
C219: Total PP&E for Rate Base Purposes | D219: =SUM(D216:D218) -> 59135138.38 | E219: =SUM(E216:E218) -> 2583945.375 | F219: =SUM(F216:F218) -> -104708.5484 | G219: =SUM(G216:G218) -> 61614375.21 | J219: =SUM(J216:J218) -> -6394834.77 | K219: =SUM(K216:K218) -> -2399996.573 | L219: =SUM(L216:L218) -> 104708.5484 | M219: =SUM(M216:M218) -> -8690122.794 | N219: =SUM(N216:N218) -> 52924252.41
C220: Construction Work In Progress | G220: =D220+E220+F220 -> 0 | H220: =IFERROR(VLOOKUP(R220,'2.1.7 All Accounts'!$D:$M,$H$43,FALSE),0) -> 0 | M220: =J220+K220+L220 -> 0 | N220: =G220+M220 -> 0
C221: Total PP&E | D221: =SUM(D219:D220) -> 59135138.38 | E221: =SUM(E219:E220) -> 2583945.375 | F221: =SUM(F219:F220) -> -104708.5484 | G221: =SUM(G219:G220) -> 61614375.21 | H221: =SUM(H219:H220) -> 0 | I221: =SUM(I219:I220) -> 0 | J221: =SUM(J219:J220) -> -6394834.77 | K221: =SUM(K219:K220) -> -2399996.573 | L221: =SUM(L219:L220) -> 104708.5484 | M221: =SUM(M219:M220) -> -8690122.794 | N221: =SUM(N219:N220) -> 52924252.41
C222: Depreciation Expense adj. from gain or loss on the retirement of assets (pool of like assets), if applicable6
C223: Total | K223: =K221+K222 -> -2399996.573
J225: Less: Fully Allocated Depreciation
A226: 10 | C226: Transportation | J226: Transportation | L226: =K200 -> -121024.0487
A227: 8 | C227: Stores Equipment | J227: Stores Equipment | L227: =K201 -> 0
A228: 8 | C228: Tools, Shop & Garage Equipment | J228: Tools, Shop & Garage Equipment | L228: =K202 -> -26552.39269
A229: 8 | C229: Communications Equipment | J229: Communications Equipment | L229: =K205 -> -350.09
A230: 47 | C230: Deferred Revenue | J230: Deferred Revenue | L230: =K214 -> 12238.56
J231: Net Depreciation | L231: =K223-L226-L227-L228-L229-L230 -> -2264308.602
E233: Accounting Standard | F233: MIFRS
E234: Year | F234: =RebaseYear+3 -> 2018 | H234: =IF(F234=2014,4,IF(F234=2015,5,IF(F234=2016,6,IF(F234=2017,7,IF(F234=2018,8,IF(F234=2019,9,IF(F234=2020,10))))))) -> 8
D236: Cost | K236: Accumulated Depreciation
... 477 more rows

Sheet Appendix 2-BB Service Life
N1: File Number: | P1: =[0]!EBNUMBER -> EB-2024-0023
N2: Exhibit: | P2: 2
N3: Tab:
N4: Schedule: | P4: Table 2-43
N5: Page: | P5: 59-60
N7: Date: | P7: 45408
A9: Appendix 2-BB
A10: Service Life Comparison
A11: Table F-1 from Kinetrics Report1
C15: Asset Details | F15: Useful Life | J15: USoA Account Number | K15: USoA Account Description | L15: Current | N15: Proposed | P15: Outside Range of Min, Max TUL?
A16: Parent* | B16: # | C16: Category| Component | Type | F16: MIN UL | G16: TUL | H16: MAX UL | L16: Years | M16: Rate | N16: Years | O16: Rate | P16: Below Min TUL | Q16: Above Max TUL
A17: OH | B17: 1 | C17: Fully Dressed Wood Poles | D17: Overall | F17: 35 | G17: 45 | H17: 75 | J17: 1830 | K17: Poles | L17: 45 | M17: =IF(ISERROR(1/L17), "", 1/L17) -> 0.02222222222 | N17: 45 | O17: =IF(ISERROR(1/N17), "", 1/N17) -> 0.02222222222 | P17: =IF(ISBLANK(N17),"",IF(N17<F17,"Yes","No")) -> No | Q17: =IF(ISBLANK(N17),"",IF(N17>H17,"Yes","No")) -> No
D18: Cross Arm | E18: Wood | F18: 20 | G18: 40 | H18: 55 | J18: 1830 | K18: Poles | L18: 40 | M18: =IF(ISERROR(1/L18), "", 1/L18) -> 0.025 | N18: 40 | O18: =IF(ISERROR(1/N18), "", 1/N18) -> 0.025 | P18: =IF(ISBLANK(N18),"",IF(N18<F18,"Yes","No")) -> No | Q18: =IF(ISBLANK(N18),"",IF(N18>H18,"Yes","No")) -> No
E19: Steel | F19: 30 | G19: 70 | H19: 95 | J19: 1830 | K19: Poles | L19: 40 | M19: 0.025 | N19: 40 | O19: 0.025 | P19: No | Q19: No
B20: 2 | C20: Fully Dressed Concrete Poles | D20: Overall | F20: 50 | G20: 60 | H20: 80 | J20: 1830 | K20: Poles | L20: 60 | M20: 0.01666666667 | N20: 60 | O20: 0.01666666667 | P20: No | Q20: No
D21: Cross Arm | E21: Wood | F21: 20 | G21: 40 | H21: 55 | J21: 1830 | K21: Poles | L21: 40 | M21: 0.025 | N21: 40 | O21: 0.025 | P21: No | Q21: No
E22: Steel | F22: 30 | G22: 70 | H22: 95 | J22: 1830 | K22: Poles | L22: 40 | M22: 0.025 | N22: 40 | O22: 0.025 | P22: No | Q22: No
B23: 3 | C23: Fully Dressed Steel Poles | D23: Overall | F23: 60 | G23: 60 | H23: 80
D24: Cross Arm | E24: Wood | F24: 20 | G24: 40 | H24: 55
E25: Steel | F25: 30 | G25: 70 | H25: 95
B26: 4 | C26: OH Line Switch | F26: 30 | G26: 45 | H26: 55 | J26: 1835 | K26: Overhead Conductors and Devices | L26: 45 | M26: 0.02222222222 | N26: 45 | O26: 0.02222222222 | P26: No | Q26: No
B27: 5 | C27: OH Line Switch Motor | F27: 15 | G27: 25 | H27: 25
B28: 6 | C28: OH Line Switch RTU | F28: 15 | G28: 20 | H28: 20
B29: 7 | C29: OH Integral Switches | F29: 35 | G29: 45 | H29: 60 | J29: 1835 | K29: Overhead Conductors and Devices | L29: 45 | M29: 0.02222222222 | N29: 45 | O29: 0.02222222222 | P29: No | Q29: No
B30: 8 | C30: OH Conductors | F30: 50 | G30: 60 | H30: 75 | J30: 1835 | K30: Overhead Conductors and Devices | L30: 60 | M30: 0.01666666667 | N30: 60 | O30: 0.01666666667 | P30: No | Q30: No
C31: OH Services | F31: no guideline | J31: 1855 | K31: Services | L31: 60 | M31: 0.01666666667 | N31: 60 | O31: 0.01666666667 | P31: no guideline
B32: 9 | C32: OH Transformers & Voltage Regulators | F32: 30 | G32: 40 | H32: 60
B33: 10 | C33: OH Shunt Capacitor Banks | F33: 25 | G33: 30 | H33: 40
B34: 11 | C34: Reclosers | F34: 25 | G34: 40 | H34: 55
A35: TS & MS | B35: 12 | C35: Power Transformers | D35: Overall - DS | F35: 30 | G35: 45 | H35: 60 | J35: 1820 | K35: Distribution Station Equipment <50 kV | L35: 40 | M35: 0.025 | N35: 40 | O35: 0.025 | P35: No | Q35: No
D36: Overall -TS | F36: 30 | G36: 45 | H36: 60 | J36: 1815 | K36: Transformer Station Equipment >50 kV | L36: 40 | M36: 0.025 | N36: 40 | O36: 0.025 | P36: =IF(ISBLANK(N36),"",IF(N36<F36,"Yes","No")) -> No | Q36: =IF(ISBLANK(N36),"",IF(N36>H36,"Yes","No")) -> No
D37: Bushing | F37: 10 | G37: 20 | H37: 30 | J37: 1815 | K37: Transformer Station Equipment >50 kV | L37: 20 | M37: 0.05 | N37: 20 | O37: 0.05 | P37: No | Q37: No
D38: Tap Changer | F38: 20 | G38: 30 | H38: 60
B39: 13 | C39: Station Service Transformer | F39: 30 | G39: 45 | H39: 55
B40: 14 | C40: Station Grounding Transformer | F40: 30 | G40: 40 | H40: 40
B41: 15 | C41: Station DC System | D41: Overall | F41: 10 | G41: 20 | H41: 30
D42: Battery Bank | F42: 10 | G42: 15 | H42: 15
D43: Charger | F43: 20 | G43: 20 | H43: 30
B44: 16 | C44: Station Metal Clad Switchgear | D44: Overall | F44: 30 | G44: 40 | H44: 60 | J44: 1815 | K44: Transformer Station Equipment >50 kV | L44: 45 | M44: 0.02222222222 | N44: 45 | O44: 0.02222222222 | P44: No | Q44: No
D45: Removable Breaker | F45: 25 | G45: 40 | H45: 60
B46: 17 | C46: Station Independent Breakers | F46: 35 | G46: 45 | H46: 65
B47: 18 | C47: Station Switch | F47: 30 | G47: 50 | H47: 60 | J47: 1815 | K47: Transformer Station Equipment >50 kV | L47: 50 | M47: 0.02 | N47: 50 | O47: 0.02 | P47: No | Q47: No
B48: 19 | C48: Electromechanical Relays | F48: 25 | G48: 35 | H48: 50
B49: 20 | C49: Solid State Relays | F49: 10 | G49: 30 | H49: 45 | J49: 1815 | K49: Transformer Station Equipment >50 kV | L49: 15 | M49: 0.06666666667 | N49: 15 | O49: 0.06666666667 | P49: No | Q49: No
B50: 21 | C50: Digital & Numeric Relays | F50: 15 | G50: 20 | H50: 20
B51: 22 | C51: Rigid Busbars | F51: 30 | G51: 55 | H51: 60 | J51: 1815 | K51: Transformer Station Equipment >50 kV | L51: 55 | M51: 0.01818181818 | N51: 55 | O51: 0.01818181818 | P51: No | Q51: No
B52: 23 | C52: Steel Structure | F52: 35 | G52: 50 | H52: 90 | J52: 1815 | K52: Transformer Station Equipment >50 kV | L52: 60 | M52: 0.01666666667 | N52: 60 | O52: 0.01666666667 | P52: No | Q52: No
A53: UG | B53: 24 | C53: Primary Paper Insulated Lead Covered (PILC) Cables | F53: 60 | G53: 65 | H53: 75
B54: 25 | C54: Primary Ethylene-Propylene Rubber (EPR) Cables | F54: 20 | G54: 25 | H54: 25
B55: 26 | C55: Primary Non-Tree Retardant (Non-TR) Cross Linked Polyethylene (XLPE) Cables Direct Buried | F55: 20 | G55: 25 | H55: 30 | J55: 1845 | K55: Underground Conductors and Devices | L55: 25 | M55: 0.04 | N55: 25 | O55: 0.04 | P55: No | Q55: No
B56: 27 | C56: Primary Non-TR XLPE Cables in Duct | F56: 20 | G56: 25 | H56: 30 | J56: 1845 | K56: Underground Conductors and Devices | L56: 25 | M56: 0.04 | N56: 25 | O56: 0.04 | P56: No | Q56: No
B57: 28 | C57: Primary TR XLPE Cables Direct Buried | F57: 25 | G57: 30 | H57: 35
B58: 29 | C58: Primary TR XLPE Cables in Duct | F58: 35 | G58: 40 | H58: 55 | J58: 1845 | K58: Underground Conductors and Devices | L58: 40 | M58: 0.025 | N58: 40 | O58: 0.025 | P58: No | Q58: No
B59: 30 | C59: Secondary PILC Cables | F59: 70 | G59: 75 | H59: 80
B60: 31 | C60: Secondary Cables Direct Buried | F60: 25 | G60: 35 | H60: 40
B61: 32 | C61: Secondary Cables in Duct | F61: 35 | G61: 40 | H61: 60 | J61: 1855 | K61: Services | L61: 40 | M61: 0.025 | N61: 40 | O61: 0.025 | P61: No | Q61: No
B62: 33 | C62: Network Tranformers | D62: Overall | F62: 20 | G62: 35 | H62: 50
D63: Protector | F63: 20 | G63: 35 | H63: 40
B64: 34 | C64: Pad-Mounted Transformers | F64: 25 | G64: 40 | H64: 45 | J64: 1850 | K64: Line Transformers | L64: 40 | M64: 0.025 | N64: 40 | O64: 0.025 | P64: No | Q64: No
B65: 35 | C65: Submersible/Vault Transformers | F65: 25 | G65: 35 | H65: 45 | J65: 1850 | K65: Line Transformers | L65: 40 | M65: 0.025 | N65: 40 | O65: 0.025 | P65: No | Q65: No
B66: 36 | C66: UG Foundation | F66: 35 | G66: 55 | H66: 70 | J66: 1850 | K66: Line Transformers | L66: 40 | M66: 0.025 | N66: 40 | O66: 0.025 | P66: No | Q66: No
B67: 37 | C67: UG Vaults | D67: Overall | F67: 40 | G67: 60 | H67: 80 | J67: 1850 | K67: Line Transformers | L67: 40 | M67: 0.025 | N67: 40 | O67: 0.025 | P67: No | Q67: No
D68: Roof | F68: 20 | G68: 30 | H68: 45 | J68: 1850 | K68: Line Transformers | L68: 40 | M68: 0.025 | N68: 40 | O68: 0.025 | P68: No | Q68: No
B69: 38 | C69: UG Vault Switches | F69: 20 | G69: 35 | H69: 50
B70: 39 | C70: Pad-Mounted Switchgear | F70: 20 | G70: 30 | H70: 45 | J70: 1845 | K70: Underground Conductors and Devices | L70: 30 | M70: 0.03333333333 | N70: 30 | O70: 0.03333333333 | P70: No | Q70: No
B71: 40 | C71: Ducts | F71: 30 | G71: 50 | H71: 85 | J71: 1840 | K71: Underground Conduit | L71: 50 | M71: 0.02 | N71: 50 | O71: 0.02 | P71: No | Q71: No
B72: 41 | C72: Concrete Encased Duct Banks | F72: 35 | G72: 55 | H72: 80 | J72: 1840 | K72: Underground Conduit | L72: 50 | M72: 0.02 | N72: 50 | O72: 0.02 | P72: No | Q72: No
B73: 42 | C73: Cable Chambers | F73: 50 | G73: 60 | H73: 80 | J73: 1840 | K73: Underground Conduit | L73: 50 | M73: 0.02 | N73: 50 | O73: 0.02 | P73: No | Q73: No
A74: S | B74: 43 | C74: Remote SCADA | F74: 15 | G74: 20 | H74: 30 | J74: 1980 | K74: System Supervisory Equipment | L74: 15 | M74: 0.06666666667 | N74: 15 | O74: 0.06666666667 | P74: No | Q74: No
A77: Table F-2 from Kinetrics Report1
C79: Asset Details | F79: Useful Life Range | J79: USoA Account Number | K79: USoA Account Description | L79: Current | N79: Proposed | P79: Outside Range of Min, Max TUL?
B80: # | C80: Category| Component | Type | L80: Years | M80: Rate | N80: Years | O80: Rate | P80: Below Min Range | Q80: Above Max Range
B81: 1 | C81: Office Equipment | F81: 5 | G81: 15 | M81: =IF(ISERROR(1/L81), "", 1/L81) ->  | O81: =IF(ISERROR(1/N81), "", 1/N81) ->  | P81: =IF(ISBLANK(N81),"",IF(N81<F81,"Yes","No")) ->  | Q81: =IF(ISBLANK(N81),"",IF(N81>G81,"Yes","No")) -> 
B82: 2 | C82: Vehicles | D82: Trucks & Buckets | F82: 5 | G82: 15 | M82: =IF(ISERROR(1/L82), "", 1/L82) ->  | O82: =IF(ISERROR(1/N82), "", 1/N82) ->  | P82: =IF(ISBLANK(N82),"",IF(N82<F82,"Yes","No")) ->  | Q82: =IF(ISBLANK(N82),"",IF(N82>G82,"Yes","No")) -> 
D83: Trailers | F83: 5 | G83: 20
D84: Vans | F84: 5 | G84: 10
B85: 3 | C85: Administrative Buildings | D85: Buildings | F85: 50 | G85: 75 | J85: 1808 | K85: Buildings and Fixtures | L85: 60 | M85: 0.01666666667 | N85: 60 | O85: 0.01666666667 | P85: No | Q85: No
D86: Buildings | F86: no guideline | J86: 1809 | K86: Buildings and Fixtures | L86: 60 | M86: 0.01666666667 | N86: 60 | O86: 0.01666666667 | P86: no guideline
D87: HVAC equipment | F87: no guideline | J87: 1908 | K87: Buildings and Fixtures | L87: 10 | M87: 0.1 | N87: 10 | O87: 0.1 | P87: no guideline
D88: Buildings | F88: no guideline | J88: 1908 | K88: Buildings and Fixtures | L88: 60 | M88: 0.01666666667 | N88: 60 | O88: 0.01666666667 | P88: no guideline
D89: Parking | F89: 25 | G89: 30 | J89: 1908 | K89: Buildings and Fixtures | L89: 30 | M89: 0.03333333333 | N89: 30 | O89: 0.03333333333 | P89: =IF(ISBLANK(N89),"",IF(N89<F89,"Yes","No")) -> No | Q89: =IF(ISBLANK(N89),"",IF(N89>G89,"Yes","No")) -> No
D90: Fence | F90: 25 | G90: 60 | J90: 1908 | K90: Buildings and Fixtures | L90: 30 | M90: 0.03333333333 | N90: 30 | O90: 0.03333333333 | P90: No | Q90: No
D91: Roof | F91: 20 | G91: 30 | J91: 1908 | K91: Buildings and Fixtures | L91: 20 | M91: 0.05 | N91: 20 | O91: 0.05 | P91: No | Q91: No
B92: 4 | C92: Leasehold Improvements | F92: Lease dependent | J92: 1910 | K92: Leasehold improvements | L92: 5 | M92: 0.2 | N92: 5 | O92: 0.2 | P92: =IF(ISBLANK(N92),"",IF(N92<F92,"Yes","No")) -> Yes | Q92: =IF(ISBLANK(N92),"",IF(N92>G92,"Yes","No")) -> Yes
B93: 5 | C93: Station Buildings | D93: Station Buildings | F93: 50 | G93: 75 | J93: 1808 | K93: Buildings and Fixtures | L93: 60 | M93: 0.01666666667 | N93: 60 | O93: 0.01666666667 | P93: No | Q93: No
D94: Parking | F94: 25 | G94: 30
D95: Fence | F95: 25 | G95: 60
D96: Roof | F96: 20 | G96: 30
B97: 6 | C97: Computer Equipment | D97: Hardware | F97: 3 | G97: 5 | J97: 1920 | K97: Computer Equipment - hardware | L97: 5 | M97: 0.2 | N97: 5 | O97: 0.2 | P97: No | Q97: No
D98: Software | F98: 2 | G98: 5 | J98: 1611 | K98: Computer Software | L98: 5 | M98: 0.2 | N98: 5 | O98: 0.2 | P98: =IF(ISBLANK(N98),"",IF(N98<F98,"Yes","No")) -> No | Q98: =IF(ISBLANK(N98),"",IF(N98>G98,"Yes","No")) -> No
D99: Software - ERP/CIS | F99: no guideline | J99: 1611 | K99: Computer Software | L99: 10 | M99: 0.1 | N99: 10 | O99: 0.1 | P99: no guideline
B100: 7 | C100: Equipment | D100: Power Operated | F100: 5 | G100: 10
D101: Stores | F101: 5 | G101: 10 | J101: 1935 | K101: Stores equipment | L101: 10 | M101: 0.1 | N101: 10 | O101: 0.1 | P101: No | Q101: No
D102: Tools, Shop, Garage Equipment | F102: 5 | G102: 10 | J102: 1940 | K102: Tools, Shop and garage equipment | L102: 10 | M102: 0.1 | N102: 10 | O102: 0.1 | P102: No | Q102: No
D103: Measurement & Testing Equipment | F103: 5 | G103: 10 | J103: 1945 | K103: Measure & testing Equipment | L103: 8 | M103: 0.125 | N103: 8 | O103: 0.125 | P103: No | Q103: No
B104: 8 | C104: Communication | D104: Towers | F104: 60 | G104: 70
D105: Wireless | F105: 2 | G105: 10 | J105: 1955 | K105: Communication equipment | L105: 10 | M105: 0.1 | N105: 10 | O105: 0.1 | P105: No | Q105: No
B106: 9 | C106: Residential Energy Meters | F106: 25 | G106: 35 | J106: 1860 | K106: Meters | L106: 10 | M106: 0.1 | N106: 10 | O106: 0.1 | P106: Yes | Q106: No
B107: 10 | C107: Industrial/Commercial Energy Meters | F107: 25 | G107: 35 | J107: 1860 | K107: Meters | L107: 10 | M107: 0.1 | N107: 10 | O107: 0.1 | P107: Yes | Q107: No
C108: Primary Energy Meters | F108: no guideline | J108: 1860 | K108: Meters | L108: 20 | M108: 0.05 | N108: 20 | P108: no guideline
B109: 11 | C109: Wholesale Energy Meters | F109: 15 | G109: 30 | J109: 1860 | K109: Meters | L109: 20 | M109: 0.05 | N109: 20 | O109: 0.05 | P109: No | Q109: No
B110: 12 | C110: Current & Potential Transformer (CT & PT) | F110: 35 | G110: 50 | J110: 1860 | K110: Meters | L110: 40 | M110: 0.025 | N110: 40 | O110: 0.025 | P110: No | Q110: No
B111: 13 | C111: Smart Meters | F111: 5 | G111: 15 | J111: 1880 | K111: Smart meters | L111: 10 | M111: 0.1 | N111: 10 | O111: 0.1 | P111: No | Q111: No
B112: 14 | C112: Repeaters - Smart Metering | F112: 10 | G112: 15 | J112: 1880 | K112: Smart meters | L112: 10 | M112: 0.1 | N112: 10 | O112: 0.1 | P112: No | Q112: No
B113: 15 | C113: Data Collectors - Smart Metering | F113: 15 | G113: 20 | J113: 1880 | K113: Smart meters | L113: 10 | M113: 0.1 | N113: 10 | O113: 0.1 | P113: Yes | Q113: No
A116: * TS & MS = Transformer and Municipal Stations UG = Underground Systems S = Monitoring and Control Systems
A118: Note 1: | B118: Tables F-1 and F-2 above are to be used as a reference in order to complete columns J, K, L and N.
B119: See pages 17-19 of Kinetrics Report

Sheet App.2-C_DepExp
H1: File Number: | J1: =[0]!EBNUMBER -> EB-2024-0023
H2: Exhibit: | J2: 2
A3: ` | H3: Tab:
H4: Schedule: | J4: Table 2-44 to 2-54
H5: Page: | J5: 61-71
H7: Date: | J7: 45408
A9: Appendix 2-C | Q9: CGAAP
A10: Depreciation and Amortization Expense | Q10: Revised CGAAP
Q11: MIFRS
A13: General: | B13: This appendix is to assess the reasonability of the depreciation expense that is included in rate base via. accumulated depreciation and the revenue requirement.
B14: Applicants must provide a breakdown of depreciation and amortization expense in the above format for all relevant accounts. Balances presented in the table should exclude asset retirement obligations (AROs) and the related depreciation and accretion expense. These should be disclosed separately.
B15: This appendix must be completed under MIFRS for each year for the earlier of: 1) all historical years back to the Applicant's last rebasing; or 2) at least three years of historical actuals, in addition to Bridge Year and Test Year forecasts. If this is the first application where the Applicant is rebasing under MIFRS, contact OEB staff for further guidance on the appropriate depreciation schedules to complete (i.e. applicable years and accounting standard for each schedule).
A17: Notes:
A18: 1 | B18: This should include assets in column A (excel column C) that become fully depreciated.
A19: 2 | B19: The useful life used should be consistent with the OEB's regulatory accounting policies as set out in the Accounting Procedures Handbook for Electricity Distributors, effective Jan. 1, 2012 and also with the Report of the Board, Transition to International Financial Reporting Standards, EB-2008-0408, and the Kinectrics Report.
A20: 3 | B20: OEB policy of the "half-year" rule - the applicant must ensure that additions in the year attract a half-year depreciation expense in the first year. Deviations from this standard practice must be supported in the application.
A21: 4 | B21: The applicant must provide an explanation of material variances in its evidence.
E23: Year | F23: ='LDC Info'!E28 -> 2015
Q24: 2017
C25: Book Values | G25: Service Lives | I25: Depreciation Expense | Q25: 2018
A26: Account | B26: Description | C26: Opening Book Value of Assets | D26: Less Fully Depreciated 1 | E26: Current Year Additions | F26: Disposals | G26: Net Amount of Assets to be Depreciated | H26: Remaining Life of Assets Existing 2 | I26: Depreciation Rate Assets | J26: Depreciation Expense on Assets 3 | K26: Depreciation Expense per Appendix 2-BA Fixed Assets, Column J | L26: Variance 4
C27: a | D27: b | E27: c | F27: d | G27: e = a-b+0.5*c-d | H27: f | I27: g = 1/f | J27: h = e/f | K27: i | L27: j = i-h
A28: 1609 | B28: Capital Contributions Paid | C28: 2360056.17 | D28: 0 | E28: 70200 | F28: 1463321 | G28: =C28-D28+(E28*0.5)-F28 -> 931835.17 | H28: 17.106121 | I28: =IF(H28=0,0,1/H28) -> 0.0584586067 | J28: =IF(H28=0,0,+G28/H28) -> 54473.78571 | K28: =-'App.2-BA_Fixed Asset Cont'!K47 -> 54473.78571 | L28: =IF(ISERROR(+K28-J28), 0, +K28-J28) -> 0
A29: 1611 | B29: Computer Software (Formally known as Account 1925) | C29: 370401 | D29: 0 | E29: 306327.82 | F29: 0 | G29: =C29-D29+(E29*0.5)-F29 -> 523564.91 | H29: 4.352416208 | I29: =IF(H29=0,0,1/H29) -> 0.2297574387 | J29: 120292.9327 | K29: =-'App.2-BA_Fixed Asset Cont'!K48 -> 120292.9327 | L29: =IF(ISERROR(+K29-J29), 0, +K29-J29) -> 0
A30: 1612 | B30: Land Rights (Formally known as Account 1906) | C30: 0 | D30: 0 | E30: 0 | F30: 0 | G30: 0 | I30: =IF(H30=0,0,1/H30) -> 0 | J30: 0 | K30: =-'App.2-BA_Fixed Asset Cont'!K49 -> 0 | L30: =IF(ISERROR(+K30-J30), 0, +K30-J30) -> 0
A31: 1805 | B31: Land | C31: 1252202 | D31: 0 | E31: 0 | F31: 0 | G31: 1252202 | I31: 0 | J31: 0 | K31: =-'App.2-BA_Fixed Asset Cont'!K50 -> 0 | L31: 0
A32: 1808 | B32: Buildings | C32: 494571.15 | D32: 0 | E32: 0 | F32: 0 | G32: 494571.15 | H32: 12.54533337 | I32: 0.07971091488 | J32: 39422.71884 | K32: =-'App.2-BA_Fixed Asset Cont'!K51 -> 39422.71884 | L32: 0
A33: 1810 | B33: Leasehold Improvements | C33: 0 | D33: 0 | E33: 0 | F33: 0 | G33: 0 | I33: 0 | J33: 0 | K33: =-'App.2-BA_Fixed Asset Cont'!K52 -> 0 | L33: 0
A34: 1815 | B34: Transformer Station Equipment >50 kV | C34: 13935158 | D34: 0 | E34: 0 | F34: 0 | G34: 13935158 | H34: 43.52131793 | I34: 0.02297724535 | J34: 320191.5443 | K34: =-'App.2-BA_Fixed Asset Cont'!K53 -> 320191.5443 | L34: 0
A35: 1820 | B35: Distribution Station Equipment <50 kV | C35: 254798 | D35: 0 | E35: 0 | F35: 0 | G35: 254798 | H35: 9.154003497 | I35: 0.1092418197 | J35: 27834.59719 | K35: =-'App.2-BA_Fixed Asset Cont'!K54 -> 27834.59719 | L35: 3.637978807e-12
A36: 1825 | B36: Storage Battery Equipment | C36: 0 | D36: 0 | E36: 0 | F36: 0 | G36: 0 | I36: 0 | J36: 0 | K36: =-'App.2-BA_Fixed Asset Cont'!K55 -> 0 | L36: 0
A37: 1830 | B37: Poles, Towers & Fixtures | C37: 10264040 | D37: 0 | E37: 581837.22 | F37: 0 | G37: 10554958.61 | H37: 41.43784214 | I37: 0.02413253076 | J37: 254717.8633 | K37: =-'App.2-BA_Fixed Asset Cont'!K56 -> 254717.8633 | L37: 0
A38: 1835 | B38: Overhead Conductors & Devices | C38: 6437700.01 | D38: 0 | E38: 347558.46 | F38: 0 | G38: 6611479.24 | H38: 48.18083934 | I38: 0.02075513863 | J38: 137222.1682 | K38: =-'App.2-BA_Fixed Asset Cont'!K57 -> 137222.1682 | L38: 0
A39: 1840 | B39: Underground Conduit | C39: 3886852 | D39: 0 | E39: 387923.6 | F39: 0 | G39: 4080813.8 | H39: 41.27817872 | I39: 0.02422587505 | J39: 98861.28523 | K39: =-'App.2-BA_Fixed Asset Cont'!K58 -> 98861.28523 | L39: 0
A40: 1845 | B40: Underground Conductors & Devices | C40: 6112549.35 | D40: 0 | E40: 490818.4 | F40: 0 | G40: 6357958.55 | H40: 29.43446318 | I40: 0.0339737808 | J40: 216003.8901 | K40: =-'App.2-BA_Fixed Asset Cont'!K59 -> 216003.8901 | L40: 0
A41: 1850 | B41: Line Transformers | C41: 5681103 | D41: 0 | E41: 407839.85 | F41: 0 | G41: 5885022.925 | H41: 30.67213123 | I41: 0.03260288607 | J41: 191868.7319 | K41: =-'App.2-BA_Fixed Asset Cont'!K60 -> 191868.7319 | L41: 0
A42: 1855 | B42: Services (Overhead & Underground) | C42: 2072988.22 | D42: 0 | E42: 193101.9 | F42: 0 | G42: 2169539.17 | H42: 30.50925108 | I42: 0.03277694354 | J42: 71110.86287 | K42: =-'App.2-BA_Fixed Asset Cont'!K61 -> 71110.86287 | L42: 0
A43: 1860 | B43: Meters | C43: 962972.78 | D43: 0 | E43: 26554.55 | F43: 4001.47 | G43: 972248.585 | H43: 14.1741115 | I43: 0.0705511594 | J43: 68593.2649 | K43: =-'App.2-BA_Fixed Asset Cont'!K62 -> 68593.2649 | L43: 0
A44: 1860 | B44: Meters (Smart Meters) | C44: 2738785.44 | D44: 0 | E44: 47979.15 | F44: 2729.92 | G44: 2760045.095 | H44: 6.661646818 | I44: 0.1501130317 | J44: 414318.7369 | K44: =-'App.2-BA_Fixed Asset Cont'!K63 -> 414318.7369 | L44: 0
A45: 1905 | B45: Land | C45: 0 | D45: 0 | E45: 0 | F45: 0 | G45: 0 | I45: 0 | J45: 0 | K45: =-'App.2-BA_Fixed Asset Cont'!K64 -> 0 | L45: 0
A46: 1908 | B46: Buildings & Fixtures | C46: 465827 | D46: 0 | E46: 141388.93 | F46: 0 | G46: 536521.465 | H46: 15.62834883 | I46: 0.06398628613 | J46: 34330.01597 | K46: =-'App.2-BA_Fixed Asset Cont'!K65 -> 34330.01597 | L46: 0
A47: 1910 | B47: Leasehold Improvements | C47: 0 | D47: 0 | E47: 0 | F47: 0 | G47: 0 | I47: 0 | J47: 0 | K47: =-'App.2-BA_Fixed Asset Cont'!K66 -> 0 | L47: 0
A48: 1915 | B48: Office Furniture & Equipment (10 years) | C48: 85910.35 | D48: 0 | E48: 91504 | F48: 0 | G48: 131662.35 | H48: 8.621575513 | I48: 0.1159880811 | J48: 15271.26333 | K48: =-'App.2-BA_Fixed Asset Cont'!K67 -> 15271.26333 | L48: 0
A49: 1915 | B49: Office Furniture & Equipment (5 years) | C49: 0 | D49: 0 | E49: 0 | F49: 0 | G49: 0 | I49: 0 | J49: 0 | K49: =-'App.2-BA_Fixed Asset Cont'!K68 -> 0 | L49: 0
A50: 1920 | B50: Computer Equipment - Hardware | C50: 0 | D50: 0 | E50: 0 | F50: 0 | G50: 0 | I50: 0 | J50: 0 | K50: =-'App.2-BA_Fixed Asset Cont'!K69 -> 0 | L50: 0
A51: 1920 | B51: Computer Equip.-Hardware(Post Mar. 22/04) | C51: 0 | D51: 0 | E51: 0 | F51: 0 | G51: 0 | I51: 0 | J51: 0 | K51: =-'App.2-BA_Fixed Asset Cont'!K70 -> 0 | L51: 0
A52: 1920 | B52: Computer Equip.-Hardware(Post Mar. 19/07) | C52: 354933.01 | D52: 0 | E52: 58144.42 | F52: 0 | G52: 384005.22 | H52: 4.111830674 | I52: 0.2432006761 | J52: 93390.32914 | K52: =-'App.2-BA_Fixed Asset Cont'!K71 -> 93390.32914 | L52: -1.455191523e-11
A53: 1930 | B53: Transportation Equipment | C53: 944582.06 | D53: 27740.38 | E53: 40679.58 | F53: 0 | G53: 937181.47 | H53: 7.905670198 | I53: 0.1264914896 | J53: 118545.4802 | K53: =-'App.2-BA_Fixed Asset Cont'!K72 -> 118545.4802 | L53: 0
A54: 1935 | B54: Stores Equipment | C54: 0 | D54: 0 | E54: 0 | F54: 0 | G54: 0 | I54: 0 | J54: 0 | K54: =-'App.2-BA_Fixed Asset Cont'!K73 -> 0 | L54: 0
A55: 1940 | B55: Tools, Shop & Garage Equipment | C55: 159916.18 | D55: 0 | E55: 15433.63 | F55: 0 | G55: 167632.995 | H55: 6.015176257 | I55: 0.1662461676 | J55: 27868.34298 | K55: =-'App.2-BA_Fixed Asset Cont'!K74 -> 27868.34298 | L55: 0
A56: 1945 | B56: Measurement & Testing Equipment | C56: 9659 | D56: 0 | E56: 0 | F56: 0 | G56: 9659 | H56: 3.000001553 | I56: 0.3333331608 | J56: 3219.665 | K56: =-'App.2-BA_Fixed Asset Cont'!K75 -> 3219.665 | L56: 4.547473509e-13
A57: 1950 | B57: Power Operated Equipment | C57: 0 | D57: 0 | E57: 0 | F57: 0 | G57: 0 | I57: 0 | J57: 0 | K57: =-'App.2-BA_Fixed Asset Cont'!K76 -> 0 | L57: 0
A58: 1955 | B58: Communications Equipment | C58: 367 | D58: 0 | E58: 3500.85 | F58: 0 | G58: 2117.425 | H58: 10.0090995 | I58: 0.09990908769 | J58: 211.55 | K58: =-'App.2-BA_Fixed Asset Cont'!K77 -> 211.55 | L58: 0
A59: 1955 | B59: Communication Equipment (Smart Meters) | C59: 0 | D59: 0 | E59: 0 | F59: 0 | G59: 0 | I59: 0 | J59: 0 | K59: =-'App.2-BA_Fixed Asset Cont'!K78 -> 0 | L59: 0
A60: 1960 | B60: Miscellaneous Equipment | C60: 6315.2 | D60: 0 | E60: 0 | F60: 0 | G60: 6315.2 | H60: 5.731586896 | I60: 0.1744717507 | J60: 1101.824 | K60: =-'App.2-BA_Fixed Asset Cont'!K79 -> 1101.824 | L60: 0
A61: 1970 | B61: Load Management Controls Customer Premises | C61: 43749.12 | D61: 0 | E61: 0 | F61: 0 | G61: 43749.12 | H61: 2.954356968 | I61: 0.3384831322 | J61: 14808.33917 | K61: =-'App.2-BA_Fixed Asset Cont'!K80 -> 14808.33917 | L61: 0
A62: 1975 | B62: Load Management Controls Utility Premises | C62: 0 | D62: 0 | E62: 0 | F62: 0 | G62: 0 | I62: 0 | J62: 0 | K62: =-'App.2-BA_Fixed Asset Cont'!K81 -> 0 | L62: 0
A63: 1980 | B63: System Supervisor Equipment | C63: 177377.01 | D63: 0 | E63: 98648.92 | F63: 0 | G63: 226701.47 | H63: 12.87111694 | I63: 0.07769333498 | J63: 17613.19325 | K63: =-'App.2-BA_Fixed Asset Cont'!K82 -> 17613.19325 | L63: 0
A64: 1985 | B64: Miscellaneous Fixed Assets | C64: 0 | D64: 0 | E64: 0 | F64: 0 | G64: 0 | I64: 0 | J64: 0 | K64: =-'App.2-BA_Fixed Asset Cont'!K83 -> 0 | L64: 0
A65: 1990 | B65: Other Tangible Property | C65: 0 | D65: 0 | E65: 0 | F65: 0 | G65: 0 | I65: 0 | J65: 0 | K65: =-'App.2-BA_Fixed Asset Cont'!K84 -> 0 | L65: 0
A66: 1995 | B66: Contributions & Grants | C66: -3499577.84 | D66: 0 | E66: 0 | F66: 0 | G66: -3499577.84 | H66: 35.21884557 | I66: 0.02839388923 | J66: -99366.62555 | K66: =-'App.2-BA_Fixed Asset Cont'!K85 -> -99366.62555 | L66: 0
A67: 2440 | B67: Deferred Revenue | C67: 0 | D67: 0 | E67: -333945 | F67: 0 | G67: -166972.5 | H67: 28.34125435 | I67: =IF(H67=0,0,1/H67) -> 0.0352842534 | J67: =IF(H67=0,0,+G67/H67) -> -5891.5 | K67: =-'App.2-BA_Fixed Asset Cont'!K86 -> -5891.5 | L67: =IF(ISERROR(+K67-J67), 0, +K67-J67) -> 0
A68: 2005 | B68: Property Under Finance Lease | C68: 0 | D68: 0 | E68: 0 | F68: 0 | G68: 0 | I68: 0 | J68: 0 | K68: =-'App.2-BA_Fixed Asset Cont'!K87 -> 0 | L68: 0
B69: Total | C69: =SUM(C28:C68) -> 55573235.21 | D69: =SUM(D28:D68) -> 27740.38 | E69: 2975496.28 | G69: =SUM(G29:G68) -> 54631355.41 | H69: 469.4365193 | J69: =SUM(J28:J68) -> 2236014.26 | K69: =SUM(K28:K68) -> 2236014.26 | L69: -1.045918907e-11
E72: Year | F72: =F23+1 -> 2016
Q73: 2017
C74: Book Values | G74: Service Lives | I74: Depreciation Expense | Q74: 2018
A75: Account | B75: Description | C75: Opening Book Value of Assets | D75: Less Fully Depreciated 1 | E75: Current Year Additions | F75: Disposals | G75: Net Amount of Assets to be Depreciated | H75: Remaining Life of Assets Existing 2 | I75: Depreciation Rate Assets | J75: Depreciation Expense on Assets 3 | K75: Depreciation Expense per Appendix 2-BA Fixed Assets, Column J | L75: Variance 4
C76: a | D76: b | E76: c | F76: d | G76: e = a-b+0.5*c-d | H76: f | I76: g = 1/f | J76: h = e/f | K76: i | L76: j = i-h
A77: 1609 | B77: Capital Contributions Paid | C77: 966935.17 | D77: 0 | E77: 0 | F77: 0 | G77: =C77-D77+(E77*0.5)-F77 -> 966935.17 | H77: 17.7507218 | I77: =IF(H77=0,0,1/H77) -> 0.05633573729 | J77: =IF(H77=0,0,+G77/H77) -> 54473.00571 | K77: =-'App.2-BA_Fixed Asset Cont'!K112 -> 54473.00571 | L77: =IF(ISERROR(+K77-J77), 0, +K77-J77) -> -7.275957614e-12
A78: 1611 | B78: Computer Software (Formally known as Account 1925) | C78: 676728.82 | D78: 70110.32 | E78: 232428.62 | F78: 0 | G78: =C78-D78+(E78*0.5)-F78 -> 722832.81 | H78: 4.701888126 | I78: =IF(H78=0,0,1/H78) -> 0.2126805175 | J78: 153732.4561 | K78: =-'App.2-BA_Fixed Asset Cont'!K113 -> 153732.4561 | L78: =IF(ISERROR(+K78-J78), 0, +K78-J78) -> 0
A79: 1612 | B79: Land Rights (Formally known as Account 1906) | C79: 0 | D79: 0 | E79: 0 | F79: 0 | G79: 0 | I79: =IF(H79=0,0,1/H79) -> 0 | J79: 0 | K79: =-'App.2-BA_Fixed Asset Cont'!K114 -> 0 | L79: =IF(ISERROR(+K79-J79), 0, +K79-J79) -> 0
A80: 1805 | B80: Land | C80: 1252202 | D80: 0 | E80: 0 | F80: 0 | G80: 1252202 | I80: 0 | J80: 0 | K80: =-'App.2-BA_Fixed Asset Cont'!K115 -> 0 | L80: 0
A81: 1808 | B81: Buildings | C81: 494571.15 | D81: 49354.76 | E81: 0 | F81: 0 | G81: 445216.39 | H81: 30.19078193 | I81: 0.03312269296 | J81: 14746.76579 | K81: =-'App.2-BA_Fixed Asset Cont'!K116 -> 14746.76579 | L81: 0
A82: 1810 | B82: Leasehold Improvements | C82: 0 | D82: 0 | E82: 0 | F82: 0 | G82: 0 | I82: 0 | J82: 0 | K82: =-'App.2-BA_Fixed Asset Cont'!K117 -> 0 | L82: 0
A83: 1815 | B83: Transformer Station Equipment >50 kV | C83: 13935158 | D83: 0 | E83: 0 | F83: 0 | G83: 13935158 | H83: 43.52176104 | I83: 0.02297701141 | J83: 320188.2843 | K83: =-'App.2-BA_Fixed Asset Cont'!K118 -> 320188.2843 | L83: 0
A84: 1820 | B84: Distribution Station Equipment <50 kV | C84: 254798 | D84: 28924 | E84: 0 | F84: 0 | G84: 225874 | H84: 16.88991338 | I84: 0.05920693478 | J84: 13373.30719 | K84: =-'App.2-BA_Fixed Asset Cont'!K119 -> 13373.30719 | L84: -1.818989404e-12
A85: 1825 | B85: Storage Battery Equipment | C85: 0 | D85: 0 | E85: 0 | F85: 0 | G85: 0 | I85: 0 | J85: 0 | K85: =-'App.2-BA_Fixed Asset Cont'!K120 -> 0 | L85: 0
A86: 1830 | B86: Poles, Towers & Fixtures | C86: 10845877.22 | D86: 0 | E86: 415993.02 | F86: 4053 | G86: 11049820.73 | H86: 41.82458028 | I86: 0.02390938518 | J86: 264194.42 | K86: =-'App.2-BA_Fixed Asset Cont'!K121 -> 264194.42 | L86: 0
A87: 1835 | B87: Overhead Conductors & Devices | C87: 6785258.47 | D87: 0 | E87: 280766.5 | F87: 0 | G87: 6925641.72 | H87: 48.46812021 | I87: 0.02063211851 | J87: 142890.6607 | K87: =-'App.2-BA_Fixed Asset Cont'!K122 -> 142890.6607 | L87: 0
A88: 1840 | B88: Underground Conduit | C88: 4274775.6 | D88: 0 | E88: 126385.27 | F88: 0 | G88: 4337968.235 | H88: 41.79444154 | I88: 0.02392662668 | J88: 103792.9465 | K88: =-'App.2-BA_Fixed Asset Cont'!K123 -> 103792.9465 | L88: 1.455191523e-11
A89: 1845 | B89: Underground Conductors & Devices | C89: 6603367.75 | D89: 0 | E89: 460748.52 | F89: 0 | G89: 6833742.01 | H89: 29.81719582 | I89: 0.03353769435 | J89: 229187.9508 | K89: =-'App.2-BA_Fixed Asset Cont'!K124 -> 229187.9508 | L89: 0
A90: 1850 | B90: Line Transformers | C90: 6088942.85 | D90: 0 | E90: 309191.87 | F90: 0 | G90: 6243538.785 | H90: 31.08842824 | I90: 0.03216630935 | J90: 200831.6 | K90: =-'App.2-BA_Fixed Asset Cont'!K125 -> 200831.6 | L90: 0
A91: 1855 | B91: Services (Overhead & Underground) | C91: 2266090.12 | D91: 0 | E91: 315975.29 | F91: 0 | G91: 2424077.765 | H91: 31.41192548 | I91: 0.03183504305 | J91: 77170.62 | K91: =-'App.2-BA_Fixed Asset Cont'!K126 -> 77170.62 | L91: 0
A92: 1860 | B92: Meters | C92: 985525.86 | D92: 0 | E92: 25019.01 | F92: 0 | G92: 998035.365 | H92: 14.30800237 | I92: 0.06989095853 | J92: 69753.64831 | K92: =-'App.2-BA_Fixed Asset Cont'!K127 -> 69753.64831 | L92: 0
A93: 1860 | B93: Meters (Smart Meters) | C93: 2784034.67 | D93: 0 | E93: 79633.99 | F93: 6769 | G93: 2817082.665 | H93: 6.703757159 | I93: 0.1491700812 | J93: 420224.45 | K93: =-'App.2-BA_Fixed Asset Cont'!K128 -> 420224.45 | L93: 0
A94: 1905 | B94: Land | C94: 0 | D94: 0 | E94: 0 | F94: 0 | G94: 0 | I94: 0 | J94: 0 | K94: =-'App.2-BA_Fixed Asset Cont'!K129 -> 0 | L94: 0
A95: 1908 | B95: Buildings & Fixtures | C95: 607215.93 | D95: 10247.14 | E95: 146537.99 | F95: 0 | G95: 670237.785 | H95: 16.30772591 | I95: 0.06132062838 | J95: 41099.40214 | K95: =-'App.2-BA_Fixed Asset Cont'!K130 -> 41099.40214 | L95: 0
A96: 1910 | B96: Leasehold Improvements | C96: 0 | D96: 0 | E96: 0 | F96: 0 | G96: 0 | I96: 0 | J96: 0 | K96: =-'App.2-BA_Fixed Asset Cont'!K131 -> 0 | L96: 0
A97: 1915 | B97: Office Furniture & Equipment (10 years) | C97: 177414.35 | D97: 554.22 | E97: 6485 | F97: 0 | G97: 180102.63 | H97: 9.003774931 | I97: 0.1110645266 | J97: 20003.01333 | K97: =-'App.2-BA_Fixed Asset Cont'!K132 -> 20003.01333 | L97: 0
A98: 1915 | B98: Office Furniture & Equipment (5 years) | C98: 0 | D98: 0 | E98: 0 | F98: 0 | G98: 0 | I98: 0 | J98: 0 | K98: =-'App.2-BA_Fixed Asset Cont'!K133 -> 0 | L98: 0
A99: 1920 | B99: Computer Equipment - Hardware | C99: 0 | D99: 0 | E99: 0 | F99: 0 | G99: 0 | I99: 0 | J99: 0 | K99: =-'App.2-BA_Fixed Asset Cont'!K134 -> 0 | L99: 0
A100: 1920 | B100: Computer Equip.-Hardware(Post Mar. 22/04) | C100: 0 | D100: 0 | E100: 0 | F100: 0 | G100: 0 | I100: 0 | J100: 0 | K100: =-'App.2-BA_Fixed Asset Cont'!K135 -> 0 | L100: 0
A101: 1920 | B101: Computer Equip.-Hardware(Post Mar. 19/07) | C101: 413077.43 | D101: 51227.43 | E101: 116807.37 | F101: 0 | G101: 420253.685 | H101: 4.204183935 | I101: 0.2378582896 | J101: 99960.82271 | K101: =-'App.2-BA_Fixed Asset Cont'!K136 -> 99960.82271 | L101: 0
A102: 1930 | B102: Transportation Equipment | C102: 957521.26 | D102: 0 | E102: 61189.47 | F102: 30763.53 | G102: 957352.465 | H102: 7.856737219 | I102: 0.1272792983 | J102: 121851.15 | K102: =-'App.2-BA_Fixed Asset Cont'!K137 -> 121851.15 | L102: 0
A103: 1935 | B103: Stores Equipment | C103: 0 | D103: 0 | E103: 0 | F103: 0 | G103: 0 | I103: 0 | J103: 0 | K103: =-'App.2-BA_Fixed Asset Cont'!K138 -> 0 | L103: 0
A104: 1940 | B104: Tools, Shop & Garage Equipment | C104: 175349.81 | D104: 41155.72 | E104: 22343.92 | F104: 0 | G104: 145366.05 | H104: 5.309823063 | I104: 0.1883301926 | J104: 27376.81619 | K104: =-'App.2-BA_Fixed Asset Cont'!K139 -> 27376.81619 | L104: 0
A105: 1945 | B105: Measurement & Testing Equipment | C105: 9659 | D105: 6439.32 | E105: 0 | F105: 0 | G105: 3219.68 | H105: 1.000007765 | I105: 0.9999922353 | J105: 3219.655 | K105: =-'App.2-BA_Fixed Asset Cont'!K140 -> 3219.655 | L105: -4.547473509e-13
A106: 1950 | B106: Power Operated Equipment | C106: 0 | D106: 0 | E106: 0 | F106: 0 | G106: 0 | I106: 0 | J106: 0 | K106: =-'App.2-BA_Fixed Asset Cont'!K141 -> 0 | L106: 0
A107: 1955 | B107: Communications Equipment | C107: 3867.85 | D107: 0 | E107: 0 | F107: 366.98 | G107: 3500.87 | H107: 9.062802558 | I107: 0.1103411438 | J107: 386.29 | K107: =-'App.2-BA_Fixed Asset Cont'!K142 -> 386.29 | L107: 0
A108: 1955 | B108: Communication Equipment (Smart Meters) | C108: 0 | D108: 0 | E108: 0 | F108: 0 | G108: 0 | I108: 0 | J108: 0 | K108: =-'App.2-BA_Fixed Asset Cont'!K143 -> 0 | L108: 0
A109: 1960 | B109: Miscellaneous Equipment | C109: 6315.2 | D109: 0 | E109: 0 | F109: 0 | G109: 6315.2 | H109: 5.730442705 | I109: 0.1745065873 | J109: 1102.044 | K109: =-'App.2-BA_Fixed Asset Cont'!K144 -> 1102.044 | L109: 0
A110: 1970 | B110: Load Management Controls Customer Premises | C110: 43749.12 | D110: 39506 | E110: 0 | F110: 0 | G110: 4243.12 | H110: 1 | I110: 1 | J110: 4243.12 | K110: =-'App.2-BA_Fixed Asset Cont'!K145 -> 4243.4725 | L110: 0.3525
A111: 1975 | B111: Load Management Controls Utility Premises | C111: 0 | D111: 0 | E111: 0 | F111: 0 | G111: 0 | I111: 0 | J111: 0 | K111: =-'App.2-BA_Fixed Asset Cont'!K146 -> 0 | L111: 0
A112: 1980 | B112: System Supervisor Equipment | C112: 276025.93 | D112: 0 | E112: 38212.93 | F112: 0 | G112: 295132.395 | H112: 13.30915293 | I112: 0.07513626187 | J112: 22175.14492 | K112: =-'App.2-BA_Fixed Asset Cont'!K147 -> 22175.14492 | L112: 0
A113: 1985 | B113: Miscellaneous Fixed Assets | C113: 0 | D113: 0 | E113: 0 | F113: 0 | G113: 0 | I113: 0 | J113: 0 | K113: =-'App.2-BA_Fixed Asset Cont'!K148 -> 0 | L113: 0
A114: 1990 | B114: Other Tangible Property | C114: 0 | D114: 0 | E114: 0 | F114: 0 | G114: 0 | I114: 0 | J114: 0 | K114: =-'App.2-BA_Fixed Asset Cont'!K149 -> 0 | L114: 0
A115: 1995 | B115: Contributions & Grants | C115: -3499577.84 | D115: 0 | E115: 0 | F115: 0 | G115: -3499577.84 | H115: 35.21884557 | I115: 0.02839388923 | J115: -99366.62555 | K115: =-'App.2-BA_Fixed Asset Cont'!K150 -> -99366.62555 | L115: 0
A116: 2440 | B116: Deferred Revenue | C116: -333945 | D116: 0 | E116: -206584.89 | F116: 0 | G116: -437237.445 | H116: 40.5180008 | I116: 0.02468038848 | J116: -10791.19 | K116: =-'App.2-BA_Fixed Asset Cont'!K151 -> -10791.19 | L116: 0
A117: 2005 | B117: Property Under Finance Lease | C117: 0 | D117: 0 | E117: 0 | F117: 0 | G117: 0 | I117: 0 | J117: 0 | K117: =-'App.2-BA_Fixed Asset Cont'!K152 -> 0 | L117: 0
B118: Total | C118: =SUM(C77:C117) -> 57050938.72 | D118: =SUM(D77:D117) -> 297518.91 | E118: 2431133.88 | G118: =SUM(G78:G117) -> 56960099.07 | H118: 506.9930148 | J118: =SUM(J77:J117) -> 2295819.758 | K118: =SUM(K77:K117) -> 2295820.111 | L118: 0.3525
E121: Year | F121: =F72+1 -> 2017
Q122: 2017
C123: Book Values | G123: Service Lives | I123: Depreciation Expense | Q123: 2018
A124: Account | B124: Description | C124: Opening Book Value of Assets | D124: Less Fully Depreciated 1 | E124: Current Year Additions | F124: Disposals | G124: Net Amount of Assets to be Depreciated | H124: Remaining Life of Assets Existing 2 | I124: Depreciation Rate Assets | J124: Depreciation Expense on Assets 3 | K124: Depreciation Expense per Appendix 2-BA Fixed Assets, Column J | L124: Variance 4
C125: a | D125: b | E125: c | F125: d | G125: e = a-b+0.5*c-d | H125: f | I125: g = 1/f | J125: h = e/f | K125: i | L125: j = i-h
A126: 1609 | B126: Capital Contributions Paid | C126: 966935.17 | D126: 0 | E126: 0 | F126: 0 | G126: =C126-D126+(E126*0.5)-F126 -> 966935.17 | H126: 17.7507218 | I126: =IF(H126=0,0,1/H126) -> 0.05633573729 | J126: =IF(H126=0,0,+G126/H126) -> 54473.00571 | K126: =-'App.2-BA_Fixed Asset Cont'!K175 -> 54473.00571 | L126: =IF(ISERROR(+K126-J126), 0, +K126-J126) -> -7.275957614e-12
A127: 1611 | B127: Computer Software (Formally known as Account 1925) | C127: 839047.12 | D127: 34096.94944 | E127: 282383.14 | F127: 0 | G127: =C127-D127+(E127*0.5)-F127 -> 946141.7406 | H127: 4.828696258 | I127: =IF(H127=0,0,1/H127) -> 0.2070952378 | J127: 195941.4488 | K127: =-'App.2-BA_Fixed Asset Cont'!K176 -> 195941.4488 | L127: =IF(ISERROR(+K127-J127), 0, +K127-J127) -> 2.910383046e-11
A128: 1612 | B128: Land Rights (Formally known as Account 1906) | C128: 0 | D128: 0 | E128: 0 | F128: 0 | G128: 0 | I128: =IF(H128=0,0,1/H128) -> 0 | J128: 0 | K128: =-'App.2-BA_Fixed Asset Cont'!K177 -> 0 | L128: =IF(ISERROR(+K128-J128), 0, +K128-J128) -> 0
A129: 1805 | B129: Land | C129: 1252202 | D129: 0 | E129: 0 | F129: 0 | G129: 1252202 | I129: 0 | J129: 0 | K129: =-'App.2-BA_Fixed Asset Cont'!K178 -> 0 | L129: 0
A130: 1808 | B130: Buildings | C130: 445216.39 | D130: 5036.92 | E130: 0 | F130: 0 | G130: 440179.47 | H130: 29.85210456 | I130: 0.03349847573 | J130: 14745.34129 | K130: =-'App.2-BA_Fixed Asset Cont'!K179 -> 14745.34129 | L130: 0
A131: 1810 | B131: Leasehold Improvements | C131: 0 | D131: 0 | E131: 0 | F131: 0 | G131: 0 | I131: 0 | J131: 0 | K131: =-'App.2-BA_Fixed Asset Cont'!K180 -> 0 | L131: 0
A132: 1815 | B132: Transformer Station Equipment >50 kV | C132: 13935158 | D132: 0 | E132: 0 | F132: 0 | G132: 13935158 | H132: 43.52176104 | I132: 0.02297701141 | J132: 320188.2843 | K132: =-'App.2-BA_Fixed Asset Cont'!K181 -> 320188.2843 | L132: 0
A133: 1820 | B133: Distribution Station Equipment <50 kV | C133: 225874 | D133: 0 | E133: 34695 | F133: 0 | G133: 243221.5 | H133: 17.61581887 | I133: 0.05676715951 | J133: 13806.99369 | K133: =-'App.2-BA_Fixed Asset Cont'!K182 -> 13806.99369 | L133: 0
A134: 1825 | B134: Storage Battery Equipment | C134: 0 | D134: 0 | E134: 0 | F134: 0 | G134: 0 | I134: 0 | J134: 0 | K134: =-'App.2-BA_Fixed Asset Cont'!K183 -> 0 | L134: 0
A135: 1830 | B135: Poles, Towers & Fixtures | C135: 11257817.24 | D135: 0 | E135: 461590.19 | F135: 0 | G135: 11488612.34 | H135: 42.16546019 | I135: 0.02371609358 | J135: 272465.0053 | K135: =-'App.2-BA_Fixed Asset Cont'!K184 -> 272465.0053 | L135: 0
A136: 1835 | B136: Overhead Conductors & Devices | C136: 7066024.97 | D136: 0 | E136: 365637.33 | F136: 0 | G136: 7248843.635 | H136: 48.75407887 | I136: 0.02051110437 | J136: 148681.7883 | K136: =-'App.2-BA_Fixed Asset Cont'!K185 -> 148681.7883 | L136: 0
A137: 1840 | B137: Underground Conduit | C137: 4401160.87 | D137: 0 | E137: 108219.09 | F137: 0 | G137: 4455270.415 | H137: 42.01828134 | I137: 0.02379916475 | J137: 106031.7146 | K137: =-'App.2-BA_Fixed Asset Cont'!K186 -> 106031.7146 | L137: 0
A138: 1845 | B138: Underground Conductors & Devices | C138: 7064116.27 | D138: 0 | E138: 431329.89 | F138: 0 | G138: 7279781.215 | H138: 30.1377868 | I138: 0.03318093683 | J138: 241549.9606 | K138: =-'App.2-BA_Fixed Asset Cont'!K187 -> 241549.9606 | L138: 0
A139: 1850 | B139: Line Transformers | C139: 6398134.72 | D139: 0 | E139: 519430.26 | F139: 0 | G139: 6657849.85 | H139: 31.52549743 | I139: 0.03172035595 | J139: 211189.3671 | K139: =-'App.2-BA_Fixed Asset Cont'!K188 -> 211189.3671 | L139: 0
A140: 1855 | B140: Services (Overhead & Underground) | C140: 2582065.41 | D140: 0 | E140: 336699.45 | F140: 0 | G140: 2750415.135 | H140: 32.48912044 | I140: 0.0307795344 | J140: 84656.49725 | K140: =-'App.2-BA_Fixed Asset Cont'!K189 -> 84656.49725 | L140: 0
A141: 1860 | B141: Meters | C141: 1010544.87 | D141: 0 | E141: 79835.44 | F141: 0 | G141: 1050462.59 | H141: 14.43779322 | I141: 0.06926266258 | J141: 72757.83593 | K141: =-'App.2-BA_Fixed Asset Cont'!K190 -> 72757.83593 | L141: 0
A142: 1860 | B142: Meters (Smart Meters) | C142: 2856899.66 | D142: 0 | E142: 27988.63 | F142: 0 | G142: 2870893.975 | H142: 6.750801508 | I142: 0.1481305588 | J142: 425267.1289 | K142: =-'App.2-BA_Fixed Asset Cont'!K191 -> 425267.1289 | L142: 0
A143: 1905 | B143: Land | C143: 0 | D143: 0 | E143: 0 | F143: 0 | G143: 0 | I143: 0 | J143: 0 | K143: =-'App.2-BA_Fixed Asset Cont'!K192 -> 0 | L143: 0
A144: 1908 | B144: Buildings & Fixtures | C144: 743506.78 | D144: 11442 | E144: 126216.05 | F144: 0 | G144: 795172.805 | H144: 16.72906373 | I144: 0.0597762084 | J144: 47532.41531 | K144: =-'App.2-BA_Fixed Asset Cont'!K193 -> 47532.41531 | L144: 0
A145: 1910 | B145: Leasehold Improvements | C145: 0 | D145: 0 | E145: 0 | F145: 0 | G145: 0 | I145: 0 | J145: 0 | K145: =-'App.2-BA_Fixed Asset Cont'!K194 -> 0 | L145: 0
A146: 1915 | B146: Office Furniture & Equipment (10 years) | C146: 183345.13 | D146: 0 | E146: 9961.69 | F146: 0 | G146: 188325.975 | H146: 9.043113061 | I146: 0.1105813886 | J146: 20825.34783 | K146: =-'App.2-BA_Fixed Asset Cont'!K195 -> 20825.34783 | L146: 0
A147: 1915 | B147: Office Furniture & Equipment (5 years) | C147: 0 | D147: 0 | E147: 0 | F147: 0 | G147: 0 | I147: 0 | J147: 0 | K147: =-'App.2-BA_Fixed Asset Cont'!K196 -> 0 | L147: 0
A148: 1920 | B148: Computer Equipment - Hardware | C148: 0 | D148: 0 | E148: 0 | F148: 0 | G148: 0 | I148: 0 | J148: 0 | K148: =-'App.2-BA_Fixed Asset Cont'!K197 -> 0 | L148: 0
A149: 1920 | B149: Computer Equip.-Hardware(Post Mar. 22/04) | C149: 0 | D149: 0 | E149: 0 | F149: 0 | G149: 0 | I149: 0 | J149: 0 | K149: =-'App.2-BA_Fixed Asset Cont'!K198 -> 0 | L149: 0
A150: 1920 | B150: Computer Equip.-Hardware(Post Mar. 19/07) | C150: 478657.37 | D150: 28799.015 | E150: 93309.125 | F150: 0 | G150: 496512.9175 | H150: 4.613073091 | I150: 0.2167752343 | J150: 107631.704 | K150: =-'App.2-BA_Fixed Asset Cont'!K199 -> 107631.704 | L150: 0
A151: 1930 | B151: Transportation Equipment | C151: 987947.2 | D151: 0 | E151: 7389.79 | F151: 0 | G151: 991642.095 | H151: 8.193760708 | I151: 0.1220440815 | J151: 121024.0487 | K151: =-'App.2-BA_Fixed Asset Cont'!K200 -> 121024.0487 | L151: 0
A152: 1935 | B152: Stores Equipment | C152: 0 | D152: 0 | E152: 0 | F152: 0 | G152: 0 | I152: 0 | J152: 0 | K152: =-'App.2-BA_Fixed Asset Cont'!K201 -> 0 | L152: 0
A153: 1940 | B153: Tools, Shop & Garage Equipment | C153: 156538.01 | D153: 22196.688 | E153: 29482.01 | F153: 0 | G153: 149082.327 | H153: 5.614647566 | I153: 0.1781055691 | J153: 26552.39269 | K153: =-'App.2-BA_Fixed Asset Cont'!K202 -> 26552.39269 | L153: 0
A154: 1945 | B154: Measurement & Testing Equipment | C154: 0 | D154: 0 | E154: 0 | F154: 0 | G154: 0 | I154: 0 | J154: 0 | K154: =-'App.2-BA_Fixed Asset Cont'!K203 -> 0 | L154: 0
A155: 1950 | B155: Power Operated Equipment | C155: 0 | D155: 0 | E155: 0 | F155: 0 | G155: 0 | I155: 0 | J155: 0 | K155: =-'App.2-BA_Fixed Asset Cont'!K204 -> 0 | L155: 0
A156: 1955 | B156: Communications Equipment | C156: 3500.87 | D156: 0 | E156: 0 | F156: 0 | G156: 3500.87 | H156: 9.999914308 | I156: 0.1000008569 | J156: 350.09 | K156: =-'App.2-BA_Fixed Asset Cont'!K205 -> 350.09 | L156: 0
A157: 1955 | B157: Communication Equipment (Smart Meters) | C157: 0 | D157: 0 | E157: 0 | F157: 0 | G157: 0 | I157: 0 | J157: 0 | K157: =-'App.2-BA_Fixed Asset Cont'!K206 -> 0 | L157: 0
A158: 1960 | B158: Miscellaneous Equipment | C158: 6315.2 | D158: 3136.976 | E158: 0 | F158: 0 | G158: 3178.224 | H158: 2.883935669 | I158: 0.3467483727 | J158: 1102.044 | K158: =-'App.2-BA_Fixed Asset Cont'!K207 -> 1102.044 | L158: 0
A159: 1970 | B159: Load Management Controls Customer Premises | C159: 0 | D159: 0 | E159: 0 | F159: 0 | G159: 0 | I159: 0 | J159: 0 | K159: =-'App.2-BA_Fixed Asset Cont'!K208 -> 0 | L159: 0
A160: 1975 | B160: Load Management Controls Utility Premises | C160: 0 | D160: 0 | E160: 0 | F160: 0 | G160: 0 | I160: 0 | J160: 0 | K160: =-'App.2-BA_Fixed Asset Cont'!K209 -> 0 | L160: 0
A161: 1980 | B161: System Supervisor Equipment | C161: 314238.86 | D161: 0 | E161: 41587.8 | F161: 0 | G161: 335032.76 | H161: 13.49341959 | I161: 0.07411019821 | J161: 24829.34425 | K161: =-'App.2-BA_Fixed Asset Cont'!K210 -> 24829.34425 | L161: 0
A162: 1985 | B162: Miscellaneous Fixed Assets | C162: 0 | D162: 0 | E162: 0 | F162: 0 | G162: 0 | I162: 0 | J162: 0 | K162: =-'App.2-BA_Fixed Asset Cont'!K211 -> 0 | L162: 0
A163: 1990 | B163: Other Tangible Property | C163: 0 | D163: 0 | E163: 0 | F163: 0 | G163: 0 | I163: 0 | J163: 0 | K163: =-'App.2-BA_Fixed Asset Cont'!K212 -> 0 | L163: 0
A164: 1995 | B164: Contributions & Grants | C164: -3499577.84 | D164: 0 | E164: 0 | F164: 0 | G164: -3499577.84 | H164: 35.21884557 | I164: 0.02839388923 | J164: -99366.62555 | K164: =-'App.2-BA_Fixed Asset Cont'!K213 -> -99366.62555 | L164: 0
A165: 2440 | B165: Deferred Revenue | C165: -540529.89 | D165: 0 | E165: -371809.51 | F165: 0 | G165: -726434.645 | H165: 59.35621879 | I165: 0.01684743436 | J165: -12238.56 | K165: =-'App.2-BA_Fixed Asset Cont'!K214 -> -12238.56 | L165: 0
A166: 2005 | B166: Property Under Finance Lease | C166: 0 | D166: 0 | E166: 0 | F166: 0 | G166: 0 | I166: 0 | J166: 0 | K166: =-'App.2-BA_Fixed Asset Cont'!K215 -> 0 | L166: 0
B167: Total | C167: =SUM(C126:C166) -> 59135138.38 | D167: =SUM(D126:D166) -> 104708.5484 | E167: 2583945.375 | G167: =SUM(G127:G166) -> 59355467.35 | H167: 526.9939144 | J167: =SUM(J126:J166) -> 2399996.573 | K167: =SUM(K126:K166) -> 2399996.573 | L167: 2.182787284e-11
E170: Year | F170: =F121+1 -> 2018
Q171: 2017
C172: Book Values | G172: Service Lives | I172: Depreciation Expense | Q172: 2018
A173: Account | B173: Description | C173: Opening Book Value of Assets | D173: Less Fully Depreciated 1 | E173: Current Year Additions | F173: Disposals | G173: Net Amount of Assets to be Depreciated | H173: Remaining Life of Assets Existing 2 | I173: Depreciation Rate Assets | J173: Depreciation Expense on Assets 3 | K173: Depreciation Expense per Appendix 2-BA Fixed Assets, Column J | L173: Variance 4
C174: a | D174: b | E174: c | F174: d | G174: e = a-b+0.5*c-d | H174: f | I174: g = 1/f | J174: h = e/f | K174: i | L174: j = i-h
A175: 1609 | B175: Capital Contributions Paid | C175: 966935.17 | D175: 0 | E175: 0 | F175: 0 | G175: =C175-D175+(E175*0.5)-F175 -> 966935.17 | H175: 17.75056539 | I175: =IF(H175=0,0,1/H175) -> 0.0563362337 | J175: =IF(H175=0,0,+G175/H175) -> 54473.48571 | K175: =-'App.2-BA_Fixed Asset Cont'!K238 -> 54473.48571 | L175: =IF(ISERROR(+K175-J175), 0, +K175-J175) -> 0
A176: 1611 | B176: Computer Software (Formally known as Account 1925) | C176: 1087333.311 | D176: 82898.403 | E176: 178912.34 | F176: 0 | G176: =C176-D176+(E176*0.5)-F176 -> 1093891.078 | H176: 4.797999009 | I176: =IF(H176=0,0,1/H176) -> 0.2084202181 | J176: 227989.017 | K176: =-'App.2-BA_Fixed Asset Cont'!K239 -> 227989.017 | L176: =IF(ISERROR(+K176-J176), 0, +K176-J176) -> 0
A177: 1612 | B177: Land Rights (Formally known as Account 1906) | C177: 0 | D177: 0 | E177: 0 | F177: 0 | G177: 0 | I177: =IF(H177=0,0,1/H177) -> 0 | J177: 0 | K177: =-'App.2-BA_Fixed Asset Cont'!K240 -> 0 | L177: =IF(ISERROR(+K177-J177), 0, +K177-J177) -> 0
A178: 1805 | B178: Land | C178: 1252202 | D178: 0 | E178: 0 | F178: 0 | G178: 1252202 | I178: 0 | J178: 0 | K178: =-'App.2-BA_Fixed Asset Cont'!K241 -> 0 | L178: 0
A179: 1808 | B179: Buildings | C179: 440179.47 | D179: 1577.016667 | E179: 0 | F179: 0 | G179: 438602.4533 | H179: 32.52252958 | I179: 0.03074791577 | J179: 13486.11129 | K179: =-'App.2-BA_Fixed Asset Cont'!K242 -> 13486.11129 | L179: 0
A180: 1810 | B180: Leasehold Improvements | C180: 0 | D180: 0 | E180: 0 | F180: 0 | G180: 0 | I180: 0 | J180: 0 | K180: =-'App.2-BA_Fixed Asset Cont'!K243 -> 0 | L180: 0
A181: 1815 | B181: Transformer Station Equipment >50 kV | C181: 13935158 | D181: 0 | E181: 5300 | F181: 0 | G181: 13937808 | H181: 43.53003742 | I181: 0.02297264278 | J181: 320188.2843 | K181: =-'App.2-BA_Fixed Asset Cont'!K244 -> 320188.2843 | L181: 0
A182: 1820 | B182: Distribution Station Equipment <50 kV | C182: 260569 | D182: 0 | E182: 21739.2 | F182: 0 | G182: 271438.6 | H182: 18.70388236 | I182: 0.05346483583 | J182: 14512.42019 | K182: =-'App.2-BA_Fixed Asset Cont'!K245 -> 14512.42019 | L182: 0
A183: 1825 | B183: Storage Battery Equipment | C183: 0 | D183: 0 | E183: 0 | F183: 0 | G183: 0 | I183: 0 | J183: 0 | K183: =-'App.2-BA_Fixed Asset Cont'!K246 -> 0 | L183: 0
A184: 1830 | B184: Poles, Towers & Fixtures | C184: 11719407.43 | D184: 0 | E184: 530251.33 | F184: 0 | G184: 11984533.09 | H184: 42.63304659 | I184: 0.02345598262 | J184: 281109 | K184: =-'App.2-BA_Fixed Asset Cont'!K247 -> 281109 | L184: 0
A185: 1835 | B185: Overhead Conductors & Devices | C185: 7431662.3 | D185: 0 | E185: 404796.11 | F185: 0 | G185: 7634060.355 | H185: 49.1040614 | I185: 0.02036491425 | J185: 155466.9845 | K185: =-'App.2-BA_Fixed Asset Cont'!K248 -> 155466.9845 | L185: 0
A186: 1840 | B186: Underground Conduit | C186: 4509379.96 | D186: 0 | E186: 415525.97 | F186: 0 | G186: 4717142.945 | H186: 41.1058502 | I186: 0.02432743746 | J186: 114756 | K186: =-'App.2-BA_Fixed Asset Cont'!K249 -> 114756 | L186: 0
A187: 1845 | B187: Underground Conductors & Devices | C187: 7495446.16 | D187: 529.15 | E187: 736820.73 | F187: 0 | G187: 7863327.375 | H187: 30.5482092 | I187: 0.03273514311 | J187: 257407.147 | K187: =-'App.2-BA_Fixed Asset Cont'!K250 -> 257407.147 | L187: 0
A188: 1850 | B188: Line Transformers | C188: 6917564.98 | D188: 0 | E188: 305727.41 | F188: 0 | G188: 7070428.685 | H188: 31.92102944 | I188: 0.03132731047 | J188: 221497.5146 | K188: =-'App.2-BA_Fixed Asset Cont'!K251 -> 221497.5146 | L188: 0
A189: 1855 | B189: Services (Overhead & Underground) | C189: 2918764.86 | D189: 0 | E189: 271628.51 | F189: 0 | G189: 3054579.115 | H189: 33.32810189 | I189: 0.03000470904 | J189: 91651.75758 | K189: =-'App.2-BA_Fixed Asset Cont'!K252 -> 91651.75758 | L189: 0
A190: 1860 | B190: Meters | C190: 1090380.31 | D190: 547.0266667 | E190: 132779.64 | F190: 0 | G190: 1156223.103 | H190: 14.5559569 | I190: 0.06870039577 | J190: 79432.9848 | K190: =-'App.2-BA_Fixed Asset Cont'!K253 -> 79432.9848 | L190: 0
A191: 1860 | B191: Meters (Smart Meters) | C191: 2884888.29 | D191: 5024.183333 | E191: 114129.86 | F191: 0 | G191: 2936929.037 | H191: 6.792581114 | I191: 0.1472194418 | J191: 432373.0534 | K191: =-'App.2-BA_Fixed Asset Cont'!K254 -> 432373.0534 | L191: 0
A192: 1905 | B192: Land | C192: 0 | D192: 0 | E192: 0 | F192: 0 | G192: 0 | I192: 0 | J192: 0 | K192: =-'App.2-BA_Fixed Asset Cont'!K255 -> 0 | L192: 0
A193: 1908 | B193: Buildings & Fixtures | C193: 858280.83 | D193: 11465.27778 | E193: 183587.87 | F193: 0 | G193: 938609.4872 | H193: 16.3816027 | I193: 0.06104408818 | J193: 57296.56031 | K193: =-'App.2-BA_Fixed Asset Cont'!K256 -> 57296.56031 | L193: 0
A194: 1910 | B194: Leasehold Improvements | C194: 0 | D194: 0 | E194: 0 | F194: 0 | G194: 0 | I194: 0 | J194: 0 | K194: =-'App.2-BA_Fixed Asset Cont'!K257 -> 0 | L194: 0
A195: 1915 | B195: Office Furniture & Equipment (10 years) | C195: 193306.82 | D195: 13630.1 | E195: 9763.7 | F195: 0 | G195: 184558.57 | H195: 8.461480283 | I195: 0.1181826308 | J195: 21811.61733 | K195: =-'App.2-BA_Fixed Asset Cont'!K258 -> 21811.61733 | L195: 0
A196: 1915 | B196: Office Furniture & Equipment (5 years) | C196: 0 | D196: 0 | E196: 0 | F196: 0 | G196: 0 | I196: 0 | J196: 0 | K196: =-'App.2-BA_Fixed Asset Cont'!K259 -> 0 | L196: 0
A197: 1920 | B197: Computer Equipment - Hardware | C197: 0 | D197: 0 | E197: 0 | F197: 0 | G197: 0 | I197: 0 | J197: 0 | K197: =-'App.2-BA_Fixed Asset Cont'!K260 -> 0 | L197: 0
A198: 1920 | B198: Computer Equip.-Hardware(Post Mar. 22/04) | C198: 0 | D198: 0 | E198: 0 | F198: 0 | G198: 0 | I198: 0 | J198: 0 | K198: =-'App.2-BA_Fixed Asset Cont'!K261 -> 0 | L198: 0
A199: 1920 | B199: Computer Equip.-Hardware(Post Mar. 19/07) | C199: 543167.48 | D199: 189680.238 | E199: 94549.07 | F199: 0 | G199: 400761.777 | H199: 3.959007062 | I199: 0.2525885871 | J199: 101227.851 | K199: =-'App.2-BA_Fixed Asset Cont'!K262 -> 101227.851 | L199: 0
A200: 1930 | B200: Transportation Equipment | C200: 995336.99 | D200: 63268.01 | E200: 334227.19 | F200: 0 | G200: 1099182.575 | H200: 8.104000885 | I200: 0.1233958404 | J200: 135634.5576 | K200: =-'App.2-BA_Fixed Asset Cont'!K263 -> 135634.5576 | L200: 0
A201: 1935 | B201: Stores Equipment | C201: 0 | D201: 0 | E201: 0 | F201: 0 | G201: 0 | I201: 0 | J201: 0 | K201: =-'App.2-BA_Fixed Asset Cont'!K264 -> 0 | L201: 0
A202: 1940 | B202: Tools, Shop & Garage Equipment | C202: 163823.332 | D202: 22404.29167 | E202: 35756.66 | F202: 0 | G202: 159297.3703 | H202: 6.564861245 | I202: 0.1523261441 | J202: 24265.15419 | K202: =-'App.2-BA_Fixed Asset Cont'!K265 -> 24265.15419 | L202: 0
A203: 1945 | B203: Measurement & Testing Equipment | C203: 0 | D203: 0 | E203: 0 | F203: 0 | G203: 0 | I203: 0 | J203: 0 | K203: =-'App.2-BA_Fixed Asset Cont'!K266 -> 0 | L203: 0
A204: 1950 | B204: Power Operated Equipment | C204: 0 | D204: 0 | E204: 0 | F204: 0 | G204: 0 | I204: 0 | J204: 0 | K204: =-'App.2-BA_Fixed Asset Cont'!K267 -> 0 | L204: 0
A205: 1955 | B205: Communications Equipment | C205: 3500.87 | D205: 0 | E205: 0 | F205: 0 | G205: 3500.87 | H205: 9.999914308 | I205: 0.1000008569 | J205: 350.09 | K205: =-'App.2-BA_Fixed Asset Cont'!K268 -> 350.09 | L205: 0
A206: 1955 | B206: Communication Equipment (Smart Meters) | C206: 0 | D206: 0 | E206: 0 | F206: 0 | G206: 0 | I206: 0 | J206: 0 | K206: =-'App.2-BA_Fixed Asset Cont'!K269 -> 0 | L206: 0
A207: 1960 | B207: Miscellaneous Equipment | C207: 3178.224 | D207: 0 | E207: 0 | F207: 0 | G207: 3178.224 | H207: 10.00070485 | I207: 0.09999295204 | J207: 317.8 | K207: =-'App.2-BA_Fixed Asset Cont'!K270 -> 317.8 | L207: 0
A208: 1970 | B208: Load Management Controls Customer Premises | C208: 0 | D208: 0 | E208: 0 | F208: 0 | G208: 0 | I208: 0 | J208: 0 | K208: =-'App.2-BA_Fixed Asset Cont'!K271 -> 0 | L208: 0
A209: 1975 | B209: Load Management Controls Utility Premises | C209: 0 | D209: 0 | E209: 0 | F209: 0 | G209: 0 | I209: 0 | J209: 0 | K209: =-'App.2-BA_Fixed Asset Cont'!K272 -> 0 | L209: 0
A210: 1980 | B210: System Supervisor Equipment | C210: 355826.66 | D210: 1024.94 | E210: 42533.75 | F210: 0 | G210: 376068.595 | H210: 13.60346972 | I210: 0.07351065723 | J210: 27645.04958 | K210: =-'App.2-BA_Fixed Asset Cont'!K273 -> 27645.04958 | L210: 0
A211: 1985 | B211: Miscellaneous Fixed Assets | C211: 0 | D211: 0 | E211: 0 | F211: 0 | G211: 0 | I211: 0 | J211: 0 | K211: =-'App.2-BA_Fixed Asset Cont'!K274 -> 0 | L211: 0
... 334 more rows

Sheet App.2-D_Overhead
K1: File Number: | L1: =EBNUMBER -> EB-2024-0023
K2: Exhibit: | L2: 2
K3: Tab:
K4: Schedule: | L4: Table 2-59
K5: Page: | L5: 86
K7: Date: | L7: 45408
A9: Appendix 2-D
A10: Overhead Expense
A12: Applicants are to provide a breakdown of OM&A before capitalization in the below table. OM&A before capitalization may be broken down by cost center, program, drivers or another format best suited to focus on capitalized vs. uncapitalized OM&A.
A14: OM&A Before Capitalization
B15: =L15-10 -> 2015 | C15: =L15-9 -> 2016 | D15: =L15-8 -> 2017 | E15: =L15-7 -> 2018 | F15: =L15-6 -> 2019 | G15: =L15-5 -> 2020 | H15: =L15-4 -> 2021 | I15: =L15-3 -> 2022 | J15: =L15-2 -> 2023 | K15: =L15-1 -> 2024 | L15: =TestYear -> 2025
B16: Historical Year | C16: Historical Year | D16: Historical Year | E16: Historical Year | F16: Historical Year | G16: Historical Year | H16: Historical Year | I16: Historical Year | J16: Historical Year | K16: Bridge Year | L16: Test Year
A17: Operations Expense | B17: 1221496.893 | C17: 1254465.765 | D17: 1240602.662 | E17: 1479405.745 | F17: 1162812.255 | G17: 1359467.922 | H17: 1154952.295 | I17: 1375403.335 | J17: 1567661.812 | K17: 1771298.915 | L17: 1902584.657
A18: Maintenance Expense | B18: 1689048.738 | C18: 1608783.425 | D18: 1784230.307 | E18: 1930410.625 | F18: 1829482.945 | G18: 1775631.228 | H18: 2058803.525 | I18: 2255609.705 | J18: 2229551.768 | K18: 2405271.662 | L18: 2653668.313
A19: Billing & Collections Expense | B19: 1251775.95 | C19: 1295738.71 | D19: 1272764.55 | E19: 1188727.35 | F19: 1259372.84 | G19: 1208934.48 | H19: 1293456.97 | I19: 1283485.5 | J19: 1448422.76 | K19: 1542185.089 | L19: 1707271.275
A20: Community Relations Expense | B20: 11632.26 | C20: 9900.03 | D20: 13400.15 | E20: 9745.07 | F20: 7412.72 | G20: 12267.63 | H20: 1015 | I20: 1115 | J20: 0 | K20: 9506.851621 | L20: 19426.58386
A21: Administration & General | B21: 2130943.36 | C21: 2511500.335 | D21: 2361487.05 | E21: 2821356.78 | F21: 2639221.42 | G21: 2585385.35 | H21: 2645657.08 | I21: 2945304.69 | J21: 3396030.06 | K21: 3772181.903 | L21: 4408727.767
A22: LEAP | B22: 13000 | C22: 13200 | D22: 13410 | E22: 13510 | F22: 13650 | G22: 13860 | H22: 30060 | I22: 14550 | J22: 15000 | K22: 15630 | L22: 20050
A27: Total OM&A Before Capitalization (B) | B27: =SUM(B17:B26) -> 6317897.2 | C27: =SUM(C17:C26) -> 6693588.265 | D27: 6685894.72 | E27: 7443155.57 | F27: 6911952.18 | G27: 6955546.61 | H27: 7183944.87 | I27: 7875468.23 | J27: 8656666.4 | K27: 9516074.421 | L27: 10711728.6
A29: Applicants are to provide a breakdown of capitalized OM&A in the below table. Capitalized OM&A may be broken down using the categories listed in the table below if possible. Otherwise, applicants are to provide its own break down of capitalized OM&A.
A31: Capitalized OM&A | M31: Directly | N31: Explanation for Any Change in Treatment of Capitalized Overhead
B32: =B15 -> 2015 | C32: =C15 -> 2016 | D32: 2017 | E32: 2018 | F32: 2019 | G32: 2020 | H32: 2021 | I32: 2022 | J32: 2023 | K32: 2024 | L32: 2025 | M32: Attributable?
B33: Historical Year | C33: Historical Year | D33: Historical Year | E33: Historical Year | F33: Historical Year | G33: Historical Year | H33: Historical Year | I33: Historical Year | J33: Historical Year | K33: Bridge Year | L33: Test Year | M33: (Yes/No)
A34: employee benefits
A35: costs of site preparation
A36: initial delivery and handling costs
A37: costs of testing whether the asset is functioning properly
A38: professional fees
A39: Benefit Costs and Labour Burden | B39: 797106.28 | C39: 806295.61 | D39: 823668.7 | E39: 895062.8 | F39: 662220.15 | G39: 675392.38 | H39: 899309.56 | I39: 865124.1 | J39: 928945.26 | K39: 1015800.65 | L39: 1124749 | M39: Yes
A40: Transportation and Fleet Costs | B40: 166313.54 | C40: 144290.8 | D40: 163401.9 | E40: 160529.1 | F40: 135629.6 | G40: 102182.1 | H40: 139772.8 | I40: 128735.88 | J40: 123267.4 | K40: 131022.2 | L40: 156719 | M40: Yes
A47: Total Capitalized OM&A (A) | B47: =SUM(B34:B46) -> 963419.82 | C47: 950586.41 | D47: 987070.6 | E47: 1055591.9 | F47: 797849.75 | G47: 777574.48 | H47: 1039082.36 | I47: 993859.98 | J47: 1052212.66 | K47: 1146822.85 | L47: 1281468
A49: % of Capitalized OM&A (=A/B) | B49: =IF(ISERROR(B47/B27),"0%",B47/B27) -> 0.1524905818 | C49: 0.142014473 | D49: 0.1476347806 | E49: 0.1418204806 | F49: 0.1154304499 | G49: 0.1117920019 | H49: 0.1446395231 | I49: 0.1261969385 | J49: 0.1215494061 | K49: 0.1205142792 | L49: 0.119632232

Sheet App.2-EA_Account 1575 (2015) (hidden)
H1: File Number: | I1: =EBNUMBER -> EB-2024-0023
H2: Exhibit:
H3: Tab:
H4: Schedule:
H5: Page:
H7: Date:
A9: Appendix 2-EA
A10: Account 1575 - IFRS-CGAAP Transitional PP&E Amounts
A11: 2015 Adopters of IFRS for Financial Reporting Purposes
A13: For applicants that adopted IFRS on January 1, 2015 for financial reporting purposes
B17: 2014 | C17: =TestYear-3 -> 2022 | D17: =TestYear-2 -> 2023 | E17: =CONCATENATE(TestYear-1," Bridge Year") -> 2024 Bridge Year | F17: =CONCATENATE(TestYear," Rebasing Year") -> 2025 Rebasing Year
A18: Reporting Basis | B18: CGAAP | C18: CGAAP | D18: CGAAP | E18: MIFRS | F18: MIFRS
B19: Actual | C19: Actual | D19: Actual | E19: Forecast | F19: Forecast
D20: $ | E20: $
A21: PP&E Values under CGAAP
A22: Opening net PP&E - Note 1 | C22: =+B25 -> 0 | D22: =+C25 -> 0 | E22: =+D25 -> 0
A23: Net Additions - Note 4
A24: Net Depreciation (amounts should be negative) - Note 4
A25: Closing net PP&E (1) | B25: =SUM(B22:B24) -> 0 | C25: =SUM(C22:C24) -> 0 | D25: =SUM(D22:D24) -> 0 | E25: =SUM(E22:E24) -> 0
A27: PP&E Values under MIFRS (Starts from 2014, the transition year)
A28: Opening net PP&E - Note 1 | C28: =+B31 -> 0 | D28: =+C31 -> 0 | E28: =+D31 -> 0
A29: Net Additions - Note 4
A30: Net Depreciation (amounts should be negative) - Note 4
A31: Closing net PP&E (2) | B31: =SUM(B28:B30) -> 0 | C31: =SUM(C28:C30) -> 0 | D31: =SUM(D28:D30) -> 0 | E31: =SUM(E28:E30) -> 0
A33: Difference in Closing net PP&E, former CGAAP vs. revised CGAAP | B33: =B25-B31 -> 0 | C33: =C25-C31 -> 0 | D33: =D25-D31 -> 0 | E33: =E25-E31 -> 0
A36: Effect on Deferral and Variance Account Rate Riders
A37: Closing balance in Account 1575 | F37: =IF(ISERROR(E33), 0, E33) -> 0 | H37: WACC
A38: Return on Rate Base Associated with Account 1575 balance at WACC - Note 2 | F38: =E33*I37*I38 -> 0 | G38: # of years of rate rider disposition period
A39: Amount included in Deferral and Variance Account Rate Rider Calculation | F39: =F37+F38 -> 0
A41: Notes:
A42: 1 For an applicant that adopted IFRS on January 1, 2015, the PP&E values as of January 1, 2014 under both CGAAP and MIFRS should be the same.
A43: 2 Return on rate base associated with deferred balance is calculated as:
A44: the deferral account closing balance as of 2017 x WACC X # of years of rate rider disposition period
A45: * Please note that the calculation should be adjusted once WACC is updated and finalized in the rate application.
A46: 3 The PP&E deferral account is cleared by including the total balance in the deferral and variance account rate rider calculation.
A47: 4 Net additions are additions net of disposals; Net depreciation is additions to depreciation net of disposals.

Sheet App.2-EB_Account 1576 (2012) (hidden)
K1: File Number: | L1: =EBNUMBER -> EB-2024-0023
K2: Exhibit:
K3: Tab:
K4: Schedule:
K5: Page:
K7: Date:
A9: Appendix 2-EB
A10: Account 1576 - Accounting Changes under CGAAP
A11: 2012 Changes in Accounting Policies under CGAAP
A13: For applicants with a balance in Account 1576 and made capitalization and depreciation expense accounting policy changes under CGAAP effective January 1, 2012. This is the first time the applicant is rebasing with changes in these accounting policies.
B17: Prior Years Rebasing | C17: 2012 | D17: 2013 | E17: 2014 | F17: 2015 | G17: 2016 | H17: 2017 | I17: 2018 Rebasing Year
A18: Reporting Basis | B18: CGAAP | C18: CGAAP | D18: CGAAP | E18: CGAAP | F18: MIFRS - Note 5 | G18: MIFRS | H18: MIFRS | I18: MIFRS
B19: Forecast | C19: Actual | D19: Actual | E19: Actual | F19: Actual | G19: Actual | H19: Forecast | I19: Forecast
C20: $ | D20: $ | E20: $ | F20: $ | G20: $ | H20: $
A21: PP&E Values under former CGAAP
A22: Opening net PP&E - Note 1 | D22: =+C25 -> 0 | E22: =+D25 -> 0 | F22: =+E25 -> 0 | G22: =+F25 -> 0 | H22: =+G25 -> 0
A23: Net Additions - Note 4
A24: Net Depreciation (amounts should be negative) - Note 4
A25: Closing net PP&E (1) | C25: =C22+C23+C24 -> 0 | D25: 0 | E25: 0 | F25: 0 | G25: 0 | H25: 0
A27: PP&E Values under revised CGAAP (Starts from 2012)
A28: Opening net PP&E - Note 1 | D28: =+C31 -> 0 | E28: =+D31 -> 0 | F28: =+E31 -> 0 | G28: =+F31 -> 0 | H28: =+G31 -> 0
A29: Net Additions - Note 4
A30: Net Depreciation (amounts should be negative) - Note 4
A31: Closing net PP&E (2) | C31: =SUM(C28:C30) -> 0 | D31: 0 | E31: 0 | F31: 0 | G31: 0 | H31: 0
A33: Difference in Closing net PP&E, former CGAAP vs. revised CGAAP | C33: =C25-C31 -> 0 | D33: 0 | E33: 0 | F33: 0 | G33: 0 | H33: 0
A36: Effect on Deferral and Variance Account Rate Riders
A37: Closing balance in Account 1576 | I37: =IF(ISERROR(H33), 0, H33) -> 0 | K37: WACC
A38: Return on Rate Base Associated with Account 1576 balance at WACC - Note 2 | I38: =H33*L37*L38 -> 0 | J38: # of years of rate rider disposition period
A39: Amount included in Deferral and Variance Account Rate Rider Calculation | I39: =I37+I38 -> 0
A41: Notes:
A42: 1 For an applicant that made the capitalization and depreciation expense accounting policy changes on January 1, 2012, the PP&E values as of January 1, 2012 under both former CGAAP and revised CGAAP should be the same.
A43: 2 Return on rate base associated with Account 1576 balance is calculated as:
A44: the variance account ending balance as of 2017 x WACC X # of years of rate rider disposition period
A45: * Please note that the calculation should be adjusted once WACC is updated and finalized in the rate application.
A46: 3 Account 1576 is cleared by including the total balance in the deferral and variance account rate rider calculation.
A47: 4 Net additions are additions net of disposals; Net depreciation is additions to depreciation net of disposals.
A48: 5 Differences due to the adoption of MIFRS are to be shown separately in Account 1575 in Appendix 2-EA as Accounts 1575 and 1576 cannot be used interchangably.

Sheet App.2-EC_Account 1576 (2013) (hidden)
J1: File Number: | K1: =EBNUMBER -> EB-2024-0023
J2: Exhibit:
J3: Tab:
J4: Schedule:
J5: Page:
J7: Date:
A9: Appendix 2-EC
A10: Account 1576 - Accounting Changes under CGAAP
A11: 2013 Changes in Accounting Policies under CGAAP
A13: For applicants with a balance in Account 1576 and made capitalization and depreciation expense accounting policy changes under CGAAP effective January 1, 2013. This is the first time the applicant is rebasing with changes in these accounting policies.
B17: Prior Years Rebasing | C17: 2013 | D17: 2014 | E17: 2015 | F17: 2016 | G17: 2017 | H17: 2018 Rebasing Year
A18: Reporting Basis | B18: CGAAP | C18: CGAAP | D18: CGAAP | E18: MIFRS - Note 5 | F18: MIFRS | G18: MIFRS | H18: MIFRS
B19: Actual | C19: Actual | D19: Actual | E19: Actual | F19: Actual | G19: Forecast | H19: Forecast
C20: $ | D20: $ | F20: $
A21: PP&E Values under former CGAAP
A22: Opening net PP&E - Note 1 | D22: =+C25 -> 0 | E22: =+D25 -> 0 | F22: =+E25 -> 0 | G22: =+F25 -> 0
A23: Net Additions - Note 4
A24: Net Depreciation (amounts should be negative) - Note 4
A25: Closing net PP&E (1) | C25: =C22+C23+C24 -> 0 | D25: =D22+D23+D24 -> 0 | E25: =E22+E23+E24 -> 0 | F25: =F22+F23+F24 -> 0 | G25: =G22+G23+G24 -> 0
A27: PP&E Values under revised CGAAP (Starts from 2012)
A28: Opening net PP&E - Note 1 | D28: =+C31 -> 0 | E28: =+D31 -> 0 | F28: =+E31 -> 0 | G28: =+F31 -> 0
A29: Net Additions - Note 4
A30: Net Depreciation (amounts should be negative) - Note 4
A31: Closing net PP&E (2) | C31: =SUM(C28:C30) -> 0 | D31: =SUM(D28:D30) -> 0 | E31: =SUM(E28:E30) -> 0 | F31: =SUM(F28:F30) -> 0 | G31: =SUM(G28:G30) -> 0
A33: Difference in Closing net PP&E, former CGAAP vs. revised CGAAP | C33: =C25-C31 -> 0 | D33: =D25-D31 -> 0 | E33: =E25-E31 -> 0 | F33: =F25-F31 -> 0 | G33: =G25-G31 -> 0
A36: Effect on Deferral and Variance Account Rate Riders
A37: Closing balance in Account 1576 | H37: =IF(ISERROR(G33), 0, G33) -> 0 | J37: WACC
A38: Return on Rate Base Associated with Account 1576 balance at WACC - Note 2 | H38: =G33*K37*K38 -> 0 | I38: # of years of rate rider disposition period
A39: Amount included in Deferral and Variance Account Rate Rider Calculation | H39: =H37+H38 -> 0
A41: Notes:
A42: 1 For an applicant that made the capitalization and depreciation expense accounting policy changes on January 1, 2013, the PP&E values as of January 1, 2013 under both former CGAAP and revised CGAAP should be the same.
A43: 2 Return on rate base associated with Account 1576 balance is calculated as:
A44: the variance account ending balance as of 2017 x WACC X # of years of rate rider disposition period
A45: * Please note that the calculation should be adjusted once WACC is updated and finalized in the rate application.
A46: 3 Account 1576 is cleared by including the total balance in the deferral and variance account rate rider calculation.
A47: 4 Net additions are additions net of disposals; Net depreciation is additions to depreciation net of disposals.
A48: 5 Differences due to the adoption of MIFRS are to be shown separately in Account 1575 in Appendix 2-EA as Accounts 1575 and 1576 cannot be used interchangably.

Sheet Hidden_REG Invest. (hidden)
A1: Utility Name | B1: EB Number | C1: Test Year | D1: Bridge Year | E1: Last Rebasing Year | F1: Renewable Generation Connection Investment Summary | G1: Year | H1: Amount
A2: ='LDC Info'!$E$14 -> Festival Hydro Inc. | B2: =EBNUMBER -> EB-2024-0023 | C2: =TestYear -> 2025 | D2: =BridgeYear -> 2024 | E2: =RebaseYear -> 2015 | F2: REI Investments_A_Total Capital Costs | G2: ='App.2-FA Proposed REG Invest.'!$C$31 -> 2020 | H2: ='App.2-FA Proposed REG Invest.'!C62 -> 0
A3: ='LDC Info'!$E$14 -> Festival Hydro Inc. | B3: EB-2024-0023 | C3: 2025 | D3: 2024 | E3: 2015 | F3: REI Investments_A_Total OM&A Start-Up | G3: ='App.2-FA Proposed REG Invest.'!$C$31 -> 2020 | H3: ='App.2-FA Proposed REG Invest.'!$C63 -> 0
A4: ='LDC Info'!$E$14 -> Festival Hydro Inc. | B4: EB-2024-0023 | C4: 2025 | D4: 2024 | E4: 2015 | F4: REI Investments_A_Total OM&A Ongoing | G4: ='App.2-FA Proposed REG Invest.'!$C$31 -> 2020 | H4: ='App.2-FA Proposed REG Invest.'!$C64 -> 0
A5: ='LDC Info'!$E$14 -> Festival Hydro Inc. | B5: EB-2024-0023 | C5: 2025 | D5: 2024 | E5: 2015 | F5: REI Investments_A_Total Capital Costs | G5: ='App.2-FA Proposed REG Invest.'!$D$31 -> 2021 | H5: ='App.2-FA Proposed REG Invest.'!D62 -> 0
A6: ='LDC Info'!$E$14 -> Festival Hydro Inc. | B6: EB-2024-0023 | C6: 2025 | D6: 2024 | E6: 2015 | F6: REI Investments_A_Total OM&A Start-Up | G6: ='App.2-FA Proposed REG Invest.'!$D$31 -> 2021 | H6: ='App.2-FA Proposed REG Invest.'!D63 -> 0
A7: ='LDC Info'!$E$14 -> Festival Hydro Inc. | B7: EB-2024-0023 | C7: 2025 | D7: 2024 | E7: 2015 | F7: REI Investments_A_Total OM&A Ongoing | G7: ='App.2-FA Proposed REG Invest.'!$D$31 -> 2021 | H7: ='App.2-FA Proposed REG Invest.'!D64 -> 0
A8: ='LDC Info'!$E$14 -> Festival Hydro Inc. | B8: EB-2024-0023 | C8: 2025 | D8: 2024 | E8: 2015 | F8: REI Investments_A_Total Capital Costs | G8: ='App.2-FA Proposed REG Invest.'!$E$31 -> 2022 | H8: ='App.2-FA Proposed REG Invest.'!E62 -> 0
A9: ='LDC Info'!$E$14 -> Festival Hydro Inc. | B9: EB-2024-0023 | C9: 2025 | D9: 2024 | E9: 2015 | F9: REI Investments_A_Total OM&A Start-Up | G9: ='App.2-FA Proposed REG Invest.'!$E$31 -> 2022 | H9: ='App.2-FA Proposed REG Invest.'!E63 -> 0
A10: ='LDC Info'!$E$14 -> Festival Hydro Inc. | B10: EB-2024-0023 | C10: 2025 | D10: 2024 | E10: 2015 | F10: REI Investments_A_Total OM&A Ongoing | G10: ='App.2-FA Proposed REG Invest.'!$E$31 -> 2022 | H10: ='App.2-FA Proposed REG Invest.'!E64 -> 0
A11: ='LDC Info'!$E$14 -> Festival Hydro Inc. | B11: EB-2024-0023 | C11: 2025 | D11: 2024 | E11: 2015 | F11: REI Investments_A_Total Capital Costs | G11: ='App.2-FA Proposed REG Invest.'!$F$31 -> 2023 | H11: ='App.2-FA Proposed REG Invest.'!F62 -> 0
A12: ='LDC Info'!$E$14 -> Festival Hydro Inc. | B12: EB-2024-0023 | C12: 2025 | D12: 2024 | E12: 2015 | F12: REI Investments_A_Total OM&A Start-Up | G12: ='App.2-FA Proposed REG Invest.'!$F$31 -> 2023 | H12: ='App.2-FA Proposed REG Invest.'!F63 -> 0
A13: ='LDC Info'!$E$14 -> Festival Hydro Inc. | B13: EB-2024-0023 | C13: 2025 | D13: 2024 | E13: 2015 | F13: REI Investments_A_Total OM&A Ongoing | G13: ='App.2-FA Proposed REG Invest.'!$F$31 -> 2023 | H13: ='App.2-FA Proposed REG Invest.'!F64 -> 0
A14: ='LDC Info'!$E$14 -> Festival Hydro Inc. | B14: EB-2024-0023 | C14: 2025 | D14: 2024 | E14: 2015 | F14: REI Investments_A_Total Capital Costs | G14: ='App.2-FA Proposed REG Invest.'!$G$31 -> 2024 | H14: ='App.2-FA Proposed REG Invest.'!G62 -> 0
A15: ='LDC Info'!$E$14 -> Festival Hydro Inc. | B15: EB-2024-0023 | C15: 2025 | D15: 2024 | E15: 2015 | F15: REI Investments_A_Total OM&A Start-Up | G15: ='App.2-FA Proposed REG Invest.'!$G$31 -> 2024 | H15: ='App.2-FA Proposed REG Invest.'!G63 -> 0
A16: ='LDC Info'!$E$14 -> Festival Hydro Inc. | B16: EB-2024-0023 | C16: 2025 | D16: 2024 | E16: 2015 | F16: REI Investments_A_Total OM&A Ongoing | G16: ='App.2-FA Proposed REG Invest.'!$G$31 -> 2024 | H16: ='App.2-FA Proposed REG Invest.'!G64 -> 0
A17: ='LDC Info'!$E$14 -> Festival Hydro Inc. | B17: EB-2024-0023 | C17: 2025 | D17: 2024 | E17: 2015 | F17: REI Investments_A_Total Capital Costs | G17: ='App.2-FA Proposed REG Invest.'!$H$31 -> 2025 | H17: ='App.2-FA Proposed REG Invest.'!H62 -> 0
A18: ='LDC Info'!$E$14 -> Festival Hydro Inc. | B18: EB-2024-0023 | C18: 2025 | D18: 2024 | E18: 2015 | F18: REI Investments_A_Total OM&A Start-Up | G18: ='App.2-FA Proposed REG Invest.'!$H$31 -> 2025 | H18: ='App.2-FA Proposed REG Invest.'!H63 -> 0
A19: ='LDC Info'!$E$14 -> Festival Hydro Inc. | B19: EB-2024-0023 | C19: 2025 | D19: 2024 | E19: 2015 | F19: REI Investments_A_Total OM&A Ongoing | G19: ='App.2-FA Proposed REG Invest.'!$H$31 -> 2025 | H19: ='App.2-FA Proposed REG Invest.'!H64 -> 0
A20: ='LDC Info'!$E$14 -> Festival Hydro Inc. | B20: EB-2024-0023 | C20: 2025 | D20: 2024 | E20: 2015 | F20: REI Investments_A_Total Capital Costs | G20: ='App.2-FA Proposed REG Invest.'!$I$31 -> 2026 | H20: ='App.2-FA Proposed REG Invest.'!I62 -> 0
A21: ='LDC Info'!$E$14 -> Festival Hydro Inc. | B21: EB-2024-0023 | C21: 2025 | D21: 2024 | E21: 2015 | F21: REI Investments_A_Total OM&A Start-Up | G21: ='App.2-FA Proposed REG Invest.'!$I$31 -> 2026 | H21: ='App.2-FA Proposed REG Invest.'!I63 -> 0
A22: ='LDC Info'!$E$14 -> Festival Hydro Inc. | B22: EB-2024-0023 | C22: 2025 | D22: 2024 | E22: 2015 | F22: REI Investments_A_Total OM&A Ongoing | G22: ='App.2-FA Proposed REG Invest.'!$I$31 -> 2026 | H22: ='App.2-FA Proposed REG Invest.'!I64 -> 0
A23: ='LDC Info'!$E$14 -> Festival Hydro Inc. | B23: EB-2024-0023 | C23: 2025 | D23: 2024 | E23: 2015 | F23: REI Investments_A_Total Capital Costs | G23: ='App.2-FA Proposed REG Invest.'!$J$31 -> 2027 | H23: ='App.2-FA Proposed REG Invest.'!J62 -> 0
A24: ='LDC Info'!$E$14 -> Festival Hydro Inc. | B24: EB-2024-0023 | C24: 2025 | D24: 2024 | E24: 2015 | F24: REI Investments_A_Total OM&A Start-Up | G24: ='App.2-FA Proposed REG Invest.'!$J$31 -> 2027 | H24: ='App.2-FA Proposed REG Invest.'!J63 -> 0
A25: ='LDC Info'!$E$14 -> Festival Hydro Inc. | B25: EB-2024-0023 | C25: 2025 | D25: 2024 | E25: 2015 | F25: REI Investments_A_Total OM&A Ongoing | G25: ='App.2-FA Proposed REG Invest.'!$J$31 -> 2027 | H25: ='App.2-FA Proposed REG Invest.'!J64 -> 0
A26: ='LDC Info'!$E$14 -> Festival Hydro Inc. | B26: EB-2024-0023 | C26: 2025 | D26: 2024 | E26: 2015 | F26: REI Investments_A_Total Capital Costs | G26: ='App.2-FA Proposed REG Invest.'!$K$31 -> 2028 | H26: ='App.2-FA Proposed REG Invest.'!K62 -> 0
A27: ='LDC Info'!$E$14 -> Festival Hydro Inc. | B27: EB-2024-0023 | C27: 2025 | D27: 2024 | E27: 2015 | F27: REI Investments_A_Total OM&A Start-Up | G27: ='App.2-FA Proposed REG Invest.'!$K$31 -> 2028 | H27: ='App.2-FA Proposed REG Invest.'!K63 -> 0
A28: ='LDC Info'!$E$14 -> Festival Hydro Inc. | B28: EB-2024-0023 | C28: 2025 | D28: 2024 | E28: 2015 | F28: REI Investments_A_Total OM&A Ongoing | G28: ='App.2-FA Proposed REG Invest.'!$K$31 -> 2028 | H28: ='App.2-FA Proposed REG Invest.'!K64 -> 0
A29: ='LDC Info'!$E$14 -> Festival Hydro Inc. | B29: EB-2024-0023 | C29: 2025 | D29: 2024 | E29: 2015 | F29: REI Investments_A_Total Capital Costs | G29: ='App.2-FA Proposed REG Invest.'!$L$31 -> 2029 | H29: ='App.2-FA Proposed REG Invest.'!L62 -> 0
A30: ='LDC Info'!$E$14 -> Festival Hydro Inc. | B30: EB-2024-0023 | C30: 2025 | D30: 2024 | E30: 2015 | F30: REI Investments_A_Total OM&A Start-Up | G30: ='App.2-FA Proposed REG Invest.'!$L$31 -> 2029 | H30: ='App.2-FA Proposed REG Invest.'!L63 -> 0
A31: ='LDC Info'!$E$14 -> Festival Hydro Inc. | B31: EB-2024-0023 | C31: 2025 | D31: 2024 | E31: 2015 | F31: REI Investments_A_Total OM&A Ongoing | G31: ='App.2-FA Proposed REG Invest.'!$L$31 -> 2029 | H31: ='App.2-FA Proposed REG Invest.'!L64 -> 0
A32: ='LDC Info'!$E$14 -> Festival Hydro Inc. | B32: EB-2024-0023 | C32: 2025 | D32: 2024 | E32: 2015 | F32: Expansion Investments_B_Total Capital Costs | G32: ='App.2-FA Proposed REG Invest.'!$C$31 -> 2020 | H32: ='App.2-FA Proposed REG Invest.'!C99 -> 0
A33: ='LDC Info'!$E$14 -> Festival Hydro Inc. | B33: EB-2024-0023 | C33: 2025 | D33: 2024 | E33: 2015 | F33: Expansion Investments_B_Total OM&A Start-Up | G33: ='App.2-FA Proposed REG Invest.'!$C$31 -> 2020 | H33: ='App.2-FA Proposed REG Invest.'!C100 -> 0
A34: ='LDC Info'!$E$14 -> Festival Hydro Inc. | B34: EB-2024-0023 | C34: 2025 | D34: 2024 | E34: 2015 | F34: Expansion Investments_B_Total OM&A Ongoing | G34: ='App.2-FA Proposed REG Invest.'!$C$31 -> 2020 | H34: ='App.2-FA Proposed REG Invest.'!C101 -> 0
A35: ='LDC Info'!$E$14 -> Festival Hydro Inc. | B35: EB-2024-0023 | C35: 2025 | D35: 2024 | E35: 2015 | F35: Expansion Investments_B_Total Capital Costs | G35: ='App.2-FA Proposed REG Invest.'!$D$31 -> 2021 | H35: ='App.2-FA Proposed REG Invest.'!D99 -> 0
A36: ='LDC Info'!$E$14 -> Festival Hydro Inc. | B36: EB-2024-0023 | C36: 2025 | D36: 2024 | E36: 2015 | F36: Expansion Investments_B_Total OM&A Start-Up | G36: ='App.2-FA Proposed REG Invest.'!$D$31 -> 2021 | H36: ='App.2-FA Proposed REG Invest.'!D100 -> 0
A37: ='LDC Info'!$E$14 -> Festival Hydro Inc. | B37: EB-2024-0023 | C37: 2025 | D37: 2024 | E37: 2015 | F37: Expansion Investments_B_Total OM&A Ongoing | G37: ='App.2-FA Proposed REG Invest.'!$D$31 -> 2021 | H37: ='App.2-FA Proposed REG Invest.'!D101 -> 0
A38: ='LDC Info'!$E$14 -> Festival Hydro Inc. | B38: EB-2024-0023 | C38: 2025 | D38: 2024 | E38: 2015 | F38: Expansion Investments_B_Total Capital Costs | G38: ='App.2-FA Proposed REG Invest.'!$E$31 -> 2022 | H38: ='App.2-FA Proposed REG Invest.'!E99 -> 0
A39: ='LDC Info'!$E$14 -> Festival Hydro Inc. | B39: EB-2024-0023 | C39: 2025 | D39: 2024 | E39: 2015 | F39: Expansion Investments_B_Total OM&A Start-Up | G39: ='App.2-FA Proposed REG Invest.'!$E$31 -> 2022 | H39: ='App.2-FA Proposed REG Invest.'!E100 -> 0
A40: ='LDC Info'!$E$14 -> Festival Hydro Inc. | B40: EB-2024-0023 | C40: 2025 | D40: 2024 | E40: 2015 | F40: Expansion Investments_B_Total OM&A Ongoing | G40: ='App.2-FA Proposed REG Invest.'!$E$31 -> 2022 | H40: ='App.2-FA Proposed REG Invest.'!E101 -> 0
A41: ='LDC Info'!$E$14 -> Festival Hydro Inc. | B41: EB-2024-0023 | C41: 2025 | D41: 2024 | E41: 2015 | F41: Expansion Investments_B_Total Capital Costs | G41: ='App.2-FA Proposed REG Invest.'!$F$31 -> 2023 | H41: ='App.2-FA Proposed REG Invest.'!F99 -> 0
A42: ='LDC Info'!$E$14 -> Festival Hydro Inc. | B42: EB-2024-0023 | C42: 2025 | D42: 2024 | E42: 2015 | F42: Expansion Investments_B_Total OM&A Start-Up | G42: ='App.2-FA Proposed REG Invest.'!$F$31 -> 2023 | H42: ='App.2-FA Proposed REG Invest.'!F100 -> 0
A43: ='LDC Info'!$E$14 -> Festival Hydro Inc. | B43: EB-2024-0023 | C43: 2025 | D43: 2024 | E43: 2015 | F43: Expansion Investments_B_Total OM&A Ongoing | G43: ='App.2-FA Proposed REG Invest.'!$F$31 -> 2023 | H43: ='App.2-FA Proposed REG Invest.'!F101 -> 0
A44: ='LDC Info'!$E$14 -> Festival Hydro Inc. | B44: EB-2024-0023 | C44: 2025 | D44: 2024 | E44: 2015 | F44: Expansion Investments_B_Total Capital Costs | G44: ='App.2-FA Proposed REG Invest.'!$G$31 -> 2024 | H44: ='App.2-FA Proposed REG Invest.'!G99 -> 0
A45: ='LDC Info'!$E$14 -> Festival Hydro Inc. | B45: EB-2024-0023 | C45: 2025 | D45: 2024 | E45: 2015 | F45: Expansion Investments_B_Total OM&A Start-Up | G45: ='App.2-FA Proposed REG Invest.'!$G$31 -> 2024 | H45: ='App.2-FA Proposed REG Invest.'!G100 -> 0
A46: ='LDC Info'!$E$14 -> Festival Hydro Inc. | B46: EB-2024-0023 | C46: 2025 | D46: 2024 | E46: 2015 | F46: Expansion Investments_B_Total OM&A Ongoing | G46: ='App.2-FA Proposed REG Invest.'!$G$31 -> 2024 | H46: ='App.2-FA Proposed REG Invest.'!G101 -> 0
A47: ='LDC Info'!$E$14 -> Festival Hydro Inc. | B47: EB-2024-0023 | C47: 2025 | D47: 2024 | E47: 2015 | F47: Expansion Investments_B_Total Capital Costs | G47: ='App.2-FA Proposed REG Invest.'!$H$31 -> 2025 | H47: ='App.2-FA Proposed REG Invest.'!H99 -> 0
A48: ='LDC Info'!$E$14 -> Festival Hydro Inc. | B48: EB-2024-0023 | C48: 2025 | D48: 2024 | E48: 2015 | F48: Expansion Investments_B_Total OM&A Start-Up | G48: ='App.2-FA Proposed REG Invest.'!$H$31 -> 2025 | H48: ='App.2-FA Proposed REG Invest.'!H100 -> 0
A49: ='LDC Info'!$E$14 -> Festival Hydro Inc. | B49: EB-2024-0023 | C49: 2025 | D49: 2024 | E49: 2015 | F49: Expansion Investments_B_Total OM&A Ongoing | G49: ='App.2-FA Proposed REG Invest.'!$H$31 -> 2025 | H49: ='App.2-FA Proposed REG Invest.'!H101 -> 0
A50: ='LDC Info'!$E$14 -> Festival Hydro Inc. | B50: EB-2024-0023 | C50: 2025 | D50: 2024 | E50: 2015 | F50: Expansion Investments_B_Total Capital Costs | G50: ='App.2-FA Proposed REG Invest.'!$I$31 -> 2026 | H50: ='App.2-FA Proposed REG Invest.'!I99 -> 0
A51: ='LDC Info'!$E$14 -> Festival Hydro Inc. | B51: EB-2024-0023 | C51: 2025 | D51: 2024 | E51: 2015 | F51: Expansion Investments_B_Total OM&A Start-Up | G51: ='App.2-FA Proposed REG Invest.'!$I$31 -> 2026 | H51: ='App.2-FA Proposed REG Invest.'!I100 -> 0
A52: ='LDC Info'!$E$14 -> Festival Hydro Inc. | B52: EB-2024-0023 | C52: 2025 | D52: 2024 | E52: 2015 | F52: Expansion Investments_B_Total OM&A Ongoing | G52: ='App.2-FA Proposed REG Invest.'!$I$31 -> 2026 | H52: ='App.2-FA Proposed REG Invest.'!I101 -> 0
A53: ='LDC Info'!$E$14 -> Festival Hydro Inc. | B53: EB-2024-0023 | C53: 2025 | D53: 2024 | E53: 2015 | F53: Expansion Investments_B_Total Capital Costs | G53: ='App.2-FA Proposed REG Invest.'!$J$31 -> 2027 | H53: ='App.2-FA Proposed REG Invest.'!J99 -> 0
A54: ='LDC Info'!$E$14 -> Festival Hydro Inc. | B54: EB-2024-0023 | C54: 2025 | D54: 2024 | E54: 2015 | F54: Expansion Investments_B_Total OM&A Start-Up | G54: ='App.2-FA Proposed REG Invest.'!$J$31 -> 2027 | H54: ='App.2-FA Proposed REG Invest.'!J100 -> 0
A55: ='LDC Info'!$E$14 -> Festival Hydro Inc. | B55: EB-2024-0023 | C55: 2025 | D55: 2024 | E55: 2015 | F55: Expansion Investments_B_Total OM&A Ongoing | G55: ='App.2-FA Proposed REG Invest.'!$J$31 -> 2027 | H55: ='App.2-FA Proposed REG Invest.'!J101 -> 0
A56: ='LDC Info'!$E$14 -> Festival Hydro Inc. | B56: EB-2024-0023 | C56: 2025 | D56: 2024 | E56: 2015 | F56: Expansion Investments_B_Total Capital Costs | G56: ='App.2-FA Proposed REG Invest.'!$K$31 -> 2028 | H56: ='App.2-FA Proposed REG Invest.'!K99 -> 0
A57: ='LDC Info'!$E$14 -> Festival Hydro Inc. | B57: EB-2024-0023 | C57: 2025 | D57: 2024 | E57: 2015 | F57: Expansion Investments_B_Total OM&A Start-Up | G57: ='App.2-FA Proposed REG Invest.'!$K$31 -> 2028 | H57: ='App.2-FA Proposed REG Invest.'!K100 -> 0
A58: ='LDC Info'!$E$14 -> Festival Hydro Inc. | B58: EB-2024-0023 | C58: 2025 | D58: 2024 | E58: 2015 | F58: Expansion Investments_B_Total OM&A Ongoing | G58: ='App.2-FA Proposed REG Invest.'!$K$31 -> 2028 | H58: ='App.2-FA Proposed REG Invest.'!K101 -> 0
A59: ='LDC Info'!$E$14 -> Festival Hydro Inc. | B59: EB-2024-0023 | C59: 2025 | D59: 2024 | E59: 2015 | F59: Expansion Investments_B_Total Capital Costs | G59: ='App.2-FA Proposed REG Invest.'!$L$31 -> 2029 | H59: ='App.2-FA Proposed REG Invest.'!L99 -> 0
A60: ='LDC Info'!$E$14 -> Festival Hydro Inc. | B60: EB-2024-0023 | C60: 2025 | D60: 2024 | E60: 2015 | F60: Expansion Investments_B_Total OM&A Start-Up | G60: ='App.2-FA Proposed REG Invest.'!$L$31 -> 2029 | H60: ='App.2-FA Proposed REG Invest.'!L100 -> 0
A61: ='LDC Info'!$E$14 -> Festival Hydro Inc. | B61: EB-2024-0023 | C61: 2025 | D61: 2024 | E61: 2015 | F61: Expansion Investments_B_Total OM&A Ongoing | G61: ='App.2-FA Proposed REG Invest.'!$L$31 -> 2029 | H61: ='App.2-FA Proposed REG Invest.'!L101 -> 0

Sheet Hidden_REG Improvement (hidden)
A1: Utility Name | B1: EB Number | C1: Test Year | D1: Bridge Year | E1: Last Rebasing Year | F1: Renewable Generation Connection Direct Benefits/Provincial Amount Renewable Enabling Improvement Investments | G1: Year | H1: Amount
A2: ='LDC Info'!$E$14 -> Festival Hydro Inc. | B2: =EBNUMBER -> EB-2024-0023 | C2: =TestYear -> 2025 | D2: =BridgeYear -> 2024 | E2: =RebaseYear -> 2015 | F2: Provincial Rate Protection | G2: ='App.2-FB Calc of REG Improvemnt'!D17 -> 2020 | H2: ='App.2-FB Calc of REG Improvemnt'!F$44 -> 0
A3: ='LDC Info'!$E$14 -> Festival Hydro Inc. | B3: EB-2024-0023 | C3: 2025 | D3: 2024 | E3: 2015 | F3: Provincial Rate Protection | G3: ='App.2-FB Calc of REG Improvemnt'!G17 -> 2021 | H3: ='App.2-FB Calc of REG Improvemnt'!I$44 -> 0
A4: ='LDC Info'!$E$14 -> Festival Hydro Inc. | B4: EB-2024-0023 | C4: 2025 | D4: 2024 | E4: 2015 | F4: Provincial Rate Protection | G4: ='App.2-FB Calc of REG Improvemnt'!J17 -> 2022 | H4: ='App.2-FB Calc of REG Improvemnt'!L$44 -> 0
A5: ='LDC Info'!$E$14 -> Festival Hydro Inc. | B5: EB-2024-0023 | C5: 2025 | D5: 2024 | E5: 2015 | F5: Provincial Rate Protection | G5: ='App.2-FB Calc of REG Improvemnt'!M17 -> 2023 | H5: ='App.2-FB Calc of REG Improvemnt'!O$44 -> 0
A6: ='LDC Info'!$E$14 -> Festival Hydro Inc. | B6: EB-2024-0023 | C6: 2025 | D6: 2024 | E6: 2015 | F6: Provincial Rate Protection | G6: ='App.2-FB Calc of REG Improvemnt'!P17 -> 2024 | H6: ='App.2-FB Calc of REG Improvemnt'!R$44 -> 0
A7: ='LDC Info'!$E$14 -> Festival Hydro Inc. | B7: EB-2024-0023 | C7: 2025 | D7: 2024 | E7: 2015 | F7: Provincial Rate Protection | G7: ='App.2-FB Calc of REG Improvemnt'!S17 -> 2025 | H7: ='App.2-FB Calc of REG Improvemnt'!U$44 -> 0
A8: ='LDC Info'!$E$14 -> Festival Hydro Inc. | B8: EB-2024-0023 | C8: 2025 | D8: 2024 | E8: 2015 | F8: Provincial Rate Protection | G8: ='App.2-FB Calc of REG Improvemnt'!V17 -> 2026 | H8: ='App.2-FB Calc of REG Improvemnt'!X$44 -> 0
A9: ='LDC Info'!$E$14 -> Festival Hydro Inc. | B9: EB-2024-0023 | C9: 2025 | D9: 2024 | E9: 2015 | F9: Provincial Rate Protection | G9: ='App.2-FB Calc of REG Improvemnt'!Y17 -> 2027 | H9: ='App.2-FB Calc of REG Improvemnt'!AA$44 -> 0
A10: ='LDC Info'!$E$14 -> Festival Hydro Inc. | B10: EB-2024-0023 | C10: 2025 | D10: 2024 | E10: 2015 | F10: Provincial Rate Protection | G10: ='App.2-FB Calc of REG Improvemnt'!AB17 -> 2028 | H10: ='App.2-FB Calc of REG Improvemnt'!AD$44 -> 0
A11: ='LDC Info'!$E$14 -> Festival Hydro Inc. | B11: EB-2024-0023 | C11: 2025 | D11: 2024 | E11: 2015 | F11: Provincial Rate Protection | G11: ='App.2-FB Calc of REG Improvemnt'!AE17 -> 2029 | H11: ='App.2-FB Calc of REG Improvemnt'!AG$44 -> 0

Sheet Hidden_REG Expansion (hidden)
A1: Utility Name | B1: EB Number | C1: Test Year | D1: Bridge Year | E1: Last Rebasing Year | F1: Calculation of Renewable Generation Connection Direct Benefits/Provincial Amount Renewable Expansion Investments | G1: Year | H1: Amount
A2: ='LDC Info'!$E$14 -> Festival Hydro Inc. | B2: =EBNUMBER -> EB-2024-0023 | C2: =TestYear -> 2025 | D2: =BridgeYear -> 2024 | E2: =RebaseYear -> 2015 | F2: Provincial Rate Protection | G2: ='App.2-FC Calc of REG Expansion'!D$17 -> 2020 | H2: ='App.2-FC Calc of REG Expansion'!F$44 -> 0
A3: ='LDC Info'!$E$14 -> Festival Hydro Inc. | B3: EB-2024-0023 | C3: 2025 | D3: 2024 | E3: 2015 | F3: Provincial Rate Protection | G3: ='App.2-FC Calc of REG Expansion'!G$17 -> 2021 | H3: ='App.2-FC Calc of REG Expansion'!I$44 -> 0
A4: ='LDC Info'!$E$14 -> Festival Hydro Inc. | B4: EB-2024-0023 | C4: 2025 | D4: 2024 | E4: 2015 | F4: Provincial Rate Protection | G4: ='App.2-FC Calc of REG Expansion'!J$17 -> 2022 | H4: ='App.2-FC Calc of REG Expansion'!L$44 -> 0
A5: ='LDC Info'!$E$14 -> Festival Hydro Inc. | B5: EB-2024-0023 | C5: 2025 | D5: 2024 | E5: 2015 | F5: Provincial Rate Protection | G5: ='App.2-FC Calc of REG Expansion'!M$17 -> 2023 | H5: ='App.2-FC Calc of REG Expansion'!O$44 -> 0
A6: ='LDC Info'!$E$14 -> Festival Hydro Inc. | B6: EB-2024-0023 | C6: 2025 | D6: 2024 | E6: 2015 | F6: Provincial Rate Protection | G6: ='App.2-FC Calc of REG Expansion'!P$17 -> 2024 | H6: ='App.2-FC Calc of REG Expansion'!R$44 -> 0
A7: ='LDC Info'!$E$14 -> Festival Hydro Inc. | B7: EB-2024-0023 | C7: 2025 | D7: 2024 | E7: 2015 | F7: Provincial Rate Protection | G7: ='App.2-FC Calc of REG Expansion'!S$17 -> 2025 | H7: ='App.2-FC Calc of REG Expansion'!U$44 -> 0
A8: ='LDC Info'!$E$14 -> Festival Hydro Inc. | B8: EB-2024-0023 | C8: 2025 | D8: 2024 | E8: 2015 | F8: Provincial Rate Protection | G8: ='App.2-FC Calc of REG Expansion'!V$17 -> 2026 | H8: ='App.2-FC Calc of REG Expansion'!X$44 -> 0
A9: ='LDC Info'!$E$14 -> Festival Hydro Inc. | B9: EB-2024-0023 | C9: 2025 | D9: 2024 | E9: 2015 | F9: Provincial Rate Protection | G9: ='App.2-FC Calc of REG Expansion'!Y$17 -> 2027 | H9: ='App.2-FC Calc of REG Expansion'!AA$44 -> 0
A10: ='LDC Info'!$E$14 -> Festival Hydro Inc. | B10: EB-2024-0023 | C10: 2025 | D10: 2024 | E10: 2015 | F10: Provincial Rate Protection | G10: ='App.2-FC Calc of REG Expansion'!AB$17 -> 2028 | H10: ='App.2-FC Calc of REG Expansion'!AD$44 -> 0
A11: ='LDC Info'!$E$14 -> Festival Hydro Inc. | B11: EB-2024-0023 | C11: 2025 | D11: 2024 | E11: 2015 | F11: Provincial Rate Protection | G11: ='App.2-FC Calc of REG Expansion'!AE$17 -> 2029 | H11: ='App.2-FC Calc of REG Expansion'!AG$44 -> 0

Sheet App.2-FA Proposed REG Invest.
K1: File Number: | L1: 0
K2: Exhibit:
K3: Tab:
A4: TO BE UPDATED AT DRAFT RATE ORDER STAGE | K4: Schedule:
K5: Page:
K7: Date:
A9: Appendix 2-FA
A10: Renewable Generation Connection Investment Summary (past investments or over the future rate setting period)
A12: Enter the details of the Renewable Generation Connection projects as described in the appropriate section of the Filing Requirements.
A13: All costs entered on this page will be transferred to the appropriate cells in the appendices that follow.
A14: For Part A, Renewable Enabling Improvements (REI), these amounts will be transferred to Appendix 2 - FB
A15: For Part B, Expansions, these amounts will be transferred to Appendix 2 - FC
A17: If there are more than five projects proposed to be in-service in a certain year, please amend the tables below and ensure that the formulae for the Total Amounts in any given rate year are updated.
A18: Based on the current methodology and allocation, amounts allocated represent 6% for REI Connection Investments and 17% for Expansion Investments. (EB-2009-0349, 6-10-2010, p. 15, note 9)
A19: Ensure that OM&A costs below are not included in Recoverable OM&A (App. 2-JA)
A20: There are two scenarios described below. Separate sets of spreadsheets (2-FA, 2-FB, 2-FC) should be submited for each scenario as required.
A21: Scenario 1: | B21: Past Investments with No Recovery. The distributor has made investments in the past (during the IRM Years), but has not received approval for these projects and therefore did not receive
B22: revenue from the IESO under Regulation 330/09 and did not receive ratepayer revenue for the direct benefit portion of the investment.
B23: The WCA percentage, debt percentages, interest rates, kWh, tax rates, amortization period, CCA Class and percentage should correspond to the distributor's last Cost of Service approval.
B24: The Direct Benefit portion of the calculated Revenue Requirement for each year should be summed and can be applied for recovery from the distributor's ratepayers through a rate rider.
B25: The Provincial Recovery portion of the calculated Revenue Requirement for each year should be summed and can be applied for recovery from the IESO through a separate order.
A27: Scenario 2: | B27: Investments in the Test Year and Beyond. Distributor plans to make investments in the Test Year and/or beyond. These investments should be added to 2-FA in the appropriate year.
B28: The WCA percentage, debt percentages, interest rates, kWh, tax rates, amortization period, CCA Class and percentage should correspond to the distributor's current application.
A30: Part A | H30: Test Year
A31: REI Investments (Direct Benefit at 6%) | C31: =D31-1 -> 2020 | D31: =E31-1 -> 2021 | E31: =F31-1 -> 2022 | F31: =G31-1 -> 2023 | G31: =H31-1 -> 2024 | H31: ='LDC Info'!$E$24 -> 2025 | I31: =H31+1 -> 2026 | J31: =I31+1 -> 2027 | K31: =J31+1 -> 2028 | L31: =K31+1 -> 2029
A32: Project 1
A33: Name: REI Connection Project
A34: Capital Costs | C34: 0 | D34: 0 | E34: 0 | F34: 0 | G34: 0 | H34: 0 | I34: 0 | J34: 0 | K34: 0 | L34: 0
A35: Incremental OM&A (Start-Up) | C35: 0 | D35: 0 | E35: 0 | F35: 0 | G35: 0 | H35: 0 | I35: 0 | J35: 0 | K35: 0 | L35: 0
A36: Incremental OM&A (Ongoing) | C36: 0 | D36: 0 | E36: 0 | F36: 0 | G36: 0 | H36: 0 | I36: 0 | J36: 0 | K36: 0 | L36: 0
A38: Project 2
A39: Name: REI Connection Project
A40: Capital Costs | C40: 0 | D40: 0 | E40: 0 | F40: 0 | G40: 0 | H40: 0 | I40: 0 | J40: 0 | K40: 0 | L40: 0
A41: Incremental OM&A (Start-Up) | C41: 0 | D41: 0 | E41: 0 | F41: 0 | G41: 0 | H41: 0 | I41: 0 | J41: 0 | K41: 0 | L41: 0
A42: Incremental OM&A (Ongoing) | C42: 0 | D42: 0 | E42: 0 | F42: 0 | G42: 0 | H42: 0 | I42: 0 | J42: 0 | K42: 0 | L42: 0
A44: Project 3
A45: Name: REI Connection Project
A46: Capital Costs | C46: 0 | D46: 0 | E46: 0 | F46: 0 | G46: 0 | H46: 0 | I46: 0 | J46: 0 | K46: 0 | L46: 0
A47: Incremental OM&A (Start-Up) | C47: 0 | D47: 0 | E47: 0 | F47: 0 | G47: 0 | H47: 0 | I47: 0 | J47: 0 | K47: 0 | L47: 0
A48: Incremental OM&A (Ongoing) | C48: 0 | D48: 0 | E48: 0 | F48: 0 | G48: 0 | H48: 0 | I48: 0 | J48: 0 | K48: 0 | L48: 0
A50: Project 4
A51: Name: REI Connection Project
A52: Capital Costs | C52: 0 | D52: 0 | E52: 0 | F52: 0 | G52: 0 | H52: 0 | I52: 0 | J52: 0 | K52: 0 | L52: 0
A53: Incremental OM&A (Start-Up) | C53: 0 | D53: 0 | E53: 0 | F53: 0 | G53: 0 | H53: 0 | I53: 0 | J53: 0 | K53: 0 | L53: 0
A54: Incremental OM&A (Ongoing) | C54: 0 | D54: 0 | E54: 0 | F54: 0 | G54: 0 | H54: 0 | I54: 0 | J54: 0 | K54: 0 | L54: 0
A56: Project 5
A57: Name: REI Connection Project
A58: Capital Costs | C58: 0 | D58: 0 | E58: 0 | F58: 0 | G58: 0 | H58: 0 | I58: 0 | J58: 0 | K58: 0 | L58: 0
A59: Incremental OM&A (Start-Up) | C59: 0 | D59: 0 | E59: 0 | F59: 0 | G59: 0 | H59: 0 | I59: 0 | J59: 0 | K59: 0 | L59: 0
A60: Incremental OM&A (Ongoing) | C60: 0 | D60: 0 | E60: 0 | F60: 0 | G60: 0 | H60: 0 | I60: 0 | J60: 0 | K60: 0 | L60: 0
A62: Total Capital Costs | C62: =SUM(C58,C52,C46,C40,C34) -> 0 | D62: 0 | E62: 0 | F62: 0 | G62: 0 | H62: 0 | I62: 0 | J62: 0 | K62: 0 | L62: 0
A63: Total Incremental OM&A (Start-Up) | C63: 0 | D63: 0 | E63: 0 | F63: 0 | G63: 0 | H63: 0 | I63: 0 | J63: 0 | K63: 0 | L63: 0
A64: Total Incremental OM&A (Ongoing) | C64: 0 | D64: 0 | E64: 0 | F64: 0 | G64: 0 | H64: 0 | I64: 0 | J64: 0 | K64: 0 | L64: 0
A67: Part B | H67: Test Year
A68: Expansion Investments (Direct Benefit at 17%) | C68: =D68-1 -> 2020 | D68: =E68-1 -> 2021 | E68: =F68-1 -> 2022 | F68: =G68-1 -> 2023 | G68: =H68-1 -> 2024 | H68: =H31 -> 2025 | I68: =H68+1 -> 2026 | J68: =I68+1 -> 2027 | K68: =J68+1 -> 2028 | L68: =K68+1 -> 2029
A69: Project 1
A70: Name: Expansion Connection Project
A71: Capital Costs | C71: 0 | D71: 0 | E71: 0 | F71: 0 | G71: 0 | H71: 0 | I71: 0 | J71: 0 | K71: 0 | L71: 0
A72: Incremental OM&A (Start-Up) | C72: 0 | D72: 0 | E72: 0 | F72: 0 | G72: 0 | H72: 0 | I72: 0 | J72: 0 | K72: 0 | L72: 0
A73: Incremental OM&A (Ongoing) | C73: 0 | D73: 0 | E73: 0 | F73: 0 | G73: 0 | H73: 0 | I73: 0 | J73: 0 | K73: 0 | L73: 0
A75: Project 2
A76: Name: Expansion Connection Project
A77: Capital Costs | C77: 0 | D77: 0 | E77: 0 | F77: 0 | G77: 0 | H77: 0 | I77: 0 | J77: 0 | K77: 0 | L77: 0
A78: Incremental OM&A (Start-Up) | C78: 0 | D78: 0 | E78: 0 | F78: 0 | G78: 0 | H78: 0 | I78: 0 | J78: 0 | K78: 0 | L78: 0
A79: Incremental OM&A (Ongoing) | C79: 0 | D79: 0 | E79: 0 | F79: 0 | G79: 0 | H79: 0 | I79: 0 | J79: 0 | K79: 0 | L79: 0
A81: Project 3
A82: Name: Expansion Connection Project
A83: Capital Costs | C83: 0 | D83: 0 | E83: 0 | F83: 0 | G83: 0 | H83: 0 | I83: 0 | J83: 0 | K83: 0 | L83: 0
A84: Incremental OM&A (Start-Up) | C84: 0 | D84: 0 | E84: 0 | F84: 0 | G84: 0 | H84: 0 | I84: 0 | J84: 0 | K84: 0 | L84: 0
A85: Incremental OM&A (Ongoing) | C85: 0 | D85: 0 | E85: 0 | F85: 0 | G85: 0 | H85: 0 | I85: 0 | J85: 0 | K85: 0 | L85: 0
A87: Project 4
A88: Name: Expansion Connection Project
A89: Capital Costs | C89: 0 | D89: 0 | E89: 0 | F89: 0 | G89: 0 | H89: 0 | I89: 0 | J89: 0 | K89: 0 | L89: 0
A90: Incremental OM&A (Start-Up) | C90: 0 | D90: 0 | E90: 0 | F90: 0 | G90: 0 | H90: 0 | I90: 0 | J90: 0 | K90: 0 | L90: 0
A91: Incremental OM&A (Ongoing) | C91: 0 | D91: 0 | E91: 0 | F91: 0 | G91: 0 | H91: 0 | I91: 0 | J91: 0 | K91: 0 | L91: 0
A93: Project 5
A94: Name: Expansion Connection Project
A95: Capital Costs | C95: 0 | D95: 0 | E95: 0 | F95: 0 | G95: 0 | H95: 0 | I95: 0 | J95: 0 | K95: 0 | L95: 0
A96: Incremental OM&A (Start-Up) | C96: 0 | D96: 0 | E96: 0 | F96: 0 | G96: 0 | H96: 0 | I96: 0 | J96: 0 | K96: 0 | L96: 0
A97: Incremental OM&A (Ongoing) | C97: 0 | D97: 0 | E97: 0 | F97: 0 | G97: 0 | H97: 0 | I97: 0 | J97: 0 | K97: 0 | L97: 0
A99: Total Capital Costs | C99: =SUM(C95,C89,C83,C77,C71) -> 0 | D99: 0 | E99: 0 | F99: 0 | G99: 0 | H99: 0 | I99: 0 | J99: 0 | K99: 0 | L99: 0
A100: Total Incremental OM&A (Start-Up) | C100: 0 | D100: 0 | E100: 0 | F100: 0 | G100: 0 | H100: 0 | I100: 0 | J100: 0 | K100: 0 | L100: 0
A101: Total Incremental OM&A (Ongoing) | C101: 0 | D101: 0 | E101: 0 | F101: 0 | G101: 0 | H101: 0 | I101: 0 | J101: 0 | K101: 0 | L101: 0

Sheet App.2-FB Calc of REG Improvemnt
R1: File Number: | S1: 0
R2: Exhibit:
R3: Tab:
A4: TO BE UPDATED AT DRAFT RATE ORDER STAGE | R4: Schedule:
R5: Page:
R7: Date:
A9: Appendix 2-FB
A10: Calculation of Renewable Generation Connection Direct Benefits/Provincial Amount: Renewable Enabling Improvement Investments
A12: This table will calculate the distributor/provincial shares of the investments entered in Part A of Appendix 2-FA.
A13: Enter values in green shaded cells: WCA percentage, debt percentages, interest rates, kWh, tax rates, amortization period, CCA Class and percentage.
A14: For historical investments, enter these variables that were approved in your last cost of service test year. For test year and beyond, enter variables as in the application.
A15: Rate Riders related to the direct benefit portion of the renewable investments are not calculated for the Test Year as these assets and costs are already in the distributor's rate base/revenue requirement.
S16: Test Year
B17: ='LDC Info'!E14 &B23 -> Festival Hydro Inc.2015 | D17: =G17-1 -> 2020 | G17: =J17-1 -> 2021 | J17: =M17-1 -> 2022 | M17: =P17-1 -> 2023 | P17: =S17-1 -> 2024 | S17: ='LDC Info'!$E$24 -> 2025 | V17: =S17+1 -> 2026 | Y17: =V17+1 -> 2027 | Z17: 2016 | AB17: =Y17+1 -> 2028 | AE17: =AB17+1 -> 2029 | AH17: =AE17+1 -> 2030
E18: Direct Benefit | F18: Provincial | H18: Direct Benefit | I18: Provincial | K18: Direct Benefit | L18: Provincial | N18: Direct Benefit | O18: Provincial | Q18: Direct Benefit | R18: Provincial | T18: Direct Benefit | U18: Provincial | W18: Direct Benefit | X18: Provincial | Z18: Direct Benefit | AA18: Provincial | AC18: Direct Benefit | AD18: Provincial | AF18: Direct Benefit | AG18: Provincial | AI18: Direct Benefit | AJ18: Provincial
D19: Total | E19: 0.06 | F19: 0.94 | G19: Total | H19: 0.06 | I19: 0.94 | J19: Total | K19: 0.06 | L19: 0.94 | M19: Total | N19: 0.06 | O19: 0.94 | P19: Total | Q19: 0.06 | R19: 0.94 | S19: Total | T19: 0.06 | U19: 0.94 | V19: Total | W19: 0.06 | X19: 0.94 | Y19: Total | Z19: 0.06 | AA19: 0.94 | AB19: Total | AC19: 0.06 | AD19: 0.94 | AE19: Total | AF19: 0.06 | AG19: 0.94 | AH19: Total | AI19: 0.06 | AJ19: 0.94
A20: Net Fixed Assets (average) | D20: =E83 -> 0 | E20: =D20*E19 -> 0 | F20: =D20*F19 -> 0 | G20: =F83 -> 0 | H20: =G20*H19 -> 0 | I20: =G20*I19 -> 0 | J20: =G83 -> 0 | K20: =J20*K19 -> 0 | L20: =J20*L19 -> 0 | M20: =H83 -> 0 | N20: =M20*N19 -> 0 | O20: =M20*O19 -> 0 | P20: =I83 -> 0 | Q20: =P20*Q19 -> 0 | R20: =P20*R19 -> 0 | S20: =J83 -> 0 | T20: =S20*T19 -> 0 | U20: =S20*U19 -> 0 | V20: =K83 -> 0 | W20: =V20*W19 -> 0 | X20: =V20*X19 -> 0 | Y20: =L83 -> 0 | Z20: =Y20*Z19 -> 0 | AA20: =Y20*AA19 -> 0 | AB20: =M83 -> 0 | AC20: =AB20*AC19 -> 0 | AD20: =AB20*AD19 -> 0 | AE20: =N83 -> 0 | AF20: =AE20*AF19 -> 0 | AG20: =AE20*AG19 -> 0 | AH20: =O83 -> 0 | AI20: =AH20*AI19 -> 0 | AJ20: =AH20*AJ19 -> 0
A21: Incremental OM&A (on-going, N/A for Provincial Recovery) | D21: 0 | E21: =D21*E19 -> 0 | F21: =D21*F19 -> 0 | G21: 0 | H21: =G21*H19 -> 0 | I21: =G21*I19 -> 0 | J21: 0 | K21: =J21*K19 -> 0 | L21: =J21*L19 -> 0 | M21: 0 | N21: =M21*N19 -> 0 | O21: =M21*O19 -> 0 | P21: 0 | Q21: =P21*Q19 -> 0 | R21: =P21*R19 -> 0 | S21: 0 | T21: =S21*T19 -> 0 | U21: =S21*U19 -> 0 | V21: 0 | W21: =V21*W19 -> 0 | X21: =V21*X19 -> 0 | Y21: 0 | Z21: =Y21*Z19 -> 0 | AA21: =Y21*AA19 -> 0 | AB21: 0 | AC21: =AB21*AC19 -> 0 | AD21: =AB21*AD19 -> 0 | AE21: 0 | AF21: =AE21*AF19 -> 0 | AG21: =AE21*AG19 -> 0 | AH21: 0 | AI21: =AH21*AI19 -> 0 | AJ21: =AH21*AJ19 -> 0
A22: Incremental OM&A (start-up, applicable for Provincial Recovery) | D22: 0 | E22: =D22*E19 -> 0 | F22: =D22*F19 -> 0 | G22: 0 | H22: =G22*H19 -> 0 | I22: =G22*I19 -> 0 | J22: 0 | K22: =J22*K19 -> 0 | L22: =J22*L19 -> 0 | M22: 0 | N22: =M22*N19 -> 0 | O22: =M22*O19 -> 0 | P22: 0 | Q22: =P22*Q19 -> 0 | R22: =P22*R19 -> 0 | S22: 0 | T22: =S22*T19 -> 0 | U22: =S22*U19 -> 0 | V22: 0 | W22: =V22*W19 -> 0 | X22: =V22*X19 -> 0 | Y22: 0 | Z22: =Y22*Z19 -> 0 | AA22: =Y22*AA19 -> 0 | AB22: 0 | AC22: =AB22*AC19 -> 0 | AD22: =AB22*AD19 -> 0 | AE22: 0 | AF22: =AE22*AF19 -> 0 | AG22: =AE22*AG19 -> 0 | AH22: 0 | AI22: =AH22*AI19 -> 0 | AJ22: =AH22*AJ19 -> 0
A23: Rebasing Year vs. Test Year | B23: ='LDC Info'!E28 -> 2015 | C23: ='LDC Info'!E24 -> 2025
A24: Allowance for Working Capital (enter rate) | B24: =IFERROR(VLOOKUP($B$17,'2.1.5.6'!$D:$J,2,FALSE)/100,) -> 0.13 | E24: =IF(AND(D$17>=$B$23, D$17<$C$23),(E21+E22)*$B$24,(E21+E22)*$C$24) -> 0 | F24: =IF(AND(D$17>=$B$23, D$17<$C$23),(F22)*$B$24,(F22)*$C$24) -> 0 | H24: =IF(AND(G$17>=$B$23, G$17<$C$23),(H21+H22)*$B$24,(H21+H22)*$C$24) -> 0 | I24: =IF(AND(G$17>=$B$23, G$17<$C$23),(I22)*$B$24,(I22)*$C$24) -> 0 | K24: =IF(AND(J$17>=$B$23, J$17<$C$23),(K21+K22)*$B$24,(K21+K22)*$C$24) -> 0 | L24: =IF(AND(J$17>=$B$23, J$17<$C$23),(L22)*$B$24,(L22)*$C$24) -> 0 | N24: =IF(AND(M$17>=$B$23, M$17<$C$23),(N21+N22)*$B$24,(N21+N22)*$C$24) -> 0 | O24: =IF(AND(M$17>=$B$23, M$17<$C$23),(O22)*$B$24,(O22)*$C$24) -> 0 | Q24: =IF(AND(P$17>=$B$23, P$17<$C$23),(Q21+Q22)*$B$24,(Q21+Q22)*$C$24) -> 0 | R24: =IF(AND(P$17>=$B$23, P$17<$C$23),(R22)*$B$24,(R22)*$C$24) -> 0 | T24: =IF(AND(S$17>=$B$23, S$17<$C$23),(T21+T22)*$B$24,(T21+T22)*$C$24) -> 0 | U24: =IF(AND(S$17>=$B$23, S$17<$C$23),(U22)*$B$24,(U22)*$C$24) -> 0 | W24: =IF(AND(V$17>=$B$23, V$17<$C$23),(W21+W22)*$B$24,(W21+W22)*$C$24) -> 0 | X24: =IF(AND(V$17>=$B$23, V$17<$C$23),(X22)*$B$24,(X22)*$C$24) -> 0 | Z24: =IF(AND(Y$17>=$B$23, Y$17<$C$23),(Z21+Z22)*$B$24,(Z21+Z22)*$C$24) -> 0 | AA24: =IF(AND(Y$17>=$B$23, Y$17<$C$23),(AA22)*$B$24,(AA22)*$C$24) -> 0 | AC24: =IF(AND(AB$17>=$B$23, AB$17<$C$23),(AC21+AC22)*$B$24,(AC21+AC22)*$C$24) -> 0 | AD24: =IF(AND(AB$17>=$B$23, AB$17<$C$23),(AD22)*$B$24,(AD22)*$C$24) -> 0 | AF24: =IF(AND(AE$17>=$B$23, AE$17<$C$23),(AF21+AF22)*$B$24,(AF21+AF22)*$C$24) -> 0 | AG24: =IF(AND(AE$17>=$B$23, AE$17<$C$23),(AG22)*$B$24,(AG22)*$C$24) -> 0 | AI24: =IF(AND(AH$17>=$B$23, AH$17<$C$23),(AI21+AI22)*$B$24,(AI21+AI22)*$C$24) -> 0 | AJ24: =IF(AND(AH$17>=$B$23, AH$17<$C$23),(AJ22)*$B$24,(AJ22)*$C$24) -> 0
A25: Rate Base | E25: =SUM(E20+E24) -> 0 | F25: =SUM(F20+F24) -> 0 | H25: =SUM(H20+H24) -> 0 | I25: =SUM(I20+I24) -> 0 | K25: =SUM(K20+K24) -> 0 | L25: =SUM(L20+L24) -> 0 | N25: =SUM(N20+N24) -> 0 | O25: =SUM(O20+O24) -> 0 | Q25: =SUM(Q20+Q24) -> 0 | R25: =SUM(R20+R24) -> 0 | T25: =SUM(T20+T24) -> 0 | U25: =SUM(U20+U24) -> 0 | W25: =SUM(W20+W24) -> 0 | X25: =SUM(X20+X24) -> 0 | Z25: =SUM(Z20+Z24) -> 0 | AA25: =SUM(AA20+AA24) -> 0 | AC25: =SUM(AC20+AC24) -> 0 | AD25: =SUM(AD20+AD24) -> 0 | AF25: =SUM(AF20+AF24) -> 0 | AG25: =SUM(AG20+AG24) -> 0 | AI25: =SUM(AI20+AI24) -> 0 | AJ25: =SUM(AJ20+AJ24) -> 0
A27: Rebasing Year vs. Test Year | B27: =B23 -> 2015 | C27: =C23 -> 2025
A28: Deemed ST Debt | B28: 0.04 | C28: 0.04 | E28: =E25*$B$28 -> 0 | F28: =F25*$B$28 -> 0 | H28: =H25*$B$28 -> 0 | I28: =I25*$B$28 -> 0 | K28: =K25*$B$28 -> 0 | L28: =L25*$B$28 -> 0 | N28: =N25*$B$28 -> 0 | O28: =O25*$B$28 -> 0 | Q28: =Q25*$B$28 -> 0 | R28: =R25*$B$28 -> 0 | T28: =T25*$C$28 -> 0 | U28: =U25*$C$28 -> 0 | W28: =W25*$C$28 -> 0 | X28: =X25*$C$28 -> 0 | Z28: =Z25*$C$28 -> 0 | AA28: =AA25*$C$28 -> 0 | AC28: =AC25*$C$28 -> 0 | AD28: =AD25*$C$28 -> 0 | AF28: =AF25*$C$28 -> 0 | AG28: =AG25*$C$28 -> 0 | AI28: =AI25*$C$28 -> 0 | AJ28: =AJ25*$C$28 -> 0
A29: Deemed LT Debt | B29: 0.56 | C29: 0.56 | E29: =E25*$B$29 -> 0 | F29: =F25*$B$29 -> 0 | H29: =H25*$B$29 -> 0 | I29: =I25*$B$29 -> 0 | K29: =K25*$B$29 -> 0 | L29: =L25*$B$29 -> 0 | N29: =N25*$B$29 -> 0 | O29: =O25*$B$29 -> 0 | Q29: =Q25*$B$29 -> 0 | R29: =R25*$B$29 -> 0 | T29: =T25*$C$29 -> 0 | U29: =U25*$C$29 -> 0 | W29: =W25*$C$29 -> 0 | X29: =X25*$C$29 -> 0 | Z29: =Z25*$C$29 -> 0 | AA29: =AA25*$C$29 -> 0 | AC29: =AC25*$C$29 -> 0 | AD29: =AD25*$C$29 -> 0 | AF29: =AF25*$C$29 -> 0 | AG29: =AG25*$C$29 -> 0 | AI29: =AI25*$C$29 -> 0 | AJ29: =AJ25*$C$29 -> 0
A30: Deemed Equity | B30: 0.4 | C30: 0.4 | E30: =E25*$B$30 -> 0 | F30: =F25*$B$30 -> 0 | H30: =H25*$B$30 -> 0 | I30: =I25*$B$30 -> 0 | K30: =K25*$B$30 -> 0 | L30: =L25*$B$30 -> 0 | N30: =N25*$B$30 -> 0 | O30: =O25*$B$30 -> 0 | Q30: =Q25*$B$30 -> 0 | R30: =R25*$B$30 -> 0 | T30: =T25*$C$30 -> 0 | U30: =U25*$C$30 -> 0 | W30: =W25*$C$30 -> 0 | X30: =X25*$C$30 -> 0 | Z30: =Z25*$C$30 -> 0 | AA30: =AA25*$C$30 -> 0 | AC30: =AC25*$C$30 -> 0 | AD30: =AD25*$C$30 -> 0 | AF30: =AF25*$C$30 -> 0 | AG30: =AG25*$C$30 -> 0 | AI30: =AI25*$C$30 -> 0 | AJ30: =AJ25*$C$30 -> 0
A32: ST Interest (enter rate) | E32: =E28*$B32 -> 0 | F32: 0 | H32: 0 | I32: 0 | K32: 0 | L32: 0 | N32: 0 | O32: 0 | Q32: 0 | R32: 0 | T32: =T28*$C32 -> 0 | U32: 0 | W32: =W28*$C32 -> 0 | X32: 0 | Z32: =Z28*$C32 -> 0 | AA32: 0 | AC32: =AC28*$C32 -> 0 | AD32: 0 | AF32: =AF28*$C32 -> 0 | AG32: 0 | AI32: =AI28*$C32 -> 0 | AJ32: 0
A33: LT Interest (enter rate) | E33: 0 | F33: 0 | H33: 0 | I33: 0 | K33: 0 | L33: 0 | N33: 0 | O33: 0 | Q33: 0 | R33: 0 | T33: 0 | U33: 0 | W33: 0 | X33: 0 | Z33: 0 | AA33: 0 | AC33: 0 | AD33: 0 | AF33: 0 | AG33: 0 | AI33: 0 | AJ33: 0
A34: Return on Equity (enter rate) | B34: =IFERROR(VLOOKUP($B$17,'2.1.5.6'!$D:$J,7,FALSE)/100,) -> 0.093 | E34: 0 | F34: 0 | H34: 0 | I34: 0 | K34: 0 | L34: 0 | N34: 0 | O34: 0 | Q34: 0 | R34: 0 | T34: 0 | U34: 0 | W34: 0 | X34: 0 | Z34: 0 | AA34: 0 | AC34: 0 | AD34: 0 | AF34: 0 | AG34: 0 | AI34: 0 | AJ34: 0
A35: Cost of Capital Total | E35: =SUM(E32:E34) -> 0 | F35: =SUM(F32:F34) -> 0 | H35: =SUM(H32:H34) -> 0 | I35: =SUM(I32:I34) -> 0 | K35: =SUM(K32:K34) -> 0 | L35: =SUM(L32:L34) -> 0 | N35: =SUM(N32:N34) -> 0 | O35: =SUM(O32:O34) -> 0 | Q35: =SUM(Q32:Q34) -> 0 | R35: =SUM(R32:R34) -> 0 | T35: =SUM(T32:T34) -> 0 | U35: =SUM(U32:U34) -> 0 | W35: =SUM(W32:W34) -> 0 | X35: =SUM(X32:X34) -> 0 | Z35: =SUM(Z32:Z34) -> 0 | AA35: =SUM(AA32:AA34) -> 0 | AC35: =SUM(AC32:AC34) -> 0 | AD35: =SUM(AD32:AD34) -> 0 | AF35: =SUM(AF32:AF34) -> 0 | AG35: =SUM(AG32:AG34) -> 0 | AI35: =SUM(AI32:AI34) -> 0 | AJ35: =SUM(AJ32:AJ34) -> 0
A37: OM&A | E37: =E21+E22 -> 0 | F37: =F22 -> 0 | H37: =H21+H22 -> 0 | I37: =I22 -> 0 | K37: =K21+K22 -> 0 | L37: =L22 -> 0 | N37: =N21+N22 -> 0 | O37: =O22 -> 0 | Q37: =Q21+Q22 -> 0 | R37: =R22 -> 0 | T37: =T21+T22 -> 0 | U37: =U22 -> 0 | W37: =W21+W22 -> 0 | X37: =X22 -> 0 | Z37: =Z21+Z22 -> 0 | AA37: =AA22 -> 0 | AC37: =AC21+AC22 -> 0 | AD37: =AD22 -> 0 | AF37: =AF21+AF22 -> 0 | AG37: =AG22 -> 0 | AI37: =AI21+AI22 -> 0 | AJ37: =AJ22 -> 0
A38: Amortization | D38: =+E77+E78 -> 0 | E38: =D38*E$19 -> 0 | F38: =D38*F$19 -> 0 | G38: =+F77+F78 -> 0 | H38: =G38*H$19 -> 0 | I38: =G38*I$19 -> 0 | J38: =+G77+G78 -> 0 | K38: =J38*K$19 -> 0 | L38: =J38*L$19 -> 0 | M38: =+H77+H78 -> 0 | N38: =M38*N$19 -> 0 | O38: =M38*O$19 -> 0 | P38: =+I77+I78 -> 0 | Q38: =P38*Q$19 -> 0 | R38: =P38*R$19 -> 0 | S38: =+J77+J78 -> 0 | T38: =S38*T$19 -> 0 | U38: =S38*U$19 -> 0 | V38: =+K77+K78 -> 0 | W38: =V38*W$19 -> 0 | X38: =V38*X$19 -> 0 | Y38: =+L77+L78 -> 0 | Z38: =Y38*Z$19 -> 0 | AA38: =Y38*AA$19 -> 0 | AB38: =+M77+M78 -> 0 | AC38: =AB38*AC$19 -> 0 | AD38: =AB38*AD$19 -> 0 | AE38: =+N77+N78 -> 0 | AF38: =AE38*AF$19 -> 0 | AG38: =AE38*AG$19 -> 0 | AH38: =+O77+O78 -> 0 | AI38: =AH38*AI$19 -> 0 | AJ38: =AH38*AJ$19 -> 0
A39: Grossed-up PILs | E39: =+E66 -> 0 | F39: =+F66 -> 0 | H39: =+H66 -> 0 | I39: =+I66 -> 0 | K39: =+K66 -> 0 | L39: =+L66 -> 0 | N39: =+N66 -> 0 | O39: =+O66 -> 0 | Q39: =+Q66 -> 0 | R39: =+R66 -> 0 | T39: =+T66 -> 0 | U39: =+U66 -> 0 | W39: =+W66 -> 0 | X39: =+X66 -> 0 | Z39: =+Z66 -> 0 | AA39: =+AA66 -> 0 | AC39: =+AC66 -> 0 | AD39: =+AD66 -> 0 | AF39: =+AF66 -> 0 | AG39: =+AG66 -> 0 | AI39: =+AI66 -> 0 | AJ39: =+AJ66 -> 0
A41: Revenue Requirement | E41: =SUM(E35:E39) -> 0 | F41: =SUM(F35:F39) -> 0 | H41: =SUM(H35:H39) -> 0 | I41: =SUM(I35:I39) -> 0 | K41: =SUM(K35:K39) -> 0 | L41: =SUM(L35:L39) -> 0 | N41: =SUM(N35:N39) -> 0 | O41: =SUM(O35:O39) -> 0 | Q41: =SUM(Q35:Q39) -> 0 | R41: =SUM(R35:R39) -> 0 | T41: =SUM(T35:T39) -> 0 | U41: =SUM(U35:U39) -> 0 | W41: =SUM(W35:W39) -> 0 | X41: =SUM(X35:X39) -> 0 | Z41: =SUM(Z35:Z39) -> 0 | AA41: =SUM(AA35:AA39) -> 0 | AC41: =SUM(AC35:AC39) -> 0 | AD41: =SUM(AD35:AD39) -> 0 | AF41: =SUM(AF35:AF39) -> 0 | AG41: =SUM(AG35:AG39) -> 0 | AI41: =SUM(AI35:AI39) -> 0 | AJ41: =SUM(AJ35:AJ39) -> 0
A44: Provincial Rate Protection | F44: =F41 -> 0 | I44: =I41 -> 0 | L44: =L41 -> 0 | O44: =O41 -> 0 | R44: =R41 -> 0 | U44: =U41 -> 0 | X44: =X41 -> 0 | AA44: =AA41 -> 0 | AD44: =AD41 -> 0 | AG44: =AG41 -> 0 | AJ44: =AJ41 -> 0
A46: Monthly Amount Paid by IESO | F46: =F44/12 -> 0 | I46: =I44/12 -> 0 | L46: =L44/12 -> 0 | O46: =O44/12 -> 0 | R46: =R44/12 -> 0 | U46: =U44/12 -> 0 | X46: =X44/12 -> 0 | AA46: =AA44/12 -> 0 | AD46: =AD44/12 -> 0 | AG46: =AG44/12 -> 0 | AJ46: =AJ44/12 -> 0
A48: Note 1: The distributor should follow the regulatory accounting set out in the Accounting Procedure Handbook Guidance FAQs issued in March 2015. Q10 of the APH FAQs states that: “For approved eligible investments as defined under O.Reg. 330/09 under the OEB Act, a variance account will continue to be used for the purpose of recording variances between the revenue requirement based on actual costs of approved eligible investments and the revenue received from the IESO.” The answer for Q10 provides the accounting guidance for this variance account: “Distributors that have included eligible investments to connect qualifying facilities in their DS plans are to establish the variance Account 1533 Renewable Generation Connection Funding Adder Deferral Account, Sub-account Provincial Rate Protection Payment Variances following OEB approval for investments forecast to enter service beyond the test year for purposes of implementing rate protection pursuant to O.Reg. 330/09. The purpose of this variance account is to track the variance between the distributor’s revenue requirement associated with the portion of the actual capital and/or operating costs that are eligible for rate protection, as incurred by the distributor for eligible renewable enabling and expansion investments, and the rate protection payments collected from the IESO.” The answer further provides the journal entries to record the variances. Distributors should follow the instructions in the answer for recording the journal entries in the variance account 1533.
A50: Note 2: For the Test Year, Costs and Revenues of the Direct Benefit are to be included in the test year applicant Rate Base and Revenues.
A52: PILs Calculation | T52: Test Year
E53: =G17-1 -> 2020 | H53: =G17 -> 2021 | K53: =J17 -> 2022 | N53: =M17 -> 2023 | Q53: =P17 -> 2024 | T53: =S17 -> 2025 | W53: =V17 -> 2026 | Z53: =Y17 -> 2027 | AC53: =AB17 -> 2028 | AF53: =AE17 -> 2029 | AI53: =AH17 -> 2030
A54: Income Tax | E54: Direct Benefit | F54: Provincial | H54: Direct Benefit | I54: Provincial | K54: Direct Benefit | L54: Provincial | N54: Direct Benefit | O54: Provincial | Q54: Direct Benefit | R54: Provincial | T54: Direct Benefit | U54: Provincial | W54: Direct Benefit | X54: Provincial | Z54: Direct Benefit | AA54: Provincial | AC54: Direct Benefit | AD54: Provincial | AF54: Direct Benefit | AG54: Provincial | AI54: Direct Benefit | AJ54: Provincial
AB55: Total | AE55: Total | AH55: Total
A56: Net Income - ROE on Rate Base | E56: =E34 -> 0 | F56: =F34 -> 0 | H56: =H34 -> 0 | I56: =I34 -> 0 | K56: =K34 -> 0 | L56: =L34 -> 0 | N56: =N34 -> 0 | O56: =O34 -> 0 | Q56: =Q34 -> 0 | R56: =R34 -> 0 | T56: =T34 -> 0 | U56: =U34 -> 0 | W56: =W34 -> 0 | X56: =X34 -> 0 | Z56: =Z34 -> 0 | AA56: =AA34 -> 0 | AC56: =AC34 -> 0 | AD56: =AD34 -> 0 | AF56: =AF34 -> 0 | AG56: =AG34 -> 0 | AI56: =AI34 -> 0 | AJ56: =AJ34 -> 0
A57: Amortization (6% DB and 94% P) | E57: =E38 -> 0 | F57: =F38 -> 0 | H57: =H38 -> 0 | I57: =I38 -> 0 | K57: =K38 -> 0 | L57: =L38 -> 0 | N57: =N38 -> 0 | O57: =O38 -> 0 | Q57: =Q38 -> 0 | R57: =R38 -> 0 | T57: =T38 -> 0 | U57: =U38 -> 0 | W57: =W38 -> 0 | X57: =X38 -> 0 | Z57: =Z38 -> 0 | AA57: =AA38 -> 0 | AC57: =AC38 -> 0 | AD57: =AD38 -> 0 | AF57: =AF38 -> 0 | AG57: =AG38 -> 0 | AI57: =AI38 -> 0 | AJ57: =AJ38 -> 0
A58: CCA (6% DB and 94% P) | E58: =-E95*$E$19 -> 0 | F58: =-E95*$F$19 -> 0 | H58: =-F95*$E$19 -> 0 | I58: =-F95*$F$19 -> 0 | K58: =-G95*$E$19 -> 0 | L58: =-G95*$F$19 -> 0 | N58: =-H95*$E$19 -> 0 | O58: =-H95*$F$19 -> 0 | Q58: =-I95*$E$19 -> 0 | R58: =-I95*$F$19 -> 0 | T58: =-J95*$E$19 -> 0 | U58: =-J95*$F$19 -> 0 | W58: =-K95*$E$19 -> 0 | X58: =-K95*$F$19 -> 0 | Z58: =-L95*$E$19 -> 0 | AA58: =-L95*$F$19 -> 0 | AC58: =-M95*$E$19 -> 0 | AD58: =-M95*$F$19 -> 0 | AF58: =-N95*$E$19 -> 0 | AG58: =-N95*$F$19 -> 0 | AI58: =-Q95*$E$19 -> 0 | AJ58: =-Q95*$F$19 -> 0
A59: Taxable income | E59: =SUM(E56:E58) -> 0 | F59: =SUM(F56:F58) -> 0 | H59: =SUM(H56:H58) -> 0 | I59: =SUM(I56:I58) -> 0 | K59: =SUM(K56:K58) -> 0 | L59: =SUM(L56:L58) -> 0 | N59: =SUM(N56:N58) -> 0 | O59: =SUM(O56:O58) -> 0 | Q59: =SUM(Q56:Q58) -> 0 | R59: =SUM(R56:R58) -> 0 | T59: =SUM(T56:T58) -> 0 | U59: =SUM(U56:U58) -> 0 | W59: =SUM(W56:W58) -> 0 | X59: =SUM(X56:X58) -> 0 | Z59: =SUM(Z56:Z58) -> 0 | AA59: =SUM(AA56:AA58) -> 0 | AC59: =SUM(AC56:AC58) -> 0 | AD59: =SUM(AD56:AD58) -> 0 | AF59: =SUM(AF56:AF58) -> 0 | AG59: =SUM(AG56:AG58) -> 0 | AI59: =SUM(AI56:AI58) -> 0 | AJ59: =SUM(AJ56:AJ58) -> 0
B60: =B27 -> 2015 | C60: =C27 -> 2025
A61: Tax Rate (to be entered) | E61: =IF(AND(E$53>=$B$60, E$53<$C$60),$B$61,$C$61) -> 0 | F61: =IF(AND(E$53>=$B$60, E$53<$C$60),$B$61,$C$61) -> 0 | H61: =IF(AND(H$53>=$B$60, H$53<$C$60),$B$61,$C$61) -> 0 | I61: =IF(AND(H$53>=$B$60, H$53<$C$60),$B$61,$C$61) -> 0 | K61: =IF(AND(K$53>=$B$60, K$53<$C$60),$B$61,$C$61) -> 0 | L61: =IF(AND(K$53>=$B$60, K$53<$C$60),$B$61,$C$61) -> 0 | N61: =IF(AND(N$53>=$B$60, N$53<$C$60),$B$61,$C$61) -> 0 | O61: =IF(AND(N$53>=$B$60, N$53<$C$60),$B$61,$C$61) -> 0 | Q61: =IF(AND(Q$53>=$B$60, Q$53<$C$60),$B$61,$C$61) -> 0 | R61: =IF(AND(Q$53>=$B$60, Q$53<$C$60),$B$61,$C$61) -> 0 | T61: =IF(AND(T$53>=$B$60, T$53<$C$60),$B$61,$C$61) -> 0 | U61: =IF(AND(T$53>=$B$60, T$53<$C$60),$B$61,$C$61) -> 0 | W61: =IF(AND(W$53>=$B$60, W$53<$C$60),$B$61,$C$61) -> 0 | X61: =IF(AND(W$53>=$B$60, W$53<$C$60),$B$61,$C$61) -> 0 | Z61: =IF(AND(Z$53>=$B$60, Z$53<$C$60),$B$61,$C$61) -> 0 | AA61: =IF(AND(Z$53>=$B$60, Z$53<$C$60),$B$61,$C$61) -> 0 | AC61: =IF(AND(AC$53>=$B$60, AC$53<$C$60),$B$61,$C$61) -> 0 | AD61: =IF(AND(AC$53>=$B$60, AC$53<$C$60),$B$61,$C$61) -> 0 | AF61: =IF(AND(AF$53>=$B$60, AF$53<$C$60),$B$61,$C$61) -> 0 | AG61: =IF(AND(AF$53>=$B$60, AF$53<$C$60),$B$61,$C$61) -> 0 | AI61: =IF(AND(AI$53>=$B$60, AI$53<$C$60),$B$61,$C$61) -> 0 | AJ61: =IF(AND(AI$53>=$B$60, AI$53<$C$60),$B$61,$C$61) -> 0
A63: Income Taxes Payable | E63: =E59*E61 -> 0 | F63: =F59*F61 -> 0 | H63: =H59*H61 -> 0 | I63: =I59*I61 -> 0 | K63: =K59*K61 -> 0 | L63: =L59*L61 -> 0 | N63: =N59*N61 -> 0 | O63: =O59*O61 -> 0 | Q63: =Q59*Q61 -> 0 | R63: =R59*R61 -> 0 | T63: =T59*T61 -> 0 | U63: =U59*U61 -> 0 | W63: =W59*W61 -> 0 | X63: =X59*X61 -> 0 | Z63: =Z59*Z61 -> 0 | AA63: =AA59*AA61 -> 0 | AC63: =AC59*AC61 -> 0 | AD63: =AD59*AD61 -> 0 | AF63: =AF59*AF61 -> 0 | AG63: =AG59*AG61 -> 0 | AI63: =AI59*AI61 -> 0 | AJ63: =AJ59*AJ61 -> 0
A64: Gross Up
A65: Income Taxes Payable | E65: =E63/(1-E61) -> 0 | F65: =F63/(1-F61) -> 0 | H65: =H63/(1-H61) -> 0 | I65: =I63/(1-I61) -> 0 | K65: =K63/(1-K61) -> 0 | L65: =L63/(1-L61) -> 0 | N65: =N63/(1-N61) -> 0 | O65: =O63/(1-O61) -> 0 | Q65: =Q63/(1-Q61) -> 0 | R65: =R63/(1-R61) -> 0 | T65: =T63/(1-T61) -> 0 | U65: =U63/(1-U61) -> 0 | W65: =W63/(1-W61) -> 0 | X65: =X63/(1-X61) -> 0 | Z65: =Z63/(1-Z61) -> 0 | AA65: =AA63/(1-AA61) -> 0 | AC65: =AC63/(1-AC61) -> 0 | AD65: =AD63/(1-AD61) -> 0 | AF65: =AF63/(1-AF61) -> 0 | AG65: =AG63/(1-AG61) -> 0 | AI65: =AI63/(1-AI61) -> 0 | AJ65: =AJ63/(1-AJ61) -> 0
A66: Grossed Up PILs | E66: =+E65 -> 0 | F66: =+F65 -> 0 | H66: =+H65 -> 0 | I66: =+I65 -> 0 | K66: =+K65 -> 0 | L66: =+L65 -> 0 | N66: =+N65 -> 0 | O66: =+O65 -> 0 | Q66: =+Q65 -> 0 | R66: =+R65 -> 0 | T66: =+T65 -> 0 | U66: =+U65 -> 0 | W66: =+W65 -> 0 | X66: =+X65 -> 0 | Z66: =+Z65 -> 0 | AA66: =+AA65 -> 0 | AC66: =+AC65 -> 0 | AD66: =+AD65 -> 0 | AF66: =+AF65 -> 0 | AG66: =+AG65 -> 0 | AI66: =+AI65 -> 0 | AJ66: =+AJ65 -> 0
J68: Test Year
E69: =F69-1 -> 2020 | F69: =G69-1 -> 2021 | G69: =H69-1 -> 2022 | H69: =I69-1 -> 2023 | I69: =J69-1 -> 2024 | J69: ='LDC Info'!E24 -> 2025 | K69: =J69+1 -> 2026 | L69: =K69+1 -> 2027 | M69: =L69+1 -> 2028 | N69: =M69+1 -> 2029 | O69: =N69+1 -> 2030
A70: Net Fixed Assets
A71: Enter applicable amortization in years: | B71: 40
A72: Opening Gross Fixed Assets | F72: =E74 -> 0 | G72: 0 | H72: 0 | I72: 0 | J72: 0 | K72: 0 | L72: 0 | M72: 0 | N72: 0 | O72: 0
A73: Capital Additions | E73: ='App.2-FA Proposed REG Invest.'!C62 -> 0 | F73: ='App.2-FA Proposed REG Invest.'!D62 -> 0 | G73: ='App.2-FA Proposed REG Invest.'!E62 -> 0 | H73: ='App.2-FA Proposed REG Invest.'!F62 -> 0 | I73: ='App.2-FA Proposed REG Invest.'!G62 -> 0 | J73: ='App.2-FA Proposed REG Invest.'!H62 -> 0 | K73: ='App.2-FA Proposed REG Invest.'!I62 -> 0 | L73: ='App.2-FA Proposed REG Invest.'!J62 -> 0 | M73: ='App.2-FA Proposed REG Invest.'!K62 -> 0 | N73: ='App.2-FA Proposed REG Invest.'!L62 -> 0 | O73: ='App.2-FA Proposed REG Invest.'!M62 -> 0
A74: Closing Gross Fixed Assets | E74: =SUM(E72:E73) -> 0 | F74: 0 | G74: 0 | H74: 0 | I74: 0 | J74: 0 | K74: 0 | L74: 0 | M74: 0 | N74: 0 | O74: =SUM(O72:O73) -> 0
A76: Opening Accumulated Amortization | F76: =+E79 -> 0 | G76: =+F79 -> 0 | H76: 0 | I76: 0 | J76: 0 | K76: 0 | L76: 0 | M76: 0 | N76: 0 | O76: 0
A77: Current Year Amortization (before additions) | E77: =IF(ISERROR(E72/$B$71), 0, E72/$B$71) -> 0 | F77: =IF(ISERROR(F72/$B$71), 0, F72/$B$71) -> 0 | G77: 0 | H77: 0 | I77: 0 | J77: 0 | K77: 0 | L77: 0 | M77: 0 | N77: 0 | O77: =IF(ISERROR(O72/$B$71), 0, O72/$B$71) -> 0
A78: Capital Additions Amortization (half year) | E78: =E73/$B$71/2 -> 0 | F78: =F73/$B$71/2 -> 0 | G78: 0 | H78: 0 | I78: 0 | J78: 0 | K78: 0 | L78: 0 | M78: 0 | N78: 0 | O78: =O73/$B$71/2 -> 0
A79: Closing Accumulated Amortization | E79: =SUM(E76+E77+E78) -> 0 | F79: 0 | G79: 0 | H79: 0 | I79: 0 | J79: 0 | K79: 0 | L79: 0 | M79: 0 | N79: 0 | O79: =SUM(O76+O77+O78) -> 0
A81: Opening Net Fixed Assets | E81: =E72-E76 -> 0 | F81: 0 | G81: 0 | H81: 0 | I81: 0 | J81: 0 | K81: 0 | L81: 0 | M81: 0 | N81: 0 | O81: =O72-O76 -> 0
A82: Closing Net Fixed Assets | E82: =E74-E79 -> 0 | F82: 0 | G82: 0 | H82: 0 | I82: 0 | J82: 0 | K82: 0 | L82: 0 | M82: 0 | N82: 0 | O82: =O74-O79 -> 0
A83: Average Net Fixed Assets | E83: =SUM(E81:E82)/2 -> 0 | F83: 0 | G83: 0 | H83: 0 | I83: 0 | J83: 0 | K83: 0 | L83: 0 | M83: 0 | N83: 0 | O83: =SUM(O81:O82)/2 -> 0
A85: UCC for PILs Calculation | J85: Test Year
E86: =E69 -> 2020 | F86: =F69 -> 2021 | G86: =G69 -> 2022 | H86: 2023 | I86: 2024 | J86: 2025 | K86: 2026 | L86: 2027 | M86: 2028 | N86: 2029 | O86: =O69 -> 2030
A88: Opening UCC | E88: =E72 -> 0 | F88: =E96 -> 0 | G88: 0 | H88: 0 | I88: 0 | J88: 0 | K88: 0 | L88: 0 | M88: 0 | N88: 0 | O88: 0
A89: Capital Additions | E89: =E73 -> 0 | F89: 0 | G89: 0 | H89: 0 | I89: 0 | J89: 0 | K89: 0 | L89: 0 | M89: 0 | N89: 0 | O89: =O73 -> 0
A90: UCC Before Half Year Rule | E90: =SUM(E88:E89) -> 0 | F90: 0 | G90: 0 | H90: 0 | I90: 0 | J90: 0 | K90: 0 | L90: 0 | M90: 0 | N90: 0 | O90: =SUM(O88:O89) -> 0
A91: Capital Additions (half year) | E91: =E89/2 -> 0 | F91: 0 | G91: 0 | H91: 0 | I91: 0 | J91: 0 | K91: 0 | L91: 0 | M91: 0 | N91: 0 | O91: =O89/2 -> 0
A92: Reduced UCC | E92: =E90-E91 -> 0 | F92: 0 | G92: 0 | H92: 0 | I92: 0 | J92: 0 | K92: 0 | L92: 0 | M92: 0 | N92: 0 | O92: =O90-O91 -> 0
A93: CCA Rate Class (to be entered)
A94: CCA Rate (to be entered)
A95: CCA | E95: =E92*$B$94 -> 0 | F95: =F92*$B$94 -> 0 | G95: 0 | H95: 0 | I95: 0 | J95: 0 | K95: 0 | L95: 0 | M95: 0 | N95: 0 | O95: =O92*$B$94 -> 0
A96: Closing UCC | E96: =E90-E95 -> 0 | F96: 0 | G96: 0 | H96: 0 | I96: 0 | J96: 0 | K96: 0 | L96: 0 | M96: 0 | N96: 0 | O96: =O90-O95 -> 0

Sheet 2.1.5.6 (hidden)
A1: 2.1.5.6: Capital, Debt, Equity (2020)
A3: Company Name (Merged or Current) | B3: Company Name | C3: Fiscal Year | D3: B+C | E3: 6: Working capital allowance % as approved (CoS Decision and Order) - (-P) [%] | F3: Deemed Equity: Regulated deemed short-term debt -V [%] | G3: Deemed Equity: Regulated deemed long-term debt (-W) [%] | H3: Deemed Equity: Regulated deemed equity -(X) [%] | I3: ROE Summary: Achieved ROE | J3: Regulated RR:Deemed ROE % from the distributor last CoS Decision and Order (z) [%]
A4: Alectra Utilities Corporation | B4: Alectra Utilities Corporation | C4: 2016 | D4: Alectra Utilities Corporation2016 | I4: 0
A5: Alectra Utilities Corporation | B5: Alectra Utilities Corporation | C5: 2017 | D5: Alectra Utilities Corporation2017 | E5: 10.66 | F5: 4 | G5: 56 | H5: 40 | I5: 8.43 | J5: 8.9
A6: Alectra Utilities Corporation | B6: Alectra Utilities Corporation | C6: 2018 | D6: Alectra Utilities Corporation2018 | E6: 10.66 | F6: 4 | G6: 56 | H6: 40 | I6: 7.66 | J6: 8.94
A7: Alectra Utilities Corporation | B7: Alectra Utilities Corporation | C7: 2019 | D7: Alectra Utilities Corporation2019 | E7: 10.5 | F7: 4 | G7: 56 | H7: 40 | I7: 7.21 | J7: 8.95
A8: Alectra Utilities Corporation | B8: Alectra Utilities Corporation | C8: 2020 | D8: Alectra Utilities Corporation2020 | E8: 10.5 | F8: 4 | G8: 56 | H8: 40 | I8: 4.8 | J8: 8.95
A9: Alectra Utilities Corporation | B9: Enersource Hydro Mississauga Inc. | C9: 2015 | D9: Enersource Hydro Mississauga Inc.2015 | E9: 13.5 | F9: 4 | G9: 56 | H9: 40 | I9: 7.54 | J9: 8.93
A10: Alectra Utilities Corporation | B10: Enersource Hydro Mississauga Inc. | C10: 2016 | D10: Enersource Hydro Mississauga Inc.2016 | E10: 13.5 | F10: 4 | G10: 56 | H10: 40 | I10: 6.13 | J10: 8.93
A11: Alectra Utilities Corporation | B11: Guelph Hydro Electric Systems Inc. | C11: 2015 | D11: Guelph Hydro Electric Systems Inc.2015 | E11: 15 | F11: 4 | G11: 56 | H11: 40 | I11: 8.66 | J11: 9.42
A12: Alectra Utilities Corporation | B12: Guelph Hydro Electric Systems Inc. | C12: 2016 | D12: Guelph Hydro Electric Systems Inc.2016 | E12: 7.5 | F12: 4 | G12: 56 | H12: 40 | I12: 10.58 | J12: 9.19
A13: Alectra Utilities Corporation | B13: Guelph Hydro Electric Systems Inc. | C13: 2017 | D13: Guelph Hydro Electric Systems Inc.2017 | E13: 7.5 | F13: 4 | G13: 56 | H13: 40 | I13: 9.7 | J13: 9.19
A14: Alectra Utilities Corporation | B14: Guelph Hydro Electric Systems Inc. | C14: 2018 | D14: Guelph Hydro Electric Systems Inc.2018 | E14: 7.5 | F14: 4 | G14: 56 | H14: 40 | I14: 8.18 | J14: 9.19
A15: Alectra Utilities Corporation | B15: Horizon Utilities Corporation | C15: 2015 | D15: Horizon Utilities Corporation2015 | E15: 12 | F15: 4 | G15: 56 | H15: 40 | I15: 10 | J15: 9.3
A16: Alectra Utilities Corporation | B16: Horizon Utilities Corporation | C16: 2016 | D16: Horizon Utilities Corporation2016 | E16: 12 | F16: 4 | G16: 56 | H16: 40 | I16: 9.85 | J16: 9.19
A17: Alectra Utilities Corporation | B17: Hydro One Brampton Networks Inc. | C17: 2015 | D17: Hydro One Brampton Networks Inc.2015 | E17: 13 | F17: 4 | G17: 56 | H17: 40 | I17: 7.66 | J17: 9.3
A18: Alectra Utilities Corporation | B18: Hydro One Brampton Networks Inc. | C18: 2016 | D18: Hydro One Brampton Networks Inc.2016 | E18: 13 | F18: 4 | G18: 56 | H18: 40 | I18: 7.3 | J18: 9.3
A19: Alectra Utilities Corporation | B19: PowerStream Inc. | C19: 2015 | D19: PowerStream Inc.2015 | E19: 13 | F19: 4 | G19: 56 | H19: 40 | I19: 6.65 | J19: 8.93
A20: Alectra Utilities Corporation | B20: PowerStream Inc. | C20: 2016 | D20: PowerStream Inc.2016 | E20: 13 | F20: 4 | G20: 56 | H20: 40 | I20: 7.89 | J20: 8.93
A21: Algoma Power Inc. | B21: Algoma Power Inc. | C21: 2015 | D21: Algoma Power Inc.2015 | E21: 10 | F21: 4 | G21: 56 | H21: 40 | I21: 11.07 | J21: 9.3
A22: Algoma Power Inc. | B22: Algoma Power Inc. | C22: 2016 | D22: Algoma Power Inc.2016 | E22: 10 | F22: 4 | G22: 56 | H22: 40 | I22: 9.89 | J22: 9.3
A23: Algoma Power Inc. | B23: Algoma Power Inc. | C23: 2017 | D23: Algoma Power Inc.2017 | E23: 10 | F23: 4 | G23: 56 | H23: 40 | I23: 8.11 | J23: 9.3
A24: Algoma Power Inc. | B24: Algoma Power Inc. | C24: 2018 | D24: Algoma Power Inc.2018 | E24: 10 | F24: 4 | G24: 56 | H24: 40 | I24: 8.22 | J24: 9.3
A25: Algoma Power Inc. | B25: Algoma Power Inc. | C25: 2019 | D25: Algoma Power Inc.2019 | E25: 10 | F25: 4 | G25: 56 | H25: 40 | I25: 8.44 | J25: 9.3
A26: Algoma Power Inc. | B26: Algoma Power Inc. | C26: 2020 | D26: Algoma Power Inc.2020 | E26: 7.5 | F26: 4 | G26: 56 | H26: 40 | I26: 9.25 | J26: 8.52
A27: Atikokan Hydro Inc. | B27: Atikokan Hydro Inc. | C27: 2015 | D27: Atikokan Hydro Inc.2015 | E27: 15 | F27: 4 | G27: 56 | H27: 40 | I27: 13.14 | J27: 9.12
A28: Atikokan Hydro Inc. | B28: Atikokan Hydro Inc. | C28: 2016 | D28: Atikokan Hydro Inc.2016 | E28: 15 | F28: 4 | G28: 56 | H28: 40 | I28: 2.73 | J28: 9.12
A29: Atikokan Hydro Inc. | B29: Atikokan Hydro Inc. | C29: 2017 | D29: Atikokan Hydro Inc.2017 | E29: 7.5 | F29: 4 | G29: 56 | H29: 40 | I29: 9.46 | J29: 8.78
A30: Atikokan Hydro Inc. | B30: Atikokan Hydro Inc. | C30: 2018 | D30: Atikokan Hydro Inc.2018 | E30: 7.5 | F30: 4 | G30: 56 | H30: 40 | I30: 11.21 | J30: 8.78
A31: Atikokan Hydro Inc. | B31: Atikokan Hydro Inc. | C31: 2019 | D31: Atikokan Hydro Inc.2019 | E31: 7.5 | F31: 4 | G31: 56 | H31: 40 | I31: 7.62 | J31: 8.78
A32: Atikokan Hydro Inc. | B32: Atikokan Hydro Inc. | C32: 2020 | D32: Atikokan Hydro Inc.2020 | E32: 7.5 | F32: 4 | G32: 56 | H32: 40 | I32: 7.29 | J32: 8.78
A33: Bluewater Power Distribution Corporation | B33: Bluewater Power Distribution Corporation | C33: 2015 | D33: Bluewater Power Distribution Corporation2015 | E33: 13 | F33: 4 | G33: 56 | H33: 40 | I33: 11.83 | J33: 8.98
A34: Bluewater Power Distribution Corporation | B34: Bluewater Power Distribution Corporation | C34: 2016 | D34: Bluewater Power Distribution Corporation2016 | E34: 13 | F34: 4 | G34: 56 | H34: 40 | I34: 11.86 | J34: 8.98
A35: Bluewater Power Distribution Corporation | B35: Bluewater Power Distribution Corporation | C35: 2017 | D35: Bluewater Power Distribution Corporation2017 | E35: 13 | F35: 4 | G35: 56 | H35: 40 | I35: 10.31 | J35: 8.98
A36: Bluewater Power Distribution Corporation | B36: Bluewater Power Distribution Corporation | C36: 2018 | D36: Bluewater Power Distribution Corporation2018 | E36: 13 | F36: 4 | G36: 56 | H36: 40 | I36: 11.86 | J36: 8.98
A37: Bluewater Power Distribution Corporation | B37: Bluewater Power Distribution Corporation | C37: 2019 | D37: Bluewater Power Distribution Corporation2019 | E37: 13 | F37: 4 | G37: 56 | H37: 40 | I37: 10.93 | J37: 8.98
A38: Bluewater Power Distribution Corporation | B38: Bluewater Power Distribution Corporation | C38: 2020 | D38: Bluewater Power Distribution Corporation2020 | E38: 13 | F38: 4 | G38: 56 | H38: 40 | I38: 10.8 | J38: 8.98
A39: Brantford Power Inc. | B39: Brantford Power Inc. | C39: 2015 | D39: Brantford Power Inc.2015 | E39: 11.5 | F39: 4 | G39: 56 | H39: 40 | I39: 11.06 | J39: 8.98
A40: Brantford Power Inc. | B40: Brantford Power Inc. | C40: 2016 | D40: Brantford Power Inc.2016 | E40: 11.5 | F40: 4 | G40: 56 | H40: 40 | I40: 6.53 | J40: 8.98
A41: Brantford Power Inc. | B41: Brantford Power Inc. | C41: 2017 | D41: Brantford Power Inc.2017 | E41: 7.5 | F41: 4 | G41: 56 | H41: 40 | I41: 11.38 | J41: 8.78
A42: Brantford Power Inc. | B42: Brantford Power Inc. | C42: 2018 | D42: Brantford Power Inc.2018 | E42: 7.5 | F42: 4 | G42: 56 | H42: 40 | I42: 7.9 | J42: 8.78
A43: Brantford Power Inc. | B43: Brantford Power Inc. | C43: 2019 | D43: Brantford Power Inc.2019 | E43: 7.5 | F43: 4 | G43: 56 | H43: 40 | I43: 7.17 | J43: 8.78
A44: Brantford Power Inc. | B44: Brantford Power Inc. | C44: 2020 | D44: Brantford Power Inc.2020 | E44: 7.5 | F44: 4 | G44: 56 | H44: 40 | I44: 3.76 | J44: 8.78
A45: Burlington Hydro Inc. | B45: Burlington Hydro Inc. | C45: 2015 | D45: Burlington Hydro Inc.2015 | E45: 13 | F45: 4 | G45: 56 | H45: 40 | I45: 9.2 | J45: 9.36
A46: Burlington Hydro Inc. | B46: Burlington Hydro Inc. | C46: 2016 | D46: Burlington Hydro Inc.2016 | E46: 13 | F46: 4 | G46: 56 | H46: 40 | I46: 7.98 | J46: 9.36
A47: Burlington Hydro Inc. | B47: Burlington Hydro Inc. | C47: 2017 | D47: Burlington Hydro Inc.2017 | E47: 13 | F47: 4 | G47: 56 | H47: 40 | I47: 6.69 | J47: 9.36
A48: Burlington Hydro Inc. | B48: Burlington Hydro Inc. | C48: 2018 | D48: Burlington Hydro Inc.2018 | E48: 13 | F48: 4 | G48: 56 | H48: 40 | I48: 6.43 | J48: 9.36
A49: Burlington Hydro Inc. | B49: Burlington Hydro Inc. | C49: 2019 | D49: Burlington Hydro Inc.2019 | E49: 13 | F49: 4 | G49: 56 | H49: 40 | I49: 7.16 | J49: 9.36
A50: Burlington Hydro Inc. | B50: Burlington Hydro Inc. | C50: 2020 | D50: Burlington Hydro Inc.2020 | E50: 13 | F50: 4 | G50: 56 | H50: 40 | I50: 1.33 | J50: 9.36
A51: Canadian Niagara Power Inc. | B51: Canadian Niagara Power Inc. | C51: 2015 | D51: Canadian Niagara Power Inc.2015 | E51: 13 | F51: 4 | G51: 56 | H51: 40 | I51: 10 | J51: 8.93
A52: Canadian Niagara Power Inc. | B52: Canadian Niagara Power Inc. | C52: 2016 | D52: Canadian Niagara Power Inc.2016 | E52: 13 | F52: 4 | G52: 56 | H52: 40 | I52: 8.97 | J52: 8.93
A53: Canadian Niagara Power Inc. | B53: Canadian Niagara Power Inc. | C53: 2017 | D53: Canadian Niagara Power Inc.2017 | E53: 7.5 | F53: 4 | G53: 56 | H53: 40 | I53: 10.7 | J53: 8.78
A54: Canadian Niagara Power Inc. | B54: Canadian Niagara Power Inc. | C54: 2018 | D54: Canadian Niagara Power Inc.2018 | E54: 7.5 | F54: 4 | G54: 56 | H54: 40 | I54: 6.58 | J54: 8.78
A55: Canadian Niagara Power Inc. | B55: Canadian Niagara Power Inc. | C55: 2019 | D55: Canadian Niagara Power Inc.2019 | E55: 7.5 | F55: 4 | G55: 56 | H55: 40 | I55: 5.84 | J55: 8.78
A56: Canadian Niagara Power Inc. | B56: Canadian Niagara Power Inc. | C56: 2020 | D56: Canadian Niagara Power Inc.2020 | E56: 7.5 | F56: 4 | G56: 56 | H56: 40 | I56: 5 | J56: 8.78
A57: Centre Wellington Hydro Ltd. | B57: Centre Wellington Hydro Ltd. | C57: 2015 | D57: Centre Wellington Hydro Ltd.2015 | E57: 13 | F57: 4 | G57: 56 | H57: 40 | I57: 8.13 | J57: 8.98
A58: Centre Wellington Hydro Ltd. | B58: Centre Wellington Hydro Ltd. | C58: 2016 | D58: Centre Wellington Hydro Ltd.2016 | E58: 13 | F58: 4 | G58: 56 | H58: 40 | I58: 4.01 | J58: 8.98
A59: Centre Wellington Hydro Ltd. | B59: Centre Wellington Hydro Ltd. | C59: 2017 | D59: Centre Wellington Hydro Ltd.2017 | E59: 13 | F59: 4 | G59: 56 | H59: 40 | I59: 3.54 | J59: 8.98
A60: Centre Wellington Hydro Ltd. | B60: Centre Wellington Hydro Ltd. | C60: 2018 | D60: Centre Wellington Hydro Ltd.2018 | E60: 7.5 | F60: 4 | G60: 56 | H60: 40 | I60: 7.14 | J60: 9
A61: Centre Wellington Hydro Ltd. | B61: Centre Wellington Hydro Ltd. | C61: 2019 | D61: Centre Wellington Hydro Ltd.2019 | E61: 7.5 | F61: 4 | G61: 56 | H61: 40 | I61: 5.19 | J61: 9
A62: Centre Wellington Hydro Ltd. | B62: Centre Wellington Hydro Ltd. | C62: 2020 | D62: Centre Wellington Hydro Ltd.2020 | E62: 7.5 | F62: 4 | G62: 56 | H62: 40 | I62: 7.86 | J62: 9
A63: Chapleau Public Utilities Corporation | B63: Chapleau Public Utilities Corporation | C63: 2015 | D63: Chapleau Public Utilities Corporation2015 | E63: 15 | F63: 4 | G63: 56 | H63: 40 | I63: 0.4 | J63: 9.12
A64: Chapleau Public Utilities Corporation | B64: Chapleau Public Utilities Corporation | C64: 2016 | D64: Chapleau Public Utilities Corporation2016 | E64: 15 | F64: 4 | G64: 56 | H64: 40 | I64: -3.82 | J64: 9.12
A65: Chapleau Public Utilities Corporation | B65: Chapleau Public Utilities Corporation | C65: 2017 | D65: Chapleau Public Utilities Corporation2017 | E65: 15 | F65: 4 | G65: 56 | H65: 40 | I65: -1.99 | J65: 9.12
A66: Chapleau Public Utilities Corporation | B66: Chapleau Public Utilities Corporation | C66: 2018 | D66: Chapleau Public Utilities Corporation2018 | E66: 15 | F66: 4 | G66: 56 | H66: 40 | I66: -9.19 | J66: 9.12
A67: Chapleau Public Utilities Corporation | B67: Chapleau Public Utilities Corporation | C67: 2019 | D67: Chapleau Public Utilities Corporation2019 | E67: 7.5 | F67: 4 | G67: 56 | H67: 40 | I67: 8.46 | J67: 9
A68: Chapleau Public Utilities Corporation | B68: Chapleau Public Utilities Corporation | C68: 2020 | D68: Chapleau Public Utilities Corporation2020 | E68: 7.5 | F68: 4 | G68: 56 | H68: 40 | I68: 3.57 | J68: 8.98
A69: Cooperative Hydro Embrun Inc. | B69: Cooperative Hydro Embrun Inc. | C69: 2015 | D69: Cooperative Hydro Embrun Inc.2015 | E69: 13 | F69: 4 | G69: 56 | H69: 40 | I69: 1.53 | J69: 9.36
A70: Cooperative Hydro Embrun Inc. | B70: Cooperative Hydro Embrun Inc. | C70: 2016 | D70: Cooperative Hydro Embrun Inc.2016 | E70: 13 | F70: 4 | G70: 56 | H70: 40 | I70: 3.68 | J70: 9.36
A71: Cooperative Hydro Embrun Inc. | B71: Cooperative Hydro Embrun Inc. | C71: 2017 | D71: Cooperative Hydro Embrun Inc.2017 | E71: 13 | F71: 4 | G71: 56 | H71: 40 | I71: 0.72 | J71: 9.36
A72: Cooperative Hydro Embrun Inc. | B72: Cooperative Hydro Embrun Inc. | C72: 2018 | D72: Cooperative Hydro Embrun Inc.2018 | E72: 7.5 | F72: 4 | G72: 56 | H72: 40 | I72: 8.12 | J72: 9
A73: Cooperative Hydro Embrun Inc. | B73: Cooperative Hydro Embrun Inc. | C73: 2019 | D73: Cooperative Hydro Embrun Inc.2019 | E73: 7.5 | F73: 4 | G73: 56 | H73: 40 | I73: 10.03 | J73: 9
A74: Cooperative Hydro Embrun Inc. | B74: Cooperative Hydro Embrun Inc. | C74: 2020 | D74: Cooperative Hydro Embrun Inc.2020 | E74: 7.5 | F74: 4 | G74: 56 | H74: 40 | I74: 11.35 | J74: 9
A75: Cornwall Street Railway Light and Power Company Limited | B75: Cornwall Street Railway Light and Power Company Limited | C75: 2020 | D75: Cornwall Street Railway Light and Power Company Limited2020 | I75: 0
A76: E.L.K. Energy Inc. | B76: E.L.K. Energy Inc. | C76: 2015 | D76: E.L.K. Energy Inc.2015 | E76: 12 | F76: 4 | G76: 56 | H76: 40 | I76: 10.72 | J76: 9.12
A77: E.L.K. Energy Inc. | B77: E.L.K. Energy Inc. | C77: 2016 | D77: E.L.K. Energy Inc.2016 | E77: 12 | F77: 4 | G77: 56 | H77: 40 | I77: 8.39 | J77: 9.12
A78: E.L.K. Energy Inc. | B78: E.L.K. Energy Inc. | C78: 2017 | D78: E.L.K. Energy Inc.2017 | E78: 7.5 | F78: 4 | G78: 56 | H78: 40 | I78: 11.15 | J78: 8.78
A79: E.L.K. Energy Inc. | B79: E.L.K. Energy Inc. | C79: 2018 | D79: E.L.K. Energy Inc.2018 | E79: 7.5 | F79: 4 | G79: 56 | H79: 40 | I79: 16.17 | J79: 8.78
A80: E.L.K. Energy Inc. | B80: E.L.K. Energy Inc. | C80: 2019 | D80: E.L.K. Energy Inc.2019 | E80: 7.5 | F80: 4 | G80: 56 | H80: 40 | I80: 9.66 | J80: 8.78
A81: E.L.K. Energy Inc. | B81: E.L.K. Energy Inc. | C81: 2020 | D81: E.L.K. Energy Inc.2020 | E81: 7.5 | F81: 4 | G81: 56 | H81: 40 | I81: 11.76 | J81: 8.78
A82: ENWIN Utilities Ltd. | B82: ENWIN Utilities Ltd. | C82: 2015 | D82: ENWIN Utilities Ltd.2015 | E82: 15 | F82: 4 | G82: 56 | H82: 40 | I82: 3.43 | J82: 8.01
A83: ENWIN Utilities Ltd. | B83: ENWIN Utilities Ltd. | C83: 2016 | D83: ENWIN Utilities Ltd.2016 | E83: 15 | F83: 4 | G83: 56 | H83: 40 | I83: 3.13 | J83: 8.01
A84: ENWIN Utilities Ltd. | B84: ENWIN Utilities Ltd. | C84: 2017 | D84: ENWIN Utilities Ltd.2017 | E84: 15 | F84: 4 | G84: 56 | H84: 40 | I84: 2.55 | J84: 8.01
A85: ENWIN Utilities Ltd. | B85: ENWIN Utilities Ltd. | C85: 2018 | D85: ENWIN Utilities Ltd.2018 | E85: 15 | F85: 4 | G85: 56 | H85: 40 | I85: 4.35 | J85: 8.01
A86: ENWIN Utilities Ltd. | B86: ENWIN Utilities Ltd. | C86: 2019 | D86: ENWIN Utilities Ltd.2019 | E86: 15 | F86: 4 | G86: 56 | H86: 40 | I86: 3.72 | J86: 8.01
A87: ENWIN Utilities Ltd. | B87: ENWIN Utilities Ltd. | C87: 2020 | D87: ENWIN Utilities Ltd.2020 | E87: 7.5 | F87: 4 | G87: 56 | H87: 40 | I87: 5.25 | J87: 8.52
A88: EPCOR Electricity Distribution Ontario Inc. | B88: EPCOR Electricity Distribution Ontario Inc. | C88: 2015 | D88: EPCOR Electricity Distribution Ontario Inc.2015 | E88: 12 | F88: 4 | G88: 56 | H88: 40 | I88: 10.86 | J88: 8.98
A89: EPCOR Electricity Distribution Ontario Inc. | B89: EPCOR Electricity Distribution Ontario Inc. | C89: 2016 | D89: EPCOR Electricity Distribution Ontario Inc.2016 | E89: 12 | F89: 4 | G89: 56 | H89: 40 | I89: 10.03 | J89: 8.98
A90: EPCOR Electricity Distribution Ontario Inc. | B90: EPCOR Electricity Distribution Ontario Inc. | C90: 2017 | D90: EPCOR Electricity Distribution Ontario Inc.2017 | E90: 12 | F90: 4 | G90: 56 | H90: 40 | I90: 11.65 | J90: 8.98
A91: EPCOR Electricity Distribution Ontario Inc. | B91: EPCOR Electricity Distribution Ontario Inc. | C91: 2018 | D91: EPCOR Electricity Distribution Ontario Inc.2018 | E91: 12 | F91: 4 | G91: 56 | H91: 40 | I91: 11.94 | J91: 8.98
A92: EPCOR Electricity Distribution Ontario Inc. | B92: EPCOR Electricity Distribution Ontario Inc. | C92: 2019 | D92: EPCOR Electricity Distribution Ontario Inc.2019 | E92: 12 | F92: 4 | G92: 56 | H92: 40 | I92: 2.77 | J92: 8.98
A93: EPCOR Electricity Distribution Ontario Inc. | B93: EPCOR Electricity Distribution Ontario Inc. | C93: 2020 | D93: EPCOR Electricity Distribution Ontario Inc.2020 | E93: 12 | F93: 4 | G93: 56 | H93: 40 | I93: -1.77 | J93: 8.98
A94: ERTH Power Corporation | B94: ERTH Power Corporation | C94: 2015 | D94: ERTH Power Corporation2015 | E94: 13 | F94: 4 | G94: 56 | H94: 40 | I94: 9.39 | J94: 9.12
A95: ERTH Power Corporation | B95: ERTH Power Corporation | C95: 2016 | D95: ERTH Power Corporation2016 | E95: 13 | F95: 4 | G95: 56 | H95: 40 | I95: 9.33 | J95: 9.12
A96: ERTH Power Corporation | B96: ERTH Power Corporation | C96: 2017 | D96: ERTH Power Corporation2017 | E96: 13 | F96: 4 | G96: 56 | H96: 40 | I96: 9.22 | J96: 9.12
A97: ERTH Power Corporation | B97: ERTH Power Corporation | C97: 2018 | D97: ERTH Power Corporation2018 | E97: 7.5 | F97: 4 | G97: 56 | H97: 40 | I97: 11.18 | J97: 9
A98: ERTH Power Corporation | B98: ERTH Power Corporation | C98: 2019 | D98: ERTH Power Corporation2019 | E98: 7.5 | F98: 4 | G98: 56 | H98: 40 | I98: 12.05 | J98: 9
A99: ERTH Power Corporation | B99: ERTH Power Corporation | C99: 2020 | D99: ERTH Power Corporation2020 | E99: 7.5 | F99: 4 | G99: 56 | H99: 40 | I99: 8.35 | J99: 9
A100: ERTH Power Corporation | B100: West Coast Huron Energy Inc. | C100: 2015 | D100: West Coast Huron Energy Inc.2015 | E100: 12 | F100: 4 | G100: 56 | H100: 40 | I100: 6.91 | J100: 8.98
A101: ERTH Power Corporation | B101: West Coast Huron Energy Inc. | C101: 2016 | D101: West Coast Huron Energy Inc.2016 | E101: 12 | F101: 4 | G101: 56 | H101: 40 | I101: 4.4 | J101: 8.98
A102: ERTH Power Corporation | B102: West Coast Huron Energy Inc. | C102: 2017 | D102: West Coast Huron Energy Inc.2017 | E102: 12 | F102: 4 | G102: 56 | H102: 40 | I102: 6 | J102: 8.98
A103: ERTH Power Corporation | B103: West Coast Huron Energy Inc. | C103: 2018 | D103: West Coast Huron Energy Inc.2018 | E103: 12 | F103: 4 | G103: 56 | H103: 40 | I103: 6.46 | J103: 8.98
A104: Elexicon Energy Inc. | B104: Elexicon Energy Inc. | C104: 2019 | D104: Elexicon Energy Inc.2019 | E104: 13.79 | F104: 4 | G104: 56 | H104: 40 | I104: 4.32 | J104: 9.43
A105: Elexicon Energy Inc. | B105: Elexicon Energy Inc. | C105: 2020 | D105: Elexicon Energy Inc.2020 | E105: 13.79 | F105: 4 | G105: 56 | H105: 40 | I105: 6.8 | J105: 9.43
A106: Elexicon Energy Inc. | B106: Veridian Connections Inc. | C106: 2015 | D106: Veridian Connections Inc.2015 | E106: 13.4 | F106: 4 | G106: 56 | H106: 40 | I106: 9.31 | J106: 9.36
A107: Elexicon Energy Inc. | B107: Veridian Connections Inc. | C107: 2016 | D107: Veridian Connections Inc.2016 | E107: 13.4 | F107: 4 | G107: 56 | H107: 40 | I107: 9.28 | J107: 9.36
A108: Elexicon Energy Inc. | B108: Veridian Connections Inc. | C108: 2017 | D108: Veridian Connections Inc.2017 | E108: 13.4 | F108: 4 | G108: 56 | H108: 40 | I108: 8.66 | J108: 9.36
A109: Elexicon Energy Inc. | B109: Veridian Connections Inc. | C109: 2018 | D109: Veridian Connections Inc.2018 | E109: 13.4 | F109: 4 | G109: 56 | H109: 40 | I109: 9.21 | J109: 9.36
A110: Elexicon Energy Inc. | B110: Whitby Hydro Electric Corporation | C110: 2015 | D110: Whitby Hydro Electric Corporation2015 | E110: 15 | F110: 4 | G110: 56 | H110: 40 | I110: 10.43 | J110: 9.66
A111: Elexicon Energy Inc. | B111: Whitby Hydro Electric Corporation | C111: 2016 | D111: Whitby Hydro Electric Corporation2016 | E111: 15 | F111: 4 | G111: 56 | H111: 40 | I111: 9.94 | J111: 9.66
A112: Elexicon Energy Inc. | B112: Whitby Hydro Electric Corporation | C112: 2017 | D112: Whitby Hydro Electric Corporation2017 | E112: 15 | F112: 4 | G112: 56 | H112: 40 | I112: 10.46 | J112: 9.66
A113: Elexicon Energy Inc. | B113: Whitby Hydro Electric Corporation | C113: 2018 | D113: Whitby Hydro Electric Corporation2018 | E113: 15 | F113: 4 | G113: 56 | H113: 40 | I113: 11.84 | J113: 9.66
A114: Energy Plus Inc. | B114: Brant County Power Inc. | C114: 2015 | D114: Brant County Power Inc.2015 | E114: 15 | F114: 4 | G114: 56 | H114: 40 | I114: 3.64 | J114: 9.58
A115: Energy Plus Inc. | B115: Energy Plus Inc. | C115: 2015 | D115: Energy Plus Inc.2015 | E115: 13 | F115: 4 | G115: 56 | H115: 40 | I115: 10 | J115: 9.36
A116: Energy Plus Inc. | B116: Energy Plus Inc. | C116: 2016 | D116: Energy Plus Inc.2016 | E116: 13 | F116: 4 | G116: 56 | H116: 40 | I116: 9.49 | J116: 9.36
A117: Energy Plus Inc. | B117: Energy Plus Inc. | C117: 2017 | D117: Energy Plus Inc.2017 | E117: 13 | F117: 4 | G117: 56 | H117: 40 | I117: 7.75 | J117: 9.36
A118: Energy Plus Inc. | B118: Energy Plus Inc. | C118: 2018 | D118: Energy Plus Inc.2018 | E118: 13 | F118: 4 | G118: 56 | H118: 40 | I118: 8.68 | J118: 9.36
A119: Energy Plus Inc. | B119: Energy Plus Inc. | C119: 2019 | D119: Energy Plus Inc.2019 | E119: 7.5 | F119: 4 | G119: 56 | H119: 40 | I119: 9.06 | J119: 8.98
A120: Energy Plus Inc. | B120: Energy Plus Inc. | C120: 2020 | D120: Energy Plus Inc.2020 | E120: 7.5 | F120: 4 | G120: 56 | H120: 40 | I120: 8.34 | J120: 8.98
A121: Entegrus Powerlines Inc. | B121: Entegrus Powerlines Inc. | C121: 2015 | D121: Entegrus Powerlines Inc.2015 | E121: 15 | F121: 4 | G121: 56 | H121: 40 | I121: 9.92 | J121: 9.85
A122: Entegrus Powerlines Inc. | B122: Entegrus Powerlines Inc. | C122: 2016 | D122: Entegrus Powerlines Inc.2016 | E122: 7.5 | F122: 4 | G122: 56 | H122: 40 | I122: 7.46 | J122: 9.19
A123: Entegrus Powerlines Inc. | B123: Entegrus Powerlines Inc. | C123: 2017 | D123: Entegrus Powerlines Inc.2017 | E123: 7.5 | F123: 4 | G123: 56 | H123: 40 | I123: 7.64 | J123: 9.19
A124: Entegrus Powerlines Inc. | B124: Entegrus Powerlines Inc. | C124: 2018 | D124: Entegrus Powerlines Inc.2018 | E124: 7.5 | F124: 4 | G124: 56 | H124: 40 | I124: 8.2 | J124: 9.19
A125: Entegrus Powerlines Inc. | B125: Entegrus Powerlines Inc. | C125: 2019 | D125: Entegrus Powerlines Inc.2019 | E125: 7.5 | F125: 4 | G125: 56 | H125: 40 | I125: 10.58 | J125: 9.19
A126: Entegrus Powerlines Inc. | B126: Entegrus Powerlines Inc. | C126: 2020 | D126: Entegrus Powerlines Inc.2020 | E126: 7.5 | F126: 4 | G126: 56 | H126: 40 | I126: 8.23 | J126: 9.19
A127: Entegrus Powerlines Inc. | B127: St. Thomas Energy Inc. | C127: 2015 | D127: St. Thomas Energy Inc.2015 | E127: 9.75 | F127: 4 | G127: 56 | H127: 40 | I127: 11.64 | J127: 9.3
A128: Entegrus Powerlines Inc. | B128: St. Thomas Energy Inc. | C128: 2016 | D128: St. Thomas Energy Inc.2016 | E128: 9.75 | F128: 4 | G128: 56 | H128: 40 | I128: 10.65 | J128: 9.3
A129: Entegrus Powerlines Inc. | B129: St. Thomas Energy Inc. | C129: 2017 | D129: St. Thomas Energy Inc.2017 | E129: 9.75 | F129: 4 | G129: 56 | H129: 40 | I129: 11.6 | J129: 9.3
A130: Espanola Regional Hydro Distribution Corporation | B130: Espanola Regional Hydro Distribution Corporation | C130: 2015 | D130: Espanola Regional Hydro Distribution Corporation2015 | E130: 15 | F130: 4 | G130: 56 | H130: 40 | I130: 15.91 | J130: 9.12
A131: Espanola Regional Hydro Distribution Corporation | B131: Espanola Regional Hydro Distribution Corporation | C131: 2016 | D131: Espanola Regional Hydro Distribution Corporation2016 | E131: 15 | F131: 4 | G131: 56 | H131: 40 | I131: 6.29 | J131: 9.12
A132: Espanola Regional Hydro Distribution Corporation | B132: Espanola Regional Hydro Distribution Corporation | C132: 2017 | D132: Espanola Regional Hydro Distribution Corporation2017 | E132: 15 | F132: 4 | G132: 56 | H132: 40 | I132: 2.45 | J132: 9.12
A133: Espanola Regional Hydro Distribution Corporation | B133: Espanola Regional Hydro Distribution Corporation | C133: 2018 | D133: Espanola Regional Hydro Distribution Corporation2018 | E133: 15 | F133: 4 | G133: 56 | H133: 40 | I133: 4.12 | J133: 9.12
A134: Espanola Regional Hydro Distribution Corporation | B134: Espanola Regional Hydro Distribution Corporation | C134: 2019 | D134: Espanola Regional Hydro Distribution Corporation2019 | E134: 15 | F134: 4 | G134: 56 | H134: 40 | I134: -9.46 | J134: 9.12
A135: Espanola Regional Hydro Distribution Corporation | B135: Espanola Regional Hydro Distribution Corporation | C135: 2020 | D135: Espanola Regional Hydro Distribution Corporation2020 | E135: 15 | F135: 4 | G135: 56 | H135: 40 | I135: -6.45 | J135: 9.12
A136: Essex Powerlines Corporation | B136: Essex Powerlines Corporation | C136: 2015 | D136: Essex Powerlines Corporation2015 | E136: 15 | F136: 4 | G136: 56 | H136: 40 | I136: 11.7 | J136: 9.85
A137: Essex Powerlines Corporation | B137: Essex Powerlines Corporation | C137: 2016 | D137: Essex Powerlines Corporation2016 | E137: 15 | F137: 4 | G137: 56 | H137: 40 | I137: 7.25 | J137: 9.85
A138: Essex Powerlines Corporation | B138: Essex Powerlines Corporation | C138: 2017 | D138: Essex Powerlines Corporation2017 | E138: 15 | F138: 4 | G138: 56 | H138: 40 | I138: 3.37 | J138: 9.85
A139: Essex Powerlines Corporation | B139: Essex Powerlines Corporation | C139: 2018 | D139: Essex Powerlines Corporation2018 | E139: 7.5 | F139: 4 | G139: 56 | H139: 40 | I139: 8.11 | J139: 9
A140: Essex Powerlines Corporation | B140: Essex Powerlines Corporation | C140: 2019 | D140: Essex Powerlines Corporation2019 | E140: 7.5 | F140: 4 | G140: 56 | H140: 40 | I140: 7.3 | J140: 9
A141: Essex Powerlines Corporation | B141: Essex Powerlines Corporation | C141: 2020 | D141: Essex Powerlines Corporation2020 | E141: 7.5 | F141: 4 | G141: 56 | H141: 40 | I141: 6.14 | J141: 9
A142: Festival Hydro Inc. | B142: Festival Hydro Inc. | C142: 2015 | D142: Festival Hydro Inc.2015 | E142: 13 | F142: 4 | G142: 56 | H142: 40 | I142: 14.24 | J142: 9.3
A143: Festival Hydro Inc. | B143: Festival Hydro Inc. | C143: 2016 | D143: Festival Hydro Inc.2016 | E143: 13 | F143: 4 | G143: 56 | H143: 40 | I143: 7.37 | J143: 9.3
A144: Festival Hydro Inc. | B144: Festival Hydro Inc. | C144: 2017 | D144: Festival Hydro Inc.2017 | E144: 13 | F144: 4 | G144: 56 | H144: 40 | I144: 8.43 | J144: 9.3
A145: Festival Hydro Inc. | B145: Festival Hydro Inc. | C145: 2018 | D145: Festival Hydro Inc.2018 | E145: 13 | F145: 4 | G145: 56 | H145: 40 | I145: 8.3 | J145: 9.3
A146: Festival Hydro Inc. | B146: Festival Hydro Inc. | C146: 2019 | D146: Festival Hydro Inc.2019 | E146: 13 | F146: 4 | G146: 56 | H146: 40 | I146: 9.1 | J146: 9.3
A147: Festival Hydro Inc. | B147: Festival Hydro Inc. | C147: 2020 | D147: Festival Hydro Inc.2020 | E147: 13 | F147: 4 | G147: 56 | H147: 40 | I147: 8.89 | J147: 9.3
A148: Fort Frances Power Corporation | B148: Fort Frances Power Corporation | C148: 2015 | D148: Fort Frances Power Corporation2015 | E148: 13 | F148: 4 | G148: 56 | H148: 40 | I148: 1.88 | J148: 0
A149: Fort Frances Power Corporation | B149: Fort Frances Power Corporation | C149: 2016 | D149: Fort Frances Power Corporation2016 | E149: 13 | F149: 4 | G149: 56 | H149: 40 | I149: -2.52 | J149: 0
A150: Fort Frances Power Corporation | B150: Fort Frances Power Corporation | C150: 2017 | D150: Fort Frances Power Corporation2017 | E150: 13 | F150: 4 | G150: 56 | H150: 40 | I150: -2.42 | J150: 0
A151: Fort Frances Power Corporation | B151: Fort Frances Power Corporation | C151: 2018 | D151: Fort Frances Power Corporation2018 | E151: 13 | F151: 4 | G151: 56 | H151: 40 | I151: -1.78 | J151: 0
A152: Fort Frances Power Corporation | B152: Fort Frances Power Corporation | C152: 2019 | D152: Fort Frances Power Corporation2019 | E152: 13 | F152: 4 | G152: 56 | H152: 40 | I152: -1.73 | J152: 0
A153: Fort Frances Power Corporation | B153: Fort Frances Power Corporation | C153: 2020 | D153: Fort Frances Power Corporation2020 | E153: 13 | F153: 4 | G153: 56 | H153: 40 | I153: 1.17 | J153: 0
A154: Greater Sudbury Hydro Inc. | B154: Greater Sudbury Hydro Inc. | C154: 2015 | D154: Greater Sudbury Hydro Inc.2015 | E154: 13 | F154: 4 | G154: 56 | H154: 40 | I154: 8.36 | J154: 8.98
A155: Greater Sudbury Hydro Inc. | B155: Greater Sudbury Hydro Inc. | C155: 2016 | D155: Greater Sudbury Hydro Inc.2016 | E155: 13 | F155: 4 | G155: 56 | H155: 40 | I155: 10.17 | J155: 8.98
A156: Greater Sudbury Hydro Inc. | B156: Greater Sudbury Hydro Inc. | C156: 2017 | D156: Greater Sudbury Hydro Inc.2017 | E156: 13 | F156: 4 | G156: 56 | H156: 40 | I156: 9.3 | J156: 8.98
A157: Greater Sudbury Hydro Inc. | B157: Greater Sudbury Hydro Inc. | C157: 2018 | D157: Greater Sudbury Hydro Inc.2018 | E157: 13 | F157: 4 | G157: 56 | H157: 40 | I157: 7.72 | J157: 8.98
A158: Greater Sudbury Hydro Inc. | B158: Greater Sudbury Hydro Inc. | C158: 2019 | D158: Greater Sudbury Hydro Inc.2019 | E158: 13 | F158: 4 | G158: 56 | H158: 40 | I158: 8.62 | J158: 8.98
A159: Greater Sudbury Hydro Inc. | B159: Greater Sudbury Hydro Inc. | C159: 2020 | D159: Greater Sudbury Hydro Inc.2020 | E159: 7.5 | F159: 4 | G159: 56 | H159: 40 | I159: 2.04 | J159: 8.52
A160: Grimsby Power Incorporated | B160: Grimsby Power Incorporated | C160: 2015 | D160: Grimsby Power Incorporated2015 | E160: 15 | F160: 4 | G160: 56 | H160: 40 | I160: 2.01 | J160: 9.42
A161: Grimsby Power Incorporated | B161: Grimsby Power Incorporated | C161: 2016 | D161: Grimsby Power Incorporated2016 | E161: 7.5 | F161: 4 | G161: 56 | H161: 40 | I161: 2.39 | J161: 9.19
A162: Grimsby Power Incorporated | B162: Grimsby Power Incorporated | C162: 2017 | D162: Grimsby Power Incorporated2017 | E162: 7.5 | F162: 4 | G162: 56 | H162: 40 | I162: 10.92 | J162: 9.19
A163: Grimsby Power Incorporated | B163: Grimsby Power Incorporated | C163: 2018 | D163: Grimsby Power Incorporated2018 | E163: 7.5 | F163: 4 | G163: 56 | H163: 40 | I163: 8.45 | J163: 9.19
A164: Grimsby Power Incorporated | B164: Grimsby Power Incorporated | C164: 2019 | D164: Grimsby Power Incorporated2019 | E164: 7.5 | F164: 4 | G164: 56 | H164: 40 | I164: 10.39 | J164: 9.19
A165: Grimsby Power Incorporated | B165: Grimsby Power Incorporated | C165: 2020 | D165: Grimsby Power Incorporated2020 | E165: 7.5 | F165: 4 | G165: 56 | H165: 40 | I165: 8.12 | J165: 9.19
A166: Halton Hills Hydro Inc. | B166: Halton Hills Hydro Inc. | C166: 2015 | D166: Halton Hills Hydro Inc.2015 | E166: 15 | F166: 4 | G166: 56 | H166: 40 | I166: 6.7 | J166: 8.82
A167: Halton Hills Hydro Inc. | B167: Halton Hills Hydro Inc. | C167: 2016 | D167: Halton Hills Hydro Inc.2016 | E167: 7.5 | F167: 4 | G167: 56 | H167: 40 | I167: 6.76 | J167: 9.19
A168: Halton Hills Hydro Inc. | B168: Halton Hills Hydro Inc. | C168: 2017 | D168: Halton Hills Hydro Inc.2017 | E168: 7.5 | F168: 4 | G168: 56 | H168: 40 | I168: 6.98 | J168: 9.19
A169: Halton Hills Hydro Inc. | B169: Halton Hills Hydro Inc. | C169: 2018 | D169: Halton Hills Hydro Inc.2018 | E169: 7.5 | F169: 4 | G169: 56 | H169: 40 | I169: 7.07 | J169: 9.19
A170: Halton Hills Hydro Inc. | B170: Halton Hills Hydro Inc. | C170: 2019 | D170: Halton Hills Hydro Inc.2019 | E170: 7.5 | F170: 4 | G170: 56 | H170: 40 | I170: 4.24 | J170: 9.19
A171: Halton Hills Hydro Inc. | B171: Halton Hills Hydro Inc. | C171: 2020 | D171: Halton Hills Hydro Inc.2020 | E171: 7.5 | F171: 4 | G171: 56 | H171: 40 | I171: 2.65 | J171: 9.19
A172: Hearst Power Distribution Company Limited | B172: Hearst Power Distribution Company Limited | C172: 2015 | D172: Hearst Power Distribution Company Limited2015 | E172: 7.5 | F172: 4 | G172: 56 | H172: 40 | I172: -24.02 | J172: 9.19
A173: Hearst Power Distribution Company Limited | B173: Hearst Power Distribution Company Limited | C173: 2016 | D173: Hearst Power Distribution Company Limited2016 | E173: 7.5 | F173: 4 | G173: 56 | H173: 40 | I173: 8.33 | J173: 9.19
A174: Hearst Power Distribution Company Limited | B174: Hearst Power Distribution Company Limited | C174: 2017 | D174: Hearst Power Distribution Company Limited2017 | E174: 7.5 | F174: 4 | G174: 56 | H174: 40 | I174: 8.19 | J174: 9.19
A175: Hearst Power Distribution Company Limited | B175: Hearst Power Distribution Company Limited | C175: 2018 | D175: Hearst Power Distribution Company Limited2018 | E175: 7.5 | F175: 4 | G175: 56 | H175: 40 | I175: 6.77 | J175: 9.19
A176: Hearst Power Distribution Company Limited | B176: Hearst Power Distribution Company Limited | C176: 2019 | D176: Hearst Power Distribution Company Limited2019 | E176: 7.5 | F176: 4 | G176: 56 | H176: 40 | I176: 13.91 | J176: 9.19
A177: Hearst Power Distribution Company Limited | B177: Hearst Power Distribution Company Limited | C177: 2020 | D177: Hearst Power Distribution Company Limited2020 | E177: 7.5 | F177: 4 | G177: 56 | H177: 40 | I177: 7.18 | J177: 9.19
A178: Hydro 2000 Inc. | B178: Hydro 2000 Inc. | C178: 2015 | D178: Hydro 2000 Inc.2015 | E178: 15 | F178: 4 | G178: 56 | H178: 40 | I178: 11.22 | J178: 9.12
A179: Hydro 2000 Inc. | B179: Hydro 2000 Inc. | C179: 2016 | D179: Hydro 2000 Inc.2016 | E179: 15 | F179: 4 | G179: 56 | H179: 40 | I179: 5.25 | J179: 9.12
A180: Hydro 2000 Inc. | B180: Hydro 2000 Inc. | C180: 2017 | D180: Hydro 2000 Inc.2017 | E180: 15 | F180: 4 | G180: 56 | H180: 40 | I180: -6.52 | J180: 9.12
A181: Hydro 2000 Inc. | B181: Hydro 2000 Inc. | C181: 2018 | D181: Hydro 2000 Inc.2018 | E181: 15 | F181: 4 | G181: 56 | H181: 40 | I181: -7.16 | J181: 9.12
A182: Hydro 2000 Inc. | B182: Hydro 2000 Inc. | C182: 2019 | D182: Hydro 2000 Inc.2019 | E182: 15 | F182: 4 | G182: 56 | H182: 40 | I182: 11.53 | J182: 9.12
A183: Hydro 2000 Inc. | B183: Hydro 2000 Inc. | C183: 2020 | D183: Hydro 2000 Inc.2020 | E183: 7.5 | F183: 4 | G183: 56 | H183: 40 | I183: 5.77 | J183: 8.52
A184: Hydro Hawkesbury Inc. | B184: Hydro Hawkesbury Inc. | C184: 2015 | D184: Hydro Hawkesbury Inc.2015 | E184: 13 | F184: 4 | G184: 56 | H184: 40 | I184: 19.72 | J184: 9.36
A185: Hydro Hawkesbury Inc. | B185: Hydro Hawkesbury Inc. | C185: 2016 | D185: Hydro Hawkesbury Inc.2016 | E185: 13 | F185: 4 | G185: 56 | H185: 40 | I185: 17.63 | J185: 9.36
A186: Hydro Hawkesbury Inc. | B186: Hydro Hawkesbury Inc. | C186: 2017 | D186: Hydro Hawkesbury Inc.2017 | E186: 13 | F186: 4 | G186: 56 | H186: 40 | I186: 7.45 | J186: 9.36
A187: Hydro Hawkesbury Inc. | B187: Hydro Hawkesbury Inc. | C187: 2018 | D187: Hydro Hawkesbury Inc.2018 | E187: 7.5 | F187: 4 | G187: 56 | H187: 40 | I187: -4.1 | J187: 9
A188: Hydro Hawkesbury Inc. | B188: Hydro Hawkesbury Inc. | C188: 2019 | D188: Hydro Hawkesbury Inc.2019 | E188: 7.5 | F188: 4 | G188: 56 | H188: 40 | I188: 16.54 | J188: 9
A189: Hydro Hawkesbury Inc. | B189: Hydro Hawkesbury Inc. | C189: 2020 | D189: Hydro Hawkesbury Inc.2020 | E189: 7.5 | F189: 4 | G189: 56 | H189: 40 | I189: 6.57 | J189: 9
A190: Hydro One Networks Inc. | B190: Haldimand County Hydro Inc. | C190: 2015 | D190: Haldimand County Hydro Inc.2015 | E190: 12 | F190: 4 | G190: 56 | H190: 40 | I190: 7.5 | J190: 9.36
